Workbook

Sheet Spielberichte-Blanko (hidden)
B2: Spielbericht BOWLING
B3: Betriebssportverband Hamburg e.V. | L3: Punktspielserie
B4: alle Felder sind unbedingt auszufüllen,da sonst der Spielbericht ungültig ist
B6: Klasse | C6: Herren | E6: Antritt Nr. | H6: Datum | J6: BSG
C8: X) | D8: Pass-Nr. | G8: Vor-und Zuname | I8: I | J8: II | K8: III | L8: Gesamt
B9: 1
B10: 2
B11: 3
B12: 4
B13: 5
B14: Bitte mit einem x) versehen | E14: Unterschrift des Spiel-
B15: wenn Ersatzspieler/in | E15: partners
B17: Spielbericht BOWLING
B18: Betriebssportverband Hamburg e.V. | L18: Punktspielserie
B19: alle Felder sind unbedingt auszufüllen,da sonst der Spielbericht ungültig ist
B21: Klasse | C21: Herren | E21: Antritt Nr. | H21: Datum | J21: BSG
C23: X) | D23: Pass-Nr. | G23: Vor-und Zuname | I23: I | J23: II | K23: III | L23: Gesamt
B24: 1
B25: 2
B26: 3
B27: 4
B28: 5
B29: Bitte mit einem x) versehen | E29: Unterschrift des Spiel-
B30: wenn Ersatzspieler/in | E30: partners

Sheet Anhang Blanko (hidden)
A1: Anhang zum Spielbericht B O W L I N G
L2: Punktspielserie
A3: alle Felder sind unbedingt auszufüllen und mit dem Original-Spielbericht einzusenden.
A5: Klasse: | D5: Antritt-Nr. : | F5: Datum : | I5: Halle :
C7: Ausrichter BSG: | F7: Mannschaftsführer: | J7: Telefon:
A9: Durch- gänge | C9: BSG | D9: BSG | E9: BSG | F9: BSG | G9: BSG | H9: BSG | I9: BSG | J9: BSG | K9: BSG | L9: BSG | M9: BSG | N9: BSG
M10: =VLOOKUP(M11,Hilfstabelle!$L$5:$M$16,2,0) -> SGS 1 | N10: =VLOOKUP(N11,Hilfstabelle!$L$5:$M$16,2,0) -> JUS 2
M11: =+Hilfstabelle!$L15 -> SG Stern Hamburg 1 | N11: =+Hilfstabelle!$L16 -> Justitzbehörde 2
A12: 1
A13: 2
A14: 1 + 2 | C14: =+C13+C12 -> 0 | D14: =+D13+D12 -> 0 | E14: 0 | F14: 0 | G14: 0 | H14: 0 | I14: 0 | J14: 0 | K14: 0 | L14: 0 | M14: 0 | N14: 0
A15: 3
A16: Pins Gesamt | C16: =+C15+C14 -> 0 | D16: =+D15+D14 -> 0 | E16: 0 | F16: 0 | G16: 0 | H16: 0 | I16: 0 | J16: 0 | K16: 0 | L16: 0 | M16: 0 | N16: 0
A17: Punkte Antritt | C17: =IF(C12>0,RANK(C16,$C$16:$N$16,12)," ") ->  | D17: =IF(D12>0,RANK(D16,$C$16:$N$16,12)," ") -> 
A18: Punkte A L T
A19: Punkte N E U

Sheet Start
B3: ="PUNKTSPIELSAISON "&+'Hilfstabelle Mannschaften'!I8 -> PUNKTSPIELSAISON 2024/2025
B5: PANA-Rangliste | F5: Mannschaft
B6: Mannschaftsübersicht | F6: Annegret Schmidt | I6: Kai Roßberg
B7: Übersicht aller Spiele der Klasse B4 | F7: Ilona Wetzel | I7: Deniz Hagelstein
B8: Spielereinteilung | I8: Frank Nijholt
B9: Spielberichte | F9: Abschlusstabelle 23-24 | I9: Jörg Frahm
B10: Anhang zum Spielbericht | F10: BSG-Schnittliste Saison 23-24 | I10: Mario Jurk
B11: Spielsystembogen 1. Mannschaft | F11: "Alters"-Übersicht (Nur mal so) | I11: Matthias Nolte
B12: Ergebnisse nach BVH | I12: Michael Wetzel
B14: =+B3 -> PUNKTSPIELSAISON 2024/2025 | H14: Zuletzt aktualisiert am:
B15: Anmeldegruppen / Turnierplanung | H15: =NOW() -> 2025-05-13T21:35:45.910
B16: Turniere und Meisterschaften | H16: =NOW() -> 45790.89984
B17: Rangliste PANA-Spieler Saison
B19: BSG-Kürzel 2023/24
B21: Achtung: Neue Berechnung der Schnitteinteilung
B22: für Herbst- und Frühjarsmixed

Sheet PANA-Rangliste
B2: Start | C2: =+"Rangliste Saison "&+'Hilfstabelle Mannschaften'!I8 -> Rangliste Saison 2024/2025
D4: DAMEN NEU | L4: Höchstes Einzel
C5: Name | D5: Pass.-Nr. | E5: Pins | F5: Spiele | G5: Schnitt | H5: +/- | I5: ="Ø "&+'Hilfstabelle Mannschaften'!$I$9 -> Ø 23/24 | K5: D. | L5: =+IF('Hilfstabelle Spieler'!$E$18,'Hilfstabelle Spieler'!$F$18,"") -> Ilona Wetzel | M5: =+IF('Hilfstabelle Spieler'!$E$18,":","") -> : | N5: =+IF('Hilfstabelle Spieler'!$E$18,'Hilfstabelle Spieler'!$E$18,"") -> 202 | O5: =+IF('Hilfstabelle Spieler'!$E$18,"Pins","") -> Pins
C6: Ilona Wetzel | D6: =VLOOKUP(C6,Rangliste_Mannschaften_Passnummern,2,0) -> 22115 | E6: =+'Ilona W.'!G8 -> 7534 | F6: =+'Ilona W.'!H8 -> 49 | G6: =+'Ilona W.'!I8 -> 153.755102 | H6: =IF(I6>0,+G6-I6,"") -> 10.63605442 | I6: =VLOOKUP(D6,'Anmeldegruppen Turniere'!$F$7:$W$31,2,0) -> 143.1190476 | K6: H. | L6: =+IF('Hilfstabelle Spieler'!E13,'Hilfstabelle Spieler'!F13,"") -> Kai Roßberg | M6: =+IF('Hilfstabelle Spieler'!$E$13,":","") -> : | N6: =+IF('Hilfstabelle Spieler'!E13,'Hilfstabelle Spieler'!E13,"") -> 246 | O6: =+IF('Hilfstabelle Spieler'!$E$13,"Pins","") -> Pins
C7: Annegret Schmidt | D7: =VLOOKUP(C7,Rangliste_Mannschaften_Passnummern,2,0) -> 19222 | E7: =+'Annegret S.'!G8 -> 8663 | F7: =+'Annegret S.'!H8 -> 63 | G7: =+'Annegret S.'!I8 -> 137.5079365 | H7: =+G7-I7 -> -3.008192524 | I7: =VLOOKUP(D7,'Anmeldegruppen Turniere'!$F$7:$W$31,2,0) -> 140.516129
E8: =SUM(E6:E7) -> 16197 | F8: =SUM(F6:F7) -> 112 | G8: =IF(E8>1,+E8/F8,"") -> 144.6160714 | L8: Höchste 3.er Serie
K9: D. | L9: =+IF('Hilfstabelle Spieler'!G18,'Hilfstabelle Spieler'!H18,"") -> Ilona Wetzel | M9: =+IF(+'Hilfstabelle Spieler'!$G$18>1,":","") -> : | N9: =+IF('Hilfstabelle Spieler'!G18,'Hilfstabelle Spieler'!G18,"") -> 509 | O9: =+IF(+'Hilfstabelle Spieler'!$G$18>1,"Pins","") -> Pins | P9: =+IF(+'Hilfstabelle Spieler'!$G$18>1,"=","") -> = | Q9: =+IF(+'Hilfstabelle Spieler'!G18>1,'Hilfstabelle Spieler'!G19,"") -> 169.6666667 | R9: =+IF(+'Hilfstabelle Spieler'!G18>1,"Schnitt","") -> Schnitt
D10: HERREN NEU | G10: Schnitt | K10: H. | L10: =+IF('Hilfstabelle Spieler'!G13,'Hilfstabelle Spieler'!H13,"") -> Mario Jurk | M10: =+IF(+'Hilfstabelle Spieler'!$G$13>1,":","") -> : | N10: =+IF(+'Hilfstabelle Spieler'!G13>1,'Hilfstabelle Spieler'!G13,"") -> 628 | O10: =+IF(+'Hilfstabelle Spieler'!$G$13>1,"Pins","") -> Pins | P10: =+IF(+'Hilfstabelle Spieler'!$G$13>1,"=","") -> = | Q10: =+IF(+'Hilfstabelle Spieler'!G13>1,'Hilfstabelle Spieler'!G14,"") -> 209.3333333 | R10: =+IF(+'Hilfstabelle Spieler'!G13>1,"Schnitt","") -> Schnitt
C11: Name | D11: Pass.-Nr. | E11: Pins | F11: Spiele | G11: Schnitt | H11: +/- | I11: =+I5 -> Ø 23/24
C12: Mario Jurk | D12: =VLOOKUP(C12,Rangliste_Mannschaften_Passnummern,2,0) -> 23302 | E12: =+'Mario J.'!G8 -> 3245 | F12: =+'Mario J.'!H8 -> 18 | G12: =+'Mario J.'!I8 -> 180.2777778 | H12: =+G12-I12 -> -5.138888889 | I12: =VLOOKUP(D12,'Anmeldegruppen Turniere'!$F$7:$G$15,2,0) -> 185.4166667 | L12: Höchste 4.er Serie
C13: Kai Roßberg | D13: 21889 | E13: =+'Kai R.'!$G$8 -> 6459 | F13: =+'Kai R.'!$H$8 -> 36 | G13: =+'Kai R.'!$I$8 -> 179.4166667 | H13: -14.41666667 | I13: =VLOOKUP(D13,'Anmeldegruppen Turniere'!$F$7:$G$15,2,0) -> 193.8333333 | K13: D. | L13: =+IF(+'Hilfstabelle Spieler'!$I$18>1,+'Hilfstabelle Spieler'!$J$18,"") -> Annegret Schmidt | M13: =+IF(+'Hilfstabelle Spieler'!$I$18>1,":","") -> : | N13: =+IF(+'Hilfstabelle Spieler'!$I$18>1,'Hilfstabelle Spieler'!$I$18,"") -> 574 | O13: =+IF(+'Hilfstabelle Spieler'!$I$18>1,"Pins","") -> Pins | P13: =+IF(+'Hilfstabelle Spieler'!$I$18>1,"=","") -> = | Q13: =+IF(+'Hilfstabelle Spieler'!$I$18>1,'Hilfstabelle Spieler'!$I$19,"") -> 143.5 | R13: =+IF(+'Hilfstabelle Spieler'!$I$18>1,"Schnitt","") -> Schnitt
C14: Michael Wetzel | D14: 22113 | E14: =+'Michael W.'!G8 -> 4950 | F14: =+'Michael W.'!H8 -> 28 | G14: =+'Michael W.'!I8 -> 176.7857143 | H14: 2.504464286 | I14: =VLOOKUP(D14,'Anmeldegruppen Turniere'!$F$7:$G$15,2,0) -> 174.28125 | K14: H. | L14: =+IF('Hilfstabelle Spieler'!I13,'Hilfstabelle Spieler'!J13,"") -> Jörg Frahm | M14: =+IF('Hilfstabelle Spieler'!$I$13,":","") -> : | N14: =+IF('Hilfstabelle Spieler'!I13,'Hilfstabelle Spieler'!I13,"") -> 742 | O14: =+IF('Hilfstabelle Spieler'!$I$13,"Pins","") -> Pins | P14: =+IF('Hilfstabelle Spieler'!$I$13,"=","") -> = | Q14: =+IF('Hilfstabelle Spieler'!I13,'Hilfstabelle Spieler'!I14,"") -> 185.5 | R14: =+IF('Hilfstabelle Spieler'!I13,"Schnitt","") -> Schnitt
C15: Jörg Frahm | D15: 19221 | E15: =+'Jörg F.'!G8 -> 5300 | F15: =+'Jörg F.'!H8 -> 31 | G15: =+'Jörg F.'!I8 -> 170.9677419 | H15: -1.414076246 | I15: =VLOOKUP(D15,'Anmeldegruppen Turniere'!$F$7:$G$15,2,0) -> 172.3818182
C16: Frank Nijholt | D16: 24774 | E16: =+'Frank N.'!G8 -> 2051 | F16: =+'Frank N.'!H8 -> 15 | G16: =+'Frank N.'!I8 -> 136.7333333 | H16: 0.4 | I16: =VLOOKUP(D16,'Anmeldegruppen Turniere'!$F$7:$G$15,2,0) -> 136.3333333 | L16: Höchste 6.er Serie
C17: Deniz Hagelstein | D17: 24775 | E17: =+'Deniz H.'!G8 -> 2818 | F17: =+'Deniz H.'!H8 -> 21 | G17: =+'Deniz H.'!I8 -> 134.1904762 | H17: -5.380952381 | I17: =VLOOKUP(D17,'Anmeldegruppen Turniere'!$F$7:$G$15,2,0) -> 139.5714286 | K17: D. | L17: =+IF('Hilfstabelle Spieler'!K18,'Hilfstabelle Spieler'!L18,"") -> Ilona Wetzel | M17: =+IF(+'Hilfstabelle Spieler'!$K$18>1,":","") -> : | N17: =+IF(+'Hilfstabelle Spieler'!K18>1,'Hilfstabelle Spieler'!K18,"") -> 1024 | O17: =+IF(+'Hilfstabelle Spieler'!$K$18>1,"Pins","") -> Pins | P17: =+IF(+'Hilfstabelle Spieler'!$K$18>1,"=","") -> = | Q17: =+IF(+'Hilfstabelle Spieler'!K18>1,'Hilfstabelle Spieler'!K19,"") -> 170.6666667 | R17: =+IF(+'Hilfstabelle Spieler'!K18>1,"Schnitt","") -> Schnitt
C18: Matthias Nolte | D18: 20137 | E18: =+'Matthias N.'!G8 -> 2000 | F18: =+'Matthias N.'!H8 -> 15 | G18: =+'Matthias N.'!I8 -> 133.3333333 | H18: -1.333333333 | I18: =VLOOKUP(D18,'Anmeldegruppen Turniere'!$F$7:$G$15,2,0) -> 134.6666667 | K18: H. | L18: =+IF('Hilfstabelle Spieler'!K13,'Hilfstabelle Spieler'!L13,"") -> Michael Wetzel | M18: =+IF(+'Hilfstabelle Spieler'!$K$13>1,":","") -> : | N18: =+IF(+'Hilfstabelle Spieler'!K13>1,'Hilfstabelle Spieler'!K13,"") -> 1090 | O18: =+IF(+'Hilfstabelle Spieler'!$K$13>1,"Pins","") -> Pins | P18: =+IF(+'Hilfstabelle Spieler'!$K$13>1,"=","") -> = | Q18: =+IF(+'Hilfstabelle Spieler'!K13>1,'Hilfstabelle Spieler'!K14,"") -> 181.6666667 | R18: =+IF(+'Hilfstabelle Spieler'!K13>1,"Schnitt","") -> Schnitt
E19: =SUM(E12:E18) -> 26823 | F19: =SUM(F12:F18) -> 164 | G19: =IF(E19>1,+E19/F19,"") -> 163.554878
C21: Gesamter PANA-Schnitt
C22: ="Ø "&+'Hilfstabelle Mannschaften'!$I$10 -> Ø 2024/2025 | D22: Ø Damen: | E22: Ø Herren: | F22: Ø Liga: | G22: Ø Sonstige: | I22: Ø Gesamt:
C23: Spiele | D23: =+F8 -> 112 | E23: =+F19 -> 164 | F23: =+Mannschaftsübersicht!G13 -> 168 | G23: =+'Hilfstabelle Spieler'!BH11 -> 108 | I23: =SUM(E23,D23) -> 276
C24: Pins | D24: =+E8 -> 16197 | E24: =+E19 -> 26823 | F24: =+Mannschaftsübersicht!E14 -> 24763 | G24: =+'Hilfstabelle Spieler'!BI11 -> 16766 | I24: =SUM(E24,D24) -> 43020
C25: Schnitt | D25: =IF(D24>1,+D24/D23," ") -> 144.6160714 | E25: =IF(E24>1,+E24/E23," ") -> 163.554878 | F25: =+F24/F23 -> 147.3988095 | G25: =+G24/G23 -> 155.2407407 | I25: =IF(I24>1,+I24/I23," ") -> 155.8695652
C27: ="Ø "&+'Hilfstabelle Mannschaften'!$I$11 -> Ø 2023/2024 | D27: Ø Damen: | E27: Ø Herren: | F27: Ø Gesamt:
C28: Spiele | D28: =+'Rangliste PANA-Spieler'!S12 -> 104 | E28: =+'Rangliste PANA-Spieler'!S24 -> 185 | F28: =+E28+D28 -> 289
C29: Pins | D29: =+'Rangliste PANA-Spieler'!R12 -> 14723 | E29: =+'Rangliste PANA-Spieler'!R24 -> 30970 | F29: =+E29+D29 -> 45693
C30: Schnitt | D30: =+'Rangliste PANA-Spieler'!T12 -> 141.5673077 | E30: =+'Rangliste PANA-Spieler'!T24 -> 167.4054054 | F30: =+F29/F28 -> 158.1072664

Sheet Mannschaftsübersicht
B2: Start
B3: Rangliste
C4: Übersicht
C6: ="1. Mannschaft, "&+'Hilfstabelle Mannschaften'!I3&" "&+'Hilfstabelle Mannschaften'!I4 -> 1. Mannschaft, Klasse B4
C7: Platz | D7: Mannschaft | E7: Pins | F7: Pkt. | G7: Spiele | H7: Schnitt
C8: 1. | D8: =+'Hilfstabelle Mannschaften'!L10 -> Körber Sports 2 | E8: =VLOOKUP(D8,'Hilfstabelle Mannschaften'!$L$4:$M$11,2,0) -> 25432 | F8: =VLOOKUP(D8,'Übersicht der Klasse B4'!$D$8:$E$27,2,0) -> 72 | G8: =VLOOKUP(D8,'Hilfstabelle Mannschaften'!$L$34:$M$45,2,0) -> 168 | H8: =IF(F8>=1,+E8/G8,"") -> 151.3809524
C9: 2. | D9: =+'Hilfstabelle Mannschaften'!L4 -> Panasonic 1 | E9: =VLOOKUP(D9,'Hilfstabelle Mannschaften'!$L$4:$M$11,2,0) -> 26254 | F9: =VLOOKUP(D9,'Übersicht der Klasse B4'!$D$8:$E$27,2,0) -> 68 | G9: =VLOOKUP(D9,'Hilfstabelle Mannschaften'!$L$34:$M$45,2,0) -> 168 | H9: 156.2738095
C10: 3. | D10: =+'Hilfstabelle Mannschaften'!L5 -> Dataport 2 | E10: =VLOOKUP(D10,'Hilfstabelle Mannschaften'!$L$4:$M$11,2,0) -> 25261 | F10: =VLOOKUP(D10,'Übersicht der Klasse B4'!$D$8:$E$27,2,0) -> 58 | G10: =VLOOKUP(D10,'Hilfstabelle Mannschaften'!$L$34:$M$45,2,0) -> 168 | H10: 150.3630952
C11: 4. | D11: =+'Hilfstabelle Mannschaften'!L7 -> SG Stern Hamburg 1 | E11: =VLOOKUP(D11,'Hilfstabelle Mannschaften'!$L$4:$M$11,2,0) -> 24600 | F11: =VLOOKUP(D11,'Übersicht der Klasse B4'!$D$8:$E$27,2,0) -> 50 | G11: =VLOOKUP(D11,'Hilfstabelle Mannschaften'!$L$34:$M$45,2,0) -> 168 | H11: 146.4285714
C12: 5. | D12: =+'Hilfstabelle Mannschaften'!L6 -> Still 3 | E12: =VLOOKUP(D12,'Hilfstabelle Mannschaften'!$L$4:$M$11,2,0) -> 24708 | F12: =VLOOKUP(D12,'Übersicht der Klasse B4'!$D$8:$E$27,2,0) -> 49 | G12: =VLOOKUP(D12,'Hilfstabelle Mannschaften'!$L$34:$M$45,2,0) -> 168 | H12: 147.0714286
C13: 6. | D13: =+'Hilfstabelle Mannschaften'!L8 -> Justitzbehörde 2 | E13: =VLOOKUP(D13,'Hilfstabelle Mannschaften'!$L$4:$M$11,2,0) -> 24257 | F13: =VLOOKUP(D13,'Übersicht der Klasse B4'!$D$8:$E$27,2,0) -> 49 | G13: =VLOOKUP(D13,'Hilfstabelle Mannschaften'!$L$34:$M$45,2,0) -> 168 | H13: 144.3869048
C14: 7. | D14: =+'Hilfstabelle Mannschaften'!L9 -> Postamt 2 | E14: =VLOOKUP(D14,'Hilfstabelle Mannschaften'!$L$4:$M$11,2,0) -> 24763 | F14: =VLOOKUP(D14,'Übersicht der Klasse B4'!$D$8:$E$27,2,0) -> 46 | G14: =VLOOKUP(D14,'Hilfstabelle Mannschaften'!$L$34:$M$45,2,0) -> 168 | H14: 147.3988095
C15: 8. | D15: =+'Hilfstabelle Mannschaften'!L11 -> Panasonic 1 | E15: =VLOOKUP(D15,'Hilfstabelle Mannschaften'!$L$4:$M$11,2,0) -> 26254 | F15: =VLOOKUP(D15,'Übersicht der Klasse B4'!$D$8:$E$27,2,0) -> 68 | G15: =VLOOKUP(D15,'Hilfstabelle Mannschaften'!$L$34:$M$45,2,0) -> 168 | H15: 156.2738095
C16: 9. | D16: =+'Hilfstabelle Mannschaften'!L12 -> Dataport 2 | E16: =VLOOKUP(D16,'Hilfstabelle Mannschaften'!$L$4:$M$15,2,0) -> 25261 | F16: =VLOOKUP(D16,'Übersicht der Klasse B4'!$D$8:$E$27,2,0) -> 58 | G16: =VLOOKUP(D16,'Hilfstabelle Mannschaften'!$L$34:$M$45,2,0) -> 168 | H16: 150.3630952
C17: 10. | D17: =+'Hilfstabelle Mannschaften'!L13 -> Still 3 | E17: =VLOOKUP(D17,'Hilfstabelle Mannschaften'!$L$4:$M$15,2,0) -> 24708 | F17: =VLOOKUP(D17,'Übersicht der Klasse B4'!$D$8:$E$27,2,0) -> 49 | G17: =VLOOKUP(D17,'Hilfstabelle Mannschaften'!$L$34:$M$45,2,0) -> 168 | H17: 147.0714286

Sheet Spielbogen 10er (hidden)
A1: Start | C1: Betriebssportverband Hamburg e.V.
A2: Rangliste | C2: - Sparte Bowling - | I2: - Spielsystembogen -
C4: Klasse | F4: =+'Hilfstabelle Mannschaften'!I4 -> B4 | I4: Antritt | J4: Bahn | K4: Datum | L4: Ausrichter
I5: 1. | J5: ??? | K5: ??? | L5: 1 | M5: ???
I6: 2. | J6: ??? | K6: ??? | L6: 2 | M6: ???
I7: 3. | J7: ??? | K7: ??? | L7: 3 | M7: ???
D8: BSG | G8: Kurzf. | I8: 4. | J8: ??? | K8: ??? | L8: 4 | M8: ???
C9: 1 | D9: ??? | G9: =+M5 -> ??? | I9: 5. | J9: ??? | K9: ??? | L9: 5 | M9: ???
C10: 2 | D10: ??? | G10: =+M6 -> ??? | I10: 6. | J10: ??? | K10: ??? | L10: 6 | M10: ???
C11: 3 | D11: ??? | G11: ??? | I11: 7. | J11: ??? | K11: ??? | L11: 7 | M11: ???
C12: 4 | D12: ??? | G12: ??? | I12: 8. | J12: ??? | K12: ??? | L12: 8 | M12: ???
C13: 5 | D13: ??? | G13: ??? | I13: 9. | J13: ??? | K13: ??? | L13: 9 | M13: ???
C14: 6 | D14: ??? | G14: ??? | I14: 10. | J14: ??? | K14: ??? | L14: 10 | M14: ???
C15: 7 | D15: ??? | G15: ??? | I15: 11. | J15: ??? | K15: ??? | L15: 1 | M15: ???
C16: 8 | D16: ??? | G16: ??? | I16: 12. | J16: ??? | K16: ??? | L16: 2 | M16: ???
C17: 9 | D17: ??? | G17: ??? | I17: 13. | J17: ??? | K17: ??? | L17: 3 | M17: ???
C18: 10 | D18: ??? | G18: ??? | I18: 14. | J18: ??? | K18: ??? | L18: 4 | M18: ???
C20: Antritt
C21: Halle
C22: 1 . A. | D22: 1 | E22: 6 | F22: 8 | G22: 3 | H22: 7 | I22: 10 | J22: 9 | K22: 4 | L22: 5 | M22: 2 | P22: 1 . A. | Q22: =+D23 -> ??? | R22: =+E23 -> ??? | S22: ??? | T22: ??? | U22: ??? | V22: ??? | W22: ??? | X22: ??? | Y22: ??? | Z22: ???
C23: =+J5 -> ??? | D23: =VLOOKUP(D22,$C$7:$G$18,5,0) -> ??? | E23: ??? | F23: ??? | G23: ??? | H23: ??? | I23: ??? | J23: ??? | K23: ??? | L23: ??? | M23: ??? | P23: =+C23 -> ??? | Q23: 1 | R23: 2 | S23: 3 | T23: 4 | U23: 5 | V23: 6 | W23: 7 | X23: 8 | Y23: 9 | Z23: 10
C24: 2 . A. | D24: 5 | E24: 8 | F24: 10 | G24: 1 | H24: 9 | I24: 2 | J24: 4 | K24: 7 | L24: 3 | M24: 6 | P24: 2 . A. | Q24: =+D25 -> ??? | R24: =+E25 -> ??? | S24: ??? | T24: ??? | U24: ??? | V24: ??? | W24: ??? | X24: ??? | Y24: ??? | Z24: ???
C25: =+J6 -> ??? | D25: =VLOOKUP(D24,$C$7:$G$18,5,0) -> ??? | E25: ??? | F25: ??? | G25: ??? | H25: ??? | I25: ??? | J25: ??? | K25: ??? | L25: ??? | M25: ??? | P25: =+C25 -> ??? | Q25: 1 | R25: 2 | S25: 3 | T25: 4 | U25: 5 | V25: 6 | W25: 7 | X25: 8 | Y25: 9 | Z25: 10
C26: 3 . A. | D26: 3 | E26: 1 | F26: 7 | G26: 5 | H26: 10 | I26: 8 | J26: 6 | K26: 9 | L26: 2 | M26: 4 | P26: 3 . A. | Q26: =+D27 -> ??? | R26: =+E27 -> ??? | S26: ??? | T26: ??? | U26: ??? | V26: ??? | W26: ??? | X26: ??? | Y26: ??? | Z26: ???
C27: =+J7 -> ??? | D27: =VLOOKUP(D26,$C$7:$G$18,5,0) -> ??? | E27: ??? | F27: ??? | G27: ??? | H27: ??? | I27: ??? | J27: ??? | K27: ??? | L27: ??? | M27: ??? | P27: =+C27 -> ??? | Q27: 1 | R27: 2 | S27: 3 | T27: 4 | U27: 5 | V27: 6 | W27: 7 | X27: 8 | Y27: 9 | Z27: 10
C28: 4 . A. | D28: 2 | E28: 7 | F28: 5 | G28: 9 | H28: 8 | I28: 1 | J28: 4 | K28: 6 | L28: 10 | M28: 3 | P28: 4 . A. | Q28: =+D29 -> ??? | R28: =+E29 -> ??? | S28: ??? | T28: ??? | U28: ??? | V28: ??? | W28: ??? | X28: ??? | Y28: ??? | Z28: ???
C29: =+J8 -> ??? | D29: =VLOOKUP(D28,$C$7:$G$18,5,0) -> ??? | E29: ??? | F29: ??? | G29: ??? | H29: ??? | I29: ??? | J29: ??? | K29: ??? | L29: ??? | M29: ??? | P29: =+C29 -> ??? | Q29: 1 | R29: 2 | S29: 3 | T29: 4 | U29: 5 | V29: 6 | W29: 7 | X29: 8 | Y29: 9 | Z29: 10
C30: 5 . A. | D30: 8 | E30: 4 | F30: 10 | G30: 2 | H30: 1 | I30: 9 | J30: 5 | K30: 3 | L30: 6 | M30: 7 | P30: 5 . A. | Q30: =+D31 -> ??? | R30: =+E31 -> ??? | S30: ??? | T30: ??? | U30: ??? | V30: ??? | W30: ??? | X30: ??? | Y30: ??? | Z30: ???
C31: =+J9 -> ??? | D31: =VLOOKUP(D30,$C$7:$G$18,5,0) -> ??? | E31: ??? | F31: ??? | G31: ??? | H31: ??? | I31: ??? | J31: ??? | K31: ??? | L31: ??? | M31: ??? | P31: =+C31 -> ??? | Q31: 1 | R31: 2 | S31: 3 | T31: 4 | U31: 5 | V31: 6 | W31: 7 | X31: 8 | Y31: 9 | Z31: 10
C32: 6 . A. | D32: 6 | E32: 2 | F32: 4 | G32: 10 | H32: 3 | I32: 7 | J32: 1 | K32: 5 | L32: 8 | M32: 9 | P32: 6 . A. | Q32: =+D33 -> ??? | R32: =+E33 -> ??? | S32: ??? | T32: ??? | U32: ??? | V32: ??? | W32: ??? | X32: ??? | Y32: ??? | Z32: ???
C33: =+J10 -> ??? | D33: =VLOOKUP(D32,$C$7:$G$18,5,0) -> ??? | E33: ??? | F33: ??? | G33: ??? | H33: ??? | I33: ??? | J33: ??? | K33: ??? | L33: ??? | M33: ??? | P33: =+C33 -> ??? | Q33: 1 | R33: 2 | S33: 3 | T33: 4 | U33: 5 | V33: 6 | W33: 7 | X33: 8 | Y33: 9 | Z33: 10
C34: 7 . A. | D34: 7 | E34: 9 | F34: 6 | G34: 8 | H34: 10 | I34: 5 | J34: 3 | K34: 2 | L34: 4 | M34: 1 | P34: 7 . A. | Q34: =+D35 -> ??? | R34: =+E35 -> ??? | S34: ??? | T34: ??? | U34: ??? | V34: ??? | W34: ??? | X34: ??? | Y34: ??? | Z34: ???
C35: =+J11 -> ??? | D35: =VLOOKUP(D34,$C$7:$G$18,5,0) -> ??? | E35: ??? | F35: ??? | G35: ??? | H35: ??? | I35: ??? | J35: ??? | K35: ??? | L35: ??? | M35: ??? | P35: =+C35 -> ??? | Q35: 1 | R35: 2 | S35: 3 | T35: 4 | U35: 5 | V35: 6 | W35: 7 | X35: 8 | Y35: 9 | Z35: 10
C36: 8 . A. | D36: 4 | E36: 5 | F36: 1 | G36: 7 | H36: 2 | I36: 8 | J36: 10 | K36: 6 | L36: 9 | M36: 3 | P36: 8 . A. | Q36: =+D37 -> ??? | R36: =+E37 -> ??? | S36: ??? | T36: ??? | U36: ??? | V36: ??? | W36: ??? | X36: ??? | Y36: ??? | Z36: ???
C37: =+J12 -> ??? | D37: =VLOOKUP(D36,$C$7:$G$18,5,0) -> ??? | E37: ??? | F37: ??? | G37: ??? | H37: ??? | I37: ??? | J37: ??? | K37: ??? | L37: ??? | M37: ??? | P37: =+C37 -> ??? | Q37: 1 | R37: 2 | S37: 3 | T37: 4 | U37: 5 | V37: 6 | W37: 7 | X37: 8 | Y37: 9 | Z37: 10
C38: 9 . A. | D38: 9 | E38: 10 | F38: 3 | G38: 4 | H38: 5 | I38: 6 | J38: 2 | K38: 1 | L38: 7 | M38: 8 | P38: 9 . A. | Q38: =+D39 -> ??? | R38: =+E39 -> ??? | S38: ??? | T38: ??? | U38: ??? | V38: ??? | W38: ??? | X38: ??? | Y38: ??? | Z38: ???
C39: =+J13 -> ??? | D39: =VLOOKUP(D38,$C$7:$G$18,5,0) -> ??? | E39: ??? | F39: ??? | G39: ??? | H39: ??? | I39: ??? | J39: ??? | K39: ??? | L39: ??? | M39: ??? | P39: =+C39 -> ??? | Q39: 1 | R39: 2 | S39: 3 | T39: 4 | U39: 5 | V39: 6 | W39: 7 | X39: 8 | Y39: 9 | Z39: 10
C40: 10 . A. | D40: 3 | E40: 7 | F40: 2 | G40: 6 | H40: 9 | I40: 4 | J40: 8 | K40: 10 | L40: 1 | M40: 5 | P40: 10 . A. | Q40: =+D41 -> ??? | R40: =+E41 -> ??? | S40: ??? | T40: ??? | U40: ??? | V40: ??? | W40: ??? | X40: ??? | Y40: ??? | Z40: ???
C41: =+J14 -> ??? | D41: =VLOOKUP(D40,$C$7:$G$18,5,0) -> ??? | E41: ??? | F41: ??? | G41: ??? | H41: ??? | I41: ??? | J41: ??? | K41: ??? | L41: ??? | M41: ??? | P41: =+C41 -> ??? | Q41: 1 | R41: 2 | S41: 3 | T41: 4 | U41: 5 | V41: 6 | W41: 7 | X41: 8 | Y41: 9 | Z41: 10
C42: 11 . A. | D42: 4 | E42: 8 | F42: 9 | G42: 5 | H42: 6 | I42: 3 | J42: 7 | K42: 1 | L42: 2 | M42: 10 | P42: 11 . A. | Q42: =+D43 -> ??? | R42: =+E43 -> ??? | S42: ??? | T42: ??? | U42: ??? | V42: ??? | W42: ??? | X42: ??? | Y42: ??? | Z42: ???
C43: =+J15 -> ??? | D43: =VLOOKUP(D42,$C$7:$G$18,5,0) -> ??? | E43: ??? | F43: ??? | G43: ??? | H43: ??? | I43: ??? | J43: ??? | K43: ??? | L43: ??? | M43: ??? | P43: =+C43 -> ??? | Q43: 1 | R43: 2 | S43: 3 | T43: 4 | U43: 5 | V43: 6 | W43: 7 | X43: 8 | Y43: 9 | Z43: 10
C44: 12 . A. | D44: 10 | E44: 3 | F44: 1 | G44: 2 | H44: 4 | I44: 6 | J44: 5 | K44: 8 | L44: 9 | M44: 7 | P44: 12 . A. | Q44: =+D45 -> ??? | R44: =+E45 -> ??? | S44: ??? | T44: ??? | U44: ??? | V44: ??? | W44: ??? | X44: ??? | Y44: ??? | Z44: ???
C45: =+J16 -> ??? | D45: =VLOOKUP(D44,$C$7:$G$18,5,0) -> ??? | E45: ??? | F45: ??? | G45: ??? | H45: ??? | I45: ??? | J45: ??? | K45: ??? | L45: ??? | M45: ??? | P45: =+C45 -> ??? | Q45: 1 | R45: 2 | S45: 3 | T45: 4 | U45: 5 | V45: 6 | W45: 7 | X45: 8 | Y45: 9 | Z45: 10
C46: 13 . A. | D46: 2 | E46: 5 | F46: 4 | G46: 7 | H46: 3 | I46: 1 | J46: 10 | K46: 9 | L46: 8 | M46: 6 | P46: 13 . A. | Q46: =+D47 -> ??? | R46: =+E47 -> ??? | S46: ??? | T46: ??? | U46: ??? | V46: ??? | W46: ??? | X46: ??? | Y46: ??? | Z46: ???
C47: =+J17 -> ??? | D47: =VLOOKUP(D46,$C$7:$G$18,5,0) -> ??? | E47: ??? | F47: ??? | G47: ??? | H47: ??? | I47: ??? | J47: ??? | K47: ??? | L47: ??? | M47: ??? | P47: =+C47 -> ??? | Q47: 1 | R47: 2 | S47: 3 | T47: 4 | U47: 5 | V47: 6 | W47: 7 | X47: 8 | Y47: 9 | Z47: 10
C48: 14 . A. | D48: 7. | E48: 8. | F48: 3. | G48: 4. | H48: 1. | I48: 2. | J48: 5. | K48: 6. | L48: 9. | M48: 10. | P48: =+C48 -> 14 . A. | Q48: =+D49 -> 0 | R48: =+E49 -> 0 | S48: 0 | T48: 0 | U48: 0 | V48: 0 | W48: 0 | X48: 0 | Y48: 0 | Z48: 0
C49: =+J18 -> ??? | P49: =+C49 -> ??? | Q49: 1 | R49: 2 | S49: 3 | T49: 4 | U49: 5 | V49: 6 | W49: 7 | X49: 8 | Y49: 9 | Z49: 10

Sheet Übersicht der Klasse B4
B2: Start | G2: ="Übersicht aller Spiele der Klasse "&+'Hilfstabelle Mannschaften'!I4&" der 1. Mannschaft in der Saison "&+'Hilfstabelle Mannschaften'!I8 -> Übersicht aller Spiele der Klasse B4 der 1. Mannschaft in der Saison 2024/2025
B3: Rangliste
G4: Datum | H4: 2024-09-12 | I4: 2024-09-16 | J4: 2024-10-10 | K4: 2024-10-24 | L4: 2024-11-07 | M4: 2025-01-16 | N4: 2025-01-30 | O4: 2025-02-13 | P4: 2025-02-27 | Q4: 2025-03-13 | R4: 2025-03-27 | S4: 2025-04-10 | T4: 2025-04-24 | U4: 2025-05-08
G5: Bahn | H5: OT | I5: OT | J5: WB | K5: OT | L5: WB | M5: WB | N5: OT | O5: WB | P5: OT | Q5: WB | R5: OT | S5: WB | T5: OT | U5: WB
D6: Mannschaften | E6: Punkte | F6: Pins | H6: Antritt | I6: Antritt | J6: Antritt | K6: Antritt | L6: Antritt | M6: Antritt | N6: Antritt | O6: Antritt | P6: Antritt | Q6: Antritt | R6: Antritt | S6: Antritt | T6: Antritt | U6: Antritt
B7: Kurzf. | H7: 1 | I7: =+H7+1 -> 2 | J7: 3 | K7: 4 | L7: 5 | M7: 6 | N7: 7 | O7: 8 | P7: 9 | Q7: 10 | R7: 11 | S7: 12 | T7: 13 | U7: 14
B8: =+'Spielbogen 7er'!I10 -> PAN 1 | D8: =+'Spielbogen 7er'!D10 -> Panasonic 1 | E8: =SUM(H9:U9) -> 68 | F8: =SUM(H8:U8) -> 26254 | G8: Pins | H8: =VLOOKUP(B8,'Hilfstabelle Mannschaften'!$AE$53:$AF$62,2,0) -> 1914 | I8: =VLOOKUP(B8,'Hilfstabelle Mannschaften'!$AE$53:$AG$62,3,0) -> 1912 | J8: =VLOOKUP(B8,'Hilfstabelle Mannschaften'!$AE$53:$AH$62,4,0) -> 1975 | K8: =VLOOKUP(B8,'Hilfstabelle Mannschaften'!$AE$53:$AJ$62,5,0) -> 1777 | L8: =VLOOKUP(B8,'Hilfstabelle Mannschaften'!$AE$53:$AJ$62,6,0) -> 1907 | M8: =VLOOKUP(B8,'Hilfstabelle Mannschaften'!$AE$53:$AK$62,7,0) -> 1880 | N8: =VLOOKUP(B8,'Hilfstabelle Mannschaften'!$AE$53:$AL$62,8,0) -> 1686 | O8: =VLOOKUP(B8,'Hilfstabelle Mannschaften'!$AE$53:$AM$62,9,0) -> 1817 | P8: =VLOOKUP(B8,'Hilfstabelle Mannschaften'!$AE$53:$AN$62,10,0) -> 1832 | Q8: =VLOOKUP(B8,'Hilfstabelle Mannschaften'!$AE$53:$AO$62,11,0) -> 2017 | R8: =VLOOKUP(B8,'Hilfstabelle Mannschaften'!$AE$53:$AP$62,12,0) -> 1867 | S8: =VLOOKUP(B8,'Hilfstabelle Mannschaften'!$AE$53:$AQ$62,13,0) -> 1845 | T8: =VLOOKUP(B8,'Hilfstabelle Mannschaften'!$AE$53:$AR$62,14,0) -> 1900 | U8: =VLOOKUP(B8,'Hilfstabelle Mannschaften'!$AE$53:$AS$62,15,0) -> 1925
G9: Punkte | H9: =IF(H8<1,"",'Hilfstabelle Mannschaften'!Q24) -> 7 | I9: =IF(I8<1,"",+'Hilfstabelle Mannschaften'!$Q29) -> 7 | J9: =IF(J8<1,"",+'Hilfstabelle Mannschaften'!$Q34) -> 7 | K9: =IF(K8<1,"",+'Hilfstabelle Mannschaften'!$Q39) -> 5 | L9: =IF(L8<1,"",+'Hilfstabelle Mannschaften'!$Q44) -> 6 | M9: =IF(M8<1,"",+'Hilfstabelle Mannschaften'!$Q49) -> 4 | N9: =IF(N8<1,"",+'Hilfstabelle Mannschaften'!$Q54) -> 1 | O9: =IF(O8<1,"",+'Hilfstabelle Mannschaften'!$Q59) -> 2 | P9: =IF(P8<1,"",+'Hilfstabelle Mannschaften'!$Q64) -> 5 | Q9: =IF(Q8<1,"",+'Hilfstabelle Mannschaften'!$Q69) -> 7 | R9: =IF(R8<1,"",+'Hilfstabelle Mannschaften'!$Q74) -> 4 | S9: =IF(S8<1,"",+'Hilfstabelle Mannschaften'!$Q79) -> 3 | T9: =IF(T8<1,"",+'Hilfstabelle Mannschaften'!$Q84) -> 5 | U9: =IF(U8<1,"",'Hilfstabelle Mannschaften'!Q89) -> 5
B10: =+'Spielbogen 7er'!I11 -> DAT 2 | D10: =+'Spielbogen 7er'!D11 -> Dataport 2 | E10: =SUM(H11:U11) -> 58 | F10: =SUM(H10:U10) -> 25261 | G10: Pins | H10: =VLOOKUP(B10,'Hilfstabelle Mannschaften'!$AE$53:$AF$62,2,0) -> 1586 | I10: =VLOOKUP(B10,'Hilfstabelle Mannschaften'!$AE$53:$AG$62,3,0) -> 1748 | J10: =VLOOKUP(B10,'Hilfstabelle Mannschaften'!$AE$53:$AH$62,4,0) -> 1606 | K10: =VLOOKUP(B10,'Hilfstabelle Mannschaften'!$AE$53:$AJ$62,5,0) -> 1733 | L10: =VLOOKUP(B10,'Hilfstabelle Mannschaften'!$AE$53:$AJ$62,6,0) -> 1849 | M10: =VLOOKUP(B10,'Hilfstabelle Mannschaften'!$AE$53:$AK$62,7,0) -> 1968 | N10: =VLOOKUP(B10,'Hilfstabelle Mannschaften'!$AE$53:$AL$62,8,0) -> 1822 | O10: =VLOOKUP(B10,'Hilfstabelle Mannschaften'!$AE$53:$AM$62,9,0) -> 1940 | P10: =VLOOKUP(B10,'Hilfstabelle Mannschaften'!$AE$53:$AN$62,10,0) -> 1762 | Q10: =VLOOKUP(B10,'Hilfstabelle Mannschaften'!$AE$53:$AO$62,11,0) -> 1842 | R10: =VLOOKUP(B10,'Hilfstabelle Mannschaften'!$AE$53:$AP$62,12,0) -> 1952 | S10: =VLOOKUP(B10,'Hilfstabelle Mannschaften'!$AE$53:$AQ$62,13,0) -> 1888 | T10: =VLOOKUP(B10,'Hilfstabelle Mannschaften'!$AE$53:$AR$62,14,0) -> 1733 | U10: =VLOOKUP(B10,'Hilfstabelle Mannschaften'!$AE$53:$AS$62,15,0) -> 1832
G11: Punkte | H11: =IF(H10<1,"",+'Hilfstabelle Mannschaften'!$R24) -> 4 | I11: =IF(I10<1,"",+'Hilfstabelle Mannschaften'!$R29) -> 5 | J11: =IF(J10<1,"",+'Hilfstabelle Mannschaften'!$R34) -> 2 | K11: =IF(K10<1,"",+'Hilfstabelle Mannschaften'!$R39) -> 3 | L11: =IF(L10<1,"",+'Hilfstabelle Mannschaften'!$R44) -> 4 | M11: =IF(M10<1,"",+'Hilfstabelle Mannschaften'!$R49) -> 6 | N11: =IF(N10<1,"",+'Hilfstabelle Mannschaften'!$R54) -> 6 | O11: =IF(O10<1,"",+'Hilfstabelle Mannschaften'!$R59) -> 5 | P11: =IF(P10<1,"",+'Hilfstabelle Mannschaften'!$R64) -> 4 | Q11: =IF(Q10<1,"",+'Hilfstabelle Mannschaften'!$R69) -> 5 | R11: =IF(R10<1,"",+'Hilfstabelle Mannschaften'!$R74) -> 5 | S11: =IF(S10<1,"",+'Hilfstabelle Mannschaften'!$R79) -> 4 | T11: =IF(T10<1,"",+'Hilfstabelle Mannschaften'!$R84) -> 2 | U11: =IF(U10<1,"",'Hilfstabelle Mannschaften'!R89) -> 3
B12: =+'Spielbogen 7er'!I12 -> STI 3 | D12: =+'Spielbogen 7er'!D12 -> Still 3 | E12: =SUM(H13:U13) -> 49 | F12: 24708 | G12: Pins | H12: =VLOOKUP(B12,'Hilfstabelle Mannschaften'!$AE$53:$AF$62,2,0) -> 1732 | I12: =VLOOKUP(B12,'Hilfstabelle Mannschaften'!$AE$53:$AG$62,3,0) -> 1572 | J12: =VLOOKUP(B12,'Hilfstabelle Mannschaften'!$AE$53:$AH$62,4,0) -> 1805 | K12: =VLOOKUP(B12,'Hilfstabelle Mannschaften'!$AE$53:$AJ$62,5,0) -> 1788 | L12: =VLOOKUP(B12,'Hilfstabelle Mannschaften'!$AE$53:$AJ$62,6,0) -> 1806 | M12: =VLOOKUP(B12,'Hilfstabelle Mannschaften'!$AE$53:$AK$62,7,0) -> 1853 | N12: =VLOOKUP(B12,'Hilfstabelle Mannschaften'!$AE$53:$AL$62,8,0) -> 1724 | O12: =VLOOKUP(B12,'Hilfstabelle Mannschaften'!$AE$53:$AM$62,9,0) -> 1778 | P12: =VLOOKUP(B12,'Hilfstabelle Mannschaften'!$AE$53:$AN$62,10,0) -> 1835 | Q12: =VLOOKUP(B12,'Hilfstabelle Mannschaften'!$AE$53:$AO$62,11,0) -> 1718 | R12: =VLOOKUP(B12,'Hilfstabelle Mannschaften'!$AE$53:$AP$62,12,0) -> 1639 | S12: =VLOOKUP(B12,'Hilfstabelle Mannschaften'!$AE$53:$AQ$62,13,0) -> 1899 | T12: =VLOOKUP(B12,'Hilfstabelle Mannschaften'!$AE$53:$AR$62,14,0) -> 1906 | U12: =VLOOKUP(B12,'Hilfstabelle Mannschaften'!$AE$53:$AS$62,15,0) -> 1653
G13: Punkte | H13: =IF(H12<1,"",'Hilfstabelle Mannschaften'!$S24) -> 5 | I13: =IF(I12<1,"",'Hilfstabelle Mannschaften'!$S29) -> 2 | J13: =IF(J12<1,"",'Hilfstabelle Mannschaften'!$S34) -> 5 | K13: =IF(K12<1,"",'Hilfstabelle Mannschaften'!$S39) -> 6 | L13: =IF(L12<1,"",'Hilfstabelle Mannschaften'!$S44) -> 2 | M13: =IF(M12<1,"",'Hilfstabelle Mannschaften'!$S49) -> 3 | N13: =IF(N12<1,"",'Hilfstabelle Mannschaften'!$S54) -> 2 | O13: =IF(O12<1,"",'Hilfstabelle Mannschaften'!$S59) -> 1 | P13: =IF(P12<1,"",'Hilfstabelle Mannschaften'!$S64) -> 6 | Q13: =IF(Q12<1,"",'Hilfstabelle Mannschaften'!$S69) -> 3 | R13: =IF(R12<1,"",'Hilfstabelle Mannschaften'!$S74) -> 2 | S13: =IF(S12<1,"",'Hilfstabelle Mannschaften'!$S79) -> 5 | T13: =IF(T12<1,"",'Hilfstabelle Mannschaften'!$S84) -> 6 | U13: =IF(U12<1,"",'Hilfstabelle Mannschaften'!S89) -> 1
B14: =+'Spielbogen 7er'!I13 -> SGS 1 | D14: =+'Spielbogen 7er'!D13 -> SG Stern Hamburg 1 | E14: =SUM(H15:U15) -> 50 | F14: =SUM(H14:U14) -> 24600 | G14: Pins | H14: =VLOOKUP(B14,'Hilfstabelle Mannschaften'!$AE$53:$AF$62,2,0) -> 1528 | I14: =VLOOKUP(B14,'Hilfstabelle Mannschaften'!$AE$53:$AG$62,3,0) -> 1637 | J14: =VLOOKUP(B14,'Hilfstabelle Mannschaften'!$AE$53:$AH$62,4,0) -> 1502 | K14: =VLOOKUP(B14,'Hilfstabelle Mannschaften'!$AE$53:$AJ$62,5,0) -> 1714 | L14: =VLOOKUP(B14,'Hilfstabelle Mannschaften'!$AE$53:$AJ$62,6,0) -> 1897 | M14: =VLOOKUP(B14,'Hilfstabelle Mannschaften'!$AE$53:$AK$62,7,0) -> 2011 | N14: =VLOOKUP(B14,'Hilfstabelle Mannschaften'!$AE$53:$AL$62,8,0) -> 1830 | O14: =VLOOKUP(B14,'Hilfstabelle Mannschaften'!$AE$53:$AM$62,9,0) -> 1822 | P14: =VLOOKUP(B14,'Hilfstabelle Mannschaften'!$AE$53:$AN$62,10,0) -> 1661 | Q14: =VLOOKUP(B14,'Hilfstabelle Mannschaften'!$AE$53:$AO$62,11,0) -> 1706 | R14: =VLOOKUP(B14,'Hilfstabelle Mannschaften'!$AE$53:$AP$62,12,0) -> 1953 | S14: =VLOOKUP(B14,'Hilfstabelle Mannschaften'!$AE$53:$AQ$62,13,0) -> 1984 | T14: =VLOOKUP(B14,'Hilfstabelle Mannschaften'!$AE$53:$AR$62,14,0) -> 1542 | U14: =VLOOKUP(B14,'Hilfstabelle Mannschaften'!$AE$53:$AS$62,15,0) -> 1813
G15: Punkte | H15: =IF(H14<1,"",'Hilfstabelle Mannschaften'!$T24) -> 3 | I15: =IF(I14<1,"",'Hilfstabelle Mannschaften'!$T29) -> 3 | J15: =IF(J14<1,"",'Hilfstabelle Mannschaften'!$T34) -> 1 | K15: =IF(K14<1,"",'Hilfstabelle Mannschaften'!$T39) -> 2 | L15: =IF(L14<1,"",'Hilfstabelle Mannschaften'!$T44) -> 5 | M15: =IF(M14<1,"",'Hilfstabelle Mannschaften'!$T49) -> 7 | N15: =IF(N14<1,"",'Hilfstabelle Mannschaften'!$T54) -> 7 | O15: =IF(O14<1,"",'Hilfstabelle Mannschaften'!$T59) -> 3 | P15: =IF(P14<1,"",'Hilfstabelle Mannschaften'!$T64) -> 2 | Q15: =IF(Q14<1,"",'Hilfstabelle Mannschaften'!$T69) -> 2 | R15: =IF(R14<1,"",'Hilfstabelle Mannschaften'!$T74) -> 6 | S15: =IF(S14<1,"",'Hilfstabelle Mannschaften'!$T79) -> 6 | T15: =IF(T14<1,"",'Hilfstabelle Mannschaften'!$T84) -> 1 | U15: =IF(U14<1,"",'Hilfstabelle Mannschaften'!T89) -> 2
B16: =+'Spielbogen 7er'!I14 -> JUS 2 | D16: =+'Spielbogen 7er'!D14 -> Justitzbehörde 2 | E16: =SUM(H17:U17) -> 49 | F16: 24257 | G16: Pins | H16: =VLOOKUP(B16,'Hilfstabelle Mannschaften'!$AE$53:$AF$62,2,0) -> 1349 | I16: =VLOOKUP(B16,'Hilfstabelle Mannschaften'!$AE$53:$AG$62,3,0) -> 1664 | J16: =VLOOKUP(B16,'Hilfstabelle Mannschaften'!$AE$53:$AH$62,4,0) -> 1609 | K16: =VLOOKUP(B16,'Hilfstabelle Mannschaften'!$AE$53:$AJ$62,5,0) -> 1734 | L16: =VLOOKUP(B16,'Hilfstabelle Mannschaften'!$AE$53:$AJ$62,6,0) -> 1811 | M16: =VLOOKUP(B16,'Hilfstabelle Mannschaften'!$AE$53:$AK$62,7,0) -> 1961 | N16: =VLOOKUP(B16,'Hilfstabelle Mannschaften'!$AE$53:$AL$62,8,0) -> 1754 | O16: =VLOOKUP(B16,'Hilfstabelle Mannschaften'!$AE$53:$AM$62,9,0) -> 1958 | P16: =VLOOKUP(B16,'Hilfstabelle Mannschaften'!$AE$53:$AN$62,10,0) -> 1555 | Q16: =VLOOKUP(B16,'Hilfstabelle Mannschaften'!$AE$53:$AO$62,11,0) -> 1756 | R16: =VLOOKUP(B16,'Hilfstabelle Mannschaften'!$AE$53:$AP$62,12,0) -> 1418 | S16: =VLOOKUP(B16,'Hilfstabelle Mannschaften'!$AE$53:$AQ$62,13,0) -> 1802 | T16: =VLOOKUP(B16,'Hilfstabelle Mannschaften'!$AE$53:$AR$62,14,0) -> 1841 | U16: =VLOOKUP(B16,'Hilfstabelle Mannschaften'!$AE$53:$AS$62,15,0) -> 2045
G17: Punkte | H17: =IF(H16<1,"",'Hilfstabelle Mannschaften'!$U24) -> 2 | I17: =IF(I16<1,"",'Hilfstabelle Mannschaften'!$U29) -> 4 | J17: =IF(J16<1,"",'Hilfstabelle Mannschaften'!$U34) -> 3 | K17: =IF(K16<1,"",'Hilfstabelle Mannschaften'!$U39) -> 4 | L17: =IF(L16<1,"",'Hilfstabelle Mannschaften'!$U44) -> 3 | M17: =IF(M16<1,"",'Hilfstabelle Mannschaften'!$U49) -> 5 | N17: =IF(N16<1,"",'Hilfstabelle Mannschaften'!$U54) -> 4 | O17: =IF(O16<1,"",'Hilfstabelle Mannschaften'!$U59) -> 6 | P17: =IF(P16<1,"",'Hilfstabelle Mannschaften'!$U64) -> 1 | Q17: =IF(Q16<1,"",'Hilfstabelle Mannschaften'!$U69) -> 4 | R17: =IF(R16<1,"",'Hilfstabelle Mannschaften'!$U74) -> 1 | S17: =IF(S16<1,"",'Hilfstabelle Mannschaften'!$U79) -> 2 | T17: =IF(T16<1,"",'Hilfstabelle Mannschaften'!$U84) -> 4 | U17: =IF(U16<1,"",'Hilfstabelle Mannschaften'!U89) -> 6
B18: =+'Spielbogen 7er'!I15 -> P2 2 | D18: =+'Spielbogen 7er'!D15 -> Postamt 2 | E18: =SUM(H19:U19) -> 46 | F18: 24763 | G18: Pins | H18: =VLOOKUP(B18,'Hilfstabelle Mannschaften'!$AE$53:$AF$62,2,0) -> 1740 | I18: =VLOOKUP(B18,'Hilfstabelle Mannschaften'!$AE$53:$AG$62,3,0) -> 1761 | J18: =VLOOKUP(B18,'Hilfstabelle Mannschaften'!$AE$53:$AH$62,4,0) -> 1781 | K18: =VLOOKUP(B18,'Hilfstabelle Mannschaften'!$AE$53:$AJ$62,5,0) -> 1659 | L18: =VLOOKUP(B18,'Hilfstabelle Mannschaften'!$AE$53:$AJ$62,6,0) -> 1759 | M18: =VLOOKUP(B18,'Hilfstabelle Mannschaften'!$AE$53:$AK$62,7,0) -> 1692 | N18: =VLOOKUP(B18,'Hilfstabelle Mannschaften'!$AE$53:$AL$62,8,0) -> 1749 | O18: =VLOOKUP(B18,'Hilfstabelle Mannschaften'!$AE$53:$AM$62,9,0) -> 1824 | P18: =VLOOKUP(B18,'Hilfstabelle Mannschaften'!$AE$53:$AN$62,10,0) -> 1751 | Q18: =VLOOKUP(B18,'Hilfstabelle Mannschaften'!$AE$53:$AO$62,11,0) -> 1633 | R18: =VLOOKUP(B18,'Hilfstabelle Mannschaften'!$AE$53:$AP$62,12,0) -> 2062 | S18: =VLOOKUP(B18,'Hilfstabelle Mannschaften'!$AE$53:$AQ$62,13,0) -> 1718 | T18: =VLOOKUP(B18,'Hilfstabelle Mannschaften'!$AE$53:$AR$62,14,0) -> 1793 | U18: =VLOOKUP(B18,'Hilfstabelle Mannschaften'!$AE$53:$AS$62,15,0) -> 1841
G19: Punkte | H19: =IF(H18<1,"",'Hilfstabelle Mannschaften'!$V24) -> 6 | I19: =IF(I18<1,"",'Hilfstabelle Mannschaften'!$V29) -> 6 | J19: =IF(J18<1,"",'Hilfstabelle Mannschaften'!$V34) -> 4 | K19: =IF(K18<1,"",'Hilfstabelle Mannschaften'!$V39) -> 1 | L19: =IF(L18<1,"",'Hilfstabelle Mannschaften'!$V44) -> 1 | M19: =IF(M18<1,"",'Hilfstabelle Mannschaften'!$V49) -> 2 | N19: =IF(N18<1,"",'Hilfstabelle Mannschaften'!$V54) -> 3 | O19: =IF(O18<1,"",'Hilfstabelle Mannschaften'!$V59) -> 4 | P19: =IF(P18<1,"",'Hilfstabelle Mannschaften'!$V64) -> 3 | Q19: =IF(Q18<1,"",'Hilfstabelle Mannschaften'!$V69) -> 1 | R19: =IF(R18<1,"",'Hilfstabelle Mannschaften'!$V74) -> 7 | S19: =IF(S18<1,"",'Hilfstabelle Mannschaften'!$V79) -> 1 | T19: =IF(T18<1,"",'Hilfstabelle Mannschaften'!$V84) -> 3 | U19: =IF(U18<1,"",'Hilfstabelle Mannschaften'!V89) -> 4
B20: =+'Spielbogen 7er'!I16 -> KS 2 | D20: =+'Spielbogen 7er'!D16 -> Körber Sports 2 | E20: =SUM(H21:U21) -> 72 | F20: 25432 | G20: Pins | H20: =VLOOKUP(B20,'Hilfstabelle Mannschaften'!$AE$53:$AF$62,2,0) -> 1229 | I20: =VLOOKUP(B20,'Hilfstabelle Mannschaften'!$AE$53:$AG$62,3,0) -> 1282 | J20: =VLOOKUP(B20,'Hilfstabelle Mannschaften'!$AE$53:$AH$62,4,0) -> 1909 | K20: =VLOOKUP(B20,'Hilfstabelle Mannschaften'!$AE$53:$AJ$62,5,0) -> 1952 | L20: =VLOOKUP(B20,'Hilfstabelle Mannschaften'!$AE$53:$AJ$62,6,0) -> 1914 | M20: =VLOOKUP(B20,'Hilfstabelle Mannschaften'!$AE$53:$AK$62,7,0) -> 1445 | N20: =VLOOKUP(B20,'Hilfstabelle Mannschaften'!$AE$53:$AL$62,8,0) -> 1777 | O20: =VLOOKUP(B20,'Hilfstabelle Mannschaften'!$AE$53:$AM$62,9,0) -> 2149 | P20: =VLOOKUP(B20,'Hilfstabelle Mannschaften'!$AE$53:$AN$62,10,0) -> 2014 | Q20: =VLOOKUP(B20,'Hilfstabelle Mannschaften'!$AE$53:$AO$62,11,0) -> 1974 | R20: =VLOOKUP(B20,'Hilfstabelle Mannschaften'!$AE$53:$AP$62,12,0) -> 1757 | S20: =VLOOKUP(B20,'Hilfstabelle Mannschaften'!$AE$53:$AQ$62,13,0) -> 2017 | T20: =VLOOKUP(B20,'Hilfstabelle Mannschaften'!$AE$53:$AR$62,14,0) -> 1922 | U20: =VLOOKUP(B20,'Hilfstabelle Mannschaften'!$AE$53:$AS$62,15,0) -> 2091
G21: Punkte | H21: =IF(H20<1,"",'Hilfstabelle Mannschaften'!$W$24) -> 1 | I21: =IF(I20<1,"",'Hilfstabelle Mannschaften'!$W29) -> 1 | J21: =IF(J20<1,"",'Hilfstabelle Mannschaften'!$W34) -> 6 | K21: =IF(K20<1,"",'Hilfstabelle Mannschaften'!$W39) -> 7 | L21: =IF(L20<1,"",'Hilfstabelle Mannschaften'!$W44) -> 7 | M21: =IF(M20<1,"",'Hilfstabelle Mannschaften'!$W49) -> 1 | N21: =IF(N20<1,"",'Hilfstabelle Mannschaften'!$W54) -> 5 | O21: =IF(O20<1,"",'Hilfstabelle Mannschaften'!$W59) -> 7 | P21: =IF(P20<1,"",'Hilfstabelle Mannschaften'!$W64) -> 7 | Q21: =IF(Q20<1,"",'Hilfstabelle Mannschaften'!$W69) -> 6 | R21: =IF(R20<1,"",'Hilfstabelle Mannschaften'!$W74) -> 3 | S21: =IF(S20<1,"",'Hilfstabelle Mannschaften'!$W79) -> 7 | T21: =IF(T20<1,"",'Hilfstabelle Mannschaften'!$W84) -> 7 | U21: =IF(U20<1,"",'Hilfstabelle Mannschaften'!W89) -> 7
B22: =+'Spielbogen 7er'!I16 -> KS 2 | D22: =+'Spielbogen 7er'!D16 -> Körber Sports 2 | E22: =SUM(H23:U23) -> 72.5 | F22: =SUM(H22:U22) -> 25432 | G22: Pins | H22: =VLOOKUP(B22,'Hilfstabelle Mannschaften'!$AE$53:$AF$62,2,0) -> 1229 | I22: =VLOOKUP(B22,'Hilfstabelle Mannschaften'!$AE$53:$AG$62,3,0) -> 1282 | J22: =VLOOKUP(B22,'Hilfstabelle Mannschaften'!$AE$53:$AH$62,4,0) -> 1909 | K22: =VLOOKUP(B22,'Hilfstabelle Mannschaften'!$AE$53:$AJ$62,5,0) -> 1952 | L22: =VLOOKUP(B22,'Hilfstabelle Mannschaften'!$AE$53:$AJ$62,6,0) -> 1914 | M22: =VLOOKUP(B22,'Hilfstabelle Mannschaften'!$AE$53:$AK$62,7,0) -> 1445 | N22: =VLOOKUP(B22,'Hilfstabelle Mannschaften'!$AE$53:$AL$62,8,0) -> 1777 | O22: =VLOOKUP(B22,'Hilfstabelle Mannschaften'!$AE$53:$AM$62,9,0) -> 2149 | P22: =VLOOKUP(B22,'Hilfstabelle Mannschaften'!$AE$53:$AN$62,10,0) -> 2014 | Q22: =VLOOKUP(B22,'Hilfstabelle Mannschaften'!$AE$53:$AO$62,11,0) -> 1974 | R22: =VLOOKUP(B22,'Hilfstabelle Mannschaften'!$AE$53:$AP$62,12,0) -> 1757 | S22: =VLOOKUP(B22,'Hilfstabelle Mannschaften'!$AE$53:$AQ$62,13,0) -> 2017 | T22: =VLOOKUP(B22,'Hilfstabelle Mannschaften'!$AE$53:$AR$62,14,0) -> 1922 | U22: =VLOOKUP(B22,'Hilfstabelle Mannschaften'!$AE$53:$AS$62,15,0) -> 2091
G23: Punkte | H23: =IF(H22<1,"",'Hilfstabelle Mannschaften'!$X$24) -> 1 | I23: =IF(I22<1,"",'Hilfstabelle Mannschaften'!$X$29) -> 1 | J23: =IF(J22<1,"",'Hilfstabelle Mannschaften'!$X$34) -> 6 | K23: =IF(K22<1,"",'Hilfstabelle Mannschaften'!$X$39) -> 7 | L23: =IF(L22<1,"",'Hilfstabelle Mannschaften'!$X$44) -> 7.5 | M23: =IF(M22<1,"",'Hilfstabelle Mannschaften'!$X$49) -> 1 | N23: =IF(N22<1,"",'Hilfstabelle Mannschaften'!$X$54) -> 5 | O23: =IF(O22<1,"",'Hilfstabelle Mannschaften'!$X$59) -> 7 | P23: =IF(P22<1,"",'Hilfstabelle Mannschaften'!$X$64) -> 7 | Q23: =IF(Q22<1,"",'Hilfstabelle Mannschaften'!$X$69) -> 6 | R23: =IF(R22<1,"",'Hilfstabelle Mannschaften'!$X$74) -> 3 | S23: =IF(S22<1,"",'Hilfstabelle Mannschaften'!$X$79) -> 7 | T23: =IF(T22<1,"",'Hilfstabelle Mannschaften'!$X$84) -> 7 | U23: =IF(U22<1,"",'Hilfstabelle Mannschaften'!X$89) -> 7
B24: =+'Spielbogen 10er'!G17 -> ??? | D24: =+'Spielbogen 10er'!D17 -> ??? | E24: =SUM(H25:U25) ->  | G24: Pins | H24: =VLOOKUP(B24,'Hilfstabelle Mannschaften'!$AE$53:$AF$62,2,0) ->  | I24: =VLOOKUP(B24,'Hilfstabelle Mannschaften'!$AE$53:$AG$62,3,0) ->  | J24: =VLOOKUP(B24,'Hilfstabelle Mannschaften'!$AE$53:$AH$62,4,0) ->  | K24: =VLOOKUP(B24,'Hilfstabelle Mannschaften'!$AE$53:$AJ$62,5,0) ->  | L24: =VLOOKUP(B24,'Hilfstabelle Mannschaften'!$AE$53:$AJ$62,6,0) ->  | M24: =VLOOKUP(B24,'Hilfstabelle Mannschaften'!$AE$53:$AK$62,7,0) ->  | N24: =VLOOKUP(B24,'Hilfstabelle Mannschaften'!$AE$53:$AL$62,8,0) ->  | O24: =VLOOKUP(B24,'Hilfstabelle Mannschaften'!$AE$53:$AM$62,9,0) ->  | P24: =VLOOKUP(B24,'Hilfstabelle Mannschaften'!$AE$53:$AN$62,10,0) ->  | Q24: =VLOOKUP(B24,'Hilfstabelle Mannschaften'!$AE$53:$AO$62,11,0) ->  | R24: =VLOOKUP(B24,'Hilfstabelle Mannschaften'!$AE$53:$AP$62,12,0) ->  | S24: =VLOOKUP(B24,'Hilfstabelle Mannschaften'!$AE$53:$AQ$62,13,0) ->  | T24: =VLOOKUP(B24,'Hilfstabelle Mannschaften'!$AE$53:$AR$62,14,0) ->  | U24: =VLOOKUP(B24,'Hilfstabelle Mannschaften'!$AE$53:$AS$62,15,0) -> 
G25: Punkte | H25: =IF(H24<1,"",'Hilfstabelle Mannschaften'!$Y24) ->  | I25: =IF(I24<1,"",'Hilfstabelle Mannschaften'!$Y29) ->  | J25: =IF(J24<1,"",'Hilfstabelle Mannschaften'!$Y34) ->  | K25: =IF(K24<1,"",'Hilfstabelle Mannschaften'!$Y39) ->  | L25: =IF(L24<1,"",'Hilfstabelle Mannschaften'!$Y44) ->  | M25: =IF(M24<1,"",'Hilfstabelle Mannschaften'!$Y49) ->  | N25: =IF(N24<1,"",'Hilfstabelle Mannschaften'!$Y54) ->  | O25: =IF(O24<1,"",'Hilfstabelle Mannschaften'!$Y59) ->  | P25: =IF(P24<1,"",'Hilfstabelle Mannschaften'!$Y64) ->  | Q25: =IF(Q24<1,"",'Hilfstabelle Mannschaften'!$Y69) ->  | R25: =IF(R24<1,"",'Hilfstabelle Mannschaften'!$Y74) ->  | S25: =IF(S24<1,"",'Hilfstabelle Mannschaften'!$Y79) ->  | T25: =IF(T24<1,"",'Hilfstabelle Mannschaften'!$Y84) ->  | U25: =IF(U24<1,"",'Hilfstabelle Mannschaften'!Y89) -> 
B26: =+'Spielbogen 10er'!G18 -> ??? | D26: =+'Spielbogen 10er'!D18 -> ??? | E26: =SUM(H27:U27) ->  | G26: Pins | H26: =VLOOKUP(B26,'Hilfstabelle Mannschaften'!$AE$53:$AF$62,2,0) ->  | I26: =VLOOKUP(B26,'Hilfstabelle Mannschaften'!$AE$53:$AG$62,3,0) ->  | J26: =VLOOKUP(B26,'Hilfstabelle Mannschaften'!$AE$53:$AH$62,4,0) ->  | K26: =VLOOKUP(B26,'Hilfstabelle Mannschaften'!$AE$53:$AJ$62,5,0) ->  | L26: =VLOOKUP(B26,'Hilfstabelle Mannschaften'!$AE$53:$AJ$62,6,0) ->  | M26: =VLOOKUP(B26,'Hilfstabelle Mannschaften'!$AE$53:$AK$62,7,0) ->  | N26: =VLOOKUP(B26,'Hilfstabelle Mannschaften'!$AE$53:$AL$62,8,0) ->  | O26: =VLOOKUP(B26,'Hilfstabelle Mannschaften'!$AE$53:$AM$62,9,0) ->  | P26: =VLOOKUP(B26,'Hilfstabelle Mannschaften'!$AE$53:$AN$62,10,0) ->  | Q26: =VLOOKUP(B26,'Hilfstabelle Mannschaften'!$AE$53:$AO$62,11,0) ->  | R26: =VLOOKUP(B26,'Hilfstabelle Mannschaften'!$AE$53:$AP$62,12,0) ->  | S26: =VLOOKUP(B26,'Hilfstabelle Mannschaften'!$AE$53:$AQ$62,13,0) ->  | T26: =VLOOKUP(B26,'Hilfstabelle Mannschaften'!$AE$53:$AR$62,14,0) ->  | U26: =VLOOKUP(B26,'Hilfstabelle Mannschaften'!$AE$53:$AS$62,15,0) -> 
G27: Punkte | H27: =IF(H26<1,"",'Hilfstabelle Mannschaften'!$Z$24) ->  | I27: =IF(I26<1,"",'Hilfstabelle Mannschaften'!$Z$29) ->  | J27: =IF(J26<1,"",'Hilfstabelle Mannschaften'!$Z$34) ->  | K27: =IF(K26<1,"",'Hilfstabelle Mannschaften'!$Z$39) ->  | L27: =IF(L26<1,"",'Hilfstabelle Mannschaften'!$Z$44) ->  | M27: =IF(M26<1,"",'Hilfstabelle Mannschaften'!$Z$49) ->  | N27: =IF(N26<1,"",'Hilfstabelle Mannschaften'!$Z$54) ->  | O27: =IF(O26<1,"",'Hilfstabelle Mannschaften'!$Z$59) ->  | P27: =IF(P26<1,"",'Hilfstabelle Mannschaften'!$Z$64) ->  | Q27: =IF(Q26<1,"",'Hilfstabelle Mannschaften'!$Z$69) ->  | R27: =IF(R26<1,"",'Hilfstabelle Mannschaften'!$Z$74) ->  | S27: =IF(S26<1,"",'Hilfstabelle Mannschaften'!$Z$79) ->  | T27: =IF(T26<1,"",'Hilfstabelle Mannschaften'!$Z$84) ->  | U27: =IF(U26<1,"",'Hilfstabelle Mannschaften'!Z$89) -> 
B28: =+'Spielbogen 1.'!F19 | D28: =+#REF! ->  | F28: =SUM(H28:U28) -> 0 | G28: Pins
F29: =SUM(H29:U29) -> 0 | G29: Punkte | H29: =IF(H28<1,"",'Hilfstabelle Mannschaften'!$AA$24) ->  | I29: =IF(I28<1,"",'Hilfstabelle Mannschaften'!$AA$29) ->  | J29: =IF(J28<1,"",'Hilfstabelle Mannschaften'!$AA$34) ->  | K29: =IF(K28<1,"",'Hilfstabelle Mannschaften'!$AA$39) ->  | L29: =IF(L28<1,"",'Hilfstabelle Mannschaften'!$AA$44) ->  | M29: =IF(M28<1,"",'Hilfstabelle Mannschaften'!$AA$49) ->  | N29: =IF(N28<1,"",'Hilfstabelle Mannschaften'!$AA$54) ->  | O29: =IF(O28<1,"",'Hilfstabelle Mannschaften'!$AA$59) ->  | P29: =IF(P28<1,"",'Hilfstabelle Mannschaften'!$AA$64) ->  | Q29: =IF(Q28<1,"",'Hilfstabelle Mannschaften'!$AA$69) ->  | R29: =IF(R28<1,"",'Hilfstabelle Mannschaften'!$AA$74) ->  | S29: =IF(S28<1,"",'Hilfstabelle Mannschaften'!$AA$79) ->  | T29: =IF(T28<1,"",'Hilfstabelle Mannschaften'!$AA$84) ->  | U29: =IF(U28<1,"",'Hilfstabelle Mannschaften'!AA$89) -> 
B30: =+'Spielbogen 1.'!F20 | D30: =+#REF! ->  | F30: =SUM(H30:U30) -> 0 | G30: Pins
F31: =SUM(H31:U31) -> 0 | G31: Punkte | H31: =IF(H30<1,"",'Hilfstabelle Mannschaften'!$AB$24) ->  | I31: =IF(I30<1,"",'Hilfstabelle Mannschaften'!$AB$29) ->  | J31: =IF(J30<1,"",'Hilfstabelle Mannschaften'!$AB$34) ->  | K31: =IF(K30<1,"",'Hilfstabelle Mannschaften'!$AB$39) ->  | L31: =IF(L30<1,"",'Hilfstabelle Mannschaften'!$AB$44) ->  | M31: =IF(M30<1,"",'Hilfstabelle Mannschaften'!$AB$49) ->  | N31: =IF(N30<1,"",'Hilfstabelle Mannschaften'!$AB$54) ->  | O31: =IF(O30<1,"",'Hilfstabelle Mannschaften'!$AB$59) ->  | P31: =IF(P30<1,"",'Hilfstabelle Mannschaften'!$AB$64) ->  | Q31: =IF(Q30<1,"",'Hilfstabelle Mannschaften'!$AB$69) ->  | R31: =IF(R30<1,"",'Hilfstabelle Mannschaften'!$AB$74) ->  | S31: =IF(S30<1,"",'Hilfstabelle Mannschaften'!$AB$79) ->  | T31: =IF(T30<1,"",'Hilfstabelle Mannschaften'!$AB$84) ->  | U31: =IF(U30<1,"",'Hilfstabelle Mannschaften'!AB$89) -> 

Sheet Annegret S.
B1: Start
B2: Rangliste | G2: =+'Hilfstabelle Mannschaften'!H8&" "&+'Hilfstabelle Mannschaften'!I8 -> PUNKTSPIELSAISON 2024/2025
D3: =+'Hilfstabelle Spieler'!A6 -> Annegret Schmidt
D5: Pass.-Nr.: | E5: =VLOOKUP(D3,'Hilfstabelle Spieler'!A6:B19,2,0) -> 19222 | G5: Pins | H5: Spiele | I5: Schnitt | J5: Ligaergebnisse | Q5: Sonstige Antritte:
D6: Ligaergebnisse: | G6: =IF(SUM(J12:J31)>1,SUM(J12:J31)," ") -> 2834 | H6: =COUNT(G12:I31) -> 21 | I6: =IF(SUM(G12:I31)>1,SUM(G6/H6)," ") -> 134.952381 | J6: MAX. | K6: MIN. | L6: MAX. | N6: MIN. | O6: Schnitt | Q6: 4.er Serie: | T6: 6.er Serie:
D7: Sonstige Antritte: | G7: =IF(SUM(R12:S19)>1,SUM(R12:S20)," ") -> 5829 | H7: =IF(SUM(R12:S19)>1,SUM(V12:V20)," ") -> 42 | I7: =IF(SUM(R12:S20)>1,G7/H7," ") -> 138.7857143 | J7: ERG. | K7: ERG. | L7: 3.ER | N7: 3.ER | O7: 3.ER | Q7: Höchstes 4.er Erg. : | S7: =MAX(R13:R18) -> 574 | T7: Höchstes 6.er Erg. : | V7: =MAX(S12:S20) -> 892
D8: GESAMTSCHNITT: | G8: =IF(SUM(G6:G7)>1,SUM(G6:G7)," ") -> 8663 | H8: =IF(SUM(H6:H7)>1,SUM(H6:H7)," ") -> 63 | I8: =IF(SUM(G8)>1,SUM(G8/H8)," ") -> 137.5079365 | J8: =MAX(G12:I40) -> 162 | K8: =IF(SUM(G12:I40)<1," ",MIN(G12:I40)) -> 104 | L8: =MAX(J12:J40) -> 426 | N8: =IF(SUM(G12:J40)>1,MIN(J12:J40)," ") -> 386 | O8: =IF(J8>0,AVERAGE(J12:J30),"") -> 404.8571429 | Q8: Höchste Einzel-Erg. : | S8: 160 | T8: Höchste Einzel-Erg. : | V8: 168
D10: Einzelspielergebnisse Liga | M10: Sonstige Antritte
D11: Datum | E11: Antr. | F11: Bahn | G11: 1. Spiel | H11: 2. Spiel | I11: 3. Spiel | J11: 3. er Serie | K11: 3. er Ø | M11: Datum - Turnier | R11: 4.er Erg. | S11: 6.er Erg. | T11: Schnitt | U11: Ges. Pins | V11: Spiele
D12: =+'Spielbogen 8er'!P4 -> 2024-09-12 | E12: 1 | F12: =+'Spielbogen 8er'!N4 -> OT | G12: 121 | H12: 142 | I12: 123 | J12: =IF(G12>1,+G12+H12+I12,"") -> 386 | K12: =IF(G12>1,SUM(G12:I12)/3," ") -> 128.6666667 | M12: =+'Anmeldegruppen Turniere'!T8&" - "&W12 -> 07. / 08. Sep. 24 - Eröffnungs Doppel | S12: 802 | T12: =IF(S12>1,+S12/V12,"") -> 133.6666667 | U12: =IF(S12>1,SUM($R$12:S12)," ") -> 802 | V12: =IF(S12>0,6,0) -> 6 | W12: Eröffnungs Doppel
D13: =+'Spielbogen 8er'!P5 -> 2024-09-26 | E13: 2 | F13: =+'Spielbogen 8er'!N5 -> OT | M13: =+'Anmeldegruppen Turniere'!T11&" - "&W13 -> 12. / 13. Nov. 24 - 1. Antritt HH-Cup | R13: 524 | T13: =IF(R13>1,+R13/V13,"") -> 131 | U13: =IF(R13>1,SUM($R$12:S13)," ") -> 1326 | V13: =IF(R13,4,0) -> 4 | W13: 1. Antritt HH-Cup
D14: =+'Spielbogen 8er'!P6 -> 2024-10-10 | E14: 3 | F14: =+'Spielbogen 8er'!N6 -> WB | G14: 134 | H14: 144 | I14: 148 | J14: 426 | K14: 142 | M14: =+'Anmeldegruppen Turniere'!T12&" - "&W14 -> 26. / 27. Nov .24 - 2. Antritt HH-Cup | R14: 574 | T14: =IF(R14>1,+R14/V14,"") -> 143.5 | U14: =IF(R14>1,SUM($R$12:S14)," ") -> 1900 | V14: =IF(R14,4,0) -> 4 | W14: 2. Antritt HH-Cup
D15: =+'Spielbogen 8er'!P7 -> 2024-10-24 | E15: 4 | F15: =+'Spielbogen 8er'!N7 -> OT | M15: =+'Hilfstabelle Mannschaften'!J12&" - "&W15 -> 16. / 17. Nov. 24 - Herbst-Mix | T15: =IF(R15>1,+R15/V15,"") ->  | U15: =IF(R15>1,SUM($R$12:S15)," ") ->  | V15: =IF(R15,4,0) -> 0 | W15: Herbst-Mix
D16: =+'Spielbogen 8er'!P8 -> 2024-11-07 | E16: 5 | F16: =+'Spielbogen 8er'!N8 -> WB | M16: =+'Anmeldegruppen Turniere'!T21&" - "&W16 -> 18. / 19. Jan. 25 - 1. Antritt Einzel | S16: 892 | T16: =IF(S16>1,+S16/V16,"") -> 148.6666667 | U16: =IF(S16>1,SUM($R$12:S16)," ") -> 2792 | V16: =IF(S16>0,6,0) -> 6 | W16: 1. Antritt Einzel
D17: =+'Spielbogen 8er'!P9 -> 2025-01-16 | E17: 6 | F17: =+'Spielbogen 8er'!N9 -> WB | G17: 140 | H17: 125 | I17: 140 | J17: 405 | K17: 135 | M17: =+'Anmeldegruppen Turniere'!T22&" - "&W17 -> 01. / 02. Feb. 25 - 2. Antritt Einzel | S17: 816 | T17: =IF(S17>1,+S17/V17,"") -> 136 | U17: =IF(S17>1,SUM($R$12:S17)," ") -> 3608 | V17: =IF(S17>0,6,0) -> 6 | W17: 2. Antritt Einzel
D18: =+'Spielbogen 8er'!P10 -> 2025-01-30 | E18: 7 | F18: =+'Spielbogen 8er'!N10 -> OT | M18: =+'Hilfstabelle Mannschaften'!J14&" - "&W18 -> 12. / 13. Mär, 25 - Frühjahrs-Mix | R18: 541 | T18: =IF(R18>1,+R18/V18,"") -> 135.25 | U18: =IF(R18>1,SUM($R$12:S18)," ") -> 4149 | V18: =IF(R18,4,0) -> 4 | W18: Frühjahrs-Mix
D19: =+'Spielbogen 8er'!P11 -> 2025-02-13 | E19: 8 | F19: =+'Spielbogen 8er'!N11 -> WB | G19: 134 | H19: 136 | I19: 146 | J19: 416 | K19: 138.6666667 | M19: =+'Anmeldegruppen Turniere'!T29&" - "&W19 -> 12. / 13. Apr. 25 - 1. Antritt Doppel | S19: 836 | T19: =IF(S19>1,+S19/V19,"") -> 139.3333333 | U19: =IF(S19>1,SUM($R$12:S19)," ") -> 4985 | V19: =IF(S19>0,6,0) -> 6 | W19: 1. Antritt Doppel
D20: =+'Spielbogen 8er'!P12 -> 2025-02-27 | E20: 9 | F20: =+'Spielbogen 8er'!N12 -> OT | G20: 104 | H20: 162 | I20: 130 | J20: 396 | K20: =IF(G20>1,SUM(G20:I20)/3," ") -> 132 | M20: =+'Anmeldegruppen Turniere'!T30&" - "&W20 -> 10. / 11. Mai 25 - 2. Antritt Doppel | S20: 844 | T20: =IF(S20>1,+S20/V20,"") -> 140.6666667 | U20: =IF(S20>1,SUM($R$12:S20)," ") -> 5829 | V20: =IF(S20>0,6,0) -> 6 | W20: 2. Antritt Doppel
D21: =+'Spielbogen 8er'!P13 -> 2025-03-13 | E21: 10 | F21: =+'Spielbogen 8er'!N13 -> WB | G21: 128 | H21: 139 | I21: 146 | J21: 413 | K21: =IF(G21>1,SUM(G21:I21)/3," ") -> 137.6666667
D22: =+'Spielbogen 8er'!P14 -> 2025-03-27 | E22: 11 | F22: =+'Spielbogen 8er'!N14 -> OT | R22: Ges. Pins | S22: Spiele | T22: Schnitt
D23: =+'Spielbogen 8er'!P15 -> 2025-04-10 | E23: 12 | F23: =+'Spielbogen 8er'!N15 -> WB | O23: Schnitt HH-Cup | R23: =IF(R13>0,SUM(R13:R14),"") -> 1098 | S23: =IF(R13>0,SUM(V13:V14),"") -> 8 | T23: =IF(R13>0,SUM(R13:R14)/SUM(V13:V14),"") -> 137.25
D24: =+'Spielbogen 8er'!P16 -> 2025-04-24 | E24: 13 | F24: =+'Spielbogen 8er'!N16 -> OT | O24: Schnitt Einzel | R24: =IF(S16>0,SUM(S16:S17),"") -> 1708 | S24: =IF(S16>0,SUM(V16:V17),"") -> 12 | T24: =IF(S16>0,SUM(S16:S17)/SUM(V16:V17),"") -> 142.3333333
D25: =+'Spielbogen 8er'!P17 -> 2025-05-08 | E25: 14 | F25: =+'Spielbogen 8er'!N17 -> WB | G25: 117 | H25: 146 | I25: 129 | J25: =IF(G25>1,+G25+H25+I25,"") -> 392 | K25: =IF(G25>1,SUM(G25:I25)/3," ") -> 130.6666667 | O25: Schnitt Doppel | R25: =IF(S19>0,SUM(S19:S20),"") -> 1680 | S25: =IF(S19>0,SUM(V19:V20),"") -> 12 | T25: =IF(S19>0,SUM(S19:S20)/SUM(V19:V20),"") -> 140

Sheet Ilona W.
B1: Start
B2: Rangliste | G2: =+'Hilfstabelle Mannschaften'!H8&" "&+'Hilfstabelle Mannschaften'!I8 -> PUNKTSPIELSAISON 2024/2025
D3: =+'Hilfstabelle Spieler'!A9 -> Ilona Wetzel
D5: Pass.-Nr.: | E5: =VLOOKUP(D3,'Hilfstabelle Spieler'!A6:B19,2,0) -> 22115 | G5: Pins | H5: Spiele | I5: Schnitt | J5: Ligaergebnisse | Q5: Sonstige Antritte:
D6: Ligaergebnisse: | G6: =IF(SUM(J12:J31)>1,SUM(J12:J31)," ") -> 2240 | H6: =COUNT(G12:I31) -> 15 | I6: =IF(SUM(G12:I31)>1,SUM(G6/H6)," ") -> 149.3333333 | J6: MAX. | K6: MIN. | L6: MAX. | N6: MIN. | O6: Schnitt | Q6: 4.er Serie: | T6: 6.er Serie:
D7: Sonstige Antritte: | G7: =IF(SUM(R12:S20)>1,SUM(R12:S20)," ") -> 5294 | H7: =IF(SUM(R12:S19)>1,SUM(V12:V20)," ") -> 34 | I7: =IF(SUM(R12:S20)>1,G7/H7," ") -> 155.7058824 | J7: ERG. | K7: ERG. | L7: 3.ER | N7: 3.ER | O7: 3.ER | Q7: Höchstes 4.er Erg. : | S7: =MAX(R13:R18) -> 557 | T7: Höchstes 6.er Erg. : | V7: =MAX(S12:S20) -> 1024
D8: GESAMTSCHNITT: | G8: =IF(SUM(G6:G7)>1,SUM(G6:G7)," ") -> 7534 | H8: =IF(SUM(H6:H7)>1,SUM(H6:H7)," ") -> 49 | I8: =IF(SUM(G8)>1,SUM(G8/H8),"") -> 153.755102 | J8: =MAX(G12:I40) -> 202 | K8: =IF(SUM(G12:I40)<1," ",MIN(G12:I40)) -> 109 | L8: =MAX(J12:J40) -> 509 | N8: =IF(SUM(G12:J40)>1,MIN(J12:J40)," ") -> 379 | O8: =IF(J8>0,AVERAGE(J12:J30),"") -> 448 | Q8: Höchste Einzel-Erg. : | T8: Höchste Einzel-Erg. : | V8: 195
D10: Einzelspielergebnisse Liga | M10: Sonstige Antritte
D11: Datum | E11: Antr. | F11: Bahn | G11: 1. Spiel | H11: 2. Spiel | I11: 3. Spiel | J11: 3. er Serie | K11: 3. er Ø | M11: Datum - Turnier | R11: 4.er Erg. | S11: 6.er Erg. | T11: Schnitt | U11: Ges. Pins | V11: Spiele
D12: =+'Spielbogen 8er'!P4 -> 2024-09-12 | E12: 1 | F12: =+'Spielbogen 8er'!N4 -> OT | G12: 202 | H12: 177 | I12: 130 | J12: =IF(G12>1,+G12+H12+I12,"") -> 509 | K12: =IF(G12>1,SUM(G12:I12)/3," ") -> 169.6666667 | M12: =+'Anmeldegruppen Turniere'!T8&" - "&W12 -> 07. / 08. Sep. 24 - Eröffnungs Doppel | S12: 877 | T12: =IF(S12>1,+S12/V12,"") -> 146.1666667 | U12: =IF(S12>1,SUM($R$12:S12)," ") -> 877 | V12: =IF(S12>0,6,0) -> 6 | W12: Eröffnungs Doppel
D13: =+'Spielbogen 8er'!P5 -> 2024-09-26 | E13: 2 | F13: =+'Spielbogen 8er'!N5 -> OT | M13: =+'Anmeldegruppen Turniere'!T11&" - "&W13 -> 12. / 13. Nov. 24 - 1. Antritt HH-Cup | T13: =IF(R13>1,+R13/V13,"") ->  | U13: =IF(R13>1,SUM($R$12:S13)," ") ->  | V13: =IF(R13,4,0) -> 0 | W13: 1. Antritt HH-Cup
D14: =+'Spielbogen 8er'!P6 -> 2024-10-10 | E14: 3 | F14: =+'Spielbogen 8er'!N6 -> WB | G14: 133 | H14: 135 | I14: 155 | J14: 423 | K14: 141 | M14: =+'Anmeldegruppen Turniere'!T12&" - "&W14 -> 26. / 27. Nov .24 - 2. Antritt HH-Cup | T14: =IF(R14>1,+R14/V14,"") ->  | U14: =IF(R14>1,SUM($R$12:S14)," ") ->  | V14: =IF(R14,4,0) -> 0 | W14: 2. Antritt HH-Cup
D15: =+'Spielbogen 8er'!P7 -> 2024-10-24 | E15: 4 | F15: =+'Spielbogen 8er'!N7 -> OT | M15: =+'Hilfstabelle Mannschaften'!J12&" - "&W15 -> 16. / 17. Nov. 24 - Herbst-Mix | T15: =IF(R15>1,+R15/V15,"") ->  | U15: =IF(R15>1,SUM($R$12:S15)," ") ->  | V15: =IF(R15,4,0) -> 0 | W15: Herbst-Mix
D16: =+'Spielbogen 8er'!P8 -> 2024-11-07 | E16: 5 | F16: =+'Spielbogen 8er'!N8 -> WB | G16: 109 | H16: 114 | I16: 156 | J16: 379 | K16: 126.3333333 | M16: =+'Anmeldegruppen Turniere'!T21&" - "&W16 -> 18. / 19. Jan. 25 - 1. Antritt Einzel | S16: 931 | T16: =IF(S16>1,+S16/V16,"") -> 155.1666667 | U16: =IF(S16>1,SUM($R$12:S16)," ") -> 1808 | V16: =IF(S16>0,6,0) -> 6 | W16: 1. Antritt Einzel
D17: =+'Spielbogen 8er'!P9 -> 2025-01-16 | E17: 6 | F17: =+'Spielbogen 8er'!N9 -> WB | M17: =+'Anmeldegruppen Turniere'!T22&" - "&W17 -> 01. / 02. Feb. 25 - 2. Antritt Einzel | S17: 931 | T17: =IF(S17>1,+S17/V17,"") -> 155.1666667 | U17: =IF(S17>1,SUM($R$12:S17)," ") -> 2739 | V17: =IF(S17>0,6,0) -> 6 | W17: 2. Antritt Einzel
D18: =+'Spielbogen 8er'!P10 -> 2025-01-30 | E18: 7 | F18: =+'Spielbogen 8er'!N10 -> OT | M18: =+'Hilfstabelle Mannschaften'!J14&" - "&W18 -> 12. / 13. Mär, 25 - Frühjahrs-Mix | R18: 557 | T18: =IF(R18>1,+R18/V18,"") -> 139.25 | U18: =IF(R18>1,SUM($R$12:S18)," ") -> 3296 | V18: =IF(R18,4,0) -> 4 | W18: Frühjahrs-Mix
D19: =+'Spielbogen 8er'!P11 -> 2025-02-13 | E19: 8 | F19: =+'Spielbogen 8er'!N11 -> WB | G19: 153 | H19: 151 | I19: 169 | J19: 473 | K19: 157.6666667 | M19: =+'Anmeldegruppen Turniere'!T29&" - "&W19 -> 12. / 13. Apr. 25 - 1. Antritt Doppel | S19: 1024 | T19: =IF(S19>1,+S19/V19,"") -> 170.6666667 | U19: =IF(S19>1,SUM($R$12:S19)," ") -> 4320 | V19: =IF(S19>0,6,0) -> 6 | W19: 1. Antritt Doppel
D20: =+'Spielbogen 8er'!P12 -> 2025-02-27 | E20: 9 | F20: =+'Spielbogen 8er'!N12 -> OT | G20: 161 | H20: 140 | I20: 155 | J20: 456 | K20: =IF(G20>1,SUM(G20:I20)/3," ") -> 152 | M20: =+'Anmeldegruppen Turniere'!T30&" - "&W20 -> 10. / 11. Mai 25 - 2. Antritt Doppel | S20: 974 | T20: =IF(S20>1,+S20/V20,"") -> 162.3333333 | U20: =IF(S20>1,SUM($R$12:S20)," ") -> 5294 | V20: =IF(S20>0,6,0) -> 6 | W20: 2. Antritt Doppel
D21: =+'Spielbogen 8er'!P13 -> 2025-03-13 | E21: 10 | F21: =+'Spielbogen 8er'!N13 -> WB | K21: =IF(G21>1,SUM(G21:I21)/3," ") -> 
D22: =+'Spielbogen 8er'!P14 -> 2025-03-27 | E22: 11 | F22: =+'Spielbogen 8er'!N14 -> OT | R22: Ges. Pins | S22: Spiele | T22: Schnitt
D23: =+'Spielbogen 8er'!P15 -> 2025-04-10 | E23: 12 | F23: =+'Spielbogen 8er'!N15 -> WB | O23: Schnitt HH-Cup | R23: =IF(R13>0,SUM(R13:R14),"") ->  | S23: =IF(R13>0,SUM(V13:V14),"") ->  | T23: =IF(R13>0,SUM(R13:R14)/SUM(V13:V14),"") -> 
D24: =+'Spielbogen 8er'!P16 -> 2025-04-24 | E24: 13 | F24: =+'Spielbogen 8er'!N16 -> OT | O24: Schnitt Einzel | R24: =IF(S16>0,SUM(S16:S17),"") -> 1862 | S24: =IF(S16>0,SUM(V16:V17),"") -> 12 | T24: =IF(S16>0,SUM(S16:S17)/SUM(V16:V17),"") -> 155.1666667
D25: =+'Spielbogen 8er'!P17 -> 2025-05-08 | E25: 14 | F25: =+'Spielbogen 8er'!N17 -> WB | J25: =IF(G25>1,+G25+H25+I25,"") ->  | K25: =IF(G25>1,SUM(G25:I25)/3," ") ->  | O25: Schnitt Doppel | R25: =IF(S19>0,SUM(S19:S20),"") -> 1998 | S25: =IF(S19>0,SUM(V19:V20),"") -> 12 | T25: =IF(S19>0,SUM(S19:S20)/SUM(V19:V20),"") -> 166.5
D26: =+"Ausgeholfen in der 1. Mannschaft Anzahl Spiele:"&" "&+COUNT(G27:I30) -> Ausgeholfen in der 1. Mannschaft Anzahl Spiele: 0
J27: =IF(G27>1,+G27+H27+I27,"") ->  | K27: =IF(G27>1,SUM(G27:I27)/3," ") -> 
J28: =IF(G28>1,+G28+H28+I28,"") ->  | K28: =IF(G28>1,SUM(G28:I28)/3," ") -> 
J29: =IF(G29>1,+G29+H29+I29,"") ->  | K29: =IF(G29>1,SUM(G29:I29)/3," ") -> 
J30: =IF(G30>1,+G30+H30+I30,"") ->  | K30: =IF(G30>1,SUM(G30:I30)/3," ") -> 
J31: =IF(G31>1,+G31+H31+I31,"") ->  | K31: =IF(G31>1,SUM(G31:I31)/3," ") -> 

Sheet Michael W.
B1: Start
B2: Rangliste | G2: =+'Hilfstabelle Mannschaften'!H8&" "&+'Hilfstabelle Mannschaften'!I8 -> PUNKTSPIELSAISON 2024/2025
D3: =+'Hilfstabelle Spieler'!A14 -> Michael Wetzel
D5: Pass.-Nr.: | E5: =VLOOKUP(D3,'Hilfstabelle Spieler'!A6:B19,2,0) -> 22113 | G5: Pins | H5: Spiele | I5: Schnitt | J5: Ligaergebnisse | Q5: Sonstige Antritte:
D6: Ligaergebnisse: | G6: =IF(SUM(J12:J25)>1,SUM(J12:J25)," ") -> 2099 | H6: =COUNT(G12:I25) -> 12 | I6: =IF(SUM(G12:I25)>1,SUM(G6/H6)," ") -> 174.9166667 | J6: MAX. | K6: MIN. | L6: MAX. | N6: MIN. | O6: Schnitt | Q6: 4.er Serie: | T6: 6.er Serie:
D7: Sonstige Antritte: | G7: =IF(SUM(R12:S19)>1,SUM(R12:S20)," ") -> 2851 | H7: =IF(SUM(R12:S19)>1,SUM(V12:V20)," ") -> 16 | I7: =IF(SUM(R12:S19)>1,G7/H7," ") -> 178.1875 | J7: ERG. | K7: ERG. | L7: 3.ER | N7: 3.ER | O7: 3.ER | Q7: Höchstes 4.er Erg. : | S7: =MAX(R13:R18) -> 721 | T7: Höchstes 6.er Erg. : | V7: =MAX(S12:S20) -> 1090
D8: GESAMTSCHNITT: | G8: =IF(SUM(G6:G7)>1,SUM(G6:G7)," ") -> 4950 | H8: =IF(SUM(H6:H7)>1,SUM(H6:H7)," ") -> 28 | I8: =IF(SUM(G8)>1,SUM(G8/H8)," ") -> 176.7857143 | J8: =MAX(G12:I25) -> 227 | K8: =IF(SUM(G12:I25)<1," ",MIN(G12:I25)) -> 133 | L8: =MAX(J12:J25) -> 600 | N8: =IF(SUM(G12:J25)>1,MIN(J12:J25)," ") -> 471 | O8: =IF(J8>0,AVERAGE(J12:J30),"") -> 524.75 | Q8: Höchste Einzel-Erg. : | S8: 212 | T8: Höchste Einzel-Erg. : | V8: 227
D10: Einzelspielergebnisse Liga | M10: Sonstige Antritte
D11: Datum | E11: Antr. | F11: Bahn | G11: 1. Spiel | H11: 2. Spiel | I11: 3. Spiel | J11: 3. er Serie | K11: 3. er Ø | M11: Datum - Turnier | R11: 4.er Erg. | S11: 6.er Erg. | T11: Schnitt | U11: Ges. Pins | V11: Spiele
D12: =+'Spielbogen 8er'!P4 -> 2024-09-12 | E12: 1 | F12: =+'Spielbogen 8er'!N4 -> OT | G12: 168 | H12: 171 | I12: 167 | J12: =IF(G12>1,+G12+H12+I12,"") -> 506 | K12: =IF(G12>1,SUM(G12:I12)/3," ") -> 168.6666667 | M12: =+'Anmeldegruppen Turniere'!T8&" - "&W12 -> 07. / 08. Sep. 24 - Eröffnungs Doppel | T12: =IF(S12>1,+S12/V12,"") ->  | U12: =IF(S12>1,SUM($R$12:S12)," ") ->  | V12: =IF(S12>0,6,0) -> 0 | W12: Eröffnungs Doppel
D13: =+'Spielbogen 8er'!P5 -> 2024-09-26 | E13: 2 | F13: =+'Spielbogen 8er'!N5 -> OT | M13: =+'Anmeldegruppen Turniere'!T11&" - "&W13 -> 12. / 13. Nov. 24 - 1. Antritt HH-Cup | T13: =IF(R13>1,+R13/V13,"") ->  | U13: =IF(R13>1,SUM($R$12:S13)," ") ->  | V13: =IF(R13,4,0) -> 0 | W13: 1. Antritt HH-Cup
D14: =+'Spielbogen 8er'!P6 -> 2024-10-10 | E14: 3 | F14: =+'Spielbogen 8er'!N6 -> WB | G14: 194 | H14: 179 | I14: 227 | J14: 600 | K14: 200 | M14: =+'Anmeldegruppen Turniere'!T12&" - "&W14 -> 26. / 27. Nov .24 - 2. Antritt HH-Cup | T14: =IF(R14>1,+R14/V14,"") ->  | U14: =IF(R14>1,SUM($R$12:S14)," ") ->  | V14: =IF(R14,4,0) -> 0 | W14: 2. Antritt HH-Cup
D15: =+'Spielbogen 8er'!P7 -> 2024-10-24 | E15: 4 | F15: =+'Spielbogen 8er'!N7 -> OT | G15: 163 | H15: 165 | I15: 194 | J15: 522 | K15: 174 | M15: =+'Hilfstabelle Mannschaften'!J12&" - "&W15 -> 16. / 17. Nov. 24 - Herbst-Mix | T15: =IF(R15>1,+R15/V15,"") ->  | U15: =IF(R15>1,SUM($R$12:S15)," ") ->  | V15: =IF(R15,4,0) -> 0 | W15: Herbst-Mix
D16: =+'Spielbogen 8er'!P8 -> 2024-11-07 | E16: 5 | F16: =+'Spielbogen 8er'!N8 -> WB | M16: =+'Anmeldegruppen Turniere'!T21&" - "&W16 -> 18. / 19. Jan. 25 - 1. Antritt Einzel | T16: =IF(S16>1,+S16/V16,"") ->  | U16: =IF(S16>1,SUM($R$12:S16)," ") ->  | V16: =IF(S16>0,6,0) -> 0 | W16: 1. Antritt Einzel
D17: =+'Spielbogen 8er'!P9 -> 2025-01-16 | E17: 6 | F17: =+'Spielbogen 8er'!N9 -> WB | M17: =+'Anmeldegruppen Turniere'!T22&" - "&W17 -> 01. / 02. Feb. 25 - 2. Antritt Einzel | T17: =IF(S17>1,+S17/V17,"") ->  | U17: =IF(S17>1,SUM($R$12:S17)," ") ->  | V17: =IF(S17>0,6,0) -> 0 | W17: 2. Antritt Einzel
D18: =+'Spielbogen 8er'!P10 -> 2025-01-30 | E18: 7 | F18: =+'Spielbogen 8er'!N10 -> OT | M18: =+'Hilfstabelle Mannschaften'!J14&" - "&W18 -> 12. / 13. Mär, 25 - Frühjahrs-Mix | R18: 721 | T18: =IF(R18>1,+R18/V18,"") -> 180.25 | U18: =IF(R18>1,SUM($R$12:S18)," ") -> 721 | V18: =IF(R18,4,0) -> 4 | W18: Frühjahrs-Mix
D19: =+'Spielbogen 8er'!P11 -> 2025-02-13 | E19: 8 | F19: =+'Spielbogen 8er'!N11 -> WB | M19: =+'Anmeldegruppen Turniere'!T29&" - "&W19 -> 12. / 13. Apr. 25 - 1. Antritt Doppel | S19: 1090 | T19: =IF(S19>1,+S19/V19,"") -> 181.6666667 | U19: =IF(S19>1,SUM($R$12:S19)," ") -> 1811 | V19: =IF(S19>0,6,0) -> 6 | W19: 1. Antritt Doppel
D20: =+'Spielbogen 8er'!P12 -> 2025-02-27 | E20: 9 | F20: =+'Spielbogen 8er'!N12 -> OT | K20: =IF(G20>1,SUM(G20:I20)/3," ") ->  | M20: =+'Anmeldegruppen Turniere'!T30&" - "&W20 -> 10. / 11. Mai 25 - 2. Antritt Doppel | S20: 1040 | T20: =IF(S20>1,+S20/V20,"") -> 173.3333333 | U20: =IF(S20>1,SUM($R$12:S20)," ") -> 2851 | V20: =IF(S20>0,6,0) -> 6 | W20: 2. Antritt Doppel
D21: =+'Spielbogen 8er'!P13 -> 2025-03-13 | E21: 10 | F21: =+'Spielbogen 8er'!N13 -> WB | K21: =IF(G21>1,SUM(G21:I21)/3," ") -> 
D22: =+'Spielbogen 8er'!P14 -> 2025-03-27 | E22: 11 | F22: =+'Spielbogen 8er'!N14 -> OT | R22: Ges. Pins | S22: Spiele | T22: Schnitt
D23: =+'Spielbogen 8er'!P15 -> 2025-04-10 | E23: 12 | F23: =+'Spielbogen 8er'!N15 -> WB | O23: Schnitt HH-Cup | R23: =IF(R13>0,SUM(R13:R14),"") ->  | S23: =IF(R13>0,SUM(V13:V14),"") ->  | T23: =IF(R13>0,SUM(R13:R14)/SUM(V13:V14),"") -> 
D24: =+'Spielbogen 8er'!P16 -> 2025-04-24 | E24: 13 | F24: =+'Spielbogen 8er'!N16 -> OT | G24: 160 | H24: 133 | I24: 178 | J24: 471 | K24: 157 | O24: Schnitt Einzel | R24: =IF(S16>0,SUM(S16:S17),"") ->  | S24: =IF(S16>0,SUM(V16:V17),"") ->  | T24: =IF(S16>0,SUM(S16:S17)/SUM(V16:V17),"") -> 
D25: =+'Spielbogen 8er'!P17 -> 2025-05-08 | E25: 14 | F25: =+'Spielbogen 8er'!N17 -> WB | J25: =IF(G25>1,+G25+H25+I25,"") ->  | K25: =IF(G25>1,SUM(G25:I25)/3," ") ->  | O25: Schnitt Doppel | R25: =IF(S19>0,SUM(S19:S20),"") -> 2130 | S25: =IF(S19>0,SUM(V19:V20),"") -> 12 | T25: =IF(S19>0,SUM(S19:S20)/SUM(V19:V20),"") -> 177.5

Sheet Mario J.
B1: Start
B2: Rangliste | G2: =+'Hilfstabelle Mannschaften'!H8&" "&+'Hilfstabelle Mannschaften'!I8 -> PUNKTSPIELSAISON 2024/2025
D3: =+'Hilfstabelle Spieler'!A12 -> Mario Jurk
D5: Pass.-Nr.: | E5: =VLOOKUP(D3,'Hilfstabelle Spieler'!A6:B19,2,0) -> 23302 | G5: Pins | H5: Spiele | I5: Schnitt | J5: Ligaergebnisse | Q5: Sonstige Antritte:
D6: Ligaergebnisse: | G6: =IF(SUM(J12:J25)>1,SUM(J12:J25)," ") -> 3245 | H6: =COUNT(G12:I25) -> 18 | I6: =IF(SUM(G12:I25)>1,SUM(G6/H6)," ") -> 180.2777778 | J6: MAX. | K6: MIN. | L6: MAX. | N6: MIN. | O6: Schnitt | Q6: 4.er Serie: | T6: 6.er Serie:
D7: Sonstige Antritte: | G7: =IF(SUM(R12:S19)>1,SUM(R12:S20)," ") ->  | H7: =IF(SUM(R12:S19)>1,SUM(V12:V20)," ") ->  | I7: =IF(SUM(R12:S20)>1,G7/H7," ") ->  | J7: ERG. | K7: ERG. | L7: 3.ER | N7: 3.ER | O7: 3.ER | Q7: Höchstes 4.er Erg. : | S7: =MAX(R13:R18) -> 0 | T7: Höchstes 6.er Erg. :
D8: GESAMTSCHNITT: | G8: =IF(SUM(G6:G7)>1,SUM(G6:G7)," ") -> 3245 | H8: =IF(SUM(H6:H7)>1,SUM(H6:H7)," ") -> 18 | I8: =IF(SUM(G8)>1,SUM(G8/H8)," ") -> 180.2777778 | J8: =MAX(G12:I25) -> 245 | K8: =IF(SUM(G12:I25)<1," ",MIN(G12:I25)) -> 154 | L8: =MAX(J12:J25) -> 628 | N8: =IF(SUM(G12:J25)>1,MIN(J12:J25)," ") -> 478 | O8: =IF(J8>0,AVERAGE(J12:J30),"") -> 540.8333333 | Q8: Höchste Einzel-Erg. : | T8: Höchste Einzel-Erg. :
D10: Einzelspielergebnisse Liga | M10: Sonstige Antritte
D11: Datum | E11: Antr. | F11: Bahn | G11: 1. Spiel | H11: 2. Spiel | I11: 3. Spiel | J11: 3. er Serie | K11: 3. er Ø | M11: Datum - Turnier | R11: 4.er Erg. | S11: 6.er Erg. | T11: Schnitt | U11: Ges. Pins | V11: Spiele
D12: =+'Spielbogen 8er'!P4 -> 2024-09-12 | E12: 1 | F12: =+'Spielbogen 8er'!N4 -> OT | J12: =IF(G12>1,+G12+H12+I12,"") ->  | K12: =IF(G12>1,SUM(G12:I12)/3," ") ->  | M12: =+'Anmeldegruppen Turniere'!T8&" - "&W12 -> 07. / 08. Sep. 24 - Eröffnungs Doppel | T12: =IF(S12>1,+S12/V12,"") ->  | U12: =IF(S12>1,SUM($R$12:S12)," ") ->  | V12: =IF(S12>0,6,0) -> 0 | W12: Eröffnungs Doppel
D13: =+'Spielbogen 8er'!P5 -> 2024-09-26 | E13: 2 | F13: =+'Spielbogen 8er'!N5 -> OT | G13: 164 | H13: 197 | I13: 194 | J13: 555 | K13: 185 | M13: =+'Anmeldegruppen Turniere'!T11&" - "&W13 -> 12. / 13. Nov. 24 - 1. Antritt HH-Cup | T13: =IF(R13>1,+R13/V13,"") ->  | U13: =IF(R13>1,SUM($R$12:S13)," ") ->  | V13: =IF(R13,4,0) -> 0 | W13: 1. Antritt HH-Cup
D14: =+'Spielbogen 8er'!P6 -> 2024-10-10 | E14: 3 | F14: =+'Spielbogen 8er'!N6 -> WB | M14: =+'Anmeldegruppen Turniere'!T12&" - "&W14 -> 26. / 27. Nov .24 - 2. Antritt HH-Cup | T14: =IF(R14>1,+R14/V14,"") ->  | U14: =IF(R14>1,SUM($R$12:S14)," ") ->  | V14: =IF(R14,4,0) -> 0 | W14: 2. Antritt HH-Cup
D15: =+'Spielbogen 8er'!P7 -> 2024-10-24 | E15: 4 | F15: =+'Spielbogen 8er'!N7 -> OT | M15: =+'Hilfstabelle Mannschaften'!J12&" - "&W15 -> 16. / 17. Nov. 24 - Herbst-Mix | T15: =IF(R15>1,+R15/V15,"") ->  | U15: =IF(R15>1,SUM($R$12:S15)," ") ->  | V15: =IF(R15,4,0) -> 0 | W15: Herbst-Mix
D16: =+'Spielbogen 8er'!P8 -> 2024-11-07 | E16: 5 | F16: =+'Spielbogen 8er'!N8 -> WB | G16: 243 | H16: 155 | I16: 170 | J16: 568 | K16: 189.3333333 | M16: =+'Anmeldegruppen Turniere'!T21&" - "&W16 -> 18. / 19. Jan. 25 - 1. Antritt Einzel | T16: =IF(S16>1,+S16/V16,"") ->  | U16: =IF(S16>1,SUM($R$12:S16)," ") ->  | V16: =IF(S16>0,6,0) -> 0 | W16: 1. Antritt Einzel
D17: =+'Spielbogen 8er'!P9 -> 2025-01-16 | E17: 6 | F17: =+'Spielbogen 8er'!N9 -> WB | G17: 172 | H17: 169 | I17: 169 | J17: 510 | K17: 170 | M17: =+'Anmeldegruppen Turniere'!T22&" - "&W17 -> 01. / 02. Feb. 25 - 2. Antritt Einzel | T17: =IF(S17>1,+S17/V17,"") ->  | U17: =IF(S17>1,SUM($R$12:S17)," ") ->  | V17: =IF(S17>0,6,0) -> 0 | W17: 2. Antritt Einzel
D18: =+'Spielbogen 8er'!P10 -> 2025-01-30 | E18: 7 | F18: =+'Spielbogen 8er'!N10 -> OT | G18: 154 | H18: 167 | I18: 157 | J18: 478 | K18: 159.3333333 | M18: =+'Hilfstabelle Mannschaften'!J14&" - "&W18 -> 12. / 13. Mär, 25 - Frühjahrs-Mix | T18: =IF(R18>1,+R18/V18,"") ->  | U18: =IF(R18>1,SUM($R$12:S18)," ") ->  | V18: =IF(R18,4,0) -> 0 | W18: Frühjahrs-Mix
D19: =+'Spielbogen 8er'!P11 -> 2025-02-13 | E19: 8 | F19: =+'Spielbogen 8er'!N11 -> WB | M19: =+'Anmeldegruppen Turniere'!T29&" - "&W19 -> 12. / 13. Apr. 25 - 1. Antritt Doppel | T19: =IF(S19>1,+S19/V19,"") ->  | U19: =IF(S19>1,SUM($R$12:S19)," ") ->  | V19: =IF(S19>0,6,0) -> 0 | W19: 1. Antritt Doppel
D20: =+'Spielbogen 8er'!P12 -> 2025-02-27 | E20: 9 | F20: =+'Spielbogen 8er'!N12 -> OT | G20: 158 | H20: 165 | I20: 183 | J20: 506 | K20: =IF(G20>1,SUM(G20:I20)/3," ") -> 168.6666667 | M20: =+'Anmeldegruppen Turniere'!T30&" - "&W20 -> 10. / 11. Mai 25 - 2. Antritt Doppel | T20: =IF(S20>1,+S20/V20,"") ->  | U20: =IF(S20>1,SUM($R$12:S20)," ") ->  | V20: =IF(S20>0,6,0) -> 0 | W20: 2. Antritt Doppel
D21: =+'Spielbogen 8er'!P13 -> 2025-03-13 | E21: 10 | F21: =+'Spielbogen 8er'!N13 -> WB | K21: =IF(G21>1,SUM(G21:I21)/3," ") -> 
D22: =+'Spielbogen 8er'!P14 -> 2025-03-27 | E22: 11 | F22: =+'Spielbogen 8er'!N14 -> OT | R22: Ges. Pins | S22: Spiele | T22: Schnitt
D23: =+'Spielbogen 8er'!P15 -> 2025-04-10 | E23: 12 | F23: =+'Spielbogen 8er'!N15 -> WB | O23: Schnitt HH-Cup | R23: =IF(R13>0,SUM(R13:R14),"") ->  | S23: =IF(R13>0,SUM(V13:V14),"") ->  | T23: =IF(R13>0,SUM(R13:R14)/SUM(V13:V14),"") -> 
D24: =+'Spielbogen 8er'!P16 -> 2025-04-24 | E24: 13 | F24: =+'Spielbogen 8er'!N16 -> OT | O24: Schnitt Einzel | R24: =IF(S16>0,SUM(S16:S17),"") ->  | S24: =IF(S16>0,SUM(V16:V17),"") ->  | T24: =IF(S16>0,SUM(S16:S17)/SUM(V16:V17),"") -> 
D25: =+'Spielbogen 8er'!P17 -> 2025-05-08 | E25: 14 | F25: =+'Spielbogen 8er'!N17 -> WB | G25: 214 | H25: 245 | I25: 169 | J25: 628 | K25: 209.3333333 | O25: Schnitt Doppel | R25: =IF(S19>0,SUM(S19:S20),"") ->  | S25: =IF(S19>0,SUM(V19:V20),"") ->  | T25: =IF(S19>0,SUM(S19:S20)/SUM(V19:V20),"") -> 

Sheet Kai R.
B1: Start
B2: Rangliste | G2: =+'Hilfstabelle Mannschaften'!H8&" "&+'Hilfstabelle Mannschaften'!I8 -> PUNKTSPIELSAISON 2024/2025
D3: =+'Hilfstabelle Spieler'!A11 -> Kai Roßberg
D5: Pass.-Nr.: | E5: =VLOOKUP(D3,'Hilfstabelle Spieler'!A6:B19,2,0) -> 21889 | G5: Pins | H5: Spiele | I5: Schnitt | J5: Ligaergebnisse | Q5: Sonstige Antritte:
D6: Ligaergebnisse: | G6: =IF(SUM(J12:J25)>1,SUM(J12:J25)," ") -> 6459 | H6: =COUNT(G12:I25) -> 36 | I6: =IF(SUM(G12:I25)>1,SUM(G6/H6)," ") -> 179.4166667 | J6: MAX. | K6: MIN. | L6: MAX. | N6: MIN. | O6: Schnitt | Q6: 4.er Serie: | T6: 6.er Serie:
D7: Sonstige Antritte: | G7: =IF(SUM(R12:S19)>1,SUM(R12:S20)," ") ->  | H7: =IF(SUM(R12:S19)>1,SUM(V12:V20)," ") ->  | I7: =IF(SUM(R12:S19)>1,G7/H7," ") ->  | J7: ERG. | K7: ERG. | L7: 3.ER | N7: 3.ER | O7: 3.ER | Q7: Höchstes 4.er Erg. : | S7: =MAX(R13:R18) -> 0 | T7: Höchstes 6.er Erg. :
D8: GESAMTSCHNITT: | G8: =IF(SUM(G6:G7)>1,SUM(G6:G7)," ") -> 6459 | H8: =IF(SUM(H6:H7)>1,SUM(H6:H7)," ") -> 36 | I8: =IF(SUM(G8)>1,SUM(G8/H8)," ") -> 179.4166667 | J8: =MAX(G12:I25) -> 246 | K8: =IF(SUM(G12:I25)<1," ",MIN(G12:I25)) -> 128 | L8: =MAX(J12:J25) -> 610 | N8: =IF(SUM(G12:J25)>1,MIN(J12:J25)," ") -> 484 | O8: =IF(J8>0,AVERAGE(J12:J30),"") -> 538.25 | Q8: Höchste Einzel-Erg. : | T8: Höchste Einzel-Erg. :
D10: Einzelspielergebnisse Liga | M10: Sonstige Antritte
D11: Datum | E11: Antr. | F11: Bahn | G11: 1. Spiel | H11: 2. Spiel | I11: 3. Spiel | J11: 3. er Serie | K11: 3. er Ø | M11: Datum - Turnier | R11: 4.er Erg. | S11: 6.er Erg. | T11: Schnitt | U11: Ges. Pins | V11: Spiele
D12: =+'Spielbogen 8er'!P4 -> 2024-09-12 | E12: 1 | F12: =+'Spielbogen 8er'!N4 -> OT | G12: 160 | H12: 184 | I12: 169 | J12: =IF(G12>1,+G12+H12+I12,"") -> 513 | K12: =IF(G12>1,SUM(G12:I12)/3," ") -> 171 | M12: =+'Anmeldegruppen Turniere'!T8&" - "&W12 -> 07. / 08. Sep. 24 - Eröffnungs Doppel | T12: =IF(S12>1,+S12/V12,"") ->  | U12: =IF(S12>1,SUM($R$12:S12)," ") ->  | V12: =IF(S12>0,6,0) -> 0 | W12: Eröffnungs Doppel
D13: =+'Spielbogen 8er'!P5 -> 2024-09-26 | E13: 2 | F13: =+'Spielbogen 8er'!N5 -> OT | G13: 181 | H13: 149 | I13: 246 | J13: 576 | K13: 192 | M13: =+'Anmeldegruppen Turniere'!T11&" - "&W13 -> 12. / 13. Nov. 24 - 1. Antritt HH-Cup | T13: =IF(R13>1,+R13/V13,"") ->  | U13: =IF(R13>1,SUM($R$12:S13)," ") ->  | V13: =IF(R13,4,0) -> 0 | W13: 1. Antritt HH-Cup
D14: =+'Spielbogen 8er'!P6 -> 2024-10-10 | E14: 3 | F14: =+'Spielbogen 8er'!N6 -> WB | G14: 147 | H14: 179 | I14: 200 | J14: 526 | K14: 175.3333333 | M14: =+'Anmeldegruppen Turniere'!T12&" - "&W14 -> 26. / 27. Nov .24 - 2. Antritt HH-Cup | T14: =IF(R14>1,+R14/V14,"") ->  | U14: =IF(R14>1,SUM($R$12:S14)," ") ->  | V14: =IF(R14,4,0) -> 0 | W14: 2. Antritt HH-Cup
D15: =+'Spielbogen 8er'!P7 -> 2024-10-24 | E15: 4 | F15: =+'Spielbogen 8er'!N7 -> OT | M15: =+'Hilfstabelle Mannschaften'!J12&" - "&W15 -> 16. / 17. Nov. 24 - Herbst-Mix | T15: =IF(R15>1,+R15/V15,"") ->  | U15: =IF(R15>1,SUM($R$12:S15)," ") ->  | V15: =IF(R15,4,0) -> 0 | W15: Herbst-Mix
D16: =+'Spielbogen 8er'!P8 -> 2024-11-07 | E16: 5 | F16: =+'Spielbogen 8er'!N8 -> WB | G16: 208 | H16: 185 | I16: 163 | J16: 556 | K16: 185.3333333 | M16: =+'Anmeldegruppen Turniere'!T21&" - "&W16 -> 18. / 19. Jan. 25 - 1. Antritt Einzel | T16: =IF(S16>1,+S16/V16,"") ->  | U16: =IF(S16>1,SUM($R$12:S16)," ") ->  | V16: =IF(S16>0,6,0) -> 0 | W16: 1. Antritt Einzel
D17: =+'Spielbogen 8er'!P9 -> 2025-01-16 | E17: 6 | F17: =+'Spielbogen 8er'!N9 -> WB | G17: 178 | H17: 195 | I17: 194 | J17: 567 | K17: 189 | M17: =+'Anmeldegruppen Turniere'!T22&" - "&W17 -> 01. / 02. Feb. 25 - 2. Antritt Einzel | T17: =IF(S17>1,+S17/V17,"") ->  | U17: =IF(S17>1,SUM($R$12:S17)," ") ->  | V17: =IF(S17>0,6,0) -> 0 | W17: 2. Antritt Einzel
D18: =+'Spielbogen 8er'!P10 -> 2025-01-30 | E18: 7 | F18: =+'Spielbogen 8er'!N10 -> OT | G18: 152 | H18: 174 | I18: 182 | J18: 508 | K18: 169.3333333 | M18: =+'Hilfstabelle Mannschaften'!J14&" - "&W18 -> 12. / 13. Mär, 25 - Frühjahrs-Mix | T18: =IF(R18>1,+R18/V18,"") ->  | U18: =IF(R18>1,SUM($R$12:S18)," ") ->  | V18: =IF(R18,4,0) -> 0 | W18: Frühjahrs-Mix
D19: =+'Spielbogen 8er'!P11 -> 2025-02-13 | E19: 8 | F19: =+'Spielbogen 8er'!N11 -> WB | G19: 179 | H19: 201 | I19: 183 | J19: 563 | K19: 187.6666667 | M19: =+'Anmeldegruppen Turniere'!T29&" - "&W19 -> 12. / 13. Apr. 25 - 1. Antritt Doppel | T19: =IF(S19>1,+S19/V19,"") ->  | U19: =IF(S19>1,SUM($R$12:S19)," ") ->  | V19: =IF(S19>0,6,0) -> 0 | W19: 1. Antritt Doppel
D20: =+'Spielbogen 8er'!P12 -> 2025-02-27 | E20: 9 | F20: =+'Spielbogen 8er'!N12 -> OT | K20: =IF(G20>1,SUM(G20:I20)/3," ") ->  | M20: =+'Anmeldegruppen Turniere'!T30&" - "&W20 -> 10. / 11. Mai 25 - 2. Antritt Doppel | T20: =IF(S20>1,+S20/V20,"") ->  | U20: =IF(S20>1,SUM($R$12:S20)," ") ->  | V20: =IF(S20>0,6,0) -> 0 | W20: 2. Antritt Doppel
D21: =+'Spielbogen 8er'!P13 -> 2025-03-13 | E21: 10 | F21: =+'Spielbogen 8er'!N13 -> WB | G21: 188 | H21: 236 | I21: 186 | J21: 610 | K21: =IF(G21>1,SUM(G21:I21)/3," ") -> 203.3333333
D22: =+'Spielbogen 8er'!P14 -> 2025-03-27 | E22: 11 | F22: =+'Spielbogen 8er'!N14 -> OT | G22: 154 | H22: 201 | I22: 154 | J22: 509 | K22: 169.6666667 | R22: Ges. Pins | S22: Spiele | T22: Schnitt
D23: =+'Spielbogen 8er'!P15 -> 2025-04-10 | E23: 12 | F23: =+'Spielbogen 8er'!N15 -> WB | G23: 146 | H23: 148 | I23: 190 | J23: 484 | K23: 161.3333333 | O23: Schnitt HH-Cup | R23: =IF(R13>0,SUM(R13:R14),"") ->  | S23: =IF(R13>0,SUM(V13:V14),"") ->  | T23: =IF(R13>0,SUM(R13:R14)/SUM(V13:V14),"") -> 
D24: =+'Spielbogen 8er'!P16 -> 2025-04-24 | E24: 13 | F24: =+'Spielbogen 8er'!N16 -> OT | G24: 198 | H24: 179 | I24: 172 | J24: 549 | K24: 183 | O24: Schnitt Einzel | R24: =IF(S16>0,SUM(S16:S17),"") ->  | S24: =IF(S16>0,SUM(V16:V17),"") ->  | T24: =IF(S16>0,SUM(S16:S17)/SUM(V16:V17),"") -> 
D25: =+'Spielbogen 8er'!P17 -> 2025-05-08 | E25: 14 | F25: =+'Spielbogen 8er'!N17 -> WB | G25: 128 | H25: 198 | I25: 172 | J25: =IF(G25>1,+G25+H25+I25,"") -> 498 | K25: =IF(G25>1,SUM(G25:I25)/3," ") -> 166 | O25: Schnitt Doppel | R25: =IF(S19>0,SUM(S19:S20),"") ->  | S25: =IF(S19>0,SUM(V19:V20),"") ->  | T25: =IF(S19>0,SUM(S19:S20)/SUM(V19:V20),"") -> 

Sheet Frank N.
B1: Start
B2: Rangliste | G2: =+'Hilfstabelle Mannschaften'!H8&" "&+'Hilfstabelle Mannschaften'!I8 -> PUNKTSPIELSAISON 2024/2025
D3: =+'Hilfstabelle Spieler'!A8 -> Frank Nijholt
D5: Pass.-Nr.: | E5: =VLOOKUP(D3,'Hilfstabelle Spieler'!A6:B19,2,0) -> 24774 | G5: Pins | H5: Spiele | I5: Schnitt | J5: Ligaergebnisse | Q5: Sonstige Antritte:
D6: Ligaergebnisse: | G6: =IF(SUM(J12:J26)>1,SUM(J12:J26)," ") -> 2051 | H6: =COUNT(G12:I25) -> 15 | I6: =IF(SUM(G12:I25)>1,SUM(G6/H6)," ") -> 136.7333333 | J6: MAX. | K6: MIN. | L6: MAX. | N6: MIN. | O6: Schnitt | Q6: 4.er Serie: | T6: 6.er Serie:
D7: Sonstige Antritte: | G7: =IF(SUM(R12:S19)>1,SUM(R12:S20)," ") ->  | H7: =IF(SUM(R12:S19)>1,SUM(V12:V20)," ") ->  | I7: =IF(SUM(R12:S19)>1,G7/H7," ") ->  | J7: ERG. | K7: ERG. | L7: 3.ER | N7: 3.ER | O7: 3.ER | Q7: Höchstes 4.er Erg. : | S7: =MAX(R13:R18) -> 0 | T7: Höchstes 6.er Erg. :
D8: GESAMTSCHNITT: | G8: =IF(SUM(G6:G7)>1,SUM(G6:G7)," ") -> 2051 | H8: =IF(SUM(H6:H7)>1,SUM(H6:H7)," ") -> 15 | I8: =IF(SUM(G8)>1,SUM(G8/H8)," ") -> 136.7333333 | J8: =MAX(G12:I25) -> 180 | K8: =IF(SUM(G12:I25)<1," ",MIN(G12:I25)) -> 117 | L8: =MAX(J12:J25) -> 431 | N8: =IF(SUM(G12:J25)>1,MIN(J12:J25)," ") -> 398 | O8: =IF(J8>0,AVERAGE(J12:J30),"") -> 410.2 | Q8: Höchste Einzel-Erg. : | T8: Höchste Einzel-Erg. :
D10: Einzelspielergebnisse Liga | M10: Sonstige Antritte
D11: Datum | E11: Antr. | F11: Bahn | G11: 1. Spiel | H11: 2. Spiel | I11: 3. Spiel | J11: 3. er Serie | K11: 3. er Ø | M11: Datum - Turnier | R11: 4.er Erg. | S11: 6.er Erg. | T11: Schnitt | U11: Ges. Pins | V11: Spiele
D12: =+'Spielbogen 8er'!P4 -> 2024-09-12 | E12: 1 | F12: =+'Spielbogen 8er'!N4 -> OT | J12: =IF(G12>1,+G12+H12+I12,"") ->  | K12: =IF(G12>1,SUM(G12:I12)/3," ") ->  | M12: =+'Anmeldegruppen Turniere'!T8&" - "&W12 -> 07. / 08. Sep. 24 - Eröffnungs Doppel | T12: =IF(S12>1,+S12/V12,"") ->  | U12: =IF(S12>1,SUM($R$12:S12)," ") ->  | V12: =IF(S12>0,6,0) -> 0 | W12: Eröffnungs Doppel
D13: =+'Spielbogen 8er'!P5 -> 2024-09-26 | E13: 2 | F13: =+'Spielbogen 8er'!N5 -> OT | M13: =+'Anmeldegruppen Turniere'!T11&" - "&W13 -> 12. / 13. Nov. 24 - 1. Antritt HH-Cup | T13: =IF(R13>1,+R13/V13,"") ->  | U13: =IF(R13>1,SUM($R$12:S13)," ") ->  | V13: =IF(R13,4,0) -> 0 | W13: 1. Antritt HH-Cup
D14: =+'Spielbogen 8er'!P6 -> 2024-10-10 | E14: 3 | F14: =+'Spielbogen 8er'!N6 -> WB | M14: =+'Anmeldegruppen Turniere'!T12&" - "&W14 -> 26. / 27. Nov .24 - 2. Antritt HH-Cup | T14: =IF(R14>1,+R14/V14,"") ->  | U14: =IF(R14>1,SUM($R$12:S14)," ") ->  | V14: =IF(R14,4,0) -> 0 | W14: 2. Antritt HH-Cup
D15: =+'Spielbogen 8er'!P7 -> 2024-10-24 | E15: 4 | F15: =+'Spielbogen 8er'!N7 -> OT | G15: 131 | H15: 122 | I15: 147 | J15: 400 | K15: 133.3333333 | M15: =+'Hilfstabelle Mannschaften'!J12&" - "&W15 -> 16. / 17. Nov. 24 - Herbst-Mix | T15: =IF(R15>1,+R15/V15,"") ->  | U15: =IF(R15>1,SUM($R$12:S15)," ") ->  | V15: =IF(R15,4,0) -> 0 | W15: Herbst-Mix
D16: =+'Spielbogen 8er'!P8 -> 2024-11-07 | E16: 5 | F16: =+'Spielbogen 8er'!N8 -> WB | G16: 128 | H16: 125 | I16: 151 | J16: 404 | K16: 134.6666667 | M16: =+'Anmeldegruppen Turniere'!T21&" - "&W16 -> 18. / 19. Jan. 25 - 1. Antritt Einzel | T16: =IF(S16>1,+S16/V16,"") ->  | U16: =IF(S16>1,SUM($R$12:S16)," ") ->  | V16: =IF(S16>0,6,0) -> 0 | W16: 1. Antritt Einzel
D17: =+'Spielbogen 8er'!P9 -> 2025-01-16 | E17: 6 | F17: =+'Spielbogen 8er'!N9 -> WB | G17: 126 | H17: 135 | I17: 137 | J17: 398 | K17: 132.6666667 | M17: =+'Anmeldegruppen Turniere'!T22&" - "&W17 -> 01. / 02. Feb. 25 - 2. Antritt Einzel | T17: =IF(S17>1,+S17/V17,"") ->  | U17: =IF(S17>1,SUM($R$12:S17)," ") ->  | V17: =IF(S17>0,6,0) -> 0 | W17: 2. Antritt Einzel
D18: =+'Spielbogen 8er'!P10 -> 2025-01-30 | E18: 7 | F18: =+'Spielbogen 8er'!N10 -> OT | M18: =+'Hilfstabelle Mannschaften'!J14&" - "&W18 -> 12. / 13. Mär, 25 - Frühjahrs-Mix | T18: =IF(R18>1,+R18/V18,"") ->  | U18: =IF(R18>1,SUM($R$12:S18)," ") ->  | V18: =IF(R18,4,0) -> 0 | W18: Frühjahrs-Mix
D19: =+'Spielbogen 8er'!P11 -> 2025-02-13 | E19: 8 | F19: =+'Spielbogen 8er'!N11 -> WB | M19: =+'Anmeldegruppen Turniere'!T29&" - "&W19 -> 12. / 13. Apr. 25 - 1. Antritt Doppel | T19: =IF(S19>1,+S19/V19,"") ->  | U19: =IF(S19>1,SUM($R$12:S19)," ") ->  | V19: =IF(S19>0,6,0) -> 0 | W19: 1. Antritt Doppel
D20: =+'Spielbogen 8er'!P12 -> 2025-02-27 | E20: 9 | F20: =+'Spielbogen 8er'!N12 -> OT | K20: =IF(G20>1,SUM(G20:I20)/3," ") ->  | M20: =+'Anmeldegruppen Turniere'!T30&" - "&W20 -> 10. / 11. Mai 25 - 2. Antritt Doppel | T20: =IF(S20>1,+S20/V20,"") ->  | U20: =IF(S20>1,SUM($R$12:S20)," ") ->  | V20: =IF(S20>0,6,0) -> 0 | W20: 2. Antritt Doppel
D21: =+'Spielbogen 8er'!P13 -> 2025-03-13 | E21: 10 | F21: =+'Spielbogen 8er'!N13 -> WB | G21: 180 | H21: 134 | I21: 117 | J21: 431 | K21: =IF(G21>1,SUM(G21:I21)/3," ") -> 143.6666667
D22: =+'Spielbogen 8er'!P14 -> 2025-03-27 | E22: 11 | F22: =+'Spielbogen 8er'!N14 -> OT | R22: Ges. Pins | S22: Spiele | T22: Schnitt
D23: =+'Spielbogen 8er'!P15 -> 2025-04-10 | E23: 12 | F23: =+'Spielbogen 8er'!N15 -> WB | G23: 122 | H23: 141 | I23: 155 | J23: 418 | K23: 139.3333333 | O23: Schnitt HH-Cup | R23: =IF(R13>0,SUM(R13:R14),"") ->  | S23: =IF(R13>0,SUM(V13:V14),"") ->  | T23: =IF(R13>0,SUM(R13:R14)/SUM(V13:V14),"") -> 
D24: =+'Spielbogen 8er'!P16 -> 2025-04-24 | E24: 13 | F24: =+'Spielbogen 8er'!N16 -> OT | O24: Schnitt Einzel | R24: =IF(S16>0,SUM(S16:S17),"") ->  | S24: =IF(S16>0,SUM(V16:V17),"") ->  | T24: =IF(S16>0,SUM(S16:S17)/SUM(V16:V17),"") -> 
D25: =+'Spielbogen 8er'!P17 -> 2025-05-08 | E25: 14 | F25: =+'Spielbogen 8er'!N17 -> WB | J25: =IF(G25>1,+G25+H25+I25,"") ->  | K25: =IF(G25>1,SUM(G25:I25)/3," ") ->  | O25: Schnitt Doppel | R25: =IF(S19>0,SUM(S19:S20),"") ->  | S25: =IF(S19>0,SUM(V19:V20),"") ->  | T25: =IF(S19>0,SUM(S19:S20)/SUM(V19:V20),"") -> 

Sheet Jörg F.
B1: Start
B2: Rangliste | G2: =+'Hilfstabelle Mannschaften'!H8&" "&+'Hilfstabelle Mannschaften'!I8 -> PUNKTSPIELSAISON 2024/2025
D3: =+'Hilfstabelle Spieler'!A10 -> Jörg Frahm
D5: Pass.-Nr.: | E5: =VLOOKUP(D3,'Hilfstabelle Spieler'!A6:B19,2,0) -> 19221 | G5: Pins | H5: Spiele | I5: Schnitt | J5: Ligaergebnisse | Q5: Sonstige Antritte:
D6: Ligaergebnisse: | G6: =IF(SUM(J12:J31)>1,SUM(J12:J31)," ") -> 2508 | H6: =COUNT(G12:I31) -> 15 | I6: =IF(SUM(G12:I31)>1,SUM(G6/H6)," ") -> 167.2 | J6: MAX. | K6: MIN. | L6: MAX. | N6: MIN. | O6: Schnitt | Q6: 4.er Serie: | T6: 6.er Serie:
D7: Sonstige Antritte: | G7: =IF(SUM(R12:S19)>1,SUM(R12:S20)," ") -> 2792 | H7: =IF(SUM(R12:S19)>1,SUM(V12:V20)," ") -> 16 | I7: =IF(SUM(R12:S19)>1,G7/H7," ") -> 174.5 | J7: ERG. | K7: ERG. | L7: 3.ER | N7: 3.ER | O7: 3.ER | Q7: Höchstes 4.er Erg. : | S7: =MAX(R13:R18) -> 742 | T7: Höchstes 6.er Erg. : | V7: =MAX(S12:S20) -> 1059
D8: GESAMTSCHNITT: | G8: =IF(SUM(G6:G7)>1,SUM(G6:G7)," ") -> 5300 | H8: =IF(SUM(H6:H7)>1,SUM(H6:H7)," ") -> 31 | I8: =IF(SUM(G8)>1,SUM(G8/H8)," ") -> 170.9677419 | J8: =MAX(G12:I40) -> 221 | K8: =IF(SUM(G12:I40)<1," ",MIN(G12:I40)) -> 138 | L8: =MAX(J12:J40) -> 563 | N8: =IF(SUM(G12:J40)>1,MIN(J12:J40)," ") -> 474 | O8: =IF(J8>0,AVERAGE(J12:J30),"") -> 501.6 | Q8: Höchste Einzel-Erg. : | S8: 212 | T8: Höchste Einzel-Erg. : | V8: 198
D10: Einzelspielergebnisse Liga | M10: Sonstige Antritte
D11: Datum | E11: Antr. | F11: Bahn | G11: 1. Spiel | H11: 2. Spiel | I11: 3. Spiel | J11: 3. er Serie | K11: 3. er Ø | M11: Datum - Turnier | R11: 4.er Erg. | S11: 6.er Erg. | T11: Schnitt | U11: Ges. Pins | V11: Spiele
D12: =+'Spielbogen 8er'!P4 -> 2024-09-12 | E12: 1 | F12: =+'Spielbogen 8er'!N4 -> OT | J12: =IF(G12>1,+G12+H12+I12,"") ->  | K12: =IF(G12>1,SUM(G12:I12)/3," ") ->  | M12: =+'Anmeldegruppen Turniere'!T8&" - "&W12 -> 07. / 08. Sep. 24 - Eröffnungs Doppel | T12: =IF(S12>1,+S12/V12,"") ->  | U12: =IF(S12>1,SUM($R$12:S12)," ") ->  | V12: =IF(S12>0,6,0) -> 0 | W12: Eröffnungs Doppel
D13: =+'Spielbogen 8er'!P5 -> 2024-09-26 | E13: 2 | F13: =+'Spielbogen 8er'!N5 -> OT | M13: =+'Anmeldegruppen Turniere'!T11&" - "&W13 -> 12. / 13. Nov. 24 - 1. Antritt HH-Cup | T13: =IF(R13>1,+R13/V13,"") ->  | U13: =IF(R13>1,SUM($R$12:S13)," ") ->  | V13: =IF(R13,4,0) -> 0 | W13: 1. Antritt HH-Cup
D14: =+'Spielbogen 8er'!P6 -> 2024-10-10 | E14: 3 | F14: =+'Spielbogen 8er'!N6 -> WB | M14: =+'Anmeldegruppen Turniere'!T12&" - "&W14 -> 26. / 27. Nov .24 - 2. Antritt HH-Cup | T14: =IF(R14>1,+R14/V14,"") ->  | U14: =IF(R14>1,SUM($R$12:S14)," ") ->  | V14: =IF(R14,4,0) -> 0 | W14: 2. Antritt HH-Cup
D15: =+'Spielbogen 8er'!P7 -> 2024-10-24 | E15: 4 | F15: =+'Spielbogen 8er'!N7 -> OT | M15: =+'Hilfstabelle Mannschaften'!J12&" - "&W15 -> 16. / 17. Nov. 24 - Herbst-Mix | T15: =IF(R15>1,+R15/V15,"") ->  | U15: =IF(R15>1,SUM($R$12:S15)," ") ->  | V15: =IF(R15,4,0) -> 0 | W15: Herbst-Mix
D16: =+'Spielbogen 8er'!P8 -> 2024-11-07 | E16: 5 | F16: =+'Spielbogen 8er'!N8 -> WB | M16: =+'Anmeldegruppen Turniere'!T21&" - "&W16 -> 18. / 19. Jan. 25 - 1. Antritt Einzel | T16: =IF(S16>1,+S16/V16,"") ->  | U16: =IF(S16>1,SUM($R$12:S16)," ") ->  | V16: =IF(S16>0,6,0) -> 0 | W16: 1. Antritt Einzel
D17: =+'Spielbogen 8er'!P9 -> 2025-01-16 | E17: 6 | F17: =+'Spielbogen 8er'!N9 -> WB | M17: =+'Anmeldegruppen Turniere'!T22&" - "&W17 -> 01. / 02. Feb. 25 - 2. Antritt Einzel | T17: =IF(S17>1,+S17/V17,"") ->  | U17: =IF(S17>1,SUM($R$12:S17)," ") ->  | V17: =IF(S17>0,6,0) -> 0 | W17: 2. Antritt Einzel
D18: =+'Spielbogen 8er'!P10 -> 2025-01-30 | E18: 7 | F18: =+'Spielbogen 8er'!N10 -> OT | M18: =+'Hilfstabelle Mannschaften'!J14&" - "&W18 -> 12. / 13. Mär, 25 - Frühjahrs-Mix | R18: 742 | T18: =IF(R18>1,+R18/V18,"") -> 185.5 | U18: =IF(R18>1,SUM($R$12:S18)," ") -> 742 | V18: =IF(R18,4,0) -> 4 | W18: Frühjahrs-Mix
D19: =+'Spielbogen 8er'!P11 -> 2025-02-13 | E19: 8 | F19: =+'Spielbogen 8er'!N11 -> WB | M19: =+'Anmeldegruppen Turniere'!T29&" - "&W19 -> 12. / 13. Apr. 25 - 1. Antritt Doppel | S19: 1059 | T19: =IF(S19>1,+S19/V19,"") -> 176.5 | U19: =IF(S19>1,SUM($R$12:S19)," ") -> 1801 | V19: =IF(S19>0,6,0) -> 6 | W19: 1. Antritt Doppel
D20: =+'Spielbogen 8er'!P12 -> 2025-02-27 | E20: 9 | F20: =+'Spielbogen 8er'!N12 -> OT | G20: 151 | H20: 185 | I20: 138 | J20: 474 | K20: =IF(G20>1,SUM(G20:I20)/3," ") -> 158 | M20: =+'Anmeldegruppen Turniere'!T30&" - "&W20 -> 10. / 11. Mai 25 - 2. Antritt Doppel | S20: 991 | T20: =IF(S20>1,+S20/V20,"") -> 165.1666667 | U20: =IF(S20>1,SUM($R$12:S20)," ") -> 2792 | V20: =IF(S20>0,6,0) -> 6 | W20: 2. Antritt Doppel
D21: =+'Spielbogen 8er'!P13 -> 2025-03-13 | E21: 10 | F21: =+'Spielbogen 8er'!N13 -> WB | G21: 158 | H21: 221 | I21: 184 | J21: 563 | K21: =IF(G21>1,SUM(G21:I21)/3," ") -> 187.6666667
D22: =+'Spielbogen 8er'!P14 -> 2025-03-27 | E22: 11 | F22: =+'Spielbogen 8er'!N14 -> OT | G22: 147 | H22: 189 | I22: 145 | J22: 481 | K22: 160.3333333 | R22: Ges. Pins | S22: Spiele | T22: Schnitt
D23: =+'Spielbogen 8er'!P15 -> 2025-04-10 | E23: 12 | F23: =+'Spielbogen 8er'!N15 -> WB | G23: 178 | H23: 156 | I23: 164 | J23: 498 | K23: 166 | O23: Schnitt HH-Cup | R23: =IF(R13>0,SUM(R13:R14),"") ->  | S23: =IF(R13>0,SUM(V13:V14),"") ->  | T23: =IF(R13>0,SUM(R13:R14)/SUM(V13:V14),"") -> 
D24: =+'Spielbogen 8er'!P16 -> 2025-04-24 | E24: 13 | F24: =+'Spielbogen 8er'!N16 -> OT | G24: 153 | H24: 180 | I24: 159 | J24: 492 | K24: 164 | O24: Schnitt Einzel | R24: =IF(S16>0,SUM(S16:S17),"") ->  | S24: =IF(S16>0,SUM(V16:V17),"") ->  | T24: =IF(S16>0,SUM(S16:S17)/SUM(V16:V17),"") -> 
D25: =+'Spielbogen 8er'!P17 -> 2025-05-08 | E25: 14 | F25: =+'Spielbogen 8er'!N17 -> WB | J25: =IF(G25>1,+G25+H25+I25,"") ->  | K25: =IF(G25>1,SUM(G25:I25)/3," ") ->  | O25: Schnitt Doppel | R25: =IF(S19>0,SUM(S19:S20),"") -> 2050 | S25: =IF(S19>0,SUM(V19:V20),"") -> 12 | T25: =IF(S19>0,SUM(S19:S20)/SUM(V19:V20),"") -> 170.8333333
D26: =+"Ausgeholfen in der 1. Mannschaft Anzahl Spiele:"&" "&+COUNT(G27:I30) -> Ausgeholfen in der 1. Mannschaft Anzahl Spiele: 0
J27: =IF(G27>1,+G27+H27+I27,"") ->  | K27: =IF(G27>1,SUM(G27:I27)/3," ") -> 
J28: =IF(G28>1,+G28+H28+I28,"") ->  | K28: =IF(G28>1,SUM(G28:I28)/3," ") -> 
J29: =IF(G29>1,+G29+H29+I29,"") ->  | K29: =IF(G29>1,SUM(G29:I29)/3," ") -> 
J30: =IF(G30>1,+G30+H30+I30,"") ->  | K30: =IF(G30>1,SUM(G30:I30)/3," ") -> 
J31: =IF(G31>1,+G31+H31+I31,"") ->  | K31: =IF(G31>1,SUM(G31:I31)/3," ") -> 

Sheet Matthias N.
B1: Start
B2: Rangliste | G2: =+'Hilfstabelle Mannschaften'!H8&" "&+'Hilfstabelle Mannschaften'!I8 -> PUNKTSPIELSAISON 2024/2025
D3: =+'Hilfstabelle Spieler'!A13 -> Matthias Nolte
D5: Pass.-Nr.: | E5: =VLOOKUP(D3,'Hilfstabelle Spieler'!A6:B19,2,0) -> 20137 | G5: Pins | H5: Spiele | I5: Schnitt | J5: Ligaergebnisse | Q5: Sonstige Antritte:
D6: Ligaergebnisse: | G6: =IF(SUM(J12:J31)>1,SUM(J12:J31)," ") -> 2000 | H6: =COUNT(G12:I31) -> 15 | I6: =IF(SUM(G12:I31)>1,SUM(G6/H6)," ") -> 133.3333333 | J6: MAX. | K6: MIN. | L6: MAX. | N6: MIN. | O6: Schnitt | Q6: 4.er Serie: | T6: 6.er Serie:
D7: Sonstige Antritte: | G7: =IF(SUM(R12:S19)>1,SUM(R12:S20)," ") ->  | H7: =IF(SUM(R12:S19)>1,SUM(V12:V20)," ") ->  | I7: =IF(SUM(R12:S19)>1,G7/H7," ") ->  | J7: ERG. | K7: ERG. | L7: 3.ER | N7: 3.ER | O7: 3.ER | Q7: Höchstes 4.er Erg. : | S7: =MAX(R13:R18) -> 0 | T7: Höchstes 6.er Erg. :
D8: GESAMTSCHNITT: | G8: =IF(SUM(G6:G7)>1,SUM(G6:G7)," ") -> 2000 | H8: =IF(SUM(H6:H7)>1,SUM(H6:H7)," ") -> 15 | I8: =IF(SUM(G8)>1,SUM(G8/H8)," ") -> 133.3333333 | J8: =MAX(G12:I40) -> 185 | K8: =IF(SUM(G12:I40)<1," ",MIN(G12:I40)) -> 106 | L8: =MAX(J12:J40) -> 491 | N8: =IF(SUM(G12:J40)>1,MIN(J12:J40)," ") -> 350 | O8: =IF(J8>0,AVERAGE(J12:J30),"") -> 400 | Q8: Höchste Einzel-Erg. : | T8: Höchste Einzel-Erg. :
D10: Einzelspielergebnisse Liga | M10: Sonstige Antritte
D11: Datum | E11: Antr. | F11: Bahn | G11: 1. Spiel | H11: 2. Spiel | I11: 3. Spiel | J11: 3. er Serie | K11: 3. er Ø | M11: Datum - Turnier | R11: 4.er Erg. | S11: 6.er Erg. | T11: Schnitt | U11: Ges. Pins | V11: Spiele
D12: =+'Spielbogen 8er'!P4 -> 2024-09-12 | E12: 1 | F12: =+'Spielbogen 8er'!N4 -> OT | J12: =IF(G12>1,+G12+H12+I12,"") ->  | K12: =IF(G12>1,SUM(G12:I12)/3," ") ->  | M12: =+'Anmeldegruppen Turniere'!T8&" - "&W12 -> 07. / 08. Sep. 24 - Eröffnungs Doppel | T12: =IF(S12>1,+S12/V12,"") ->  | U12: =IF(S12>1,SUM($R$12:S12)," ") ->  | V12: =IF(S12>0,6,0) -> 0 | W12: Eröffnungs Doppel
D13: =+'Spielbogen 8er'!P5 -> 2024-09-26 | E13: 2 | F13: =+'Spielbogen 8er'!N5 -> OT | G13: 156 | H13: 141 | I13: 109 | J13: 406 | K13: 135.3333333 | M13: =+'Anmeldegruppen Turniere'!T11&" - "&W13 -> 12. / 13. Nov. 24 - 1. Antritt HH-Cup | T13: =IF(R13>1,+R13/V13,"") ->  | U13: =IF(R13>1,SUM($R$12:S13)," ") ->  | V13: =IF(R13,4,0) -> 0 | W13: 1. Antritt HH-Cup
D14: =+'Spielbogen 8er'!P6 -> 2024-10-10 | E14: 3 | F14: =+'Spielbogen 8er'!N6 -> WB | M14: =+'Anmeldegruppen Turniere'!T12&" - "&W14 -> 26. / 27. Nov .24 - 2. Antritt HH-Cup | T14: =IF(R14>1,+R14/V14,"") ->  | U14: =IF(R14>1,SUM($R$12:S14)," ") ->  | V14: =IF(R14,4,0) -> 0 | W14: 2. Antritt HH-Cup
D15: =+'Spielbogen 8er'!P7 -> 2024-10-24 | E15: 4 | F15: =+'Spielbogen 8er'!N7 -> OT | G15: 106 | H15: 136 | I15: 123 | J15: 365 | K15: 121.6666667 | M15: =+'Hilfstabelle Mannschaften'!J12&" - "&W15 -> 16. / 17. Nov. 24 - Herbst-Mix | T15: =IF(R15>1,+R15/V15,"") ->  | U15: =IF(R15>1,SUM($R$12:S15)," ") ->  | V15: =IF(R15,4,0) -> 0 | W15: Herbst-Mix
D16: =+'Spielbogen 8er'!P8 -> 2024-11-07 | E16: 5 | F16: =+'Spielbogen 8er'!N8 -> WB | M16: =+'Anmeldegruppen Turniere'!T21&" - "&W16 -> 18. / 19. Jan. 25 - 1. Antritt Einzel | T16: =IF(S16>1,+S16/V16,"") ->  | U16: =IF(S16>1,SUM($R$12:S16)," ") ->  | V16: =IF(S16>0,6,0) -> 0 | W16: 1. Antritt Einzel
D17: =+'Spielbogen 8er'!P9 -> 2025-01-16 | E17: 6 | F17: =+'Spielbogen 8er'!N9 -> WB | M17: =+'Anmeldegruppen Turniere'!T22&" - "&W17 -> 01. / 02. Feb. 25 - 2. Antritt Einzel | T17: =IF(S17>1,+S17/V17,"") ->  | U17: =IF(S17>1,SUM($R$12:S17)," ") ->  | V17: =IF(S17>0,6,0) -> 0 | W17: 2. Antritt Einzel
D18: =+'Spielbogen 8er'!P10 -> 2025-01-30 | E18: 7 | F18: =+'Spielbogen 8er'!N10 -> OT | G18: 126 | H18: 109 | I18: 115 | J18: 350 | K18: 116.6666667 | M18: =+'Hilfstabelle Mannschaften'!J14&" - "&W18 -> 12. / 13. Mär, 25 - Frühjahrs-Mix | T18: =IF(R18>1,+R18/V18,"") ->  | U18: =IF(R18>1,SUM($R$12:S18)," ") ->  | V18: =IF(R18,4,0) -> 0 | W18: Frühjahrs-Mix
D19: =+'Spielbogen 8er'!P11 -> 2025-02-13 | E19: 8 | F19: =+'Spielbogen 8er'!N11 -> WB | M19: =+'Anmeldegruppen Turniere'!T29&" - "&W19 -> 12. / 13. Apr. 25 - 1. Antritt Doppel | T19: =IF(S19>1,+S19/V19,"") ->  | U19: =IF(S19>1,SUM($R$12:S19)," ") ->  | V19: =IF(S19>0,6,0) -> 0 | W19: 1. Antritt Doppel
D20: =+'Spielbogen 8er'!P12 -> 2025-02-27 | E20: 9 | F20: =+'Spielbogen 8er'!N12 -> OT | K20: =IF(G20>1,SUM(G20:I20)/3," ") ->  | M20: =+'Anmeldegruppen Turniere'!T30&" - "&W20 -> 10. / 11. Mai 25 - 2. Antritt Doppel | T20: =IF(S20>1,+S20/V20,"") ->  | U20: =IF(S20>1,SUM($R$12:S20)," ") ->  | V20: =IF(S20>0,6,0) -> 0 | W20: 2. Antritt Doppel
D21: =+'Spielbogen 8er'!P13 -> 2025-03-13 | E21: 10 | F21: =+'Spielbogen 8er'!N13 -> WB | K21: =IF(G21>1,SUM(G21:I21)/3," ") -> 
D22: =+'Spielbogen 8er'!P14 -> 2025-03-27 | E22: 11 | F22: =+'Spielbogen 8er'!N14 -> OT | G22: 185 | H22: 152 | I22: 154 | J22: 491 | K22: 163.6666667 | R22: Ges. Pins | S22: Spiele | T22: Schnitt
D23: =+'Spielbogen 8er'!P15 -> 2025-04-10 | E23: 12 | F23: =+'Spielbogen 8er'!N15 -> WB | O23: Schnitt HH-Cup | R23: =IF(R13>0,SUM(R13:R14),"") ->  | S23: =IF(R13>0,SUM(V13:V14),"") ->  | T23: =IF(R13>0,SUM(R13:R14)/SUM(V13:V14),"") -> 
D24: =+'Spielbogen 8er'!P16 -> 2025-04-24 | E24: 13 | F24: =+'Spielbogen 8er'!N16 -> OT | G24: 151 | H24: 108 | I24: 129 | J24: 388 | K24: 129.3333333 | O24: Schnitt Einzel | R24: =IF(S16>0,SUM(S16:S17),"") ->  | S24: =IF(S16>0,SUM(V16:V17),"") ->  | T24: =IF(S16>0,SUM(S16:S17)/SUM(V16:V17),"") -> 
D25: =+'Spielbogen 8er'!P17 -> 2025-05-08 | E25: 14 | F25: =+'Spielbogen 8er'!N17 -> WB | J25: =IF(G25>1,+G25+H25+I25,"") ->  | K25: =IF(G25>1,SUM(G25:I25)/3," ") ->  | O25: Schnitt Doppel | R25: =IF(S19>0,SUM(S19:S20),"") ->  | S25: =IF(S19>0,SUM(V19:V20),"") ->  | T25: =IF(S19>0,SUM(S19:S20)/SUM(V19:V20),"") -> 
D26: =+"Ausgeholfen in der 2 Mannschaft Anzahl Spiele:"&" "&+COUNT(G27:I30) -> Ausgeholfen in der 2 Mannschaft Anzahl Spiele: 0
J27: =IF(G27>1,+G27+H27+I27,"") ->  | K27: =IF(G27>1,SUM(G27:I27)/3," ") -> 
J28: =IF(G28>1,+G28+H28+I28,"") ->  | K28: =IF(G28>1,SUM(G28:I28)/3," ") -> 
J29: =IF(G29>1,+G29+H29+I29,"") ->  | K29: =IF(G29>1,SUM(G29:I29)/3," ") -> 
J30: =IF(G30>1,+G30+H30+I30,"") ->  | K30: =IF(G30>1,SUM(G30:I30)/3," ") -> 
J31: =IF(G31>1,+G31+H31+I31,"") ->  | K31: =IF(G31>1,SUM(G31:I31)/3," ") -> 

Sheet Deniz H.
B1: Start
B2: Rangliste | G2: =+'Hilfstabelle Mannschaften'!H8&" "&+'Hilfstabelle Mannschaften'!I8 -> PUNKTSPIELSAISON 2024/2025
D3: =+'Hilfstabelle Spieler'!A7 -> Deniz Hagelstein
D5: Pass.-Nr.: | E5: =VLOOKUP(D3,'Hilfstabelle Spieler'!A6:B19,2,0) -> 24775 | G5: Pins | H5: Spiele | I5: Schnitt | J5: Ligaergebnisse | Q5: Sonstige Antritte:
D6: Ligaergebnisse: | G6: =IF(SUM(J12:J31)>1,SUM(J12:J31)," ") -> 2818 | H6: =COUNT(G12:I31) -> 21 | I6: =IF(SUM(G12:I31)>1,SUM(G6/H6)," ") -> 134.1904762 | J6: MAX. | K6: MIN. | L6: MAX. | N6: MIN. | O6: Schnitt | Q6: 4.er Serie: | T6: 6.er Serie
D7: Sonstige Antritte: | G7: =IF(SUM(R12:S19)>1,SUM(R12:S20)," ") ->  | H7: =IF(SUM(R12:S19)>1,SUM(V12:V20)," ") ->  | I7: =IF(SUM(R12:S19)>1,G7/H7," ") ->  | J7: ERG. | K7: ERG. | L7: 3.ER | N7: 3.ER | O7: 3.ER | Q7: Höchstes 4.er Erg. : | S7: =MAX(R13:R18) -> 0 | T7: Höchstes 6.er Erg. :
D8: GESAMTSCHNITT: | G8: =IF(SUM(G6:G7)>1,SUM(G6:G7)," ") -> 2818 | H8: =IF(SUM(H6:H7)>1,SUM(H6:H7)," ") -> 21 | I8: =IF(SUM(G8)>1,SUM(G8/H8)," ") -> 134.1904762 | J8: =MAX(G12:I40) -> 179 | K8: =IF(SUM(G12:I40)<1," ",MIN(G12:I40)) -> 98 | L8: =MAX(J12:J40) -> 490 | N8: =IF(SUM(G12:J40)>1,MIN(J12:J40)," ") -> 350 | O8: =IF(J8>0,AVERAGE(J12:J30),"") -> 402.5714286 | Q8: Höchste Einzel-Erg. : | T8: Höchste Einzel-Erg. :
D10: Einzelspielergebnisse Liga | M10: Sonstige Antritte
D11: Datum | E11: Antr. | F11: Bahn | G11: 1. Spiel | H11: 2. Spiel | I11: 3. Spiel | J11: 3. er Serie | K11: 3. er Ø | M11: Datum - Turnier | R11: 4.er Erg. | S11: 6.er Erg. | T11: Schnitt | U11: Ges. Pins | V11: Spiele
D12: =+'Spielbogen 8er'!P4 -> 2024-09-12 | E12: 1 | F12: =+'Spielbogen 8er'!N4 -> OT | J12: =IF(G12>1,+G12+H12+I12,"") ->  | K12: =IF(G12>1,SUM(G12:I12)/3," ") ->  | M12: =+'Anmeldegruppen Turniere'!T8&" - "&W12 -> 07. / 08. Sep. 24 - Eröffnungs Doppel | T12: =IF(S12>1,+S12/V12,"") ->  | U12: =IF(S12>1,SUM($R$12:S12)," ") ->  | V12: =IF(S12>0,6,0) -> 0 | W12: Eröffnungs Doppel
D13: =+'Spielbogen 8er'!P5 -> 2024-09-26 | E13: 2 | F13: =+'Spielbogen 8er'!N5 -> OT | G13: 98 | H13: 128 | I13: 149 | J13: 375 | K13: 125 | M13: =+'Anmeldegruppen Turniere'!T11&" - "&W13 -> 12. / 13. Nov. 24 - | T13: =IF(R13>1,+R13/V13,"") ->  | U13: =IF(R13>1,SUM($R$12:S13)," ") ->  | V13: =IF(R13,4,0) -> 0
D14: =+'Spielbogen 8er'!P6 -> 2024-10-10 | E14: 3 | F14: =+'Spielbogen 8er'!N6 -> WB | M14: =+'Anmeldegruppen Turniere'!T12&" - "&W14 -> 26. / 27. Nov .24 - 2. Antritt HH-Cup | T14: =IF(R14>1,+R14/V14,"") ->  | U14: =IF(R14>1,SUM($R$12:S14)," ") ->  | V14: =IF(R14,4,0) -> 0 | W14: 2. Antritt HH-Cup
D15: =+'Spielbogen 8er'!P7 -> 2024-10-24 | E15: 4 | F15: =+'Spielbogen 8er'!N7 -> OT | G15: 147 | H15: 175 | I15: 168 | J15: 490 | K15: 163.3333333 | M15: =+'Hilfstabelle Mannschaften'!J12&" - "&W15 -> 16. / 17. Nov. 24 - Herbst-Mix | T15: =IF(R15>1,+R15/V15,"") ->  | U15: =IF(R15>1,SUM($R$12:S15)," ") ->  | V15: =IF(R15,4,0) -> 0 | W15: Herbst-Mix
D16: =+'Spielbogen 8er'!P8 -> 2024-11-07 | E16: 5 | F16: =+'Spielbogen 8er'!N8 -> WB | M16: =+'Anmeldegruppen Turniere'!T21&" - "&W16 -> 18. / 19. Jan. 25 - 1. Antritt Einzel | T16: =IF(S16>1,+S16/V16,"") ->  | U16: =IF(S16>1,SUM($R$12:S16)," ") ->  | V16: =IF(S16>0,6,0) -> 0 | W16: 1. Antritt Einzel
D17: =+'Spielbogen 8er'!P9 -> 2025-01-16 | E17: 6 | F17: =+'Spielbogen 8er'!N9 -> WB | M17: =+'Anmeldegruppen Turniere'!T22&" - "&W17 -> 01. / 02. Feb. 25 - 2. Antritt Einzel | T17: =IF(S17>1,+S17/V17,"") ->  | U17: =IF(S17>1,SUM($R$12:S17)," ") ->  | V17: =IF(S17>0,6,0) -> 0 | W17: 2. Antritt Einzel
D18: =+'Spielbogen 8er'!P10 -> 2025-01-30 | E18: 7 | F18: =+'Spielbogen 8er'!N10 -> OT | G18: 113 | H18: 135 | I18: 102 | J18: 350 | K18: 116.6666667 | M18: =+'Hilfstabelle Mannschaften'!J14&" - "&W18 -> 12. / 13. Mär, 25 - Frühjahrs-Mix | T18: =IF(R18>1,+R18/V18,"") ->  | U18: =IF(R18>1,SUM($R$12:S18)," ") ->  | V18: =IF(R18,4,0) -> 0 | W18: Frühjahrs-Mix
D19: =+'Spielbogen 8er'!P11 -> 2025-02-13 | E19: 8 | F19: =+'Spielbogen 8er'!N11 -> WB | G19: 145 | H19: 113 | I19: 107 | J19: 365 | K19: 121.6666667 | M19: =+'Anmeldegruppen Turniere'!T29&" - "&W19 -> 12. / 13. Apr. 25 - 1. Antritt Doppel | T19: =IF(S19>1,+S19/V19,"") ->  | U19: =IF(S19>1,SUM($R$12:S19)," ") ->  | V19: =IF(S19>0,6,0) -> 0 | W19: 1. Antritt Doppel
D20: =+'Spielbogen 8er'!P12 -> 2025-02-27 | E20: 9 | F20: =+'Spielbogen 8er'!N12 -> OT | K20: =IF(G20>1,SUM(G20:I20)/3," ") ->  | M20: =+'Anmeldegruppen Turniere'!T30&" - "&W20 -> 10. / 11. Mai 25 - 2. Antritt Doppel | T20: =IF(S20>1,+S20/V20,"") ->  | U20: =IF(S20>1,SUM($R$12:S20)," ") ->  | V20: =IF(S20>0,6,0) -> 0 | W20: 2. Antritt Doppel
D21: =+'Spielbogen 8er'!P13 -> 2025-03-13 | E21: 10 | F21: =+'Spielbogen 8er'!N13 -> WB | K21: =IF(G21>1,SUM(G21:I21)/3," ") -> 
D22: =+'Spielbogen 8er'!P14 -> 2025-03-27 | E22: 11 | F22: =+'Spielbogen 8er'!N14 -> OT | G22: 140 | H22: 108 | I22: 138 | J22: 386 | K22: 128.6666667 | R22: Ges. Pins | S22: Spiele | T22: Schnitt
D23: =+'Spielbogen 8er'!P15 -> 2025-04-10 | E23: 12 | F23: =+'Spielbogen 8er'!N15 -> WB | G23: 136 | H23: 130 | I23: 179 | J23: 445 | K23: 148.3333333 | O23: Schnitt HH-Cup | R23: =IF(R13>0,SUM(R13:R14),"") ->  | S23: =IF(R13>0,SUM(V13:V14),"") ->  | T23: =IF(R13>0,SUM(R13:R14)/SUM(V13:V14),"") -> 
D24: =+'Spielbogen 8er'!P16 -> 2025-04-24 | E24: 13 | F24: =+'Spielbogen 8er'!N16 -> OT | O24: Schnitt Einzel | R24: =IF(S16>0,SUM(S16:S17),"") ->  | S24: =IF(S16>0,SUM(V16:V17),"") ->  | T24: =IF(S16>0,SUM(S16:S17)/SUM(V16:V17),"") -> 
D25: =+'Spielbogen 8er'!P17 -> 2025-05-08 | E25: 14 | F25: =+'Spielbogen 8er'!N17 -> WB | G25: 154 | H25: 126 | I25: 127 | J25: =IF(G25>1,+G25+H25+I25,"") -> 407 | K25: =IF(G25>1,SUM(G25:I25)/3," ") -> 135.6666667 | O25: Schnitt Doppel | R25: =IF(S19>0,SUM(S19:S20),"") ->  | S25: =IF(S19>0,SUM(V19:V20),"") ->  | T25: =IF(S19>0,SUM(S19:S20)/SUM(V19:V20),"") -> 
D26: =+"Ausgeholfen in der 2 Mannschaft Anzahl Spiele:"&" "&+COUNT(G27:I30) -> Ausgeholfen in der 2 Mannschaft Anzahl Spiele: 0
J27: =IF(G27>1,+G27+H27+I27,"") ->  | K27: =IF(G27>1,SUM(G27:I27)/3," ") -> 
J28: =IF(G28>1,+G28+H28+I28,"") ->  | K28: =IF(G28>1,SUM(G28:I28)/3," ") -> 
J29: =IF(G29>1,+G29+H29+I29,"") ->  | K29: =IF(G29>1,SUM(G29:I29)/3," ") -> 
J30: =IF(G30>1,+G30+H30+I30,"") ->  | K30: =IF(G30>1,SUM(G30:I30)/3," ") -> 
J31: =IF(G31>1,+G31+H31+I31,"") ->  | K31: =IF(G31>1,SUM(G31:I31)/3," ") -> 

Sheet Hilfstabelle (hidden)
A3: Spieler, bei neue Saison neue Formel bei Bahn | F3: Für Spielberichte | I3: Anhang zum Spielbericht | U3: Mitglieder | V3: Passnummer
A4: Antritt | B4: Datum | C4: Bahn | D4: Jahr | F4: Datum | G4: Klasse | I4: Antritt | J4: Datum | K4: Bahn | L4: Ausrichter | O4: Strafgeldliste | R4: Spielereinteilung | U4: Annegret Schmidt | V4: 19222
A5: 1. | B5: =+'Spielbogen 7er'!P4 -> 2024-09-12 | C5: =+B38 -> Othmarschen | D5: =+'Hilfstabelle Mannschaften'!I10 -> 2024/2025 | F5: =+B5 -> 2024-09-12 | G5: =+'Hilfstabelle Mannschaften'!I4 -> B4 | I5: 1 | J5: =+B5 -> 2024-09-12 | K5: =+C5 -> Othmarschen | L5: =+'Spielbogen 7er'!D10 -> Panasonic 1 | M5: =+'Spielbogen 7er'!S4 -> PAN 1 | O5: 1. Antritt | P5: =+J5 -> 2024-09-12 | R5: =+B5 -> 2024-09-12 | S5: =IF(K5="Wandsbek","WB","OT") -> OT | U5: Deniz Hagelstein | V5: 24775
A6: 2. | B6: 2024-09-26 | C6: =+B39 -> Othmarschen | F6: =+B6 -> 2024-09-26 | I6: 2 | J6: =+B6 -> 2024-09-26 | K6: Othmarschen | L6: =+'Spielbogen 7er'!D11 -> Dataport 2 | M6: =+'Spielbogen 7er'!S5 -> DAT 2 | O6: 2. Antritt | P6: =+J6 -> 2024-09-26 | R6: 2024-09-26 | S6: =IF(K6="Wandsbek","WB","OT") -> OT | U6: Frank Nijholt | V6: 24774
A7: 3. | B7: =+'Spielbogen 7er'!P6 -> 2024-10-10 | C7: Wandsbek | F7: 2024-10-10 | I7: 3 | J7: 2024-10-10 | K7: Wandsbek | L7: =+'Spielbogen 7er'!D12 -> Still 3 | M7: =+'Spielbogen 7er'!S6 -> STI 3 | O7: 3. Antritt | P7: 2024-10-10 | R7: 2024-10-10 | S7: WB | U7: Ilona Wetzel | V7: 22115
A8: 4. | B8: =+'Spielbogen 7er'!P7 -> 2024-10-24 | C8: Othmarschen | F8: 2024-10-24 | I8: 4 | J8: 2024-10-24 | K8: Othmarschen | L8: =+'Spielbogen 7er'!D13 -> SG Stern Hamburg 1 | M8: =+'Spielbogen 7er'!S7 -> SGS 1 | O8: 4. Antritt | P8: 2024-10-24 | R8: 2024-10-24 | S8: OT | U8: Jörg Frahm | V8: 19221
A9: 5. | B9: =+'Spielbogen 7er'!P8 -> 2024-11-07 | C9: Wandsbek | F9: 2024-11-07 | I9: 5 | J9: 2024-11-07 | K9: Wandsbek | L9: =+'Spielbogen 7er'!D14 -> Justitzbehörde 2 | M9: =+'Spielbogen 7er'!S8 -> JUS 2 | O9: 5. Antritt | P9: 2024-11-07 | R9: 2024-11-07 | S9: WB | U9: Kai Roßberg | V9: 21889
A10: 6. | B10: =+'Spielbogen 7er'!P9 -> 2025-01-16 | C10: Wandsbek | F10: 2025-01-16 | I10: 6 | J10: 2025-01-16 | K10: Wandsbek | L10: =+'Spielbogen 7er'!D15 -> Postamt 2 | M10: =+'Spielbogen 7er'!S9 -> P2 2 | O10: 6. Antritt | P10: 2025-01-16 | R10: 2025-01-16 | S10: WB | U10: Mario Jurk | V10: 23302
A11: 7. | B11: =+'Spielbogen 7er'!P10 -> 2025-01-30 | C11: Othmarschen | F11: 2025-01-30 | I11: 7 | J11: 2025-01-30 | K11: Othmarschen | L11: =+'Spielbogen 7er'!D16 -> Körber Sports 2 | M11: =+'Spielbogen 7er'!S10 -> KS 2 | O11: 7. Antritt | P11: 2025-01-30 | R11: 2025-01-30 | S11: OT | U11: Matthias Nolte | V11: 20137
A12: 8. | B12: =+'Spielbogen 7er'!P11 -> 2025-02-13 | C12: Wandsbek | F12: 2025-02-13 | I12: 8 | J12: 2025-02-13 | K12: Wandsbek | L12: =+L5 -> Panasonic 1 | M12: =+'Spielbogen 7er'!S11 -> PAN 1 | O12: 8. Antritt | P12: 2025-02-13 | R12: 2025-02-13 | S12: WB | U12: Michael Wetzel | V12: 22113
A13: 9. | B13: =+'Spielbogen 7er'!P12 -> 2025-02-27 | C13: Othmarschen | F13: 2025-02-27 | I13: 9 | J13: 2025-02-27 | K13: Othmarschen | L13: =+L6 -> Dataport 2 | M13: =+'Spielbogen 7er'!S12 -> DAT 2 | O13: 9. Antritt | P13: 2025-02-27 | R13: 2025-02-27 | S13: OT
A14: 10. | B14: =+'Spielbogen 7er'!P13 -> 2025-03-13 | C14: Wandsbek | F14: 2025-03-13 | I14: 10 | J14: 2025-03-13 | K14: Wandsbek | L14: Still 3 | M14: =+'Spielbogen 7er'!S13 -> STI 3 | O14: 10. Antritt | P14: 2025-03-13 | R14: 2025-03-13 | S14: WB
A15: 11. | B15: =+'Spielbogen 7er'!P14 -> 2025-03-27 | C15: Othmarschen | F15: 2025-03-27 | I15: 11 | J15: 2025-03-27 | K15: Othmarschen | L15: SG Stern Hamburg 1 | M15: =+'Spielbogen 7er'!S14 -> SGS 1 | O15: 11. Antritt | P15: 2025-03-27 | R15: 2025-03-27 | S15: OT
A16: 12. | B16: =+'Spielbogen 7er'!P15 -> 2025-04-10 | C16: Wandsbek | F16: 2025-04-10 | I16: 12 | J16: 2025-04-10 | K16: Wandsbek | L16: Justitzbehörde 2 | M16: =+'Spielbogen 7er'!S15 -> JUS 2 | O16: 12. Antritt | P16: 2025-04-10 | R16: 2025-04-10 | S16: WB
A17: 13. | B17: =+'Spielbogen 7er'!P16 -> 2025-04-24 | C17: Othmarschen | F17: 2025-04-24 | I17: 13 | J17: 2025-04-24 | K17: Othmarschen | L17: Postamt 2 | M17: =+'Spielbogen 7er'!S16 -> P2 2 | O17: 13. Antritt | P17: 2025-04-24 | R17: 2025-04-24 | S17: OT
A18: 14. | B18: =+'Spielbogen 7er'!P17 -> 2025-05-08 | C18: Wandsbek | F18: 2025-05-08 | I18: 14 | J18: 2025-05-08 | K18: Wandsbek | L18: Körber Sports 2 | M18: =+'Spielbogen 7er'!S17 -> KS 2 | O18: 14. Antritt | P18: 2025-05-08 | R18: 2025-05-08 | S18: WB
A20: Spielberichte drucken | C20: Anhang zum Spielbericht | F20: =+Mannschaftsübersicht!D8 -> Körber Sports 2 | G20: =+Mannschaftsübersicht!C8 -> 1. | H20: =+L5 -> Panasonic 1 | I20: =+L6 -> Dataport 2 | J20: =+L7 -> Still 3 | K20: =+L8 -> SG Stern Hamburg 1 | L20: =+L9 -> Justitzbehörde 2 | M20: =+L10 -> Postamt 2 | N20: =+L11 -> Körber Sports 2 | O20: Körber Sports 2 | P20: Körber Sports 2 | Q20: Panasonic 1
F21: =+Mannschaftsübersicht!D9 -> Panasonic 1 | G21: =+Mannschaftsübersicht!C9 -> 2. | H21: =VLOOKUP(H20,$F$20:$G$29,2,0) -> 2. | I21: =VLOOKUP(I20,$F$20:$G$29,2,0) -> 3. | J21: 5. | K21: 4. | L21: 6. | M21: 7. | N21: 1. | O21: 1. | P21: 1. | Q21: 2.
A22: 1. Antritt | F22: =+Mannschaftsübersicht!D10 -> Dataport 2 | G22: =+Mannschaftsübersicht!C10 -> 3.
A23: 2. Antritt | C23: 2. Antritt | F23: =+Mannschaftsübersicht!D11 -> SG Stern Hamburg 1 | G23: =+Mannschaftsübersicht!C11 -> 4.
A24: 3. Antritt | C24: 3. Antritt | F24: =+Mannschaftsübersicht!D12 -> Still 3 | G24: =+Mannschaftsübersicht!C12 -> 5.
A25: 4. Antritt | C25: 4. Antritt | F25: =+Mannschaftsübersicht!D13 -> Justitzbehörde 2 | G25: =+Mannschaftsübersicht!C13 -> 6. | L25: 2024-09-12 | M25: 2024-09-12
A26: 5. Antritt | C26: 5. Antritt | F26: =+Mannschaftsübersicht!D14 -> Postamt 2 | G26: =+Mannschaftsübersicht!C14 -> 7. | L26: 2024-09-26 | M26: 2024-09-16
A27: 6. Antritt | C27: 6. Antritt | F27: =+Mannschaftsübersicht!D15 -> Panasonic 1 | G27: =+Mannschaftsübersicht!C15 -> 8. | L27: 2024-10-10 | M27: 2024-10-10
A28: 7. Antritt | C28: 7. Antritt | F28: =+Mannschaftsübersicht!D16 -> Dataport 2 | G28: =+Mannschaftsübersicht!C16 -> 9. | L28: 2024-10-24 | M28: 2024-10-24
A29: 8. Antritt | C29: 8. Antritt | F29: =+Mannschaftsübersicht!D17 -> Still 3 | G29: =+Mannschaftsübersicht!C17 -> 10. | L29: 2024-11-07 | M29: 2024-11-07
A30: 9. Antritt | C30: 9. Antritt | L30: 2025-01-16 | M30: 2025-01-16
A31: 10. Antritt | C31: 10. Antritt | L31: 2025-01-30 | M31: 2025-01-30
A32: 11. Antritt | C32: 11. Antritt | L32: 2025-02-13 | M32: 2025-02-13
A33: 12. Antritt | C33: 12. Antritt | L33: 2025-02-27 | M33: 2025-02-27
A34: 13. Antritt | C34: 13. Antritt | L34: 2025-03-13 | M34: 2025-03-13
A35: 14. Antritt | C35: 14. Antritt | L35: 2025-03-27 | M35: 2025-03-27
L36: 2025-04-10 | M36: 2025-04-10
L37: 2025-04-24 | M37: 2025-04-24
A38: =+'Spielbogen 7er'!N4 -> OT | B38: =IF(A38="OT","Othmarschen","Wandsbek") -> Othmarschen | L38: 2025-05-08 | M38: 2025-05-08
A39: =+'Spielbogen 7er'!N5 -> OT | B39: =IF(A39="OT","Othmarschen","Wandsbek") -> Othmarschen
A40: =+'Spielbogen 7er'!N6 -> WB | B40: Wandsbek
A41: =+'Spielbogen 7er'!N7 -> OT | B41: Othmarschen
A42: =+'Spielbogen 7er'!N8 -> WB | B42: Wandsbek
A43: =+'Spielbogen 7er'!N9 -> WB | B43: Wandsbek
A44: =+'Spielbogen 7er'!N10 -> OT | B44: Othmarschen
A45: =+'Spielbogen 7er'!N11 -> WB | B45: Wandsbek
A46: =+'Spielbogen 7er'!N12 -> OT | B46: Othmarschen
A47: =+'Spielbogen 7er'!N13 -> WB | B47: Wandsbek
A48: =+'Spielbogen 7er'!N14 -> OT | B48: Othmarschen
A49: =+'Spielbogen 7er'!N15 -> WB | B49: Wandsbek
A50: =+'Spielbogen 7er'!N16 -> OT | B50: Othmarschen
A51: =+'Spielbogen 7er'!N17 -> WB | B51: Wandsbek

Sheet Hilfstabelle Spieler (hidden)
AR1: 1. Ant. | AS1: 2. Ant. | AT1: 3. Ant. | AU1: 4. Ant. | AV1: 5. Ant. | AW1: 6. Ant. | AX1: 7. Ant. | AY1: 8. Ant. | AZ1: 9. Ant. | BA1: 10. Ant. | BB1: 11. Ant. | BC1: 12. Ant. | BD1: 13. Ant. | BE1: 14. Ant. | BG1: Summe Pins sonstige | BI1: Anzahl Spiele sonstige
P2: 1. Mannschaft | AG2: Annegret Schmidt | AH2: Ilona Wetzel | AI2: Jörg Frahm | AJ2: Kai Roßberg | AK2: Mario Jurk | AL2: Matthias Nolte | AM2: Michael Wetzel | AN2: Deniz Hagelstein | AP2: Annegret Schmidt | AQ2: =+'Annegret S.'!$J$12 -> 386 | AR2: =+'Annegret S.'!$J$13 ->  | AS2: =+'Annegret S.'!$J$14 -> 426 | AT2: =+'Annegret S.'!$J$15 ->  | AU2: =+'Annegret S.'!$J$16 ->  | AV2: =+'Annegret S.'!$J$17 -> 405 | AW2: =+'Annegret S.'!$J$18 ->  | AX2: =+'Annegret S.'!$J$19 -> 416 | AY2: =+'Annegret S.'!$J$20 -> 396 | AZ2: =+'Annegret S.'!$J$21 -> 413 | BA2: =+'Annegret S.'!$J$22 ->  | BB2: =+'Annegret S.'!$J$23 ->  | BC2: =+'Annegret S.'!$J$24 ->  | BD2: =+'Annegret S.'!$J$25 -> 392 | BG2: Annegret Schmidt | BH2: =+'Annegret S.'!H7 -> 42 | BI2: =+'Annegret S.'!G7 -> 5829
B3: Pass.-Nr. | P3: 1. Ant. | Q3: 2. Ant. | R3: 3. Ant. | S3: 4. Ant. | T3: 5. Ant. | U3: 6. Ant. | V3: 7. Ant. | W3: 8. Ant. | X3: 9. Ant. | Y3: 10. Ant. | Z3: 11. Ant. | AA3: 12. Ant. | AB3: 13. Ant. | AC3: 14. Ant. | AP3: Ilona Wetzel | AQ3: =+'Ilona W.'!$J$12 -> 509 | AR3: =+'Ilona W.'!$J$13 ->  | AS3: =+'Ilona W.'!$J$14 -> 423 | AT3: =+'Ilona W.'!$J$15 ->  | AU3: =+'Ilona W.'!$J$16 -> 379 | AV3: =+'Ilona W.'!$J$17 ->  | AW3: =+'Ilona W.'!$J$18 ->  | AX3: =+'Ilona W.'!$J$19 -> 473 | AY3: =+'Ilona W.'!$J$20 -> 456 | AZ3: =+'Ilona W.'!$J$21 ->  | BA3: =+'Ilona W.'!$J$22 ->  | BB3: =+'Ilona W.'!$J$23 ->  | BC3: =+'Ilona W.'!$J$24 ->  | BD3: =+'Ilona W.'!$J$25 ->  | BG3: Deniz Hagelstein | BH3: =+'Deniz H.'!H7 ->  | BI3: =+'Deniz H.'!G7 -> 
E4: Max Wert Einzel Ergebnis | G4: Max Wert 3er Ergebnis | I4: Max Wert 4er Ergebnis | K4: Max Wert 6er Ergebnis | O4: Deniz Hagelstein | P4: =+'Deniz H.'!$J12 ->  | Q4: =+'Deniz H.'!$J13 -> 375 | R4: =+'Deniz H.'!$J14 ->  | S4: =+'Deniz H.'!$J15 -> 490 | T4: =+'Deniz H.'!$J16 ->  | U4: =+'Deniz H.'!$J17 ->  | V4: =+'Deniz H.'!$J18 -> 350 | W4: =+'Deniz H.'!$J19 -> 365 | X4: =+'Deniz H.'!$J20 ->  | Y4: =+'Deniz H.'!$J21 ->  | Z4: =+'Deniz H.'!$J22 -> 386 | AA4: =+'Deniz H.'!$J23 -> 445 | AB4: =+'Deniz H.'!$J24 ->  | AC4: =+'Deniz H.'!$J25 -> 407 | AP4: Jörg Frahm | AQ4: =+'Jörg F.'!$J$12 ->  | AR4: =+'Jörg F.'!$J$13 ->  | AS4: =+'Jörg F.'!$J$14 ->  | AT4: =+'Jörg F.'!$J$15 ->  | AU4: =+'Jörg F.'!$J$16 ->  | AV4: =+'Jörg F.'!$J$17 ->  | AW4: =+'Jörg F.'!$J$18 ->  | AX4: =+'Jörg F.'!$J$19 ->  | AY4: =+'Jörg F.'!$J$20 -> 474 | AZ4: =+'Jörg F.'!$J$21 -> 563 | BA4: =+'Jörg F.'!$J$22 -> 481 | BB4: =+'Jörg F.'!$J$23 -> 498 | BC4: =+'Jörg F.'!$J$24 -> 492 | BD4: =+'Jörg F.'!$J$25 ->  | BG4: Frank Nijholt | BH4: =+'Frank N.'!H7 ->  | BI4: =+'Frank N.'!G7 -> 
A5: Mannschaft 1 | E5: =+MAX('Michael W.'!J8,'Michael W.'!V8,'Michael W.'!S8) -> 227 | F5: Michael Wetzel | G5: =+'Michael W.'!L8 -> 600 | H5: Michael Wetzel | I5: =+MAX('Michael W.'!$R$12:$R$20) -> 721 | J5: Michael Wetzel | K5: =+MAX('Michael W.'!$S$12:$S$20) -> 1090 | L5: Michael Wetzel | O5: Matthias Nolte | P5: =+'Matthias N.'!$J12 ->  | Q5: =+'Matthias N.'!$J13 -> 406 | R5: =+'Matthias N.'!$J14 ->  | S5: =+'Matthias N.'!$J15 -> 365 | T5: =+'Matthias N.'!$J16 ->  | U5: =+'Matthias N.'!$J17 ->  | V5: =+'Matthias N.'!$J18 -> 350 | W5: =+'Matthias N.'!$J19 ->  | X5: =+'Matthias N.'!$J20 ->  | Y5: =+'Matthias N.'!$J21 ->  | Z5: =+'Matthias N.'!$J22 -> 491 | AA5: =+'Matthias N.'!$J23 ->  | AB5: =+'Matthias N.'!$J24 -> 388 | AC5: =+'Matthias N.'!$J25 ->  | AP5: Kai Roßberg | AQ5: =+'Kai R.'!$J$12 -> 513 | AR5: =+'Kai R.'!$J$13 -> 576 | AS5: =+'Kai R.'!$J$14 -> 526 | AT5: =+'Kai R.'!$J$15 ->  | AU5: =+'Kai R.'!$J$16 -> 556 | AV5: =+'Kai R.'!$J$17 -> 567 | AW5: =+'Kai R.'!$J$18 -> 508 | AX5: =+'Kai R.'!$J$19 -> 563 | AY5: =+'Kai R.'!$J$20 ->  | AZ5: =+'Kai R.'!$J$21 -> 610 | BA5: =+'Kai R.'!$J$22 -> 509 | BB5: =+'Kai R.'!$J$23 -> 484 | BC5: =+'Kai R.'!$J$24 -> 549 | BD5: =+'Kai R.'!$J$25 -> 498 | BG5: Ilona Wetzel | BH5: =+'Ilona W.'!H7 -> 34 | BI5: =+'Ilona W.'!G7 -> 5294
A6: Annegret Schmidt | B6: 19222 | E6: =+MAX('Kai R.'!J8,'Kai R.'!V8,'Kai R.'!S8) -> 246 | F6: Kai Roßberg | G6: =+'Kai R.'!L8 -> 610 | H6: Kai Roßberg | I6: =+MAX('Kai R.'!$R$12:$R$20) -> 0 | J6: Kai Roßberg | K6: =+MAX('Kai R.'!$S$12:$S$20) -> 0 | L6: Kai Roßberg | O6: Jörg Frahm | P6: =+'Jörg F.'!$J$12 ->  | Q6: =+'Jörg F.'!$J$13 ->  | R6: =+'Jörg F.'!$J$14 ->  | S6: =+'Jörg F.'!$J$15 ->  | T6: =+'Jörg F.'!$J$16 ->  | U6: =+'Jörg F.'!$J$17 ->  | V6: =+'Jörg F.'!$J$18 ->  | W6: =+'Jörg F.'!$J$19 ->  | X6: =+'Jörg F.'!$J$20 -> 474 | Y6: =+'Jörg F.'!$J$21 -> 563 | Z6: =+'Jörg F.'!$J$22 -> 481 | AA6: =+'Jörg F.'!$J$23 -> 498 | AB6: =+'Jörg F.'!$J$24 -> 492 | AC6: =+'Jörg F.'!$J$25 ->  | AP6: Mario Jurk | AQ6: =+'Mario J.'!$J$12 ->  | AR6: =+'Mario J.'!$J$13 -> 555 | AS6: =+'Mario J.'!$J$14 ->  | AT6: =+'Mario J.'!$J$15 ->  | AU6: =+'Mario J.'!$J$16 -> 568 | AV6: =+'Mario J.'!$J$17 -> 510 | AW6: =+'Mario J.'!$J$18 -> 478 | AX6: =+'Mario J.'!$J$19 ->  | AY6: =+'Mario J.'!$J$20 -> 506 | AZ6: =+'Mario J.'!$J$21 ->  | BA6: =+'Mario J.'!$J$22 ->  | BB6: =+'Mario J.'!$J$23 ->  | BC6: =+'Mario J.'!$J$24 ->  | BD6: =+'Mario J.'!$J$25 -> 628 | BG6: Jörg Frahm | BH6: =+'Jörg F.'!H7 -> 16 | BI6: =+'Jörg F.'!G7 -> 2792
A7: Deniz Hagelstein | B7: 24775 | E7: =+MAX('Mario J.'!J8,'Mario J.'!V8,'Mario J.'!S8) -> 245 | F7: Mario Jurk | G7: =+'Mario J.'!L8 -> 628 | H7: Mario Jurk | I7: =+MAX('Mario J.'!$R$12:$R$20) -> 0 | J7: Mario Jurk | K7: =+MAX('Mario J.'!$S$12:$S$20) -> 0 | L7: Mario Jurk | O7: Michael Wetzel | P7: =+'Michael W.'!$J$12 -> 506 | Q7: =+'Michael W.'!$J$13 ->  | R7: =+'Michael W.'!$J$14 -> 600 | S7: =+'Michael W.'!$J$15 -> 522 | T7: =+'Michael W.'!$J$16 ->  | U7: =+'Michael W.'!$J$17 ->  | V7: =+'Michael W.'!$J$18 ->  | W7: =+'Michael W.'!$J$19 ->  | X7: =+'Michael W.'!$J$20 ->  | Y7: =+'Michael W.'!$J$21 ->  | Z7: =+'Michael W.'!$J$22 ->  | AA7: =+'Michael W.'!$J$23 ->  | AB7: =+'Michael W.'!$J$24 -> 471 | AC7: =+'Michael W.'!$J$25 ->  | AF7: 1. Antritt | AG7: =+'Annegret S.'!$J$12 -> 386 | AH7: =+'Ilona W.'!$J$12 -> 509 | AI7: =+'Jörg F.'!$J$12 ->  | AJ7: =+'Kai R.'!$J$13 -> 576 | AK7: =+'Mario J.'!$J$12 ->  | AL7: =+'Matthias N.'!$J$12 ->  | AM7: =+'Michael W.'!$J$12 -> 506 | AN7: =+'Deniz H.'!$J$12 ->  | AP7: Matthias Nolte | AQ7: =+'Matthias N.'!$J$12 ->  | AR7: =+'Matthias N.'!$J$13 -> 406 | AS7: =+'Matthias N.'!$J$14 ->  | AT7: =+'Matthias N.'!$J$15 -> 365 | AU7: =+'Matthias N.'!$J$16 ->  | AV7: =+'Matthias N.'!$J$17 ->  | AW7: =+'Matthias N.'!$J$18 -> 350 | AX7: =+'Matthias N.'!$J$19 ->  | AY7: =+'Matthias N.'!$J$20 ->  | AZ7: =+'Matthias N.'!$J$21 ->  | BA7: =+'Matthias N.'!$J$22 -> 491 | BB7: =+'Matthias N.'!$J$23 ->  | BC7: =+'Matthias N.'!$J$24 -> 388 | BD7: =+'Matthias N.'!$J$25 ->  | BG7: Kai Roßberg | BH7: =+'Kai R.'!H7 ->  | BI7: =+'Kai R.'!G7 -> 
A8: Frank Nijholt | B8: 24774 | E8: =+MAX('Jörg F.'!J8,'Jörg F.'!V8,'Jörg F.'!S8) -> 221 | F8: Jörg Frahm | G8: =+'Jörg F.'!L8 -> 563 | H8: Jörg Frahm | I8: =+MAX('Jörg F.'!$R$12:$R$20) -> 742 | J8: Jörg Frahm | K8: =+MAX('Jörg F.'!$S$12:$S$20) -> 1059 | L8: Jörg Frahm | O8: Kai Roßberg | P8: =+'Kai R.'!$J$12 -> 513 | Q8: =+'Kai R.'!$J$13 -> 576 | R8: =+'Kai R.'!$J$14 -> 526 | S8: =+'Kai R.'!$J$15 ->  | T8: =+'Kai R.'!$J$16 -> 556 | U8: =+'Kai R.'!$J$17 -> 567 | V8: =+'Kai R.'!$J$18 -> 508 | W8: =+'Kai R.'!$J$19 -> 563 | X8: =+'Kai R.'!$J$20 ->  | Y8: =+'Kai R.'!$J$21 -> 610 | Z8: =+'Kai R.'!$J$22 -> 509 | AA8: =+'Kai R.'!$J$23 -> 484 | AB8: =+'Kai R.'!$J$24 -> 549 | AC8: =+'Kai R.'!$J$25 -> 498 | AF8: 2. Antritt | AG8: =+'Annegret S.'!$J$13 ->  | AH8: =+'Ilona W.'!$J$13 ->  | AI8: =+'Jörg F.'!$J$13 ->  | AJ8: =+'Kai R.'!$J$14 -> 526 | AK8: =+'Mario J.'!$J$13 -> 555 | AL8: =+'Matthias N.'!$J$13 -> 406 | AM8: =+'Michael W.'!$J$13 ->  | AN8: =+'Deniz H.'!$J$13 -> 375 | AP8: Michael Wetzel | AQ8: =+'Michael W.'!$J$12 -> 506 | AR8: =+'Michael W.'!$J$13 ->  | AS8: =+'Michael W.'!$J$14 -> 600 | AT8: =+'Michael W.'!$J$15 -> 522 | AU8: =+'Michael W.'!$J$16 ->  | AV8: =+'Michael W.'!$J$17 ->  | AW8: =+'Michael W.'!$J$18 ->  | AX8: =+'Michael W.'!$J$19 ->  | AY8: =+'Michael W.'!$J$20 ->  | AZ8: =+'Michael W.'!$J$21 ->  | BA8: =+'Michael W.'!$J$22 ->  | BB8: =+'Michael W.'!$J$23 ->  | BC8: =+'Michael W.'!$J$24 -> 471 | BD8: =+'Michael W.'!$J$25 ->  | BG8: Mario Jurk | BH8: =+'Mario J.'!H7 ->  | BI8: =+'Mario J.'!G7 -> 
A9: Ilona Wetzel | B9: 22115 | E9: =+MAX('Matthias N.'!$J$8,'Matthias N.'!$V$8,'Matthias N.'!$S$8) -> 185 | F9: Matthias Nolte | G9: =+'Matthias N.'!$L$8 -> 491 | H9: Matthias Nolte | I9: =+MAX('Matthias N.'!$R$12:$R$20) -> 0 | J9: Matthias Nolte | K9: =+MAX('Matthias N.'!$S$12:$S$20) -> 0 | L9: Matthias Nolte | O9: Mario Jurk | P9: =+'Mario J.'!$J$12 ->  | Q9: =+'Mario J.'!$J$13 -> 555 | R9: =+'Mario J.'!$J$14 ->  | S9: =+'Mario J.'!$J$15 ->  | T9: =+'Mario J.'!$J$16 -> 568 | U9: =+'Mario J.'!$J$17 -> 510 | V9: =+'Mario J.'!$J$18 -> 478 | W9: =+'Mario J.'!$J$19 ->  | X9: =+'Mario J.'!$J$20 -> 506 | Y9: =+'Mario J.'!$J$21 ->  | Z9: =+'Mario J.'!$J$22 ->  | AA9: =+'Mario J.'!$J$23 ->  | AB9: =+'Mario J.'!$J$24 ->  | AC9: =+'Mario J.'!$J$25 -> 628 | AF9: 3. Antritt | AG9: =+'Annegret S.'!$J$14 -> 426 | AH9: =+'Ilona W.'!$J$14 -> 423 | AI9: =+'Jörg F.'!$J$14 ->  | AJ9: =+'Kai R.'!$J$15 ->  | AK9: =+'Mario J.'!$J$14 ->  | AL9: =+'Matthias N.'!$J$14 ->  | AM9: =+'Michael W.'!$J$14 -> 600 | AN9: =+'Deniz H.'!$J$14 ->  | AP9: Deniz Hagelstein | AQ9: =+'Deniz H.'!$J$12 ->  | AR9: =+'Deniz H.'!$J$13 -> 375 | AS9: =+'Deniz H.'!$J$14 ->  | AT9: =+'Deniz H.'!$J$15 -> 490 | AU9: =+'Deniz H.'!$J$16 ->  | AV9: =+'Deniz H.'!$J$17 ->  | AW9: =+'Deniz H.'!$J$18 -> 350 | AX9: =+'Deniz H.'!$J$19 -> 365 | AY9: =+'Deniz H.'!$J$20 ->  | AZ9: =+'Deniz H.'!$J$21 ->  | BA9: =+'Deniz H.'!$J$22 -> 386 | BB9: =+'Deniz H.'!$J$23 -> 445 | BC9: =+'Deniz H.'!$J$24 ->  | BD9: =+'Deniz H.'!$J$25 -> 407 | BG9: Matthias Nolte | BH9: =+'Matthias N.'!H7 ->  | BI9: =+'Matthias N.'!G7 -> 
A10: Jörg Frahm | B10: 19221 | E10: =+MAX('Deniz H.'!$J$8,'Deniz H.'!$V$8,'Deniz H.'!$S$8) -> 179 | F10: Deniz Hagelstein | G10: =+'Deniz H.'!$L$8 -> 490 | H10: Deniz Hagelstein | I10: =+MAX('Deniz H.'!$R$12:$R$20) -> 0 | J10: Deniz Hagelstein | K10: =+MAX('Deniz H.'!$S$12:$S$20) -> 0 | L10: Deniz Hagelstein | O10: Ilona Wetzel | P10: =+'Ilona W.'!$J$12 -> 509 | Q10: =+'Ilona W.'!$J$13 ->  | R10: =+'Ilona W.'!$J$14 -> 423 | S10: =+'Ilona W.'!$J$15 ->  | T10: =+'Ilona W.'!$J$16 -> 379 | U10: =+'Ilona W.'!$J$17 ->  | V10: =+'Ilona W.'!$J$18 ->  | W10: =+'Ilona W.'!$J$19 -> 473 | X10: =+'Ilona W.'!$J$20 -> 456 | Y10: =+'Ilona W.'!$J$21 ->  | Z10: =+'Ilona W.'!$J$22 ->  | AA10: =+'Ilona W.'!$J$23 ->  | AB10: =+'Ilona W.'!$J$24 ->  | AC10: =+'Ilona W.'!$J$25 ->  | AF10: 4. Antritt | AG10: =+'Annegret S.'!$J$15 ->  | AH10: =+'Ilona W.'!$J$15 ->  | AI10: =+'Jörg F.'!$J$15 ->  | AJ10: =+'Kai R.'!$J$16 -> 556 | AK10: =+'Mario J.'!$J$15 ->  | AL10: =+'Matthias N.'!$J$15 -> 365 | AM10: =+'Michael W.'!$J$15 -> 522 | AN10: =+'Deniz H.'!$J$15 -> 490 | BG10: Michael Wetzel | BH10: =+'Michael W.'!H7 -> 16 | BI10: =+'Michael W.'!G7 -> 2851
A11: Kai Roßberg | B11: 21889 | E11: =+MAX('Frank N.'!$J$8,'Frank N.'!$V$8,'Frank N.'!$S$8) -> 180 | F11: Frank Nijholt | G11: =+'Frank N.'!$L$8 -> 431 | H11: Frank Nijholt | I11: =+MAX('Frank N.'!$R$12:$R$20) -> 0 | J11: Frank Nijholt | K11: =+MAX('Frank N.'!$S$12:$S$20) -> 0 | L11: Frank Nijholt | O11: Annegret Schmidt | P11: =+'Annegret S.'!$J$12 -> 386 | Q11: =+'Annegret S.'!$J$13 ->  | R11: =+'Annegret S.'!$J$14 -> 426 | S11: =+'Annegret S.'!$J$15 ->  | T11: =+'Annegret S.'!$J$16 ->  | U11: =+'Annegret S.'!$J$17 -> 405 | V11: =+'Annegret S.'!$J$18 ->  | W11: =+'Annegret S.'!$J$19 -> 416 | X11: =+'Annegret S.'!$J$20 -> 396 | Y11: =+'Annegret S.'!$J$21 -> 413 | Z11: =+'Annegret S.'!$J$22 ->  | AA11: =+'Annegret S.'!$J$23 ->  | AB11: =+'Annegret S.'!$J$24 ->  | AC11: =+'Annegret S.'!$J$25 -> 392 | AF11: 5. Antritt | AG11: =+'Annegret S.'!$J$16 ->  | AH11: =+'Ilona W.'!$J$16 -> 379 | AI11: =+'Jörg F.'!$J$16 ->  | AJ11: =+'Kai R.'!$J$17 -> 567 | AK11: =+'Mario J.'!$J$16 -> 568 | AL11: =+'Matthias N.'!$J$16 ->  | AM11: =+'Michael W.'!$J$16 ->  | AN11: =+'Deniz H.'!$J$17 ->  | BG11: Gesamt | BH11: =SUM(BH2:BH10) -> 108 | BI11: =SUM(BI2:BI10) -> 16766
A12: Mario Jurk | B12: 23302 | G12: =+G10/3 -> 163.3333333 | I12: =+I10/4 -> 0 | K12: =+K10/6 -> 0 | O12: Frank Nijholt | P12: =+'Frank N.'!$J$12 ->  | Q12: =+'Frank N.'!$J$13 ->  | R12: =+'Frank N.'!$J$14 ->  | S12: =+'Frank N.'!$J$15 -> 400 | T12: =+'Frank N.'!$J$16 -> 404 | U12: =+'Frank N.'!$J$17 -> 398 | V12: =+'Frank N.'!$J$18 ->  | W12: =+'Frank N.'!$J$19 ->  | X12: =+'Frank N.'!$J$20 ->  | Y12: =+'Frank N.'!$J$21 -> 431 | Z12: =+'Frank N.'!$J$22 ->  | AA12: =+'Frank N.'!$J$23 -> 418 | AB12: =+'Frank N.'!$J$24 ->  | AC12: =+'Frank N.'!$J$25 ->  | AF12: 6. Antritt | AG12: =+'Annegret S.'!$J$17 -> 405 | AH12: =+'Ilona W.'!$J$17 ->  | AI12: =+'Jörg F.'!$J$17 ->  | AJ12: =+'Kai R.'!$J$18 -> 508 | AK12: =+'Mario J.'!$J$17 -> 510 | AL12: =+'Matthias N.'!$J$17 ->  | AM12: =+'Michael W.'!$J$17 ->  | AN12: =+'Deniz H.'!$J$17 -> 
A13: Matthias Nolte | B13: 20137 | E13: =MAX(E5:E11) -> 246 | F13: =VLOOKUP(E13,E5:F10,2,0) -> Kai Roßberg | G13: =MAX(G5:G11) -> 628 | H13: =VLOOKUP(G13,G5:H10,2,0) -> Mario Jurk | I13: =MAX(I5:I11) -> 742 | J13: =VLOOKUP(I13,I5:J10,2,0) -> Jörg Frahm | K13: =MAX(K5:K11) -> 1090 | L13: =VLOOKUP(K13,K5:L10,2,0) -> Michael Wetzel | AF13: 7. Antritt | AG13: =+'Annegret S.'!$J$18 ->  | AH13: =+'Ilona W.'!$J$18 ->  | AI13: =+'Jörg F.'!$J$18 ->  | AJ13: =+'Kai R.'!$J$19 -> 563 | AK13: =+'Mario J.'!$J$18 -> 478 | AL13: =+'Matthias N.'!$J$18 -> 350 | AM13: =+'Michael W.'!$J$18 ->  | AN13: =+'Deniz H.'!$J$18 -> 350
A14: Michael Wetzel | B14: 22113 | G14: =+G13/3 -> 209.3333333 | I14: =+I13/4 -> 185.5 | K14: =+K13/6 -> 181.6666667 | AF14: 8. Antritt | AG14: =+'Annegret S.'!$J$19 -> 416 | AH14: =+'Ilona W.'!$J$19 -> 473 | AI14: =+'Jörg F.'!$J$19 ->  | AJ14: =+'Kai R.'!$J$20 ->  | AK14: =+'Mario J.'!$J$19 ->  | AL14: =+'Matthias N.'!$J$19 ->  | AM14: =+'Michael W.'!$J$19 ->  | AN14: =+'Deniz H.'!$J$19 -> 365
E15: =+MAX('Annegret S.'!J8,'Annegret S.'!V8,'Annegret S.'!S8) -> 168 | F15: Annegret Schmidt | G15: =+'Annegret S.'!L8 -> 426 | H15: Annegret Schmidt | I15: =+MAX('Annegret S.'!$R$12:$R$20) -> 574 | J15: Annegret Schmidt | K15: =+MAX('Annegret S.'!$S$12:$S$20) -> 892 | L15: Annegret Schmidt | AF15: 9. Antritt | AG15: =+'Annegret S.'!$J$20 -> 396 | AH15: =+'Ilona W.'!$J$20 -> 456 | AI15: =+'Jörg F.'!$J$20 -> 474 | AJ15: =+'Kai R.'!$J$21 -> 610 | AK15: =+'Mario J.'!$J$20 -> 506 | AL15: =+'Matthias N.'!$J$20 ->  | AM15: =+'Michael W.'!$J$20 ->  | AN15: =+'Deniz H.'!$J$20 -> 
E16: =+MAX('Ilona W.'!J8,'Ilona W.'!V8,'Ilona W.'!S8) -> 202 | F16: Ilona Wetzel | G16: =+'Ilona W.'!L8 -> 509 | H16: Ilona Wetzel | I16: =+MAX('Ilona W.'!$R$12:$R$20) -> 557 | J16: Ilona Wetzel | K16: =+MAX('Ilona W.'!$S$12:$S$20) -> 1024 | L16: Ilona Wetzel | AF16: 10. Antritt | AG16: =+'Annegret S.'!$J$21 -> 413 | AH16: =+'Ilona W.'!$J$21 ->  | AI16: =+'Jörg F.'!$J$21 -> 563 | AJ16: =+'Kai R.'!$J$22 -> 509 | AK16: =+'Mario J.'!$J$21 ->  | AL16: =+'Matthias N.'!$J$21 ->  | AM16: =+'Michael W.'!$J$21 ->  | AN16: =+'Deniz H.'!$J$21 -> 
AF17: 11. Antritt | AG17: =+'Annegret S.'!$J$22 ->  | AH17: =+'Ilona W.'!$J$22 ->  | AI17: =+'Jörg F.'!$J$22 -> 481 | AJ17: =+'Kai R.'!$J$23 -> 484 | AK17: =+'Mario J.'!$J$22 ->  | AL17: =+'Matthias N.'!$J$22 -> 491 | AM17: =+'Michael W.'!$J$22 ->  | AN17: =+'Deniz H.'!$J$22 -> 386
E18: =MAX(E15:E16) -> 202 | F18: =VLOOKUP(E18,E15:F16,2,0) -> Ilona Wetzel | G18: =MAX(G15:G16) -> 509 | H18: =VLOOKUP(G18,G15:H16,2,0) -> Ilona Wetzel | I18: =MAX(I15:I16) -> 574 | J18: =VLOOKUP(I18,I15:J16,2,0) -> Annegret Schmidt | K18: =MAX(K15:K16) -> 1024 | L18: =VLOOKUP(K18,K15:L16,2,0) -> Ilona Wetzel | AF18: 12. Antritt | AG18: =+'Annegret S.'!$J$23 ->  | AH18: =+'Ilona W.'!$J$23 ->  | AI18: =+'Jörg F.'!$J$23 -> 498 | AJ18: =+'Kai R.'!$J$24 -> 549 | AK18: =+'Mario J.'!$J$23 ->  | AL18: =+'Matthias N.'!$J$23 ->  | AM18: =+'Michael W.'!$J$23 ->  | AN18: =+'Deniz H.'!$J$23 -> 445
G19: =+G18/3 -> 169.6666667 | I19: =+I18/4 -> 143.5 | K19: =+K18/6 -> 170.6666667 | AF19: 13. Antritt | AG19: =+'Annegret S.'!$J$24 ->  | AH19: =+'Ilona W.'!$J$24 ->  | AI19: =+'Jörg F.'!$J$24 -> 492 | AJ19: =+'Kai R.'!$J$25 -> 498 | AK19: =+'Mario J.'!$J$24 ->  | AL19: =+'Matthias N.'!$J$24 -> 388 | AM19: =+'Michael W.'!$J$24 -> 471 | AN19: =+'Deniz H.'!$J$24 -> 
AF20: 14. Antritt | AG20: =+'Annegret S.'!$J$25 -> 392 | AH20: =+'Ilona W.'!$J$25 ->  | AI20: =+'Jörg F.'!$J$25 ->  | AJ20: =+'Kai R.'!$K$26 -> 0 | AK20: =+'Mario J.'!$J$25 -> 628 | AL20: =+'Matthias N.'!$J$25 ->  | AM20: =+'Michael W.'!$J$25 ->  | AN20: =+'Deniz H.'!$J$25 -> 407
E25: Zuletzt aktualisiert am: | F25: =NOW() -> 2025-05-13T21:35:45.910 | G25: >>>>>>>>> | H25: ='Hilfstabelle Spieler'!$E$25&" "&TEXT('Hilfstabelle Spieler'!$F$25,"TT.MM.JJJJ") -> Zuletzt aktualisiert am: 13.05.2025
H26: ='Hilfstabelle Spieler'!$E$25&" "&TEXT('Hilfstabelle Spieler'!$F$25,"hh:mm:ss") -> Zuletzt aktualisiert am: 21:35:46
H28: =+H26 -> Zuletzt aktualisiert am: 21:35:46
H29: =NOW() -> 45790.89984

Sheet Hilfstabelle Mannschaften (hidden)
AE1: Punkte aus den Antritten der 1. Mannschaft für den Spielsystembogen
B2: 1. Mannschaft Ausrichter | H2: Mannschaftsklassen | L2: Übersicht aller Mannschaften / Pins | Q2: ="1. Mannschaft "&I4 -> 1. Mannschaft B4 | AE2: 1. Mannschaft | AL2: 1. Mannschaft
B3: Antritt | C3: Datum | D3: Bahn | E3: BSG | F3: BSG-Kurzf. | H3: Mannschaft | I3: Klasse | L3: 1. Mannschaft | M3: Pins | Q3: =+'Spielbogen 7er'!I10 -> PAN 1 | R3: =+'Spielbogen 7er'!I11 -> DAT 2 | S3: =+'Spielbogen 7er'!I12 -> STI 3 | T3: =+'Spielbogen 7er'!I13 -> SGS 1 | U3: =+'Spielbogen 7er'!I14 -> JUS 2 | V3: =+'Spielbogen 7er'!I15 -> P2 2 | W3: =+'Spielbogen 7er'!I16 -> KS 2 | X3: =+'Spielbogen 7er'!$G$16 -> 0 | Y3: =+'Spielbogen 7er'!$G$17 -> 0 | Z3: =+'Spielbogen 7er'!$G$18 -> 0 | AE3: =+#REF! ->  | AF3: =+#REF! ->  | AL3: =+#REF! ->  | AM3: =+#REF! ->  | AN3: =+#REF! ->  | AO3: =VLOOKUP(AM3,$E$4:$F$13,2,0) -> 
B4: =+'Spielbogen 7er'!M4 -> 1. | C4: =+'Spielbogen 7er'!P4 -> 2024-09-12 | D4: =+'Spielbogen 7er'!N4 -> OT | E4: =+'Spielbogen 7er'!D10 -> Panasonic 1 | F4: =+'Spielbogen 7er'!S4 -> PAN 1 | H4: 1. Mannschaft | I4: B4 | L4: =+$E$4 -> Panasonic 1 | M4: =+'Übersicht der Klasse B4'!$F$8 -> 26254 | P4: 1. Antritt | Q4: =+'Übersicht der Klasse B4'!$H$8 -> 1914 | R4: =+'Übersicht der Klasse B4'!$H$10 -> 1586 | S4: =+'Übersicht der Klasse B4'!$H$12 -> 1732 | T4: =+'Übersicht der Klasse B4'!$H$14 -> 1528 | U4: =+'Übersicht der Klasse B4'!$H$16 -> 1349 | V4: =+'Übersicht der Klasse B4'!$H$18 -> 1740 | W4: =+'Übersicht der Klasse B4'!$H$20 -> 1229 | X4: =+'Übersicht der Klasse B4'!$H$22 -> 1229 | Y4: =+'Übersicht der Klasse B4'!$H$24 ->  | Z4: =+'Übersicht der Klasse B4'!$H$26 ->  | AA4: =+'Übersicht der Klasse B4'!$H$28 -> 0 | AB4: =+'Übersicht der Klasse B4'!$H$30 -> 0 | AE4: =+#REF! ->  | AF4: =+#REF! ->  | AL4: =+#REF! ->  | AM4: =+#REF! ->  | AN4: =+#REF! -> 
B5: =+'Spielbogen 7er'!M5 -> 2. | C5: =+'Spielbogen 7er'!P5 -> 2024-09-26 | D5: =+'Spielbogen 7er'!N5 -> OT | E5: =+'Spielbogen 7er'!D11 -> Dataport 2 | F5: =+'Spielbogen 7er'!S5 -> DAT 2 | L5: =+$E$5 -> Dataport 2 | M5: =+'Übersicht der Klasse B4'!$F$10 -> 25261 | P5: 2. Antritt | Q5: =+'Übersicht der Klasse B4'!$I$8 -> 1912 | R5: =+'Übersicht der Klasse B4'!$I$10 -> 1748 | S5: =+'Übersicht der Klasse B4'!$I$12 -> 1572 | T5: =+'Übersicht der Klasse B4'!$I$14 -> 1637 | U5: =+'Übersicht der Klasse B4'!$I$16 -> 1664 | V5: =+'Übersicht der Klasse B4'!$I$18 -> 1761 | W5: =+'Übersicht der Klasse B4'!$I$20 -> 1282 | X5: =+'Übersicht der Klasse B4'!$I$22 -> 1282 | Y5: =+'Übersicht der Klasse B4'!$I$24 ->  | Z5: =+'Übersicht der Klasse B4'!$I$26 ->  | AA5: =+'Übersicht der Klasse B4'!$I$28 -> 0 | AB5: =+'Übersicht der Klasse B4'!$I$30 -> 0 | AE5: =+#REF! ->  | AF5: =+#REF! ->  | AL5: =+#REF! ->  | AM5: =+#REF! ->  | AN5: =+#REF! -> 
B6: =+'Spielbogen 7er'!M6 -> 3. | C6: =+'Spielbogen 7er'!P6 -> 2024-10-10 | D6: =+'Spielbogen 7er'!N6 -> WB | E6: =+'Spielbogen 7er'!D12 -> Still 3 | F6: =+'Spielbogen 7er'!S6 -> STI 3 | L6: =+$E$6 -> Still 3 | M6: =+'Übersicht der Klasse B4'!$F$12 -> 24708 | P6: 3. Antritt | Q6: =+'Übersicht der Klasse B4'!$J$8 -> 1975 | R6: =+'Übersicht der Klasse B4'!$J$10 -> 1606 | S6: =+'Übersicht der Klasse B4'!$J$12 -> 1805 | T6: =+'Übersicht der Klasse B4'!$J$14 -> 1502 | U6: =+'Übersicht der Klasse B4'!$J$16 -> 1609 | V6: =+'Übersicht der Klasse B4'!$J$18 -> 1781 | W6: =+'Übersicht der Klasse B4'!$J$20 -> 1909 | X6: =+'Übersicht der Klasse B4'!$J$22 -> 1909 | Y6: =+'Übersicht der Klasse B4'!$J$24 ->  | Z6: =+'Übersicht der Klasse B4'!$J$26 ->  | AA6: =+'Übersicht der Klasse B4'!$J$28 -> 0 | AB6: =+'Übersicht der Klasse B4'!$J$30 -> 0 | AE6: =+#REF! ->  | AF6: =+#REF! ->  | AL6: =+#REF! ->  | AM6: =+#REF! ->  | AN6: =+#REF! -> 
B7: =+'Spielbogen 7er'!M7 -> 4. | C7: =+'Spielbogen 7er'!P7 -> 2024-10-24 | D7: =+'Spielbogen 7er'!N7 -> OT | E7: =+'Spielbogen 7er'!D13 -> SG Stern Hamburg 1 | F7: =+'Spielbogen 7er'!S7 -> SGS 1 | L7: =+$E$7 -> SG Stern Hamburg 1 | M7: =+'Übersicht der Klasse B4'!$F$14 -> 24600 | P7: 4. Antritt | Q7: =+'Übersicht der Klasse B4'!$K$8 -> 1777 | R7: =+'Übersicht der Klasse B4'!$K$10 -> 1733 | S7: =+'Übersicht der Klasse B4'!$K$12 -> 1788 | T7: =+'Übersicht der Klasse B4'!$K$14 -> 1714 | U7: =+'Übersicht der Klasse B4'!$K$16 -> 1734 | V7: =+'Übersicht der Klasse B4'!$K$18 -> 1659 | W7: =+'Übersicht der Klasse B4'!$K$20 -> 1952 | X7: =+'Übersicht der Klasse B4'!$K$22 -> 1952 | Y7: =+'Übersicht der Klasse B4'!$K$24 ->  | Z7: =+'Übersicht der Klasse B4'!$K$26 ->  | AA7: =+'Übersicht der Klasse B4'!$K$28 -> 0 | AB7: =+'Übersicht der Klasse B4'!$K$30 -> 0 | AE7: =+#REF! ->  | AF7: =+#REF! ->  | AL7: =+#REF! ->  | AM7: =+#REF! ->  | AN7: =+#REF! -> 
B8: =+'Spielbogen 7er'!M8 -> 5. | C8: =+'Spielbogen 7er'!P8 -> 2024-11-07 | D8: =+'Spielbogen 7er'!N8 -> WB | E8: =+'Spielbogen 7er'!D14 -> Justitzbehörde 2 | F8: =+'Spielbogen 7er'!S8 -> JUS 2 | H8: PUNKTSPIELSAISON | I8: 2024/2025 | L8: =+$E$8 -> Justitzbehörde 2 | M8: =+'Übersicht der Klasse B4'!$F$16 -> 24257 | P8: 5. Antritt | Q8: =+'Übersicht der Klasse B4'!$L$8 -> 1907 | R8: =+'Übersicht der Klasse B4'!$L$10 -> 1849 | S8: =+'Übersicht der Klasse B4'!$L$12 -> 1806 | T8: =+'Übersicht der Klasse B4'!$L$14 -> 1897 | U8: =+'Übersicht der Klasse B4'!$L$16 -> 1811 | V8: =+'Übersicht der Klasse B4'!$L$18 -> 1759 | W8: =+'Übersicht der Klasse B4'!$L$20 -> 1914 | X8: =+'Übersicht der Klasse B4'!$L$22 -> 1914 | Y8: =+'Übersicht der Klasse B4'!$L$24 ->  | Z8: =+'Übersicht der Klasse B4'!$L$26 ->  | AA8: =+'Übersicht der Klasse B4'!$L$28 -> 0 | AB8: =+'Übersicht der Klasse B4'!$L$30 -> 0 | AE8: =+#REF! ->  | AF8: =+#REF! ->  | AL8: =+#REF! ->  | AM8: =+#REF! ->  | AN8: =+#REF! -> 
B9: =+'Spielbogen 7er'!M9 -> 6. | C9: =+'Spielbogen 7er'!P9 -> 2025-01-16 | D9: =+'Spielbogen 7er'!N9 -> WB | E9: =+'Spielbogen 7er'!D15 -> Postamt 2 | F9: =+'Spielbogen 7er'!S9 -> P2 2 | I9: 23/24 | L9: =+$E$9 -> Postamt 2 | M9: =+'Übersicht der Klasse B4'!$F$18 -> 24763 | P9: 6. Antritt | Q9: =+'Übersicht der Klasse B4'!$M$8 -> 1880 | R9: =+'Übersicht der Klasse B4'!$M$10 -> 1968 | S9: =+'Übersicht der Klasse B4'!$M$12 -> 1853 | T9: =+'Übersicht der Klasse B4'!$M$14 -> 2011 | U9: =+'Übersicht der Klasse B4'!$M$16 -> 1961 | V9: =+'Übersicht der Klasse B4'!$M$18 -> 1692 | W9: =+'Übersicht der Klasse B4'!$M$20 -> 1445 | X9: =+'Übersicht der Klasse B4'!$M$22 -> 1445 | Y9: =+'Übersicht der Klasse B4'!$M$24 ->  | Z9: =+'Übersicht der Klasse B4'!$M$26 ->  | AA9: =+'Übersicht der Klasse B4'!$M$28 -> 0 | AB9: =+'Übersicht der Klasse B4'!$M$30 -> 0 | AE9: =+#REF! ->  | AF9: =+#REF! ->  | AL9: =+#REF! ->  | AM9: =+#REF! ->  | AN9: =+#REF! -> 
B10: =+'Spielbogen 7er'!M10 -> 7. | C10: =+'Spielbogen 7er'!P10 -> 2025-01-30 | D10: =+'Spielbogen 7er'!N10 -> OT | E10: =+'Spielbogen 7er'!D16 -> Körber Sports 2 | F10: =+'Spielbogen 7er'!S10 -> KS 2 | I10: 2024/2025 | L10: =+$E$10 -> Körber Sports 2 | M10: =+'Übersicht der Klasse B4'!$F$20 -> 25432 | P10: 7. Antritt | Q10: =+'Übersicht der Klasse B4'!$N$8 -> 1686 | R10: =+'Übersicht der Klasse B4'!$N$10 -> 1822 | S10: =+'Übersicht der Klasse B4'!$N$12 -> 1724 | T10: =+'Übersicht der Klasse B4'!$N$14 -> 1830 | U10: =+'Übersicht der Klasse B4'!$N$16 -> 1754 | V10: =+'Übersicht der Klasse B4'!$N$18 -> 1749 | W10: =+'Übersicht der Klasse B4'!$N$20 -> 1777 | X10: =+'Übersicht der Klasse B4'!$N$22 -> 1777 | Y10: =+'Übersicht der Klasse B4'!$N$24 ->  | Z10: =+'Übersicht der Klasse B4'!$N$26 ->  | AA10: =+'Übersicht der Klasse B4'!$N$28 -> 0 | AB10: =+'Übersicht der Klasse B4'!$N$30 -> 0 | AE10: =+#REF! ->  | AF10: =+#REF! ->  | AL10: =+#REF! ->  | AM10: =+#REF! ->  | AN10: =+#REF! -> 
B11: =+'Spielbogen 7er'!M11 -> 8. | C11: =+'Spielbogen 7er'!P11 -> 2025-02-13 | D11: =+'Spielbogen 7er'!N11 -> WB | E11: =+E4 -> Panasonic 1 | F11: =+'Spielbogen 7er'!S11 -> PAN 1 | I11: 2023/2024 | L11: =+$E$11 -> Panasonic 1 | M11: =+'Übersicht der Klasse B4'!$F$22 -> 25432 | P11: 8. Antritt | Q11: =+'Übersicht der Klasse B4'!$O$8 -> 1817 | R11: =+'Übersicht der Klasse B4'!$O$10 -> 1940 | S11: =+'Übersicht der Klasse B4'!$O$12 -> 1778 | T11: =+'Übersicht der Klasse B4'!$O$14 -> 1822 | U11: =+'Übersicht der Klasse B4'!$O$16 -> 1958 | V11: =+'Übersicht der Klasse B4'!$O$18 -> 1824 | W11: =+'Übersicht der Klasse B4'!$O$20 -> 2149 | X11: =+'Übersicht der Klasse B4'!$O$22 -> 2149 | Y11: =+'Übersicht der Klasse B4'!$O$24 ->  | Z11: =+'Übersicht der Klasse B4'!$O$26 ->  | AA11: =+'Übersicht der Klasse B4'!$O$28 -> 0 | AB11: =+'Übersicht der Klasse B4'!$O$30 -> 0 | AE11: =+#REF! ->  | AF11: =+#REF! ->  | AL11: =+#REF! ->  | AM11: =+#REF! ->  | AN11: =+#REF! -> 
B12: =+'Spielbogen 7er'!M12 -> 9. | C12: =+'Spielbogen 7er'!P12 -> 2025-02-27 | D12: =+'Spielbogen 7er'!N12 -> OT | E12: =+E5 -> Dataport 2 | F12: =+'Spielbogen 7er'!S12 -> DAT 2 | H12: Herbst-Mix | J12: 16. / 17. Nov. 24 | L12: =+$E$12 -> Dataport 2 | M12: =+'Übersicht der Klasse B4'!$F$24 ->  | P12: 9. Antritt | Q12: =+'Übersicht der Klasse B4'!$P$8 -> 1832 | R12: =+'Übersicht der Klasse B4'!$P$10 -> 1762 | S12: =+'Übersicht der Klasse B4'!$P$12 -> 1835 | T12: =+'Übersicht der Klasse B4'!$P$14 -> 1661 | U12: =+'Übersicht der Klasse B4'!$P$16 -> 1555 | V12: =+'Übersicht der Klasse B4'!$P$18 -> 1751 | W12: =+'Übersicht der Klasse B4'!$P$20 -> 2014 | X12: =+'Übersicht der Klasse B4'!$P$22 -> 2014 | Y12: =+'Übersicht der Klasse B4'!$P$24 ->  | Z12: =+'Übersicht der Klasse B4'!$P$26 ->  | AA12: =+'Übersicht der Klasse B4'!$P$28 -> 0 | AB12: =+'Übersicht der Klasse B4'!$P$30 -> 0 | AE12: =+#REF! ->  | AF12: =+#REF! ->  | AL12: =+#REF! ->  | AM12: =+#REF! ->  | AN12: =+#REF! -> 
B13: =+'Spielbogen 7er'!M13 -> 10. | C13: =+'Spielbogen 7er'!P13 -> 2025-03-13 | D13: =+'Spielbogen 7er'!N13 -> WB | E13: Still 3 | F13: =+'Spielbogen 7er'!S13 -> STI 3 | L13: =+$E$13 -> Still 3 | M13: =+'Übersicht der Klasse B4'!$F$26 ->  | P13: 10. Antritt | Q13: =+'Übersicht der Klasse B4'!$Q$8 -> 2017 | R13: =+'Übersicht der Klasse B4'!$Q$10 -> 1842 | S13: =+'Übersicht der Klasse B4'!$Q$12 -> 1718 | T13: =+'Übersicht der Klasse B4'!$Q$14 -> 1706 | U13: =+'Übersicht der Klasse B4'!$Q$16 -> 1756 | V13: =+'Übersicht der Klasse B4'!$Q$18 -> 1633 | W13: =+'Übersicht der Klasse B4'!$Q$20 -> 1974 | X13: =+'Übersicht der Klasse B4'!$Q$22 -> 1974 | Y13: =+'Übersicht der Klasse B4'!$Q$24 ->  | Z13: =+'Übersicht der Klasse B4'!$Q$26 ->  | AA13: =+'Übersicht der Klasse B4'!$Q$28 -> 0 | AB13: =+'Übersicht der Klasse B4'!$Q$30 -> 0
B14: =+'Spielbogen 7er'!M14 -> 11. | C14: =+'Spielbogen 7er'!P14 -> 2025-03-27 | D14: =+'Spielbogen 7er'!N14 -> OT | E14: SG Stern Hamburg 1 | F14: =+'Spielbogen 7er'!S14 -> SGS 1 | H14: Frühjahrs-Mix | J14: 12. / 13. Mär, 25 | P14: 11. Antritt | Q14: =+'Übersicht der Klasse B4'!$R$8 -> 1867 | R14: =+'Übersicht der Klasse B4'!$R$10 -> 1952 | S14: =+'Übersicht der Klasse B4'!$R$12 -> 1639 | T14: =+'Übersicht der Klasse B4'!$R$14 -> 1953 | U14: =+'Übersicht der Klasse B4'!$R$16 -> 1418 | V14: =+'Übersicht der Klasse B4'!$R$18 -> 2062 | W14: =+'Übersicht der Klasse B4'!$R$20 -> 1757 | X14: =+'Übersicht der Klasse B4'!$R$22 -> 1757 | Y14: =+'Übersicht der Klasse B4'!$R$24 ->  | Z14: =+'Übersicht der Klasse B4'!$R$26 ->  | AA14: =+'Übersicht der Klasse B4'!$R$28 -> 0 | AB14: =+'Übersicht der Klasse B4'!$R$30 -> 0
B15: =+'Spielbogen 7er'!M15 -> 12. | C15: =+'Spielbogen 7er'!P15 -> 2025-04-10 | D15: =+'Spielbogen 7er'!N15 -> WB | E15: Justitzbehörde 2 | F15: =+'Spielbogen 7er'!S15 -> JUS 2 | P15: 12. Antritt | Q15: =+'Übersicht der Klasse B4'!$S$8 -> 1845 | R15: =+'Übersicht der Klasse B4'!$S$10 -> 1888 | S15: =+'Übersicht der Klasse B4'!$S$12 -> 1899 | T15: =+'Übersicht der Klasse B4'!$S$14 -> 1984 | U15: =+'Übersicht der Klasse B4'!$S$16 -> 1802 | V15: =+'Übersicht der Klasse B4'!$S$18 -> 1718 | W15: =+'Übersicht der Klasse B4'!$S$20 -> 2017 | X15: =+'Übersicht der Klasse B4'!$S$22 -> 2017 | Y15: =+'Übersicht der Klasse B4'!$S$24 ->  | Z15: =+'Übersicht der Klasse B4'!$S$26 ->  | AA15: =+'Übersicht der Klasse B4'!$S$28 -> 0 | AB15: =+'Übersicht der Klasse B4'!$S$30 -> 0
B16: =+'Spielbogen 7er'!M16 -> 13. | C16: =+'Spielbogen 7er'!P16 -> 2025-04-24 | D16: =+'Spielbogen 7er'!N16 -> OT | E16: Postamt 2 | F16: =+'Spielbogen 7er'!S16 -> P2 2 | P16: 13. Antritt | Q16: =+'Übersicht der Klasse B4'!$T$8 -> 1900 | R16: =+'Übersicht der Klasse B4'!$T$10 -> 1733 | S16: =+'Übersicht der Klasse B4'!$T$12 -> 1906 | T16: =+'Übersicht der Klasse B4'!$T$14 -> 1542 | U16: =+'Übersicht der Klasse B4'!$T$16 -> 1841 | V16: =+'Übersicht der Klasse B4'!$T$18 -> 1793 | W16: =+'Übersicht der Klasse B4'!$T$20 -> 1922 | X16: =+'Übersicht der Klasse B4'!$T$22 -> 1922 | Y16: =+'Übersicht der Klasse B4'!$T$24 ->  | Z16: =+'Übersicht der Klasse B4'!$T$26 ->  | AA16: =+'Übersicht der Klasse B4'!$T$28 -> 0 | AB16: =+'Übersicht der Klasse B4'!$T$30 -> 0
B17: =+'Spielbogen 7er'!M17 -> 14. | C17: =+'Spielbogen 7er'!P17 -> 2025-05-08 | D17: =+'Spielbogen 7er'!N17 -> WB | E17: Körber Sports 2 | F17: =+'Spielbogen 7er'!S17 -> KS 2 | L17: Übersicht aller Mannschaften / Punkte | P17: 14. Antritt | Q17: =+'Übersicht der Klasse B4'!$U$8 -> 1925 | R17: =+'Übersicht der Klasse B4'!$U$10 -> 1832 | S17: =+'Übersicht der Klasse B4'!$U$12 -> 1653 | T17: =+'Übersicht der Klasse B4'!$U$14 -> 1813 | U17: =+'Übersicht der Klasse B4'!$U$16 -> 2045 | V17: =+'Übersicht der Klasse B4'!$U$18 -> 1841 | W17: =+'Übersicht der Klasse B4'!$U$20 -> 2091 | X17: =+'Übersicht der Klasse B4'!$U$22 -> 2091 | Y17: =+'Übersicht der Klasse B4'!$U$24 ->  | Z17: =+'Übersicht der Klasse B4'!$U$26 ->  | AA17: =+'Übersicht der Klasse B4'!$U$28 -> 0 | AB17: =+'Übersicht der Klasse B4'!$U$30 -> 0
L18: 1. Mannschaft | M18: Punkte | P18: Gesamt Pins: | Q18: =SUM(Q4:Q17) -> 26254 | R18: 25261 | S18: 24708 | T18: 24600 | U18: 24257 | V18: 24763 | W18: 25432 | X18: 25432 | AA18: 0 | AB18: 0
L19: =+$E$4 -> Panasonic 1 | M19: =+'Übersicht der Klasse B4'!$E$8 -> 68
L20: =+$E$5 -> Dataport 2 | M20: =+'Übersicht der Klasse B4'!$E$10 -> 58 | AF20: 1. Antritt | AG20: 2. Antritt | AH20: 3. Antritt | AI20: 4. Antritt | AJ20: 5. Antritt | AK20: 6. Antritt | AL20: 7. Antritt | AM20: 8. Antritt | AN20: 9. Antritt | AO20: 10. Antritt | AP20: 11. Antritt | AQ20: 12. Antritt | AR20: 13. Antritt | AS20: 14. Antritt | AT20: Gesamt Pins:
L21: =+$E$6 -> Still 3 | M21: =+'Übersicht der Klasse B4'!$E$12 -> 49 | P21: Gesamt Punkte: | Q21: =+'Übersicht der Klasse B4'!E8 -> 68 | R21: =+'Übersicht der Klasse B4'!E10 -> 58 | S21: =+'Übersicht der Klasse B4'!E12 -> 49 | T21: =+'Übersicht der Klasse B4'!E14 -> 50 | U21: =+'Übersicht der Klasse B4'!E16 -> 49 | V21: =+'Übersicht der Klasse B4'!E18 -> 46 | W21: =+'Übersicht der Klasse B4'!E20 -> 72 | X21: =+'Übersicht der Klasse B4'!E22 -> 72.5 | Y21: =+'Übersicht der Klasse B4'!F25 -> 0 | Z21: =+'Übersicht der Klasse B4'!E26 ->  | AA21: =+'Übersicht der Klasse B4'!F29 -> 0 | AB21: =+'Übersicht der Klasse B4'!F31 -> 0 | AE21: =+'Spielbogen 7er'!D10 -> Panasonic 1 | AF21: =+'Übersicht der Klasse B4'!$H$8 -> 1914 | AG21: =+'Übersicht der Klasse B4'!$I$8 -> 1912 | AH21: =+'Übersicht der Klasse B4'!$J$8 -> 1975 | AI21: =+'Übersicht der Klasse B4'!$K$8 -> 1777 | AJ21: =+'Übersicht der Klasse B4'!$L$8 -> 1907 | AK21: =+'Übersicht der Klasse B4'!$M$8 -> 1880 | AL21: =+'Übersicht der Klasse B4'!$N$8 -> 1686 | AM21: =+'Übersicht der Klasse B4'!$O$8 -> 1817 | AN21: =+'Übersicht der Klasse B4'!$P$8 -> 1832 | AO21: =+'Übersicht der Klasse B4'!$Q$8 -> 2017 | AP21: =+'Übersicht der Klasse B4'!$R$8 -> 1867 | AQ21: =+'Übersicht der Klasse B4'!$S$8 -> 1845 | AR21: =+'Übersicht der Klasse B4'!$T$8 -> 1900 | AS21: =+'Übersicht der Klasse B4'!$U$8 -> 1925 | AT21: =SUM(AF21:AS21) -> 26254
L22: =+$E$7 -> SG Stern Hamburg 1 | M22: =+'Übersicht der Klasse B4'!$E$14 -> 50 | AE22: =+'Spielbogen 7er'!D11 -> Dataport 2 | AF22: =+'Übersicht der Klasse B4'!$H$10 -> 1586 | AG22: =+'Übersicht der Klasse B4'!$I$10 -> 1748 | AH22: =+'Übersicht der Klasse B4'!$J$10 -> 1606 | AI22: =+'Übersicht der Klasse B4'!$K$10 -> 1733 | AJ22: =+'Übersicht der Klasse B4'!$L$10 -> 1849 | AK22: =+'Übersicht der Klasse B4'!$M$10 -> 1968 | AL22: =+'Übersicht der Klasse B4'!$N$10 -> 1822 | AM22: =+'Übersicht der Klasse B4'!$O$10 -> 1940 | AN22: =+'Übersicht der Klasse B4'!$P$10 -> 1762 | AO22: =+'Übersicht der Klasse B4'!$Q$10 -> 1842 | AP22: =+'Übersicht der Klasse B4'!$R$10 -> 1952 | AQ22: =+'Übersicht der Klasse B4'!$S$10 -> 1888 | AR22: =+'Übersicht der Klasse B4'!$T$10 -> 1733 | AS22: =+'Übersicht der Klasse B4'!$U$10 -> 1832 | AT22: 25261
L23: =+$E$8 -> Justitzbehörde 2 | M23: =+'Übersicht der Klasse B4'!$E$16 -> 49 | Q23: 1. Antritt | AE23: =+'Spielbogen 7er'!D12 -> Still 3 | AF23: =+'Übersicht der Klasse B4'!$H$12 -> 1732 | AG23: =+'Übersicht der Klasse B4'!$I$12 -> 1572 | AH23: =+'Übersicht der Klasse B4'!$J$12 -> 1805 | AI23: =+'Übersicht der Klasse B4'!$K$12 -> 1788 | AJ23: =+'Übersicht der Klasse B4'!$L$12 -> 1806 | AK23: =+'Übersicht der Klasse B4'!$M$12 -> 1853 | AL23: =+'Übersicht der Klasse B4'!$N$12 -> 1724 | AM23: =+'Übersicht der Klasse B4'!$O$12 -> 1778 | AN23: =+'Übersicht der Klasse B4'!$P$12 -> 1835 | AO23: =+'Übersicht der Klasse B4'!$Q$12 -> 1718 | AP23: =+'Übersicht der Klasse B4'!$R$12 -> 1639 | AQ23: =+'Übersicht der Klasse B4'!$S$12 -> 1899 | AR23: =+'Übersicht der Klasse B4'!$T$12 -> 1906 | AS23: =+'Übersicht der Klasse B4'!$U$12 -> 1653 | AT23: 24708
L24: =+$E$9 -> Postamt 2 | M24: =+'Übersicht der Klasse B4'!$E$18 -> 46 | Q24: =IF(Q26="1",+Q25+0.5,+Q25) -> 7 | R24: 4 | S24: 5 | T24: 3 | U24: 2 | V24: 6 | W24: 1 | X24: 1 | AA24: 0 | AB24: 0 | AE24: =+'Spielbogen 7er'!D13 -> SG Stern Hamburg 1 | AF24: =+'Übersicht der Klasse B4'!$H$14 -> 1528 | AG24: =+'Übersicht der Klasse B4'!$I$14 -> 1637 | AH24: =+'Übersicht der Klasse B4'!$J$14 -> 1502 | AI24: =+'Übersicht der Klasse B4'!$K$14 -> 1714 | AJ24: =+'Übersicht der Klasse B4'!$L$14 -> 1897 | AK24: =+'Übersicht der Klasse B4'!$M$14 -> 2011 | AL24: =+'Übersicht der Klasse B4'!$N$14 -> 1830 | AM24: =+'Übersicht der Klasse B4'!$O$14 -> 1822 | AN24: =+'Übersicht der Klasse B4'!$P$14 -> 1661 | AO24: =+'Übersicht der Klasse B4'!$Q$14 -> 1706 | AP24: =+'Übersicht der Klasse B4'!$R$14 -> 1953 | AQ24: =+'Übersicht der Klasse B4'!$S$14 -> 1984 | AR24: =+'Übersicht der Klasse B4'!$T$14 -> 1542 | AS24: =+'Übersicht der Klasse B4'!$U$14 -> 1813 | AT24: 24600
L25: =+$E$10 -> Körber Sports 2 | M25: =+'Übersicht der Klasse B4'!$E$20 -> 72 | Q25: =IF(Q4>0,RANK(Q4,$Q$4:$W$4,7),"0") -> 7 | R25: 4 | S25: 5 | T25: 3 | U25: 2 | V25: 6 | W25: 1 | X25: 1 | AA25: 0 | AB25: 0 | AE25: =+'Spielbogen 7er'!D14 -> Justitzbehörde 2 | AF25: =+'Übersicht der Klasse B4'!$H$16 -> 1349 | AG25: =+'Übersicht der Klasse B4'!$I$16 -> 1664 | AH25: =+'Übersicht der Klasse B4'!$J$16 -> 1609 | AI25: =+'Übersicht der Klasse B4'!$K$16 -> 1734 | AJ25: =+'Übersicht der Klasse B4'!$L$16 -> 1811 | AK25: =+'Übersicht der Klasse B4'!$M$16 -> 1961 | AL25: =+'Übersicht der Klasse B4'!$N$16 -> 1754 | AM25: =+'Übersicht der Klasse B4'!$O$16 -> 1958 | AN25: =+'Übersicht der Klasse B4'!$P$16 -> 1555 | AO25: =+'Übersicht der Klasse B4'!$Q$16 -> 1756 | AP25: =+'Übersicht der Klasse B4'!$R$16 -> 1418 | AQ25: =+'Übersicht der Klasse B4'!$S$16 -> 1802 | AR25: =+'Übersicht der Klasse B4'!$T$16 -> 1841 | AS25: =+'Übersicht der Klasse B4'!$U$16 -> 2045 | AT25: 24257
L26: =+$E$11 -> Panasonic 1 | M26: =+'Übersicht der Klasse B4'!$E$22 -> 72.5 | Q26: =IF(COUNTIF($Q$4:$W$4,Q4)>1,"1","") ->  | AE26: =+'Spielbogen 7er'!D15 -> Postamt 2 | AF26: =+'Übersicht der Klasse B4'!$H$18 -> 1740 | AG26: =+'Übersicht der Klasse B4'!$I$18 -> 1761 | AH26: =+'Übersicht der Klasse B4'!$J$18 -> 1781 | AI26: =+'Übersicht der Klasse B4'!$K$18 -> 1659 | AJ26: =+'Übersicht der Klasse B4'!$L$18 -> 1759 | AK26: =+'Übersicht der Klasse B4'!$M$18 -> 1692 | AL26: =+'Übersicht der Klasse B4'!$N$18 -> 1749 | AM26: =+'Übersicht der Klasse B4'!$O$18 -> 1824 | AN26: =+'Übersicht der Klasse B4'!$P$18 -> 1751 | AO26: =+'Übersicht der Klasse B4'!$Q$18 -> 1633 | AP26: =+'Übersicht der Klasse B4'!$R$18 -> 2062 | AQ26: =+'Übersicht der Klasse B4'!$S$18 -> 1718 | AR26: =+'Übersicht der Klasse B4'!$T$18 -> 1793 | AS26: =+'Übersicht der Klasse B4'!$U$18 -> 1841 | AT26: 24763
L27: =+$E$12 -> Dataport 2 | M27: =+'Übersicht der Klasse B4'!$F$25 -> 0 | AE27: =+'Spielbogen 7er'!D16 -> Körber Sports 2 | AF27: =+'Übersicht der Klasse B4'!$H$20 -> 1229 | AG27: =+'Übersicht der Klasse B4'!$I$20 -> 1282 | AH27: =+'Übersicht der Klasse B4'!$J$20 -> 1909 | AI27: =+'Übersicht der Klasse B4'!$K$20 -> 1952 | AJ27: =+'Übersicht der Klasse B4'!$L$20 -> 1914 | AK27: =+'Übersicht der Klasse B4'!$M$20 -> 1445 | AL27: =+'Übersicht der Klasse B4'!$N$20 -> 1777 | AM27: =+'Übersicht der Klasse B4'!$O$20 -> 2149 | AN27: =+'Übersicht der Klasse B4'!$P$20 -> 2014 | AO27: =+'Übersicht der Klasse B4'!$Q$20 -> 1974 | AP27: =+'Übersicht der Klasse B4'!$R$20 -> 1757 | AQ27: =+'Übersicht der Klasse B4'!$S$20 -> 2017 | AR27: =+'Übersicht der Klasse B4'!$T$20 -> 1922 | AS27: =+'Übersicht der Klasse B4'!$U$20 -> 2091 | AT27: 25432
L28: =+$E$13 -> Still 3 | M28: =+'Übersicht der Klasse B4'!$E$26 ->  | Q28: 2. Antritt | AE28: =+'Spielbogen 7er'!$G16 -> 0 | AF28: =+'Übersicht der Klasse B4'!$H$22 -> 1229 | AG28: =+'Übersicht der Klasse B4'!$I$22 -> 1282 | AH28: =+'Übersicht der Klasse B4'!$J$22 -> 1909 | AI28: =+'Übersicht der Klasse B4'!$K$22 -> 1952 | AJ28: =+'Übersicht der Klasse B4'!$L$22 -> 1914 | AK28: =+'Übersicht der Klasse B4'!$M$22 -> 1445 | AL28: =+'Übersicht der Klasse B4'!$N$22 -> 1777 | AM28: =+'Übersicht der Klasse B4'!$O$22 -> 2149 | AN28: =+'Übersicht der Klasse B4'!$P$22 -> 2014 | AO28: =+'Übersicht der Klasse B4'!$Q$22 -> 1974 | AP28: =+'Übersicht der Klasse B4'!$R$22 -> 1757 | AQ28: =+'Übersicht der Klasse B4'!$S$22 -> 2017 | AR28: =+'Übersicht der Klasse B4'!$T$22 -> 1922 | AS28: =+'Übersicht der Klasse B4'!$U$22 -> 2091 | AT28: 25432
Q29: =IF(Q31="1",+Q30+0.5,+Q30) -> 7 | R29: 5 | S29: 2 | T29: 3 | U29: 4 | V29: 6 | W29: 1 | X29: 1 | AA29: 0 | AB29: 0 | AE29: =+'Spielbogen 7er'!$G17 -> 0 | AF29: =+'Übersicht der Klasse B4'!$H$24 ->  | AG29: =+'Übersicht der Klasse B4'!$I$24 ->  | AH29: =+'Übersicht der Klasse B4'!$J$24 ->  | AI29: =+'Übersicht der Klasse B4'!$K$24 ->  | AJ29: =+'Übersicht der Klasse B4'!$L$24 ->  | AK29: =+'Übersicht der Klasse B4'!$M$24 ->  | AL29: =+'Übersicht der Klasse B4'!$N$24 ->  | AM29: =+'Übersicht der Klasse B4'!$O$24 ->  | AN29: =+'Übersicht der Klasse B4'!$P$24 ->  | AO29: =+'Übersicht der Klasse B4'!$Q$24 ->  | AP29: =+'Übersicht der Klasse B4'!$R$24 ->  | AQ29: =+'Übersicht der Klasse B4'!$S$24 ->  | AR29: =+'Übersicht der Klasse B4'!$T$24 ->  | AS29: =+'Übersicht der Klasse B4'!$U$24 -> 
Q30: =IF(Q5>0,RANK(Q5,$Q$5:$W$5,7),"0") -> 7 | R30: 5 | S30: 2 | T30: 3 | U30: 4 | V30: 6 | W30: 1 | X30: 1 | AA30: 0 | AB30: 0 | AE30: =+'Spielbogen 7er'!$G18 -> 0 | AF30: =+'Übersicht der Klasse B4'!$H$26 ->  | AG30: =+'Übersicht der Klasse B4'!$I$26 ->  | AH30: =+'Übersicht der Klasse B4'!$J$26 ->  | AI30: =+'Übersicht der Klasse B4'!$K$26 ->  | AJ30: =+'Übersicht der Klasse B4'!$L$26 ->  | AK30: =+'Übersicht der Klasse B4'!$M$26 ->  | AL30: =+'Übersicht der Klasse B4'!$N$26 ->  | AM30: =+'Übersicht der Klasse B4'!$O$26 ->  | AN30: =+'Übersicht der Klasse B4'!$P$26 ->  | AO30: =+'Übersicht der Klasse B4'!$Q$26 ->  | AP30: =+'Übersicht der Klasse B4'!$R$26 ->  | AQ30: =+'Übersicht der Klasse B4'!$S$26 ->  | AR30: =+'Übersicht der Klasse B4'!$T$26 ->  | AS30: =+'Übersicht der Klasse B4'!$U$26 -> 
Q31: =IF(COUNTIF($Q$5:$W$5,Q5)>1,"1","") ->  | AF31: =+'Übersicht der Klasse B4'!$H$28 -> 0 | AG31: =+'Übersicht der Klasse B4'!$I$28 -> 0 | AH31: =+'Übersicht der Klasse B4'!$J$28 -> 0 | AI31: =+'Übersicht der Klasse B4'!$K$28 -> 0 | AJ31: =+'Übersicht der Klasse B4'!$L$28 -> 0 | AK31: =+'Übersicht der Klasse B4'!$M$28 -> 0 | AL31: =+'Übersicht der Klasse B4'!$N$28 -> 0 | AM31: =+'Übersicht der Klasse B4'!$O$28 -> 0 | AN31: =+'Übersicht der Klasse B4'!$P$28 -> 0 | AO31: =+'Übersicht der Klasse B4'!$Q$28 -> 0 | AP31: =+'Übersicht der Klasse B4'!$R$28 -> 0 | AQ31: =+'Übersicht der Klasse B4'!$S$28 -> 0 | AR31: =+'Übersicht der Klasse B4'!$T$28 -> 0 | AS31: =+'Übersicht der Klasse B4'!$U$28 -> 0 | AT31: 0
L32: Übersicht aller Mannschaften / Spiele | AF32: =+'Übersicht der Klasse B4'!$H$30 -> 0 | AG32: =+'Übersicht der Klasse B4'!$I$30 -> 0 | AH32: =+'Übersicht der Klasse B4'!$J$30 -> 0 | AI32: =+'Übersicht der Klasse B4'!$K$30 -> 0 | AJ32: =+'Übersicht der Klasse B4'!$L$30 -> 0 | AK32: =+'Übersicht der Klasse B4'!$M$30 -> 0 | AL32: =+'Übersicht der Klasse B4'!$N$30 -> 0 | AM32: =+'Übersicht der Klasse B4'!$O$30 -> 0 | AN32: =+'Übersicht der Klasse B4'!$P$30 -> 0 | AO32: =+'Übersicht der Klasse B4'!$Q$30 -> 0 | AP32: =+'Übersicht der Klasse B4'!$R$30 -> 0 | AQ32: =+'Übersicht der Klasse B4'!$S$30 -> 0 | AR32: =+'Übersicht der Klasse B4'!$T$30 -> 0 | AS32: =+'Übersicht der Klasse B4'!$U$30 -> 0 | AT32: 0
L33: 1. Mannschaft | M33: Spiele | Q33: 3. Antritt
L34: =+$E$4 -> Panasonic 1 | M34: =COUNTIF(Uebersicht_1_01,">1")*12 -> 168 | Q34: =IF(Q36="1",+Q35+0.5,+Q35) -> 7 | R34: 2 | S34: 5 | T34: 1 | U34: 3 | V34: 4 | W34: 6 | X34: 6 | AA34: 0 | AB34: 0
L35: =+$E$5 -> Dataport 2 | M35: =COUNTIF(Uebersicht_1_02,">1")*12 -> 168 | Q35: =IF(Q6>0,RANK(Q6,$Q$6:$W$6,7),"0") -> 7 | R35: 2 | S35: 5 | T35: 1 | U35: 3 | V35: 4 | W35: 6 | X35: 6 | AA35: 0 | AB35: 0 | AF35: =+'Spielbogen 7er'!$G$9 -> 0 | AG35: =+'Spielbogen 7er'!$G$10 -> 0 | AH35: =+'Spielbogen 7er'!$G$11 -> 0 | AI35: =+'Spielbogen 7er'!$G$12 -> 0 | AJ35: =+'Spielbogen 7er'!$G$13 -> 0 | AK35: =+'Spielbogen 7er'!$G$14 -> 0 | AL35: =+'Spielbogen 7er'!$G$15 -> 0 | AM35: =+'Spielbogen 7er'!$G$16 -> 0 | AN35: =+'Spielbogen 7er'!$G$17 -> 0 | AO35: =+'Spielbogen 7er'!$G$18 -> 0
L36: =+$E$6 -> Still 3 | M36: =COUNTIF(Uebersicht_1_03,">1")*12 -> 168 | Q36: =IF(COUNTIF($Q$6:$W$6,Q6)>1,"1","") ->  | AE36: 1. Antritt | AF36: =+'Anhang zum Spielbericht'!$G$19 -> 1914 | AG36: =+'Anhang zum Spielbericht'!$H$19 -> 1586 | AH36: =+'Anhang zum Spielbericht'!$I$19 -> 1732 | AI36: =+'Anhang zum Spielbericht'!$J$19 -> 1528 | AJ36: =+'Anhang zum Spielbericht'!$K$19 -> 1349 | AK36: =+'Anhang zum Spielbericht'!$L$19 -> 1740 | AL36: =+'Anhang zum Spielbericht'!$M$19 -> 1229 | AM36: =+'Anhang zum Spielbericht'!$N$19 -> 1300 | AN36: =+'Anhang zum Spielbericht'!$R$19 -> 1812 | AO36: =+'Anhang zum Spielbericht'!$S$19 -> 1850
L37: =+$E$7 -> SG Stern Hamburg 1 | M37: =COUNTIF(Uebersicht_1_04,">1")*12 -> 168 | AE37: 2. Antritt | AF37: =+'Anhang zum Spielbericht'!$G$45 -> 1912 | AG37: =+'Anhang zum Spielbericht'!$H$45 -> 1748 | AH37: =+'Anhang zum Spielbericht'!$I$45 -> 1572 | AI37: =+'Anhang zum Spielbericht'!$J$45 -> 1637 | AJ37: =+'Anhang zum Spielbericht'!$K$45 -> 1664 | AK37: =+'Anhang zum Spielbericht'!$L$45 -> 1761 | AL37: =+'Anhang zum Spielbericht'!$M$45 -> 1282 | AM37: =+'Anhang zum Spielbericht'!$N$45 -> 0 | AN37: =+'Anhang zum Spielbericht'!$R$45 -> 0 | AO37: =+'Anhang zum Spielbericht'!$S$45 -> 0
L38: =+$E$8 -> Justitzbehörde 2 | M38: =COUNTIF(Uebersicht_1_05,">1")*12 -> 168 | Q38: 4. Antritt | AE38: 3. Antritt | AF38: =+'Anhang zum Spielbericht'!$G$72 -> 1975 | AG38: =+'Anhang zum Spielbericht'!$H$72 -> 1606 | AH38: =+'Anhang zum Spielbericht'!$I$72 -> 1805 | AI38: =+'Anhang zum Spielbericht'!$J$72 -> 1502 | AJ38: =+'Anhang zum Spielbericht'!$K$72 -> 1609 | AK38: =+'Anhang zum Spielbericht'!$L$72 -> 1781 | AL38: =+'Anhang zum Spielbericht'!$M$72 -> 1909 | AM38: =+'Anhang zum Spielbericht'!$N$72 -> 0 | AN38: =+'Anhang zum Spielbericht'!$R$72 -> 0 | AO38: =+'Anhang zum Spielbericht'!$S$72 -> 0
L39: =+$E$9 -> Postamt 2 | M39: =COUNTIF(Uebersicht_1_06,">1")*12 -> 168 | Q39: =IF(Q41="1",+Q40+0.5,+Q40) -> 5 | R39: 3 | S39: 6 | T39: 2 | U39: 4 | V39: 1 | W39: 7 | X39: 7 | AA39: 0 | AB39: 0 | AE39: 4. Antritt | AF39: =+'Anhang zum Spielbericht'!$G$99 -> 1777 | AG39: =+'Anhang zum Spielbericht'!$H$99 -> 1733 | AH39: =+'Anhang zum Spielbericht'!$I$99 -> 1788 | AI39: =+'Anhang zum Spielbericht'!$J$99 -> 1714 | AJ39: =+'Anhang zum Spielbericht'!$K$99 -> 1734 | AK39: =+'Anhang zum Spielbericht'!$L$99 -> 1659 | AL39: =+'Anhang zum Spielbericht'!$M$99 -> 1952 | AM39: =+'Anhang zum Spielbericht'!$N$99 -> 0 | AN39: =+'Anhang zum Spielbericht'!$R$99 -> 0 | AO39: =+'Anhang zum Spielbericht'!$S$99 -> 0
L40: =+$E$10 -> Körber Sports 2 | M40: =COUNTIF(Uebersicht_1_07,">1")*12 -> 168 | Q40: =IF(Q7>0,RANK(Q7,$Q$7:$W$7,7),"0") -> 5 | R40: 3 | S40: 6 | T40: 2 | U40: 4 | V40: 1 | W40: 7 | X40: 7 | AA40: 0 | AB40: 0 | AE40: 5. Antritt | AF40: =+'Anhang zum Spielbericht'!$G$126 -> 1907 | AG40: =+'Anhang zum Spielbericht'!$H$126 -> 1849 | AH40: =+'Anhang zum Spielbericht'!$I$126 -> 1806 | AI40: =+'Anhang zum Spielbericht'!$J$126 -> 1897 | AJ40: =+'Anhang zum Spielbericht'!$K$126 -> 1811 | AK40: =+'Anhang zum Spielbericht'!$L$126 -> 1759 | AL40: =+'Anhang zum Spielbericht'!$M$126 -> 1914 | AM40: =+'Anhang zum Spielbericht'!$N$126 -> 0 | AN40: =+'Anhang zum Spielbericht'!$R$126 -> 0 | AO40: =+'Anhang zum Spielbericht'!$S$126 -> 0
L41: =+$E$11 -> Panasonic 1 | M41: =COUNTIF(Uebersicht_1_08,">1")*12 -> 168 | Q41: =IF(COUNTIF($Q$7:$W$7,Q7)>1,"1","") ->  | AE41: 6. Antritt | AF41: =+'Anhang zum Spielbericht'!$G$153 -> 1880 | AG41: =+'Anhang zum Spielbericht'!$H$153 -> 1968 | AH41: =+'Anhang zum Spielbericht'!$I$153 -> 1853 | AI41: =+'Anhang zum Spielbericht'!$J$153 -> 2011 | AJ41: =+'Anhang zum Spielbericht'!$K$153 -> 1961 | AK41: =+'Anhang zum Spielbericht'!$L$153 -> 1692 | AL41: =+'Anhang zum Spielbericht'!$M$153 -> 1445 | AM41: =+'Anhang zum Spielbericht'!$N$153 -> 0 | AN41: =+'Anhang zum Spielbericht'!$R$153 -> 0 | AO41: =+'Anhang zum Spielbericht'!$S$153 -> 0
L42: =+$E$12 -> Dataport 2 | M42: =COUNTIF('Übersicht der Klasse B4'!H24:U24,">1")*12 -> 0 | AE42: 7. Antritt | AF42: =+'Anhang zum Spielbericht'!$G$180 -> 1686 | AG42: =+'Anhang zum Spielbericht'!$H$180 -> 1822 | AH42: =+'Anhang zum Spielbericht'!$I$180 -> 1724 | AI42: =+'Anhang zum Spielbericht'!$J$180 -> 1830 | AJ42: =+'Anhang zum Spielbericht'!$K$180 -> 1754 | AK42: =+'Anhang zum Spielbericht'!$L$180 -> 1749 | AL42: =+'Anhang zum Spielbericht'!$M$180 -> 1777 | AM42: =+'Anhang zum Spielbericht'!$N$180 -> 0 | AN42: =+'Anhang zum Spielbericht'!$R$180 -> 0 | AO42: =+'Anhang zum Spielbericht'!$S$180 -> 0
L43: =+$E$13 -> Still 3 | M43: =COUNTIF(Uebersicht_1_10,">1")*12 -> 0 | Q43: 5. Antritt | AE43: 8. Antritt | AF43: =+'Anhang zum Spielbericht'!$G$207 -> 1817 | AG43: =+'Anhang zum Spielbericht'!$H$207 -> 1940 | AH43: =+'Anhang zum Spielbericht'!$I$207 -> 1778 | AI43: =+'Anhang zum Spielbericht'!$J$207 -> 1822 | AJ43: =+'Anhang zum Spielbericht'!$K$207 -> 1958 | AK43: =+'Anhang zum Spielbericht'!$L$207 -> 1824 | AL43: =+'Anhang zum Spielbericht'!$M$207 -> 2149 | AM43: =+'Anhang zum Spielbericht'!$N$207 -> 0 | AN43: =+'Anhang zum Spielbericht'!$R$207 -> 0 | AO43: =+'Anhang zum Spielbericht'!$S$207 -> 0
Q44: =IF(Q46="1",+Q45+0.5,+Q45) -> 6 | R44: 4 | S44: 2 | T44: 5 | U44: 3 | V44: 1 | W44: 7 | X44: 7.5 | Y44: =IF(Y46="1",+Y45+0.5,+Y45) ->  | AA44: 0 | AB44: 0.5 | AE44: 9. Antritt | AF44: =+'Anhang zum Spielbericht'!$G$234 -> 1832 | AG44: =+'Anhang zum Spielbericht'!$H$234 -> 1762 | AH44: =+'Anhang zum Spielbericht'!$I$234 -> 1835 | AI44: =+'Anhang zum Spielbericht'!$J$234 -> 1661 | AJ44: =+'Anhang zum Spielbericht'!$K$234 -> 1555 | AK44: =+'Anhang zum Spielbericht'!$L$234 -> 1751 | AL44: =+'Anhang zum Spielbericht'!$M$234 -> 2014 | AM44: =+'Anhang zum Spielbericht'!$N$234 -> 0 | AN44: =+'Anhang zum Spielbericht'!$R$234 -> 0 | AO44: =+'Anhang zum Spielbericht'!$S$234 -> 0
Q45: =IF(Q8>0,RANK(Q8,$Q$8:$W$8,7),"0") -> 6 | R45: 4 | S45: 2 | T45: 5 | U45: 3 | V45: 1 | W45: 7 | X45: 7 | AA45: 0 | AB45: 0 | AE45: 10. Antritt | AF45: =+'Anhang zum Spielbericht'!$G$262 -> 2017 | AG45: =+'Anhang zum Spielbericht'!$H$262 -> 1842 | AH45: =+'Anhang zum Spielbericht'!$I$262 -> 1718 | AI45: =+'Anhang zum Spielbericht'!$J$262 -> 1706 | AJ45: =+'Anhang zum Spielbericht'!$K$262 -> 1756 | AK45: =+'Anhang zum Spielbericht'!$L$262 -> 1633 | AL45: =+'Anhang zum Spielbericht'!$M$262 -> 1974 | AM45: =+'Anhang zum Spielbericht'!$N$262 -> 0 | AN45: =+'Anhang zum Spielbericht'!$R$262 -> 0 | AO45: =+'Anhang zum Spielbericht'!$S$262 -> 0
Q46: =IF(COUNTIF(Q8:$W$8,Q8)>1,"1","") ->  | R46: =IF(COUNTIF(R8:$W$8,R8)>1,"1","") ->  | S46: =IF(COUNTIF(S8:$W$8,S8)>1,"1","") ->  | T46: =IF(COUNTIF(T8:$W$8,T8)>1,"1","") ->  | U46: =IF(COUNTIF(U8:$W$8,U8)>1,"1","") ->  | V46: =IF(COUNTIF(V8:$W$8,V8)>1,"1","") ->  | W46: =IF(COUNTIF(W8:$W$8,W8)>1,"1","") ->  | X46: =IF(COUNTIF($W8:X$8,X8)>1,"1","") -> 1 | Y46: =IF(COUNTIF(Q8:$W$8,Y8)>1,"1","") ->  | Z46: =IF(COUNTIF($W8:Z$8,Z8)>1,"1","") -> 1 | AA46: =IF(COUNTIF($Z8:AA$8,AA8)>1,"1","") ->  | AB46: =IF(COUNTIF($Z8:AB$8,AB8)>1,"1","") -> 1 | AE46: 11. Antritt | AF46: =+'Anhang zum Spielbericht'!$G$289 -> 1867 | AG46: =+'Anhang zum Spielbericht'!$H$289 -> 1952 | AH46: =+'Anhang zum Spielbericht'!$I$289 -> 1639 | AI46: =+'Anhang zum Spielbericht'!$J$289 -> 1953 | AJ46: =+'Anhang zum Spielbericht'!$K$289 -> 1418 | AK46: =+'Anhang zum Spielbericht'!$L$289 -> 2062 | AL46: =+'Anhang zum Spielbericht'!$M$289 -> 1757 | AM46: =+'Anhang zum Spielbericht'!$N$289 -> 0 | AN46: =+'Anhang zum Spielbericht'!$R$289 -> 0 | AO46: =+'Anhang zum Spielbericht'!$S$289 -> 0
AE47: 12. Antritt | AF47: =+'Anhang zum Spielbericht'!$G$316 -> 1845 | AG47: =+'Anhang zum Spielbericht'!$H$316 -> 1888 | AH47: =+'Anhang zum Spielbericht'!$I$316 -> 1899 | AI47: =+'Anhang zum Spielbericht'!$J$316 -> 1984 | AJ47: =+'Anhang zum Spielbericht'!$K$316 -> 1802 | AK47: =+'Anhang zum Spielbericht'!$L$316 -> 1718 | AL47: =+'Anhang zum Spielbericht'!$M$316 -> 2017 | AM47: =+'Anhang zum Spielbericht'!$N$316 -> 0 | AN47: =+'Anhang zum Spielbericht'!$R$316 -> 0 | AO47: =+'Anhang zum Spielbericht'!$S$316 -> 0
Q48: 6. Antritt | AE48: 13. Antritt | AF48: =+'Anhang zum Spielbericht'!$G$343 -> 1900 | AG48: =+'Anhang zum Spielbericht'!$H$343 -> 1733 | AH48: =+'Anhang zum Spielbericht'!$I$343 -> 1906 | AI48: =+'Anhang zum Spielbericht'!$J$343 -> 1542 | AJ48: =+'Anhang zum Spielbericht'!$K$343 -> 1841 | AK48: =+'Anhang zum Spielbericht'!$L$343 -> 1793 | AL48: =+'Anhang zum Spielbericht'!$M$343 -> 1922 | AM48: =+'Anhang zum Spielbericht'!$N$343 -> 0 | AN48: =+'Anhang zum Spielbericht'!$R$343 -> 1031 | AO48: =+'Anhang zum Spielbericht'!$S$343 -> 1241
Q49: =IF(Q51="1",+Q50+0.5,+Q50) -> 4 | R49: 6 | S49: 3 | T49: 7 | U49: 5 | V49: 2 | W49: 1 | X49: 1 | AA49: 0 | AB49: 0 | AE49: 14. Antritt | AF49: =+'Anhang zum Spielbericht'!$G$370 -> 1925 | AG49: =+'Anhang zum Spielbericht'!$H$370 -> 1832 | AH49: =+'Anhang zum Spielbericht'!$I$370 -> 1653 | AI49: =+'Anhang zum Spielbericht'!$J$370 -> 1813 | AJ49: =+'Anhang zum Spielbericht'!$K$370 -> 2045 | AK49: =+'Anhang zum Spielbericht'!$L$370 -> 1841 | AL49: =+'Anhang zum Spielbericht'!$M$370 -> 2091 | AM49: =+'Anhang zum Spielbericht'!$N$370 -> 0 | AN49: =+'Anhang zum Spielbericht'!$R$370 -> 0 | AO49: =+'Anhang zum Spielbericht'!$S$370 -> 0
Q50: =IF(Q9>0,RANK(Q9,$Q$9:$W$9,7),"0") -> 4 | R50: 6 | S50: 3 | T50: 7 | U50: 5 | V50: 2 | W50: 1 | X50: 1 | AA50: 0 | AB50: 0 | AE50: Gesamt Pins: | AF50: =SUM(AF36:AF49) -> 26254 | AG50: 25261 | AH50: 24708 | AI50: 24600 | AJ50: 24257 | AK50: 24763 | AL50: 25432 | AM50: 1300 | AN50: 2843 | AO50: 3091 | AX50: S R H 1 | BC50: B W V 4 | BP50: S R H 1 | CB50: B W V 4
Q51: =IF(COUNTIF($Q$9:$W$9,Q9)>1,"1","") -> 
AF52: 1. Antritt | AG52: 2. Antritt | AH52: 3. Antritt | AI52: 4. Antritt | AJ52: 5. Antritt | AK52: 6. Antritt | AL52: 7. Antritt | AM52: 8. Antritt | AN52: 9. Antritt | AO52: 10. Antritt | AP52: 11. Antritt | AQ52: 12. Antritt | AR52: 13. Antritt | AS52: 14. Antritt | AT52: Gesamt Pins:
Q53: 7. Antritt | AE53: =+'Spielbogen 7er'!I10 -> PAN 1 | AF53: =+'Anhang zum Spielbericht'!$G$19 -> 1914 | AG53: =+'Anhang zum Spielbericht'!$G$45 -> 1912 | AH53: =+'Anhang zum Spielbericht'!$G$72 -> 1975 | AI53: =+'Anhang zum Spielbericht'!$G$99 -> 1777 | AJ53: =+'Anhang zum Spielbericht'!$G$126 -> 1907 | AK53: =+'Anhang zum Spielbericht'!$G$153 -> 1880 | AL53: =+'Anhang zum Spielbericht'!$G$180 -> 1686 | AM53: =+'Anhang zum Spielbericht'!$G$207 -> 1817 | AN53: =+'Anhang zum Spielbericht'!$G$234 -> 1832 | AO53: =+'Anhang zum Spielbericht'!$G$262 -> 2017 | AP53: =+'Anhang zum Spielbericht'!$G$289 -> 1867 | AQ53: =+'Anhang zum Spielbericht'!$G$316 -> 1845 | AR53: =+'Anhang zum Spielbericht'!$G$343 -> 1900 | AS53: =+'Anhang zum Spielbericht'!$G$370 -> 1925 | AT53: =SUM(AF53:AS53) -> 26254
Q54: =IF(Q56="1",+Q55+0.5,+Q55) -> 1 | R54: 6 | S54: 2 | T54: 7 | U54: 4 | V54: 3 | W54: 5 | X54: 5 | AA54: 0 | AB54: 0 | AE54: =+'Spielbogen 7er'!I11 -> DAT 2 | AF54: =+'Anhang zum Spielbericht'!$H$19 -> 1586 | AG54: =+'Anhang zum Spielbericht'!$H$45 -> 1748 | AH54: =+'Anhang zum Spielbericht'!$H$72 -> 1606 | AI54: =+'Anhang zum Spielbericht'!$H$99 -> 1733 | AJ54: =+'Anhang zum Spielbericht'!$H$126 -> 1849 | AK54: =+'Anhang zum Spielbericht'!$H$153 -> 1968 | AL54: =+'Anhang zum Spielbericht'!$H$180 -> 1822 | AM54: =+'Anhang zum Spielbericht'!$H$207 -> 1940 | AN54: =+'Anhang zum Spielbericht'!$H$234 -> 1762 | AO54: =+'Anhang zum Spielbericht'!$H$262 -> 1842 | AP54: =+'Anhang zum Spielbericht'!$H$289 -> 1952 | AQ54: =+'Anhang zum Spielbericht'!$H$316 -> 1888 | AR54: =+'Anhang zum Spielbericht'!$H$343 -> 1733 | AS54: =+'Anhang zum Spielbericht'!$H$370 -> 1832 | AT54: 25261
G55: KAH 1 | H55: DAT 2 | Q55: =IF(Q10>0,RANK(Q10,$Q$10:$W$10,7),"0") -> 1 | R55: 6 | S55: 2 | T55: 7 | U55: 4 | V55: 3 | W55: 5 | X55: 5 | AA55: 0 | AB55: 0 | AE55: =+'Spielbogen 7er'!I12 -> STI 3 | AF55: =+'Anhang zum Spielbericht'!$I$19 -> 1732 | AG55: =+'Anhang zum Spielbericht'!$I$45 -> 1572 | AH55: =+'Anhang zum Spielbericht'!$I$72 -> 1805 | AI55: =+'Anhang zum Spielbericht'!$I$99 -> 1788 | AJ55: =+'Anhang zum Spielbericht'!$I$126 -> 1806 | AK55: =+'Anhang zum Spielbericht'!$I$153 -> 1853 | AL55: =+'Anhang zum Spielbericht'!$I$180 -> 1724 | AM55: =+'Anhang zum Spielbericht'!$I$207 -> 1778 | AN55: =+'Anhang zum Spielbericht'!$I$234 -> 1835 | AO55: =+'Anhang zum Spielbericht'!$I$262 -> 1718 | AP55: =+'Anhang zum Spielbericht'!$I$289 -> 1639 | AQ55: =+'Anhang zum Spielbericht'!$I$316 -> 1899 | AR55: =+'Anhang zum Spielbericht'!$I$343 -> 1906 | AS55: =+'Anhang zum Spielbericht'!$I$370 -> 1653 | AT55: 24708
G56: BAS 2 | H56: JUS 2 | Q56: =IF(COUNTIF($Q$10:$W$10,Q7)>1,"1","") ->  | AE56: =+'Spielbogen 7er'!I13 -> SGS 1 | AF56: =+'Anhang zum Spielbericht'!$J$19 -> 1528 | AG56: =+'Anhang zum Spielbericht'!$J$45 -> 1637 | AH56: =+'Anhang zum Spielbericht'!$J$72 -> 1502 | AI56: =+'Anhang zum Spielbericht'!$J$99 -> 1714 | AJ56: =+'Anhang zum Spielbericht'!$J$126 -> 1897 | AK56: =+'Anhang zum Spielbericht'!$J$153 -> 2011 | AL56: =+'Anhang zum Spielbericht'!$J$180 -> 1830 | AM56: =+'Anhang zum Spielbericht'!$J$207 -> 1822 | AN56: =+'Anhang zum Spielbericht'!$J$234 -> 1661 | AO56: =+'Anhang zum Spielbericht'!$J$262 -> 1706 | AP56: =+'Anhang zum Spielbericht'!$J$289 -> 1953 | AQ56: =+'Anhang zum Spielbericht'!$J$316 -> 1984 | AR56: =+'Anhang zum Spielbericht'!$J$343 -> 1542 | AS56: =+'Anhang zum Spielbericht'!$J$370 -> 1813 | AT56: 24600
G57: SGS 1 | H57: GAS 1 | AE57: =+'Spielbogen 7er'!I14 -> JUS 2 | AF57: =+'Anhang zum Spielbericht'!$K$19 -> 1349 | AG57: =+'Anhang zum Spielbericht'!$K$45 -> 1664 | AH57: =+'Anhang zum Spielbericht'!$K$72 -> 1609 | AI57: =+'Anhang zum Spielbericht'!$K$99 -> 1734 | AJ57: =+'Anhang zum Spielbericht'!$K$126 -> 1811 | AK57: =+'Anhang zum Spielbericht'!$K$153 -> 1961 | AL57: =+'Anhang zum Spielbericht'!$K$180 -> 1754 | AM57: =+'Anhang zum Spielbericht'!$K$207 -> 1958 | AN57: =+'Anhang zum Spielbericht'!$K$234 -> 1555 | AO57: =+'Anhang zum Spielbericht'!$K$262 -> 1756 | AP57: =+'Anhang zum Spielbericht'!$K$289 -> 1418 | AQ57: =+'Anhang zum Spielbericht'!$K$316 -> 1802 | AR57: =+'Anhang zum Spielbericht'!$K$343 -> 1841 | AS57: =+'Anhang zum Spielbericht'!$K$370 -> 2045 | AT57: 24257
G58: FAH 2 | H58: FAH 3 | Q58: 8. Antritt | AE58: =+'Spielbogen 7er'!I15 -> P2 2 | AF58: =+'Anhang zum Spielbericht'!$L$19 -> 1740 | AG58: =+'Anhang zum Spielbericht'!$L$45 -> 1761 | AH58: =+'Anhang zum Spielbericht'!$L$72 -> 1781 | AI58: =+'Anhang zum Spielbericht'!$L$99 -> 1659 | AJ58: =+'Anhang zum Spielbericht'!$L$126 -> 1759 | AK58: =+'Anhang zum Spielbericht'!$L$153 -> 1692 | AL58: =+'Anhang zum Spielbericht'!$L$180 -> 1749 | AM58: =+'Anhang zum Spielbericht'!$L$207 -> 1824 | AN58: =+'Anhang zum Spielbericht'!$L$234 -> 1751 | AO58: =+'Anhang zum Spielbericht'!$L$262 -> 1633 | AP58: =+'Anhang zum Spielbericht'!$L$289 -> 2062 | AQ58: =+'Anhang zum Spielbericht'!$L$316 -> 1718 | AR58: =+'Anhang zum Spielbericht'!$L$343 -> 1793 | AS58: =+'Anhang zum Spielbericht'!$L$370 -> 1841 | AT58: 24763 | AX58: E D 2 | BC58: E L B 1 | BP58: E D 2 | CB58: E L B 1
G59: CLP 1 | H59: OTT 3 | Q59: =IF(Q61="1",+Q60+0.5,+Q60) -> 2 | R59: 5 | S59: 1 | T59: 3 | U59: 6 | V59: 4 | W59: 7 | X59: 7 | AA59: 0 | AB59: 0 | AE59: =+'Spielbogen 7er'!I16 -> KS 2 | AF59: =+'Anhang zum Spielbericht'!$M$19 -> 1229 | AG59: =+'Anhang zum Spielbericht'!$M$45 -> 1282 | AH59: =+'Anhang zum Spielbericht'!$M$72 -> 1909 | AI59: =+'Anhang zum Spielbericht'!$M$99 -> 1952 | AJ59: =+'Anhang zum Spielbericht'!$M$126 -> 1914 | AK59: =+'Anhang zum Spielbericht'!$M$153 -> 1445 | AL59: =+'Anhang zum Spielbericht'!$M$180 -> 1777 | AM59: =+'Anhang zum Spielbericht'!$M$207 -> 2149 | AN59: =+'Anhang zum Spielbericht'!$M$234 -> 2014 | AO59: =+'Anhang zum Spielbericht'!$M$262 -> 1974 | AP59: =+'Anhang zum Spielbericht'!$M$289 -> 1757 | AQ59: =+'Anhang zum Spielbericht'!$M$316 -> 2017 | AR59: =+'Anhang zum Spielbericht'!$M$343 -> 1922 | AS59: =+'Anhang zum Spielbericht'!$M$370 -> 2091 | AT59: 25432
G60: TRE 1 | H60: HAS 7 | Q60: =IF(Q11>0,RANK(Q11,$Q$11:$W$11,7),"0") -> 2 | R60: 5 | S60: 1 | T60: 3 | U60: 6 | V60: 4 | W60: 7 | X60: 7 | AA60: 0 | AB60: 0 | AE60: =+'Spielbogen 7er'!I17 -> 0 | AF60: =+'Anhang zum Spielbericht'!$N$19 -> 1300 | AG60: =+'Anhang zum Spielbericht'!$N$45 -> 0 | AH60: =+'Anhang zum Spielbericht'!$N$72 -> 0 | AI60: =+'Anhang zum Spielbericht'!$N$99 -> 0 | AJ60: =+'Anhang zum Spielbericht'!$N$126 -> 0 | AK60: =+'Anhang zum Spielbericht'!$N$153 -> 0 | AL60: =+'Anhang zum Spielbericht'!$N$180 -> 0 | AM60: =+'Anhang zum Spielbericht'!$N$207 -> 0 | AN60: =+'Anhang zum Spielbericht'!$N$234 -> 0 | AO60: =+'Anhang zum Spielbericht'!$N$262 -> 0 | AP60: =+'Anhang zum Spielbericht'!$N$289 -> 0 | AQ60: =+'Anhang zum Spielbericht'!$N$316 -> 0 | AR60: =+'Anhang zum Spielbericht'!$N$343 -> 0 | AS60: =+'Anhang zum Spielbericht'!$N$370 -> 0 | AT60: 1300
Q61: =IF(COUNTIF($Q$11:$W$11,Q11)>1,"1","") ->  | AE61: =+'Spielbogen 7er'!$G$17 -> 0 | AF61: =+'Anhang zum Spielbericht'!$R$19 -> 1812 | AG61: =+'Anhang zum Spielbericht'!$R$45 -> 0 | AH61: =+'Anhang zum Spielbericht'!$R$72 -> 0 | AI61: =+'Anhang zum Spielbericht'!$R$99 -> 0 | AJ61: =+'Anhang zum Spielbericht'!$R$126 -> 0 | AK61: =+'Anhang zum Spielbericht'!$R$153 -> 0 | AL61: =+'Anhang zum Spielbericht'!$R$180 -> 0 | AM61: =+'Anhang zum Spielbericht'!$R$207 -> 0 | AN61: =+'Anhang zum Spielbericht'!$R$234 -> 0 | AO61: =+'Anhang zum Spielbericht'!$R$262 -> 0 | AP61: =+'Anhang zum Spielbericht'!$R$289 -> 0 | AQ61: =+'Anhang zum Spielbericht'!$R$316 -> 0 | AR61: =+'Anhang zum Spielbericht'!$R$343 -> 1031 | AS61: =+'Anhang zum Spielbericht'!$R$370 -> 0 | AT61: 2843
AE62: =+'Spielbogen 7er'!$G$18 -> 0 | AF62: =+'Anhang zum Spielbericht'!$S$19 -> 1850 | AG62: =+'Anhang zum Spielbericht'!$S$45 -> 0 | AH62: =+'Anhang zum Spielbericht'!$S$72 -> 0 | AI62: =+'Anhang zum Spielbericht'!$S$99 -> 0 | AJ62: =+'Anhang zum Spielbericht'!$S$126 -> 0 | AK62: =+'Anhang zum Spielbericht'!$S$153 -> 0 | AL62: =+'Anhang zum Spielbericht'!$S$180 -> 0 | AM62: =+'Anhang zum Spielbericht'!$S$207 -> 0 | AN62: =+'Anhang zum Spielbericht'!$S$234 -> 0 | AO62: =+'Anhang zum Spielbericht'!$S$262 -> 0 | AP62: =+'Anhang zum Spielbericht'!$S$289 -> 0 | AQ62: =+'Anhang zum Spielbericht'!$S$316 -> 0 | AR62: =+'Anhang zum Spielbericht'!$S$343 -> 1241 | AS62: =+'Anhang zum Spielbericht'!$S$370 -> 0 | AT62: 3091
Q63: 9. Antritt
Q64: =IF(Q66="1",+Q65+0.5,+Q65) -> 5 | R64: 4 | S64: 6 | T64: 2 | U64: 1 | V64: 3 | W64: 7 | X64: 7 | AA64: 0 | AB64: 0
Q65: =IF(Q12>0,RANK(Q12,$Q$12:$W$12,7),"0") -> 5 | R65: 4 | S65: 6 | T65: 2 | U65: 1 | V65: 3 | W65: 7 | X65: 7 | AA65: 0 | AB65: 0
Q66: =IF(COUNTIF($Q$12:$W$12,Q12)>1,"1","") ->  | AX66: D K Y 1 | BC66: J U L 1 | BP66: D K Y 1 | CB66: J U L 1
Q68: 10. Antritt
Q69: =IF(Q71="1",+Q70+0.5,+Q70) -> 7 | R69: 5 | S69: 3 | T69: 2 | U69: 4 | V69: 1 | W69: 6 | X69: 6 | AA69: 0 | AB69: 0
Q70: =IF(Q13>0,RANK(Q13,$Q$13:$W$13,7),"0") -> 7 | R70: 5 | S70: 3 | T70: 2 | U70: 4 | V70: 1 | W70: 6 | X70: 6 | AA70: 0 | AB70: 0
Q71: =IF(COUNTIF($Q$13:$W$13,Q13)>1,"1","") -> 
Q73: 11. Antritt
Q74: =IF(Q76="1",+Q75+0.5,+Q75) -> 4 | R74: 5 | S74: 2 | T74: 6 | U74: 1 | V74: 7 | W74: 3 | X74: 3 | AA74: 0 | AB74: 0 | AX74: H P A 1 | BC74: D A T 1 | BP74: H P A 1 | CB74: D A T 1
Q75: =IF(Q14>0,RANK(Q14,$Q$14:$W$14,7),"0") -> 4 | R75: 5 | S75: 2 | T75: 6 | U75: 1 | V75: 7 | W75: 3 | X75: 3 | AA75: 0 | AB75: 0
Q76: =IF(COUNTIF($Q$14:$W$14,Q14)>1,"1","") -> 
Q78: 12. Antritt
Q79: =IF(Q81="1",+Q80+0.5,+Q80) -> 3 | R79: 4 | S79: 5 | T79: 6 | U79: 2 | V79: 1 | W79: 7 | X79: 7 | AA79: 0 | AB79: 0
Q80: =IF(Q15>0,RANK(Q15,$Q$15:$W$15,7),"0") -> 3 | R80: 4 | S80: 5 | T80: 6 | U80: 2 | V80: 1 | W80: 7 | X80: 7 | AA80: 0 | AB80: 0
Q81: =IF(COUNTIF($Q$15:$W$15,Q15)>1,"1","") -> 
AX82: K S 2 | BC82: P A N 1 | BP82: K S 2 | CB82: P A N 1
Q83: 13. Antritt
Q84: =IF(Q86="1",+Q85+0.5,+Q85) -> 5 | R84: 2 | S84: 6 | T84: 1 | U84: 4 | V84: 3 | W84: 7 | X84: 7 | AA84: 0 | AB84: 0
Q85: =IF(Q16>0,RANK(Q16,$Q$16:$W$16,7),"0") -> 5 | R85: 2 | S85: 6 | T85: 1 | U85: 4 | V85: 3 | W85: 7 | X85: 7 | AA85: 0 | AB85: 0
Q86: =IF(COUNTIF($Q$16:$W$16,Q16)>1,"1","") -> 
Q88: 14. Antritt
Q89: =IF(Q91="1",+Q90+0.5,+Q90) -> 5 | R89: 3 | S89: 1 | T89: 2 | U89: 6 | V89: 4 | W89: 7 | X89: 7 | AA89: 0 | AB89: 0
Q90: =IF(Q17>0,RANK(Q17,$Q$17:$W$17,7),"0") -> 5 | R90: 3 | S90: 1 | T90: 2 | U90: 6 | V90: 4 | W90: 7 | X90: 7 | AA90: 0 | AB90: 0
Q91: =IF(COUNTIF($Q$17:$W$17,Q17)>1,"1","") -> 

Sheet Anhang zum Spielbericht
A1: Start | AF1: Start | EN1: Start | FD1: Start | FT1: Start | GJ1: Start | GZ1: Start
A2: Rangliste | AF2: Rangliste | EN2: Rangliste | FD2: Rangliste | FT2: Rangliste | GJ2: Rangliste | GZ2: Rangliste
E4: Anhang zum Spielbericht B O W L I N G
A5: Anhang auswählen | N5: Punktspielserie
E6: alle Felder sind unbedingt auszufüllen und mit dem Original-Spielbericht einzusenden.
E8: Klasse: | G8: =+Hilfstabelle!$G$5 -> B4 | H8: Antritt-Nr. : | I8: 1 | J8: Datum : | K8: =VLOOKUP(I8,Hilfstabelle!$I$5:$J$18,2,0) -> 2024-09-12 | L8: Halle : | M8: =VLOOKUP(I8,Hilfstabelle!$I$5:$L$18,3,0) -> Othmarschen
G10: Ausrichter BSG: | H10: =VLOOKUP(I8,Hilfstabelle!$I$5:$L$18,4,0) -> Panasonic 1 | I10: Mannschaftsführer: Michael Wetzel | L10: Telefon: 0172/412 45 69
G11: Bahn: | H11: Bahn: | I11: Bahn: | J11: Bahn: | K11: Bahn: | L11: Bahn: | M11: Bahn: | N11: Bahn: | R11: Bahn: | S11: Bahn:
E12: Durch- gänge | G12: BSG | H12: BSG | I12: BSG | J12: BSG | K12: BSG | L12: BSG | M12: BSG | N12: BSG | R12: BSG | S12: BSG
A13: Drucken | G13: =VLOOKUP(G14,Hilfstabelle!$L$5:$M$16,2,0) -> PAN 1 | H13: =VLOOKUP(H14,Hilfstabelle!$L$5:$M$16,2,0) -> DAT 2 | I13: =VLOOKUP(I14,Hilfstabelle!$L$5:$M$16,2,0) -> STI 3 | J13: =VLOOKUP(J14,Hilfstabelle!$L$5:$M$16,2,0) -> SGS 1 | K13: =VLOOKUP(K14,Hilfstabelle!$L$5:$M$16,2,0) -> JUS 2 | L13: =VLOOKUP(L14,Hilfstabelle!$L$5:$M$16,2,0) -> P2 2 | M13: =VLOOKUP(M14,Hilfstabelle!$L$5:$M$16,2,0) -> KS 2 | N13: =VLOOKUP(N14,Hilfstabelle!$L$5:$M$16,2,0) -> PAN 1 | R13: =VLOOKUP(R14,Hilfstabelle!$L$5:$M$16,2,0) -> DAT 2 | S13: =VLOOKUP(S14,Hilfstabelle!$L$5:$M$16,2,0) -> STI 3
G14: =+Hilfstabelle!L5 -> Panasonic 1 | H14: =+Hilfstabelle!L6 -> Dataport 2 | I14: =+Hilfstabelle!L7 -> Still 3 | J14: =+Hilfstabelle!L8 -> SG Stern Hamburg 1 | K14: =+Hilfstabelle!L9 -> Justitzbehörde 2 | L14: =+Hilfstabelle!L10 -> Postamt 2 | M14: =+Hilfstabelle!L11 -> Körber Sports 2 | N14: =+Hilfstabelle!L12 -> Panasonic 1 | R14: =+Hilfstabelle!L13 -> Dataport 2 | S14: =+Hilfstabelle!$L14 -> Still 3
E15: 1 | G15: 651 | H15: 555 | I15: 543 | J15: 478 | K15: 457 | L15: 641 | M15: 382 | N15: 606 | R15: 561 | S15: 576
E16: 2 | G16: 674 | H16: 504 | I16: 580 | J16: 517 | K16: 475 | L16: 598 | M16: 406 | N16: 694 | R16: 702 | S16: 617
E17: 1 + 2 | G17: =+G16+G15 -> 1325 | H17: 1059 | I17: 1123 | J17: 995 | K17: 932 | L17: 1239 | M17: 788 | N17: 1300 | R17: =+R16+R15 -> 1263 | S17: =+S16+S15 -> 1193
E18: 3 | G18: 589 | H18: 527 | I18: 609 | J18: 533 | K18: 417 | L18: 501 | M18: 441 | R18: 549 | S18: 657
E19: Pins Gesamt | G19: =+G18+G17 -> 1914 | H19: 1586 | I19: 1732 | J19: 1528 | K19: 1349 | L19: 1740 | M19: 1229 | N19: 1300 | R19: =+R18+R17 -> 1812 | S19: =+S18+S17 -> 1850
E20: Punkte Antritt | G20: =IF(G23="1",+G22+0.5,+G22) -> 7 | H20: 4 | I20: 5 | J20: 3 | K20: 2 | L20: 6 | M20: 1 | R20: =IF(R23="1",+R22+0.5,+R22) -> 8 | S20: =IF(S23="1",+S22+0.5,+S22) -> 9
G22: =IF(G15>0,RANK(G19,$G$19:$M$19,7),"0") -> 7 | H22: =IF(H15>0,RANK(H19,$G$19:$M$19,7),"0") -> 4 | I22: 5 | J22: 3 | K22: 2 | L22: 6 | M22: 1 | N22: =IF(N15>0,RANK(N19,$G$19:$M$19,8),"0") ->  | R22: =IF(R15>0,RANK(R19,$G$19:$S$19,10),"0") -> 8 | S22: =IF(S15>0,RANK(S19,$G$19:$S$19,10),"0") -> 9
G23: =IF(COUNTIF($G$22:$M$22,G22)>1,"1","") ->  | H23: =IF(COUNTIF($G$22:$M$22,H22)>1,"1","") ->  | N23: =IF(COUNTIF($G$22:$M$22,N22)>1,"1","") ->  | R23: =IF(COUNTIF($G$22:$S$22,R22)>1,"1","") ->  | S23: =IF(COUNTIF($G$22:$S$22,S22)>1,"1","") -> 
AH27: =+AH26+1 -> 1 | AI27: 1 | AJ27: 1 | AK27: 1 | AL27: 1 | EI27: =+EI26+1 -> 1 | EP27: =+EP26+1 -> 1 | EQ27: 1 | ER27: 1 | ES27: 1 | ET27: 1 | EU27: 1 | EV27: 1 | EW27: 1 | EX27: 1 | EY27: 1 | FF27: =+FF26+1 -> 1 | FG27: 1 | FH27: 1 | FI27: 1 | FJ27: 1 | FK27: 1 | FL27: 1 | FM27: 1 | FN27: 1 | FO27: 1 | FV27: =+FV26+1 -> 1 | FW27: 1 | FX27: 1 | FY27: 1 | FZ27: 1 | GA27: 1 | GB27: 1 | GC27: 1 | GD27: 1 | GE27: 1 | GL27: =+GL26+1 -> 1 | GM27: 1 | GN27: 1 | GO27: 1 | GP27: 1 | GQ27: 1 | GR27: 1 | GS27: 1 | GT27: 1 | GU27: 1 | HB27: =+HB26+1 -> 1 | HC27: 1 | HD27: 1 | HE27: 1 | HF27: 1 | HG27: 1 | HH27: 1 | HI27: 1 | HJ27: 1 | HK27: 1
T28: =+T27+1 -> 1 | U28: 1 | W28: 1 | X28: 1 | Y28: 1 | Z28: 1 | AA28: 1 | AB28: 1 | AC28: 1 | AH28: =+AH27/2 -> 0.5 | AI28: 0.5 | AJ28: 0.5 | AK28: 0.5 | AL28: 0.5 | EI28: =+EI27/2 -> 0.5 | EP28: =+EP27/2 -> 0.5 | EQ28: 0.5 | ER28: 0.5 | ES28: 0.5 | ET28: 0.5 | EU28: 0.5 | EV28: 0.5 | EW28: 0.5 | EX28: 0.5 | EY28: 0.5 | FF28: =+FF27/2 -> 0.5 | FG28: 0.5 | FH28: 0.5 | FI28: 0.5 | FJ28: 0.5 | FK28: 0.5 | FL28: 0.5 | FM28: 0.5 | FN28: 0.5 | FO28: 0.5 | FV28: =+FV27/2 -> 0.5 | FW28: 0.5 | FX28: 0.5 | FY28: 0.5 | FZ28: 0.5 | GA28: 0.5 | GB28: 0.5 | GC28: 0.5 | GD28: 0.5 | GE28: 0.5 | GL28: =+GL27/2 -> 0.5 | GM28: 0.5 | GN28: 0.5 | GO28: 0.5 | GP28: 0.5 | GQ28: 0.5 | GR28: 0.5 | GS28: 0.5 | GT28: 0.5 | GU28: 0.5 | HB28: =+HB27/2 -> 0.5 | HC28: 0.5 | HD28: 0.5 | HE28: 0.5 | HF28: 0.5 | HG28: 0.5 | HH28: 0.5 | HI28: 0.5 | HJ28: 0.5 | HK28: 0.5
E29: Anhang zum Spielbericht B O W L I N G | T29: =+T28/2 -> 0.5 | U29: 0.5 | W29: 0.5 | X29: 0.5 | Y29: 0.5 | Z29: 0.5 | AA29: 0.5 | AB29: 0.5 | AC29: 0.5
A30: Anhang auswählen | N30: Punktspielserie
E31: alle Felder sind unbedingt auszufüllen und mit dem Original-Spielbericht einzusenden.
E33: Klasse: | G33: =+Hilfstabelle!$G$5 -> B4 | H33: Antritt-Nr. : | I33: 2 | J33: Datum : | K33: =VLOOKUP(I33,Hilfstabelle!$I$5:$J$18,2,0) -> 2024-09-26 | L33: Halle : | M33: =VLOOKUP(I33,Hilfstabelle!$I$5:$L$18,3,0) -> Othmarschen
G35: Ausrichter BSG: | H35: =VLOOKUP(I33,Hilfstabelle!$I$5:$L$18,4,0) -> Dataport 2 | I35: Mannschaftsführer: Michael Wetzel | L35: Telefon: 0172/412 45 69
G36: Bahn: | H36: Bahn: | I36: Bahn: | J36: Bahn: | K36: Bahn: | L36: Bahn: | M36: Bahn: | N36: Bahn: | R36: Bahn: | S36: Bahn:
E37: Durch- gänge | G37: BSG | H37: BSG | I37: BSG | J37: BSG | K37: BSG | L37: BSG | M37: BSG | N37: BSG | R37: BSG | S37: BSG
A38: Drucken | B38: Start | G38: =VLOOKUP(G39,Hilfstabelle!$L$5:$M$16,2,0) -> PAN 1 | H38: =VLOOKUP(H39,Hilfstabelle!$L$5:$M$16,2,0) -> DAT 2 | I38: =VLOOKUP(I39,Hilfstabelle!$L$5:$M$16,2,0) -> STI 3 | J38: =VLOOKUP(J39,Hilfstabelle!$L$5:$M$16,2,0) -> SGS 1 | K38: =VLOOKUP(K39,Hilfstabelle!$L$5:$M$16,2,0) -> JUS 2 | L38: =VLOOKUP(L39,Hilfstabelle!$L$5:$M$16,2,0) -> P2 2 | M38: =VLOOKUP(M39,Hilfstabelle!$L$5:$M$16,2,0) -> KS 2 | N38: =VLOOKUP(N39,Hilfstabelle!$L$5:$M$16,2,0) -> PAN 1 | R38: =VLOOKUP(R39,Hilfstabelle!$L$5:$M$16,2,0) -> DAT 2 | S38: =VLOOKUP(S39,Hilfstabelle!$L$5:$M$16,2,0) -> STI 3
B39: Rangliste | G39: =+Hilfstabelle!L5 -> Panasonic 1 | H39: =+Hilfstabelle!L6 -> Dataport 2 | I39: =+Hilfstabelle!L7 -> Still 3 | J39: =+Hilfstabelle!L8 -> SG Stern Hamburg 1 | K39: =+Hilfstabelle!L9 -> Justitzbehörde 2 | L39: =+Hilfstabelle!L10 -> Postamt 2 | M39: =+Hilfstabelle!L11 -> Körber Sports 2 | N39: =+Hilfstabelle!L12 -> Panasonic 1 | R39: =+Hilfstabelle!L13 -> Dataport 2 | S39: =+Hilfstabelle!$L14 -> Still 3
E40: Platz | G40: =HLOOKUP(G39,Hilfstabelle!$H$20:$Q$21,2,0) -> 2. | H40: =HLOOKUP(H39,Hilfstabelle!$H$20:$Q$21,2,0) -> 3. | I40: =HLOOKUP(I39,Hilfstabelle!$H$20:$Q$21,2,0) -> 5. | J40: =HLOOKUP(J39,Hilfstabelle!$H$20:$Q$21,2,0) -> 4. | K40: =HLOOKUP(K39,Hilfstabelle!$H$20:$Q$21,2,0) -> 6. | L40: =HLOOKUP(L39,Hilfstabelle!$H$20:$Q$21,2,0) -> 7. | M40: =HLOOKUP(M39,Hilfstabelle!$H$20:$Q$21,2,0) -> 1. | N40: =HLOOKUP(N39,Hilfstabelle!$H$20:$Q$21,2,0) -> 2. | R40: =HLOOKUP(R39,Hilfstabelle!$H$20:$Q$21,2,0) -> 3. | S40: =HLOOKUP(S39,Hilfstabelle!$H$20:$Q$21,2,0) -> 5.
E41: 1 | G41: 599 | H41: 604 | I41: 526 | J41: 524 | K41: 544 | L41: 576 | M41: 372
E42: 2 | G42: 615 | H42: 575 | I42: 515 | J42: 567 | K42: 535 | L42: 550 | M42: 447
E43: 1 + 2 | G43: =+G42+G41 -> 1214 | H43: 1179 | I43: 1041 | J43: 1091 | K43: 1079 | L43: 1126 | M43: 819 | N43: 0 | R43: =+R42+R41 -> 0 | S43: =+S42+S41 -> 0
E44: 3 | G44: 698 | H44: 569 | I44: 531 | J44: 546 | K44: 585 | L44: 635 | M44: 463
E45: Pins Gesamt | G45: =+G44+G43 -> 1912 | H45: =+H44+H43 -> 1748 | I45: 1572 | J45: 1637 | K45: 1664 | L45: 1761 | M45: 1282 | N45: 0 | R45: =+R44+R43 -> 0 | S45: =+S44+S43 -> 0
E46: Punkte Antritt | G46: =IF(G51="1",+G50+0.5,+G50) -> 7 | H46: =IF(H51="1",+H50+0.5,+H50) -> 5 | I46: 2 | J46: 3 | K46: 4 | L46: 6 | M46: 1 | N46: 0 | R46: =IF(R51="1",+R50+0.5,+R50) -> 0.5 | S46: =IF(S51="1",+S50+0.5,+S50) -> 0.5
E47: Punkte A L T | G47: =+G20 -> 7 | H47: 4 | I47: 5 | J47: 3 | K47: 2 | L47: 6 | M47: 1 | R47: =+R20 -> 8 | S47: =+S20 -> 9
E48: Punkte N E U | G48: =IF(G41>0,+G47+G46," ") -> 14 | H48: 9 | I48: 7 | J48: 6 | K48: 6 | L48: 12 | M48: 2 | R48: =IF(R41>0,+R47+R46," ") ->  | S48: =IF(S41>0,+S47+S46," ") -> 
G50: =IF(G41>0,RANK(G45,$G$45:$M$45,7),"0") -> 7 | H50: =IF(H41>0,RANK(H45,$G$45:$M$45,7),"0") -> 5 | I50: 2 | J50: 3 | K50: 4 | L50: 6 | M50: 1 | N50: =IF(N41>0,RANK(N45,$G$45:$M$45,8),"0") -> 0 | O50: =IF(O41>0,RANK(O45,$G$45:$P$45,10),"0") -> 0 | P50: 0 | R50: =IF(R41>0,RANK(R45,$G$45:$S$45,10),"0") -> 0 | S50: =IF(S41>0,RANK(S45,$G$45:$S$45,10),"0") -> 0
G51: =IF(COUNTIF($G$50:$M$50,G50)>1,"1","") ->  | H51: =IF(COUNTIF($G$50:$M$50,H50)>1,"1","") ->  | N51: =IF(COUNTIF($G$50:$M$50,N50)>1,"1","") ->  | O51: =IF(COUNTIF($G$50:$P$50,O50)>1,"1","") -> 1 | P51: 1 | R51: =IF(COUNTIF($G$50:$S$50,R50)>1,"1","") -> 1 | S51: =IF(COUNTIF($G$50:$S$50,S50)>1,"1","") -> 1
E52: Gesamt Pins | G52: =+G45+G19 -> 3826 | H52: =+H45+H19 -> 3334 | I52: 3304 | J52: 3165 | K52: 3013 | L52: 3501 | M52: 2511 | N52: 1300 | R52: =+R45+R19 -> 1812 | S52: =+S45+S19 -> 1850
E56: Anhang zum Spielbericht B O W L I N G
A57: Anhang auswählen | N57: Punktspielserie
E58: alle Felder sind unbedingt auszufüllen und mit dem Original-Spielbericht einzusenden.
E60: Klasse: | G60: =+Hilfstabelle!$G$5 -> B4 | H60: Antritt-Nr. : | I60: 3 | J60: Datum : | K60: =VLOOKUP(I60,Hilfstabelle!$I$5:$J$18,2,0) -> 2024-10-10 | L60: Halle : | M60: =VLOOKUP(I60,Hilfstabelle!$I$5:$L$18,3,0) -> Wandsbek
G62: Ausrichter BSG: | H62: =VLOOKUP(I60,Hilfstabelle!$I$5:$L$18,4,0) -> Still 3 | I62: Mannschaftsführer: Michael Wetzel | L62: Telefon: 0172/412 45 69
G63: Bahn: | H63: Bahn: | I63: Bahn: | J63: Bahn: | K63: Bahn: | L63: Bahn: | M63: Bahn: | N63: Bahn: | R63: Bahn: | S63: Bahn:
E64: Durch- gänge | G64: BSG | H64: BSG | I64: BSG | J64: BSG | K64: BSG | L64: BSG | M64: BSG | N64: BSG | R64: BSG | S64: BSG
A65: Drucken | B65: Start | G65: =VLOOKUP(G66,Hilfstabelle!$L$5:$M$16,2,0) -> PAN 1 | H65: =VLOOKUP(H66,Hilfstabelle!$L$5:$M$16,2,0) -> DAT 2 | I65: =VLOOKUP(I66,Hilfstabelle!$L$5:$M$16,2,0) -> STI 3 | J65: =VLOOKUP(J66,Hilfstabelle!$L$5:$M$16,2,0) -> SGS 1 | K65: =VLOOKUP(K66,Hilfstabelle!$L$5:$M$16,2,0) -> JUS 2 | L65: =VLOOKUP(L66,Hilfstabelle!$L$5:$M$16,2,0) -> P2 2 | M65: =VLOOKUP(M66,Hilfstabelle!$L$5:$M$16,2,0) -> KS 2 | N65: =VLOOKUP(N66,Hilfstabelle!$L$5:$M$16,2,0) -> PAN 1 | R65: =VLOOKUP(R66,Hilfstabelle!$L$5:$M$16,2,0) -> DAT 2 | S65: =VLOOKUP(S66,Hilfstabelle!$L$5:$M$16,2,0) -> STI 3
B66: Rangliste | G66: =+Hilfstabelle!L5 -> Panasonic 1 | H66: =+Hilfstabelle!L6 -> Dataport 2 | I66: =+Hilfstabelle!L7 -> Still 3 | J66: =+Hilfstabelle!L8 -> SG Stern Hamburg 1 | K66: =+Hilfstabelle!L9 -> Justitzbehörde 2 | L66: =+Hilfstabelle!L10 -> Postamt 2 | M66: =+Hilfstabelle!L11 -> Körber Sports 2 | N66: =+Hilfstabelle!L12 -> Panasonic 1 | R66: =+Hilfstabelle!L13 -> Dataport 2 | S66: =+Hilfstabelle!$L14 -> Still 3
E67: Platz | G67: =HLOOKUP(G66,Hilfstabelle!$H$20:$Q$21,2,0) -> 2. | H67: =HLOOKUP(H66,Hilfstabelle!$H$20:$Q$21,2,0) -> 3. | I67: =HLOOKUP(I66,Hilfstabelle!$H$20:$Q$21,2,0) -> 5. | J67: =HLOOKUP(J66,Hilfstabelle!$H$20:$Q$21,2,0) -> 4. | K67: =HLOOKUP(K66,Hilfstabelle!$H$20:$Q$21,2,0) -> 6. | L67: =HLOOKUP(L66,Hilfstabelle!$H$20:$Q$21,2,0) -> 7. | M67: =HLOOKUP(M66,Hilfstabelle!$H$20:$Q$21,2,0) -> 1. | N67: =HLOOKUP(N66,Hilfstabelle!$H$20:$Q$21,2,0) -> 2. | R67: =HLOOKUP(R66,Hilfstabelle!$H$20:$Q$21,2,0) -> 3. | S67: =HLOOKUP(S66,Hilfstabelle!$H$20:$Q$21,2,0) -> 5.
E68: 1 | G68: 608 | H68: 589 | I68: 624 | J68: 494 | K68: 501 | L68: 569 | M68: 690
E69: 2 | G69: 637 | H69: 497 | I69: 567 | J69: 502 | K69: 524 | L69: 602 | M69: 590
E70: 1 + 2 | G70: =+G69+G68 -> 1245 | H70: 1086 | I70: 1191 | J70: 996 | K70: 1025 | L70: 1171 | M70: 1280 | N70: =+N69+N68 -> 0 | R70: =+R69+R68 -> 0 | S70: =+S69+S68 -> 0
E71: 3 | G71: 730 | H71: 520 | I71: 614 | J71: 506 | K71: 584 | L71: 610 | M71: 629
E72: Pins Gesamt | G72: =+G71+G70 -> 1975 | H72: 1606 | I72: 1805 | J72: 1502 | K72: 1609 | L72: 1781 | M72: 1909 | N72: 0 | R72: =+R71+R70 -> 0 | S72: =+S71+S70 -> 0
E73: Punkte Antritt | G73: =IF(G78="1",+G77+0.5,+G77) -> 7 | H73: =IF(H78="1",+H77+0.5,+H77) -> 2 | I73: 5 | J73: 1 | K73: 3 | L73: 4 | M73: 6 | N73: 0 | R73: =IF(R78="1",+R77+0.5,+R77) -> 0.5 | S73: =IF(S78="1",+S77+0.5,+S77) -> 0.5
E74: Punkte A L T | G74: =+G48 -> 14 | H74: =+H48 -> 9 | I74: =+I48 -> 7 | J74: 6 | K74: 6 | L74: 12 | M74: 2 | R74: =+R48 ->  | S74: =+S48 -> 
E75: Punkte N E U | G75: =IF(G68>0,+G74+G73," ") -> 21 | H75: 11 | I75: 12 | J75: 7 | K75: 9 | L75: 16 | M75: 8 | R75: =IF(R68>0,+R74+R73," ") ->  | S75: =IF(S68>0,+S74+S73," ") -> 
R76: =IF(R70>0,RANK(R74,$G$47:$S$47,10),"0") -> 0 | S76: =IF(S70>0,RANK(S74,$G$47:$S$47,10),"0") -> 0
G77: =IF(G68>0,RANK(G72,$G$72:$M$72,7),"0") -> 7 | H77: =IF(H68>0,RANK(H72,$G$72:$M$72,7),"0") -> 2 | I77: 5 | J77: 1 | K77: 3 | L77: 4 | M77: 6 | N77: =IF(N68>0,RANK(N72,$G$72:$M$72,8),"0") -> 0 | R77: =IF(R68>0,RANK(R72,$G$72:$S$72,10),"0") -> 0 | S77: =IF(S68>0,RANK(S72,$G$72:$S$72,10),"0") -> 0
G78: =IF(COUNTIF($G$77:$M$77,G77)>1,"1","") ->  | H78: =IF(COUNTIF($G$77:$M$77,H77)>1,"1","") ->  | N78: =IF(COUNTIF($G$77:$M$77,N77)>1,"1","") ->  | R78: =IF(COUNTIF($G$77:$S$77,R77)>1,"1","") -> 1 | S78: =IF(COUNTIF($G$77:$S$77,S77)>1,"1","") -> 1
G79: =IF(COUNTIF($F$20:$M$20,G77)>1,"1","") ->  | R79: =IF(COUNTIF($F$20:$M$20,R77)>1,"1","") ->  | S79: =IF(COUNTIF($F$20:$M$20,S77)>1,"1","") -> 
E80: Gesamt Pins | G80: =+G72+G52 -> 5801 | H80: =+H72+H52 -> 4940 | I80: 5109 | J80: 4667 | K80: 4622 | L80: 5282 | M80: 4420 | N80: 1300 | R80: =+R72+R52 -> 1812 | S80: =+S72+S52 -> 1850
E83: Anhang zum Spielbericht B O W L I N G
A84: Anhang auswählen | N84: Punktspielserie
E85: alle Felder sind unbedingt auszufüllen und mit dem Original-Spielbericht einzusenden.
E87: Klasse: | G87: =+Hilfstabelle!$G$5 -> B4 | H87: Antritt-Nr. : | I87: 4 | J87: Datum : | K87: =VLOOKUP(I87,Hilfstabelle!$I$5:$J$18,2,0) -> 2024-10-24 | L87: Halle : | M87: =VLOOKUP(I87,Hilfstabelle!$I$5:$L$18,3,0) -> Othmarschen
G89: Ausrichter BSG: | H89: =VLOOKUP(I87,Hilfstabelle!$I$5:$L$18,4,0) -> SG Stern Hamburg 1 | I89: Mannschaftsführer: Michael Wetzel | L89: Telefon: 0172/412 45 69
G90: Bahn: | H90: Bahn: | I90: Bahn: | J90: Bahn: | K90: Bahn: | L90: Bahn: | M90: Bahn: | N90: Bahn: | R90: Bahn: | S90: Bahn:
E91: Durch- gänge | G91: BSG | H91: BSG | I91: BSG | J91: BSG | K91: BSG | L91: BSG | M91: BSG | N91: BSG | R91: BSG | S91: BSG
A92: Drucken | B92: Start | G92: =VLOOKUP(G93,Hilfstabelle!$L$5:$M$16,2,0) -> PAN 1 | H92: =VLOOKUP(H93,Hilfstabelle!$L$5:$M$16,2,0) -> DAT 2 | I92: =VLOOKUP(I93,Hilfstabelle!$L$5:$M$16,2,0) -> STI 3 | J92: =VLOOKUP(J93,Hilfstabelle!$L$5:$M$16,2,0) -> SGS 1 | K92: =VLOOKUP(K93,Hilfstabelle!$L$5:$M$16,2,0) -> JUS 2 | L92: =VLOOKUP(L93,Hilfstabelle!$L$5:$M$16,2,0) -> P2 2 | M92: =VLOOKUP(M93,Hilfstabelle!$L$5:$M$16,2,0) -> KS 2 | N92: =VLOOKUP(N93,Hilfstabelle!$L$5:$M$16,2,0) -> PAN 1 | R92: =VLOOKUP(R93,Hilfstabelle!$L$5:$M$16,2,0) -> DAT 2 | S92: =VLOOKUP(S93,Hilfstabelle!$L$5:$M$16,2,0) -> STI 3
B93: Rangliste | G93: =+Hilfstabelle!L5 -> Panasonic 1 | H93: =+Hilfstabelle!L6 -> Dataport 2 | I93: =+Hilfstabelle!L7 -> Still 3 | J93: =+Hilfstabelle!L8 -> SG Stern Hamburg 1 | K93: =+Hilfstabelle!L9 -> Justitzbehörde 2 | L93: =+Hilfstabelle!L10 -> Postamt 2 | M93: =+Hilfstabelle!L11 -> Körber Sports 2 | N93: =+Hilfstabelle!L12 -> Panasonic 1 | R93: =+Hilfstabelle!L13 -> Dataport 2 | S93: =+Hilfstabelle!$L14 -> Still 3
E94: Platz | G94: =HLOOKUP(G93,Hilfstabelle!$H$20:$Q$21,2,0) -> 2. | H94: =HLOOKUP(H93,Hilfstabelle!$H$20:$Q$21,2,0) -> 3. | I94: =HLOOKUP(I93,Hilfstabelle!$H$20:$Q$21,2,0) -> 5. | J94: =HLOOKUP(J93,Hilfstabelle!$H$20:$Q$21,2,0) -> 4. | K94: =HLOOKUP(K93,Hilfstabelle!$H$20:$Q$21,2,0) -> 6. | L94: =HLOOKUP(L93,Hilfstabelle!$H$20:$Q$21,2,0) -> 7. | M94: =HLOOKUP(M93,Hilfstabelle!$H$20:$Q$21,2,0) -> 1. | N94: =HLOOKUP(N93,Hilfstabelle!$H$20:$Q$21,2,0) -> 2. | P94: =MIN(G94:M94) -> 0 | R94: =HLOOKUP(R93,Hilfstabelle!$H$20:$Q$21,2,0) -> 3. | S94: =HLOOKUP(S93,Hilfstabelle!$H$20:$Q$21,2,0) -> 5.
E95: 1 | G95: 547 | H95: 580 | I95: 571 | J95: 589 | K95: 536 | L95: 521 | M95: 651
E96: 2 | G96: 598 | H96: 558 | I96: 615 | J96: 564 | K96: 580 | L96: 643 | M96: 642
E97: 1 + 2 | G97: =+G96+G95 -> 1145 | H97: 1138 | I97: 1186 | J97: 1153 | K97: 1116 | L97: 1164 | M97: 1293 | N97: =+N96+N95 -> 0 | R97: =+R96+R95 -> 0 | S97: =+S96+S95 -> 0
E98: 3 | G98: 632 | H98: 595 | I98: 602 | J98: 561 | K98: 618 | L98: 495 | M98: 659
E99: Pins Gesamt | G99: =+G98+G97 -> 1777 | H99: 1733 | I99: 1788 | J99: 1714 | K99: 1734 | L99: 1659 | M99: 1952 | N99: 0 | R99: =+R98+R97 -> 0 | S99: =+S98+S97 -> 0
E100: Punkte Antritt | G100: =IF(G105="1",+G104+0.5,+G104) -> 5 | H100: =IF(H105="1",+H104+0.5,+H104) -> 3 | I100: 6 | J100: 2 | K100: 4 | L100: 1 | M100: 7 | N100: 0 | R100: =IF(R105="1",+R104+0.5,+R104) -> 0.5 | S100: =IF(S105="1",+S104+0.5,+S104) -> 0.5
E101: Punkte A L T | G101: =+G75 -> 21 | H101: =+H75 -> 11 | I101: 12 | J101: 7 | K101: 9 | L101: 16 | M101: 8 | R101: =+R75 ->  | S101: =+S75 -> 
E102: Punkte N E U | G102: =IF(G95>0,+G101+G100," ") -> 26 | H102: 14 | I102: 18 | J102: 9 | K102: 13 | L102: 17 | M102: 15 | R102: =IF(R95>0,+R101+R100," ") ->  | S102: =IF(S95>0,+S101+S100," ") -> 
G104: =IF(G95>0,RANK(G99,$G$99:$M$99,7),"0") -> 5 | H104: =IF(H95>0,RANK(H99,$G$99:$M$99,7),"0") -> 3 | I104: 6 | J104: 2 | K104: 4 | L104: 1 | M104: 7 | N104: =IF(N95>0,RANK(N99,$G$99:$M$99,8),"0") -> 0 | R104: =IF(R95>0,RANK(R99,$G$99:$S$99,10),"0") -> 0 | S104: =IF(S95>0,RANK(S99,$G$99:$S$99,10),"0") -> 0
G105: =IF(COUNTIF($G$104:$M$104,G104)>1,"1","") ->  | H105: =IF(COUNTIF($G$104:$M$104,H104)>1,"1","") ->  | N105: =IF(COUNTIF($G$104:$M$104,N104)>1,"1","") ->  | R105: =IF(COUNTIF($G$104:$S$104,R104)>1,"1","") -> 1 | S105: =IF(COUNTIF($G$104:$S$104,S104)>1,"1","") -> 1
E107: Gesamt Pins | G107: =+G99+G80 -> 7578 | H107: =+H99+H80 -> 6673 | I107: 6897 | J107: 6381 | K107: 6356 | L107: 6941 | M107: 6372 | N107: 1300 | R107: =+R99+R80 -> 1812 | S107: =+S99+S80 -> 1850
E110: Anhang zum Spielbericht B O W L I N G
A111: Anhang auswählen | N111: Punktspielserie
E112: alle Felder sind unbedingt auszufüllen und mit dem Original-Spielbericht einzusenden.
E114: Klasse: | G114: =+Hilfstabelle!$G$5 -> B4 | H114: Antritt-Nr. : | I114: 5 | J114: Datum : | K114: =VLOOKUP(I114,Hilfstabelle!$I$5:$J$18,2,0) -> 2024-11-07 | L114: Halle : | M114: =VLOOKUP(I114,Hilfstabelle!$I$5:$L$18,3,0) -> Wandsbek
G116: Ausrichter BSG: | H116: =VLOOKUP(I114,Hilfstabelle!$I$5:$L$18,4,0) -> Justitzbehörde 2 | I116: Mannschaftsführer: Michael Wetzel | L116: Telefon: 0172/412 45 69
G117: Bahn: | H117: Bahn: | I117: Bahn: | J117: Bahn: | K117: Bahn: | L117: Bahn: | M117: Bahn: | N117: Bahn: | R117: Bahn: | S117: Bahn:
E118: Durch- gänge | G118: BSG | H118: BSG | I118: BSG | J118: BSG | K118: BSG | L118: BSG | M118: BSG | N118: BSG | R118: BSG | S118: BSG
A119: Drucken | B119: Start | G119: =VLOOKUP(G120,Hilfstabelle!$L$5:$M$16,2,0) -> PAN 1 | H119: =VLOOKUP(H120,Hilfstabelle!$L$5:$M$16,2,0) -> DAT 2 | I119: =VLOOKUP(I120,Hilfstabelle!$L$5:$M$16,2,0) -> STI 3 | J119: =VLOOKUP(J120,Hilfstabelle!$L$5:$M$16,2,0) -> SGS 1 | K119: =VLOOKUP(K120,Hilfstabelle!$L$5:$M$16,2,0) -> JUS 2 | L119: =VLOOKUP(L120,Hilfstabelle!$L$5:$M$16,2,0) -> P2 2 | M119: =VLOOKUP(M120,Hilfstabelle!$L$5:$M$16,2,0) -> KS 2 | N119: =VLOOKUP(N120,Hilfstabelle!$L$5:$M$16,2,0) -> PAN 1 | R119: =VLOOKUP(R120,Hilfstabelle!$L$5:$M$16,2,0) -> DAT 2 | S119: =VLOOKUP(S120,Hilfstabelle!$L$5:$M$16,2,0) -> STI 3
B120: Rangliste | G120: =+Hilfstabelle!L5 -> Panasonic 1 | H120: =+Hilfstabelle!L6 -> Dataport 2 | I120: =+Hilfstabelle!L7 -> Still 3 | J120: =+Hilfstabelle!L8 -> SG Stern Hamburg 1 | K120: =+Hilfstabelle!L9 -> Justitzbehörde 2 | L120: =+Hilfstabelle!L10 -> Postamt 2 | M120: =+Hilfstabelle!L11 -> Körber Sports 2 | N120: =+Hilfstabelle!L12 -> Panasonic 1 | R120: =+Hilfstabelle!L13 -> Dataport 2 | S120: =+Hilfstabelle!$L14 -> Still 3
E121: Platz | G121: =HLOOKUP(G120,Hilfstabelle!$H$20:$Q$21,2,0) -> 2. | H121: =HLOOKUP(H120,Hilfstabelle!$H$20:$Q$21,2,0) -> 3. | I121: =HLOOKUP(I120,Hilfstabelle!$H$20:$Q$21,2,0) -> 5. | J121: =HLOOKUP(J120,Hilfstabelle!$H$20:$Q$21,2,0) -> 4. | K121: =HLOOKUP(K120,Hilfstabelle!$H$20:$Q$21,2,0) -> 6. | L121: =HLOOKUP(L120,Hilfstabelle!$H$20:$Q$21,2,0) -> 7. | M121: =HLOOKUP(M120,Hilfstabelle!$H$20:$Q$21,2,0) -> 1. | N121: =HLOOKUP(N120,Hilfstabelle!$H$20:$Q$21,2,0) -> 2. | R121: =HLOOKUP(R120,Hilfstabelle!$H$20:$Q$21,2,0) -> 3. | S121: =HLOOKUP(S120,Hilfstabelle!$H$20:$Q$21,2,0) -> 5.
E122: 1 | G122: 688 | H122: 610 | I122: 583 | J122: 654 | K122: 529 | L122: 527 | M122: 591
E123: 2 | G123: 579 | H123: 606 | I123: 623 | J123: 605 | K123: 649 | L123: 592 | M123: 665
E124: 1 + 2 | G124: =+G123+G122 -> 1267 | H124: 1216 | I124: 1206 | J124: 1259 | K124: 1178 | L124: 1119 | M124: 1256 | N124: =+N123+N122 -> 0 | R124: =+R123+R122 -> 0 | S124: =+S123+S122 -> 0
E125: 3 | G125: 640 | H125: 633 | I125: 600 | J125: 638 | K125: 633 | L125: 640 | M125: 658
E126: Pins Gesamt | G126: =+G125+G124 -> 1907 | H126: 1849 | I126: 1806 | J126: 1897 | K126: 1811 | L126: 1759 | M126: 1914 | N126: 0 | R126: =+R125+R124 -> 0 | S126: =+S125+S124 -> 0
E127: Punkte Antritt | G127: =IF(G132="1",+G131+0.5,+G131) -> 6 | H127: =IF(H132="1",+H131+0.5,+H131) -> 4 | I127: 2 | J127: 5 | K127: 3 | L127: 1 | M127: 7 | N127: 0 | R127: =IF(R132="1",+R131+0.5,+R131) -> 0.5 | S127: =IF(S132="1",+S131+0.5,+S131) -> 0.5
E128: Punkte A L T | G128: =+G102 -> 26 | H128: =+H102 -> 14 | I128: 18 | J128: =+J102 -> 9 | K128: 13 | L128: 17 | M128: 15 | R128: =+R102 ->  | S128: =+S102 -> 
E129: Punkte N E U | G129: =IF(G122>0,+G128+G127," ") -> 32 | H129: 18 | I129: 20 | J129: 14 | K129: 16 | L129: 18 | M129: 22 | R129: =IF(R122>0,+R128+R127," ") ->  | S129: =IF(S122>0,+S128+S127," ") -> 
G131: =IF(G122>0,RANK(G126,$G$126:$M$126,7),"0") -> 6 | H131: =IF(H122>0,RANK(H126,$G$126:$M$126,7),"0") -> 4 | I131: 2 | J131: 5 | K131: 3 | L131: 1 | M131: 7 | N131: =IF(N122>0,RANK(N126,$G$126:$M$126,8),"0") -> 0 | R131: =IF(R122>0,RANK(R126,$G$126:$S$126,10),"0") -> 0 | S131: =IF(S122>0,RANK(S126,$G$126:$S$126,10),"0") -> 0
G132: =IF(COUNTIF($G$131:$M$131,G131)>1,"1","") ->  | H132: =IF(COUNTIF($G$131:$M$131,H131)>1,"1","") ->  | N132: =IF(COUNTIF($G$131:$M$131,N131)>1,"1","") ->  | R132: =IF(COUNTIF($G$131:$S$131,R131)>1,"1","") -> 1 | S132: =IF(COUNTIF($G$131:$S$131,S131)>1,"1","") -> 1
E134: Gesamt Pins | G134: =+G126+G107 -> 9485 | H134: =+H126+H107 -> 8522 | I134: 8703 | J134: 8278 | K134: 8167 | L134: 8700 | M134: 8286 | N134: 1300 | R134: =+R126+R107 -> 1812 | S134: =+S126+S107 -> 1850
E137: Anhang zum Spielbericht B O W L I N G
A138: Anhang auswählen | N138: Punktspielserie
E139: alle Felder sind unbedingt auszufüllen und mit dem Original-Spielbericht einzusenden.
E141: Klasse: | G141: =+Hilfstabelle!$G$5 -> B4 | H141: Antritt-Nr. : | I141: 6 | J141: Datum : | K141: =VLOOKUP(I141,Hilfstabelle!$I$5:$J$18,2,0) -> 2025-01-16 | L141: Halle : | M141: =VLOOKUP(I141,Hilfstabelle!$I$5:$L$18,3,0) -> Wandsbek
G143: Ausrichter BSG: | H143: =VLOOKUP(I141,Hilfstabelle!$I$5:$L$18,4,0) -> Postamt 2 | I143: Mannschaftsführer: Michael Wetzel | L143: Telefon: 0172/412 45 69
G144: Bahn: | H144: Bahn: | I144: Bahn: | J144: Bahn: | K144: Bahn: | L144: Bahn: | M144: Bahn: | N144: Bahn: | R144: Bahn: | S144: Bahn:
E145: Durch- gänge | G145: BSG | H145: BSG | I145: BSG | J145: BSG | K145: BSG | L145: BSG | M145: BSG | N145: BSG | R145: BSG | S145: BSG
A146: Drucken | B146: Start | G146: =VLOOKUP(G147,Hilfstabelle!$L$5:$M$16,2,0) -> PAN 1 | H146: =VLOOKUP(H147,Hilfstabelle!$L$5:$M$16,2,0) -> DAT 2 | I146: =VLOOKUP(I147,Hilfstabelle!$L$5:$M$16,2,0) -> STI 3 | J146: =VLOOKUP(J147,Hilfstabelle!$L$5:$M$16,2,0) -> SGS 1 | K146: =VLOOKUP(K147,Hilfstabelle!$L$5:$M$16,2,0) -> JUS 2 | L146: =VLOOKUP(L147,Hilfstabelle!$L$5:$M$16,2,0) -> P2 2 | M146: =VLOOKUP(M147,Hilfstabelle!$L$5:$M$16,2,0) -> KS 2 | N146: =VLOOKUP(N147,Hilfstabelle!$L$5:$M$16,2,0) -> PAN 1 | R146: =VLOOKUP(R147,Hilfstabelle!$L$5:$M$16,2,0) -> DAT 2 | S146: =VLOOKUP(S147,Hilfstabelle!$L$5:$M$16,2,0) -> STI 3
B147: Rangliste | G147: =+Hilfstabelle!L5 -> Panasonic 1 | H147: =+Hilfstabelle!L6 -> Dataport 2 | I147: =+Hilfstabelle!L7 -> Still 3 | J147: =+Hilfstabelle!L8 -> SG Stern Hamburg 1 | K147: =+Hilfstabelle!L9 -> Justitzbehörde 2 | L147: =+Hilfstabelle!L10 -> Postamt 2 | M147: =+Hilfstabelle!L11 -> Körber Sports 2 | N147: =+Hilfstabelle!L12 -> Panasonic 1 | R147: =+Hilfstabelle!L13 -> Dataport 2 | S147: =+Hilfstabelle!$L14 -> Still 3
E148: Platz | G148: =HLOOKUP(G147,Hilfstabelle!$H$20:$Q$21,2,0) -> 2. | H148: =HLOOKUP(H147,Hilfstabelle!$H$20:$Q$21,2,0) -> 3. | I148: =HLOOKUP(I147,Hilfstabelle!$H$20:$Q$21,2,0) -> 5. | J148: =HLOOKUP(J147,Hilfstabelle!$H$20:$Q$21,2,0) -> 4. | K148: =HLOOKUP(K147,Hilfstabelle!$H$20:$Q$21,2,0) -> 6. | L148: =HLOOKUP(L147,Hilfstabelle!$H$20:$Q$21,2,0) -> 7. | M148: =HLOOKUP(M147,Hilfstabelle!$H$20:$Q$21,2,0) -> 1. | N148: =HLOOKUP(N147,Hilfstabelle!$H$20:$Q$21,2,0) -> 2. | R148: =HLOOKUP(R147,Hilfstabelle!$H$20:$Q$21,2,0) -> 3. | S148: =HLOOKUP(S147,Hilfstabelle!$H$20:$Q$21,2,0) -> 5.
E149: 1 | G149: 616 | H149: 626 | I149: 601 | J149: 702 | K149: 585 | L149: 538 | M149: 453
E150: 2 | G150: 624 | H150: 689 | I150: 661 | J150: 598 | K150: 625 | L150: 610 | M150: 487
E151: 1 + 2 | G151: =+G150+G149 -> 1240 | H151: 1315 | I151: 1262 | J151: 1300 | K151: 1210 | L151: 1148 | M151: 940 | N151: =+N150+N149 -> 0 | R151: =+R150+R149 -> 0 | S151: =+S150+S149 -> 0
E152: 3 | G152: 640 | H152: 653 | I152: 591 | J152: 711 | K152: 751 | L152: 544 | M152: 505
E153: Pins Gesamt | G153: =+G152+G151 -> 1880 | H153: 1968 | I153: 1853 | J153: 2011 | K153: 1961 | L153: 1692 | M153: 1445 | N153: 0 | R153: =+R152+R151 -> 0 | S153: =+S152+S151 -> 0
E154: Punkte Antritt | G154: =IF(G159="1",+G158+0.5,+G158) -> 4 | H154: =IF(H159="1",+H158+0.5,+H158) -> 6 | I154: 3 | J154: 7 | K154: 5 | L154: 2 | M154: 1 | N154: 0 | R154: =IF(R159="1",+R158+0.5,+R158) -> 0.5 | S154: =IF(S159="1",+S158+0.5,+S158) -> 0.5
E155: Punkte A L T | G155: =+G129 -> 32 | H155: =+H129 -> 18 | I155: 20 | J155: 14 | K155: 16 | L155: 18 | M155: 22 | R155: =+R129 ->  | S155: =+S129 -> 
E156: Punkte N E U | G156: =IF(G149>0,+G155+G154," ") -> 36 | H156: 24 | I156: 23 | J156: 21 | K156: 21 | L156: 20 | M156: 23 | R156: =IF(R149>0,+R155+R154," ") ->  | S156: =IF(S149>0,+S155+S154," ") -> 
G158: =IF(G149>0,RANK(G153,$G$153:$M$153,7),"0") -> 4 | H158: =IF(H149>0,RANK(H153,$G$153:$M$153,7),"0") -> 6 | I158: 3 | J158: 7 | K158: 5 | L158: 2 | M158: 1 | N158: =IF(N149>0,RANK(N153,$G$153:$M$153,8),"0") -> 0 | R158: =IF(R149>0,RANK(R153,$G$153:$S$153,10),"0") -> 0 | S158: =IF(S149>0,RANK(S153,$G$153:$S$153,10),"0") -> 0
G159: =IF(COUNTIF($G$158:$M$158,G158)>1,"1","") ->  | H159: =IF(COUNTIF($G$158:$M$158,H158)>1,"1","") ->  | N159: =IF(COUNTIF($G$158:$M$158,N158)>1,"1","") ->  | R159: =IF(COUNTIF($G$158:$S$158,R158)>1,"1","") -> 1 | S159: =IF(COUNTIF($G$158:$S$158,S158)>1,"1","") -> 1
E160: Gesamt Pins | G160: =+G153+G134 -> 11365 | H160: =+H153+H134 -> 10490 | I160: 10556 | J160: 10289 | K160: 10128 | L160: 10392 | M160: 9731 | N160: 1300 | R160: =+R153+R134 -> 1812 | S160: =+S153+S134 -> 1850
E164: Anhang zum Spielbericht B O W L I N G
A165: Anhang auswählen | N165: Punktspielserie
E166: alle Felder sind unbedingt auszufüllen und mit dem Original-Spielbericht einzusenden.
E168: Klasse: | G168: =+Hilfstabelle!$G$5 -> B4 | H168: Antritt-Nr. : | I168: 7 | J168: Datum : | K168: =VLOOKUP(I168,Hilfstabelle!$I$5:$J$18,2,0) -> 2025-01-30 | L168: Halle : | M168: =VLOOKUP(I168,Hilfstabelle!$I$5:$L$18,3,0) -> Othmarschen
G170: Ausrichter BSG: | H170: =VLOOKUP(I168,Hilfstabelle!$I$5:$L$18,4,0) -> Körber Sports 2 | I170: Mannschaftsführer: Michael Wetzel | L170: Telefon: 0172/412 45 69
G171: Bahn: | H171: Bahn: | I171: Bahn: | J171: Bahn: | K171: Bahn: | L171: Bahn: | M171: Bahn: | N171: Bahn: | R171: Bahn: | S171: Bahn:
E172: Durch- gänge | G172: BSG | H172: BSG | I172: BSG | J172: BSG | K172: BSG | L172: BSG | M172: BSG | N172: BSG | R172: BSG | S172: BSG
A173: Drucken | B173: Start | G173: =VLOOKUP(G174,Hilfstabelle!$L$5:$M$16,2,0) -> PAN 1 | H173: =VLOOKUP(H174,Hilfstabelle!$L$5:$M$16,2,0) -> DAT 2 | I173: =VLOOKUP(I174,Hilfstabelle!$L$5:$M$16,2,0) -> STI 3 | J173: =VLOOKUP(J174,Hilfstabelle!$L$5:$M$16,2,0) -> SGS 1 | K173: =VLOOKUP(K174,Hilfstabelle!$L$5:$M$16,2,0) -> JUS 2 | L173: =VLOOKUP(L174,Hilfstabelle!$L$5:$M$16,2,0) -> P2 2 | M173: =VLOOKUP(M174,Hilfstabelle!$L$5:$M$16,2,0) -> KS 2 | N173: =VLOOKUP(N174,Hilfstabelle!$L$5:$M$16,2,0) -> PAN 1 | R173: =VLOOKUP(R174,Hilfstabelle!$L$5:$M$16,2,0) -> DAT 2 | S173: =VLOOKUP(S174,Hilfstabelle!$L$5:$M$16,2,0) -> STI 3
B174: Rangliste | G174: =+Hilfstabelle!L5 -> Panasonic 1 | H174: =+Hilfstabelle!L6 -> Dataport 2 | I174: =+Hilfstabelle!L7 -> Still 3 | J174: =+Hilfstabelle!L8 -> SG Stern Hamburg 1 | K174: =+Hilfstabelle!L9 -> Justitzbehörde 2 | L174: =+Hilfstabelle!L10 -> Postamt 2 | M174: =+Hilfstabelle!L11 -> Körber Sports 2 | N174: =+Hilfstabelle!L12 -> Panasonic 1 | R174: =+Hilfstabelle!L13 -> Dataport 2 | S174: =+Hilfstabelle!$L14 -> Still 3
E175: Platz | G175: =HLOOKUP(G174,Hilfstabelle!$H$20:$Q$21,2,0) -> 2. | H175: =HLOOKUP(H174,Hilfstabelle!$H$20:$Q$21,2,0) -> 3. | I175: =HLOOKUP(I174,Hilfstabelle!$H$20:$Q$21,2,0) -> 5. | J175: =HLOOKUP(J174,Hilfstabelle!$H$20:$Q$21,2,0) -> 4. | K175: =HLOOKUP(K174,Hilfstabelle!$H$20:$Q$21,2,0) -> 6. | L175: =HLOOKUP(L174,Hilfstabelle!$H$20:$Q$21,2,0) -> 7. | M175: =HLOOKUP(M174,Hilfstabelle!$H$20:$Q$21,2,0) -> 1. | N175: =HLOOKUP(N174,Hilfstabelle!$H$20:$Q$21,2,0) -> 2. | R175: =HLOOKUP(R174,Hilfstabelle!$H$20:$Q$21,2,0) -> 3. | S175: =HLOOKUP(S174,Hilfstabelle!$H$20:$Q$21,2,0) -> 5.
E176: 1 | G176: 545 | H176: 587 | I176: 614 | J176: 693 | K176: 610 | L176: 557 | M176: 568
E177: 2 | G177: 585 | H177: 593 | I177: 606 | J177: 571 | K177: 576 | L177: 578 | M177: 612
E178: 1 + 2 | G178: =+G177+G176 -> 1130 | H178: 1180 | I178: 1220 | J178: 1264 | K178: 1186 | L178: 1135 | M178: 1180 | N178: =+N177+N176 -> 0 | R178: =+R177+R176 -> 0 | S178: =+S177+S176 -> 0
E179: 3 | G179: 556 | H179: 642 | I179: 504 | J179: 566 | K179: 568 | L179: 614 | M179: 597
E180: Pins Gesamt | G180: =+G179+G178 -> 1686 | H180: 1822 | I180: 1724 | J180: 1830 | K180: 1754 | L180: 1749 | M180: 1777 | N180: 0 | R180: =+R179+R178 -> 0 | S180: =+S179+S178 -> 0
E181: Punkte Antritt | G181: =IF(G186="1",+G185+0.5,+G185) -> 1 | H181: =IF(H186="1",+H185+0.5,+H185) -> 6 | I181: 2 | J181: 7 | K181: 4 | L181: 3 | M181: 5 | N181: 0 | R181: =IF(R186="1",+R185+0.5,+R185) -> 0.5 | S181: =IF(S186="1",+S185+0.5,+S185) -> 0.5
E182: Punkte A L T | G182: =+G156 -> 36 | H182: =+H156 -> 24 | I182: 23 | J182: 21 | K182: 21 | L182: 20 | M182: 23 | R182: =+R156 ->  | S182: =+S156 -> 
E183: Punkte N E U | G183: =IF(G176>0,+G182+G181," ") -> 37 | H183: 30 | I183: 25 | J183: 28 | K183: 25 | L183: 23 | M183: 28 | R183: =IF(R176>0,+R182+R181," ") ->  | S183: =IF(S176>0,+S182+S181," ") -> 
G185: =IF(G176>0,RANK(G180,$G$180:$M$180,7),"0") -> 1 | H185: =IF(H176>0,RANK(H180,$G$180:$M$180,7),"0") -> 6 | I185: 2 | J185: 7 | K185: 4 | L185: 3 | M185: 5 | N185: =IF(N176>0,RANK(N180,$G$180:$M$180,8),"0") -> 0 | R185: =IF(R176>0,RANK(R180,$G$180:$S$180,10),"0") -> 0 | S185: =IF(S176>0,RANK(S180,$G$180:$S$180,10),"0") -> 0
G186: =IF(COUNTIF($G$185:$M$185,G185)>1,"1","") ->  | H186: =IF(COUNTIF($G$185:$M$185,H185)>1,"1","") ->  | N186: =IF(COUNTIF($G$185:$M$185,N185)>1,"1","") ->  | R186: =IF(COUNTIF($G$185:$S$185,R185)>1,"1","") -> 1 | S186: =IF(COUNTIF($G$185:$S$185,S185)>1,"1","") -> 1
E187: Gesamt Pins | G187: =+G180+G160 -> 13051 | H187: =+H180+H160 -> 12312 | I187: 12280 | J187: 12119 | K187: 11882 | L187: 12141 | M187: 11508 | N187: 1300 | R187: =+R180+R160 -> 1812 | S187: =+S180+S160 -> 1850
E191: Anhang zum Spielbericht B O W L I N G
A192: Anhang auswählen | N192: Punktspielserie
E193: alle Felder sind unbedingt auszufüllen und mit dem Original-Spielbericht einzusenden.
E195: Klasse: | G195: =+Hilfstabelle!$G$5 -> B4 | H195: Antritt-Nr. : | I195: 8 | J195: Datum : | K195: =VLOOKUP(I195,Hilfstabelle!$I$5:$J$18,2,0) -> 2025-02-13 | L195: Halle : | M195: =VLOOKUP(I195,Hilfstabelle!$I$5:$L$18,3,0) -> Wandsbek
G197: Ausrichter BSG: | H197: =VLOOKUP(I195,Hilfstabelle!$I$5:$L$18,4,0) -> Panasonic 1 | I197: Mannschaftsführer: Michael Wetzel | L197: Telefon: 0172/412 45 69
G198: Bahn: | H198: Bahn: | I198: Bahn: | J198: Bahn: | K198: Bahn: | L198: Bahn: | M198: Bahn: | N198: Bahn: | R198: Bahn: | S198: Bahn:
A199: Drucken | B199: Start | E199: Durch- gänge | G199: BSG | H199: BSG | I199: BSG | J199: BSG | K199: BSG | L199: BSG | M199: BSG | N199: BSG | R199: BSG | S199: BSG
B200: Rangliste | G200: =VLOOKUP(G201,Hilfstabelle!$L$5:$M$16,2,0) -> PAN 1 | H200: =VLOOKUP(H201,Hilfstabelle!$L$5:$M$16,2,0) -> DAT 2 | I200: =VLOOKUP(I201,Hilfstabelle!$L$5:$M$16,2,0) -> STI 3 | J200: =VLOOKUP(J201,Hilfstabelle!$L$5:$M$16,2,0) -> SGS 1 | K200: =VLOOKUP(K201,Hilfstabelle!$L$5:$M$16,2,0) -> JUS 2 | L200: =VLOOKUP(L201,Hilfstabelle!$L$5:$M$16,2,0) -> P2 2 | M200: =VLOOKUP(M201,Hilfstabelle!$L$5:$M$16,2,0) -> KS 2 | N200: =VLOOKUP(N201,Hilfstabelle!$L$5:$M$16,2,0) -> PAN 1 | R200: =VLOOKUP(R201,Hilfstabelle!$L$5:$M$16,2,0) -> DAT 2 | S200: =VLOOKUP(S201,Hilfstabelle!$L$5:$M$16,2,0) -> STI 3
G201: =+Hilfstabelle!L5 -> Panasonic 1 | H201: =+Hilfstabelle!L6 -> Dataport 2 | I201: =+Hilfstabelle!L7 -> Still 3 | J201: =+Hilfstabelle!L8 -> SG Stern Hamburg 1 | K201: =+Hilfstabelle!L9 -> Justitzbehörde 2 | L201: =+Hilfstabelle!L10 -> Postamt 2 | M201: =+Hilfstabelle!L11 -> Körber Sports 2 | N201: =+Hilfstabelle!L12 -> Panasonic 1 | R201: =+Hilfstabelle!L13 -> Dataport 2 | S201: =+Hilfstabelle!$L14 -> Still 3
E202: Platz | G202: =HLOOKUP(G201,Hilfstabelle!$H$20:$Q$21,2,0) -> 2. | H202: =HLOOKUP(H201,Hilfstabelle!$H$20:$Q$21,2,0) -> 3. | I202: =HLOOKUP(I201,Hilfstabelle!$H$20:$Q$21,2,0) -> 5. | J202: =HLOOKUP(J201,Hilfstabelle!$H$20:$Q$21,2,0) -> 4. | K202: =HLOOKUP(K201,Hilfstabelle!$H$20:$Q$21,2,0) -> 6. | L202: =HLOOKUP(L201,Hilfstabelle!$H$20:$Q$21,2,0) -> 7. | M202: =HLOOKUP(M201,Hilfstabelle!$H$20:$Q$21,2,0) -> 1. | N202: =HLOOKUP(N201,Hilfstabelle!$H$20:$Q$21,2,0) -> 2. | R202: =HLOOKUP(R201,Hilfstabelle!$H$20:$Q$21,2,0) -> 3. | S202: =HLOOKUP(S201,Hilfstabelle!$H$20:$Q$21,2,0) -> 5.
E203: 1 | G203: 611 | H203: 671 | I203: 516 | J203: 597 | K203: 691 | L203: 629 | M203: 720
E204: 2 | G204: 601 | H204: 646 | I204: 632 | J204: 617 | K204: 609 | L204: 574 | M204: 716
E205: 1 + 2 | G205: =+G204+G203 -> 1212 | H205: 1317 | I205: 1148 | J205: 1214 | K205: 1300 | L205: 1203 | M205: 1436 | N205: =+N204+N203 -> 0 | R205: =+R204+R203 -> 0 | S205: =+S204+S203 -> 0
E206: 3 | G206: 605 | H206: 623 | I206: 630 | J206: 608 | K206: 658 | L206: 621 | M206: 713
E207: Pins Gesamt | G207: =+G206+G205 -> 1817 | H207: 1940 | I207: 1778 | J207: 1822 | K207: 1958 | L207: 1824 | M207: 2149 | N207: 0 | R207: =+R206+R205 -> 0 | S207: =+S206+S205 -> 0
E208: Punkte Antritt | G208: =IF(G213="1",+G212+0.5,+G212) -> 2 | H208: =IF(H213="1",+H212+0.5,+H212) -> 5 | I208: 1 | J208: 3 | K208: 6 | L208: 4 | M208: 7 | N208: 0 | R208: =IF(R213="1",+R212+0.5,+R212) -> 0.5 | S208: =IF(S213="1",+S212+0.5,+S212) -> 0.5
E209: Punkte A L T | G209: =+G183 -> 37 | H209: =+H183 -> 30 | I209: 25 | J209: 28 | K209: 25 | L209: 23 | M209: 28 | N209: =+'Anhang zum Spielbericht'!N183 ->  | R209: =+'Anhang zum Spielbericht'!R183 ->  | S209: =+'Anhang zum Spielbericht'!S183 -> 
E210: Punkte N E U | G210: =IF(G203>0,+G209+G208," ") -> 39 | H210: 35 | I210: 26 | J210: 31 | K210: 31 | L210: 27 | M210: 35 | R210: =IF(R203>0,+R209+R208," ") ->  | S210: =IF(S203>0,+S209+S208," ") -> 
G212: =IF(G203>0,RANK(G207,$G$207:$M$207,7),"0") -> 2 | H212: =IF(H203>0,RANK(H207,$G$207:$M$207,7),"0") -> 5 | I212: 1 | J212: 3 | K212: 6 | L212: 4 | M212: 7 | N212: =IF(N203>0,RANK(N207,$G$207:$M$207,7),"0") -> 0 | R212: =IF(R203>0,RANK(R207,$G$207:$S$207,10),"0") -> 0 | S212: =IF(S203>0,RANK(S207,$G$207:$S$207,10),"0") -> 0
G213: =IF(COUNTIF($G$212:$M$212,G212)>1,"1","") ->  | H213: =IF(COUNTIF($G$212:$M$212,H212)>1,"1","") ->  | N213: =IF(COUNTIF($G$212:$M$212,N212)>1,"1","") ->  | R213: =IF(COUNTIF($G$212:$S$212,R212)>1,"1","") -> 1 | S213: =IF(COUNTIF($G$212:$S$212,S212)>1,"1","") -> 1
E214: Gesamt Pins | G214: =+G207+G187 -> 14868 | H214: =+H207+H187 -> 14252 | I214: 14058 | J214: 13941 | K214: 13840 | L214: 13965 | M214: 13657 | N214: 1300 | R214: =+R207+R187 -> 1812 | S214: =+S207+S187 -> 1850
E218: Anhang zum Spielbericht B O W L I N G
A219: Anhang auswählen | N219: Punktspielserie
E220: alle Felder sind unbedingt auszufüllen und mit dem Original-Spielbericht einzusenden.
E222: Klasse: | G222: =+Hilfstabelle!$G$5 -> B4 | H222: Antritt-Nr. : | I222: 9 | J222: Datum : | K222: =VLOOKUP(I222,Hilfstabelle!$I$5:$J$18,2,0) -> 2025-02-27 | L222: Halle : | M222: =VLOOKUP(I222,Hilfstabelle!$I$5:$L$18,3,0) -> Othmarschen
G224: Ausrichter BSG: | H224: =VLOOKUP(I222,Hilfstabelle!$I$5:$L$18,4,0) -> Dataport 2 | I224: Mannschaftsführer: Michael Wetzel | L224: Telefon: 0172/412 45 69
G225: Bahn: | H225: Bahn: | I225: Bahn: | J225: Bahn: | K225: Bahn: | L225: Bahn: | M225: Bahn: | N225: Bahn: | R225: Bahn: | S225: Bahn:
A226: Drucken | B226: Start | E226: Durch- gänge | G226: BSG | H226: BSG | I226: BSG | J226: BSG | K226: BSG | L226: BSG | M226: BSG | N226: BSG | R226: BSG | S226: BSG
B227: Rangliste | G227: =VLOOKUP(G228,Hilfstabelle!$L$5:$M$16,2,0) -> PAN 1 | H227: =VLOOKUP(H228,Hilfstabelle!$L$5:$M$16,2,0) -> DAT 2 | I227: =VLOOKUP(I228,Hilfstabelle!$L$5:$M$16,2,0) -> STI 3 | J227: =VLOOKUP(J228,Hilfstabelle!$L$5:$M$16,2,0) -> SGS 1 | K227: =VLOOKUP(K228,Hilfstabelle!$L$5:$M$16,2,0) -> JUS 2 | L227: =VLOOKUP(L228,Hilfstabelle!$L$5:$M$16,2,0) -> P2 2 | M227: =VLOOKUP(M228,Hilfstabelle!$L$5:$M$16,2,0) -> KS 2 | N227: =VLOOKUP(N228,Hilfstabelle!$L$5:$M$16,2,0) -> PAN 1 | R227: =VLOOKUP(R228,Hilfstabelle!$L$5:$M$16,2,0) -> DAT 2 | S227: =VLOOKUP(S228,Hilfstabelle!$L$5:$M$16,2,0) -> STI 3
G228: =+Hilfstabelle!L5 -> Panasonic 1 | H228: =+Hilfstabelle!L6 -> Dataport 2 | I228: =+Hilfstabelle!L7 -> Still 3 | J228: =+Hilfstabelle!L8 -> SG Stern Hamburg 1 | K228: =+Hilfstabelle!L9 -> Justitzbehörde 2 | L228: =+Hilfstabelle!L10 -> Postamt 2 | M228: =+Hilfstabelle!L11 -> Körber Sports 2 | N228: =+Hilfstabelle!L12 -> Panasonic 1 | R228: =+Hilfstabelle!L13 -> Dataport 2 | S228: =+Hilfstabelle!$L14 -> Still 3
E229: Platz | G229: =HLOOKUP(G228,Hilfstabelle!$H$20:$Q$21,2,0) -> 2. | H229: =HLOOKUP(H228,Hilfstabelle!$H$20:$Q$21,2,0) -> 3. | I229: =HLOOKUP(I228,Hilfstabelle!$H$20:$Q$21,2,0) -> 5. | J229: =HLOOKUP(J228,Hilfstabelle!$H$20:$Q$21,2,0) -> 4. | K229: =HLOOKUP(K228,Hilfstabelle!$H$20:$Q$21,2,0) -> 6. | L229: =HLOOKUP(L228,Hilfstabelle!$H$20:$Q$21,2,0) -> 7. | M229: =HLOOKUP(M228,Hilfstabelle!$H$20:$Q$21,2,0) -> 1. | N229: =HLOOKUP(N228,Hilfstabelle!$H$20:$Q$21,2,0) -> 2. | R229: =HLOOKUP(R228,Hilfstabelle!$H$20:$Q$21,2,0) -> 3. | S229: =HLOOKUP(S228,Hilfstabelle!$H$20:$Q$21,2,0) -> 5.
E230: 1 | G230: 574 | H230: 617 | I230: 604 | J230: 512 | K230: 477 | L230: 593 | M230: 610
E231: 2 | G231: 652 | H231: 602 | I231: 643 | J231: 602 | K231: 556 | L231: 590 | M231: 697
E232: 1 + 2 | G232: =+G231+G230 -> 1226 | H232: 1219 | I232: 1247 | J232: 1114 | K232: 1033 | L232: 1183 | M232: 1307 | N232: =+N231+N230 -> 0 | R232: =+R231+R230 -> 0 | S232: =+S231+S230 -> 0
E233: 3 | G233: 606 | H233: 543 | I233: 588 | J233: 547 | K233: 522 | L233: 568 | M233: 707
E234: Pins Gesamt | G234: =+G233+G232 -> 1832 | H234: 1762 | I234: 1835 | J234: 1661 | K234: 1555 | L234: 1751 | M234: 2014 | N234: 0 | R234: =+R233+R232 -> 0 | S234: =+S233+S232 -> 0
E235: Punkte Antritt | G235: =IF(G240="1",+G239+0.5,+G239) -> 5 | H235: 4 | I235: 6 | J235: 2 | K235: 1 | L235: 3 | M235: 7 | N235: 0 | R235: =IF(R240="1",+R239+0.5,+R239) -> 0.5 | S235: =IF(S240="1",+S239+0.5,+S239) -> 0.5
E236: Punkte A L T | G236: =+G210 -> 39 | H236: =+H210 -> 35 | I236: 26 | J236: 31 | K236: 31 | L236: 27 | M236: 35 | N236: =+'Anhang zum Spielbericht'!N210 ->  | R236: =+'Anhang zum Spielbericht'!R210 ->  | S236: =+'Anhang zum Spielbericht'!S210 -> 
E237: Punkte N E U | G237: =IF(G230>0,+G236+G235," ") -> 44 | H237: 39 | I237: 32 | J237: 33 | K237: 32 | L237: 30 | M237: 42 | R237: =IF(R230>0,+R236+R235," ") ->  | S237: =IF(S230>0,+S236+S235," ") -> 
G239: =IF(G230>0,RANK(G234,$G$234:$M$234,8),"0") -> 5 | H239: =IF(H230>0,RANK(H234,$G$234:$M$234,8),"0") -> 4 | I239: 6 | J239: 2 | K239: 1 | L239: 3 | M239: 7 | N239: =IF(N230>0,RANK(N234,$G$234:$M$234,8),"0") -> 0 | R239: =IF(R230>0,RANK(R234,$G$234:$S$234,10),"0") -> 0 | S239: =IF(S230>0,RANK(S234,$G$234:$S$234,10),"0") -> 0
G240: =IF(COUNTIF($G$239:$M$239,G239)>1,"1","") ->  | H240: =IF(COUNTIF($G$239:$M$239,H239)>1,"1","") ->  | N240: =IF(COUNTIF($G$239:$M$239,N239)>1,"1","") ->  | R240: =IF(COUNTIF($G$239:$S$239,R239)>1,"1","") -> 1 | S240: =IF(COUNTIF($G$239:$S$239,S239)>1,"1","") -> 1
E241: Gesamt Pins | G241: =+G234+G214 -> 16700 | H241: =+H234+H214 -> 16014 | I241: 15893 | J241: 15602 | K241: 15395 | L241: 15716 | M241: 15671 | N241: 1300 | R241: =+R234+R214 -> 1812 | S241: =+S234+S214 -> 1850
E245: Anhang zum Spielbericht B O W L I N G
A246: Anhang auswählen | N246: Punktspielserie
E247: alle Felder sind unbedingt auszufüllen und mit dem Original-Spielbericht einzusenden.
E249: Klasse: | G249: =+Hilfstabelle!$G$5 -> B4 | H249: Antritt-Nr. : | I249: 10 | J249: Datum : | K249: =VLOOKUP(I249,Hilfstabelle!$I$5:$J$18,2,0) -> 2025-03-13 | L249: Halle : | M249: =VLOOKUP(I249,Hilfstabelle!$I$5:$L$18,3,0) -> Wandsbek
G251: Ausrichter BSG: | H251: =VLOOKUP(I249,Hilfstabelle!$I$5:$L$18,4,0) -> Still 3 | I251: Mannschaftsführer: Michael Wetzel | L251: Telefon: 0172/412 45 69
G253: Bahn: | H253: Bahn: | I253: Bahn: | J253: Bahn: | K253: Bahn: | L253: Bahn: | M253: Bahn:
A254: Drucken | B254: Start | E254: Durch- gänge | G254: BSG | H254: BSG | I254: BSG | J254: BSG | K254: BSG | L254: BSG | M254: BSG | N254: BSG | R254: BSG | S254: BSG
B255: Rangliste | G255: =VLOOKUP(G256,Hilfstabelle!$L$5:$M$16,2,0) -> PAN 1 | H255: =VLOOKUP(H256,Hilfstabelle!$L$5:$M$16,2,0) -> DAT 2 | I255: =VLOOKUP(I256,Hilfstabelle!$L$5:$M$16,2,0) -> STI 3 | J255: =VLOOKUP(J256,Hilfstabelle!$L$5:$M$16,2,0) -> SGS 1 | K255: =VLOOKUP(K256,Hilfstabelle!$L$5:$M$16,2,0) -> JUS 2 | L255: =VLOOKUP(L256,Hilfstabelle!$L$5:$M$16,2,0) -> P2 2 | M255: =VLOOKUP(M256,Hilfstabelle!$L$5:$M$16,2,0) -> KS 2 | N255: =VLOOKUP(N256,Hilfstabelle!$L$5:$M$16,2,0) -> PAN 1 | R255: =VLOOKUP(R256,Hilfstabelle!$L$5:$M$16,2,0) -> DAT 2 | S255: =VLOOKUP(S256,Hilfstabelle!$L$5:$M$16,2,0) -> STI 3
G256: =+Hilfstabelle!L5 -> Panasonic 1 | H256: =+Hilfstabelle!L6 -> Dataport 2 | I256: =+Hilfstabelle!L7 -> Still 3 | J256: =+Hilfstabelle!L8 -> SG Stern Hamburg 1 | K256: =+Hilfstabelle!L9 -> Justitzbehörde 2 | L256: =+Hilfstabelle!L10 -> Postamt 2 | M256: =+Hilfstabelle!L11 -> Körber Sports 2 | N256: =+Hilfstabelle!L12 -> Panasonic 1 | R256: =+Hilfstabelle!L13 -> Dataport 2 | S256: =+Hilfstabelle!$L14 -> Still 3
... 97 more rows

Sheet Spielberichte
A1: Start | F1: Spielbericht
A2: Rangliste | F2: Spielbericht BOWLING
F3: Betriebssportverband Hamburg e.V. | P3: Punktspielserie
F4: alle Felder sind unbedingt auszufüllen,da sonst der Spielbericht ungültig ist
A6: Spielberichte drucken | F6: Klasse | G6: Herren | H6: =+Hilfstabelle!G5 -> B4 | I6: Antritt Nr. | J6: 1 | L6: Datum | M6: =+Hilfstabelle!B5 -> 2024-09-12 | N6: BSG | O6: PAN 1
G8: X) | H8: Pass-Nr. | I8: Vor-und Zuname | M8: I | N8: II | O8: III | P8: Gesamt
F9: 1 | H9: =IF(I9>0,VLOOKUP(I9,Tabelle2[#Data],2,0),"") -> 19222 | I9: =+Spielereinteilung!B8 -> Annegret Schmidt | P9: =+O9+N9+M9 -> 0
F10: 2 | H10: =IF(I10>0,VLOOKUP(I10,Tabelle2[#Data],2,0),"") -> 22115 | I10: =+Spielereinteilung!B9 -> Ilona Wetzel | P10: =+O10+N10+M10 -> 0
A11: Spielberichte anzeigen | F11: 3 | H11: =IF(I11>0,VLOOKUP(I11,Tabelle2[#Data],2,0),"") -> 22113 | I11: =+Spielereinteilung!B10 -> Michael Wetzel | P11: 0
F12: 4 | H12: =IF(I12>0,VLOOKUP(I12,Tabelle2[#Data],2,0),"") -> 21889 | I12: =+Spielereinteilung!B11 -> Kai Roßberg | P12: 0
F13: 5
F14: Bitte mit einem x) versehen | I14: Unterschrift des Spiel- | M14: =SUM(M9:M13) -> 0 | N14: 0 | O14: 0 | P14: =SUM(P9:P13) -> 0
F15: wenn Ersatzspieler/in | I15: partners
F17: Spielbericht BOWLING
F18: Betriebssportverband Hamburg e.V. | P18: Punktspielserie
F19: alle Felder sind unbedingt auszufüllen,da sonst der Spielbericht ungültig ist
F21: Klasse | G21: Herren | H21: =+H6 -> B4 | I21: Antritt Nr. | J21: =J6 -> 1 | L21: Datum | M21: =+M6 -> 2024-09-12 | N21: BSG | O21: =+O6 -> PAN 1
G23: X) | H23: Pass-Nr. | I23: Vor-und Zuname | M23: I | N23: II | O23: III | P23: Gesamt
F24: 1 | G24: =G9 -> 0 | H24: =+H9 -> 19222 | I24: Annegret Schmidt | P24: =+O24+N24+M24 -> 0
F25: 2 | G25: =G10 -> 0 | H25: 22115 | I25: Ilona Wetzel | P25: =+O25+N25+M25 -> 0
F26: 3 | G26: =G11 -> 0 | H26: 22113 | I26: Michael Wetzel | P26: 0
F27: 4 | G27: =G12 -> 0 | H27: 21889 | I27: Kai Roßberg | P27: 0
F28: 5 | G28: =G13 -> 0 | H28: 0 | I28: 0
F29: Bitte mit einem x) versehen | I29: Unterschrift des Spiel- | P29: =+P27+P25+P24+P26 -> 0
F30: wenn Ersatzspieler/in | I30: partners
F38: Spielbericht BOWLING
F39: Betriebssportverband Hamburg e.V. | P39: Punktspielserie
F40: alle Felder sind unbedingt auszufüllen,da sonst der Spielbericht ungültig ist
F42: Klasse | G42: Herren | H42: =+H6 -> B4 | I42: Antritt Nr. | J42: 2 | L42: Datum | M42: =+Hilfstabelle!B6 -> 2024-09-26 | N42: BSG | O42: PAN 1
G44: X) | H44: Pass-Nr. | I44: Vor-und Zuname | M44: I | N44: II | O44: III | P44: Gesamt
F45: 1 | H45: =IF(I45>0,VLOOKUP(I45,Tabelle2[#Data],2,0),"") -> 20137 | I45: =+Spielereinteilung!K8 -> Matthias Nolte
F46: 2 | H46: =IF(I46>0,VLOOKUP(I46,Tabelle2[#Data],2,0),"") -> 24775 | I46: =+Spielereinteilung!K9 -> Deniz Hagelstein
F47: 3 | H47: =IF(I47>0,VLOOKUP(I47,Tabelle2[#Data],2,0),"") -> 23302 | I47: =+Spielereinteilung!K10 -> Mario Jurk
F48: 4 | H48: =IF(I48>0,VLOOKUP(I48,Tabelle2[#Data],2,0),"") -> 21889 | I48: =+Spielereinteilung!K11 -> Kai Roßberg
F49: 5
F50: Bitte mit einem x) versehen | I50: Unterschrift des Spiel-
F51: wenn Ersatzspieler/in | I51: partners
F53: Spielbericht BOWLING
F54: Betriebssportverband Hamburg e.V. | P54: Punktspielserie
F55: alle Felder sind unbedingt auszufüllen,da sonst der Spielbericht ungültig ist
F57: Klasse | G57: Herren | H57: =+H42 -> B4 | I57: Antritt Nr. | J57: =J42 -> 2 | L57: Datum | M57: =+M42 -> 2024-09-26 | N57: BSG | O57: =+O42 -> PAN 1
G59: X) | H59: Pass-Nr. | I59: Vor-und Zuname | M59: I | N59: II | O59: III | P59: Gesamt
F60: 1 | G60: =G45 -> 0 | H60: =+H45 -> 20137 | I60: Matthias Nolte
F61: 2 | G61: =G46 -> 0 | H61: 24775 | I61: Deniz Hagelstein
F62: 3 | G62: =G47 -> 0 | H62: 23302 | I62: Mario Jurk
F63: 4 | G63: =G48 -> 0 | H63: 21889 | I63: Kai Roßberg
F64: 5 | G64: =G49 -> 0 | H64: 0 | I64: 0
F65: Bitte mit einem x) versehen | I65: Unterschrift des Spiel-
F66: wenn Ersatzspieler/in | I66: partners
F74: Spielbericht BOWLING
F75: Betriebssportverband Hamburg e.V. | P75: Punktspielserie
F76: alle Felder sind unbedingt auszufüllen,da sonst der Spielbericht ungültig ist
F78: Klasse | G78: Herren | H78: =+H42 -> B4 | I78: Antritt Nr. | J78: 3 | L78: Datum | M78: =+Hilfstabelle!B7 -> 2024-10-10 | N78: BSG | O78: PAN 1
G80: X) | H80: Pass-Nr. | I80: Vor-und Zuname | M80: I | N80: II | O80: III | P80: Gesamt
F81: 1 | H81: =IF(I81>0,VLOOKUP(I81,Tabelle2[#Data],2,0),"") -> 22115 | I81: =+Spielereinteilung!T8 -> Ilona Wetzel
F82: 2 | H82: =IF(I82>0,VLOOKUP(I82,Tabelle2[#Data],2,0),"") -> 19222 | I82: =+Spielereinteilung!T9 -> Annegret Schmidt
F83: 3 | H83: =IF(I83>0,VLOOKUP(I83,Tabelle2[#Data],2,0),"") -> 22113 | I83: =+Spielereinteilung!T10 -> Michael Wetzel
F84: 4 | H84: =IF(I84>0,VLOOKUP(I84,Tabelle2[#Data],2,0),"") -> 21889 | I84: =+Spielereinteilung!T11 -> Kai Roßberg
F85: 5
F86: Bitte mit einem x) versehen | I86: Unterschrift des Spiel-
F87: wenn Ersatzspieler/in | I87: partners
F89: Spielbericht BOWLING
F90: Betriebssportverband Hamburg e.V. | P90: Punktspielserie
F91: alle Felder sind unbedingt auszufüllen,da sonst der Spielbericht ungültig ist
F93: Klasse | G93: Herren | H93: =+H78 -> B4 | I93: Antritt Nr. | J93: =J78 -> 3 | L93: Datum | M93: =+M78 -> 2024-10-10 | N93: BSG | O93: =+O78 -> PAN 1
G95: X) | H95: Pass-Nr. | I95: Vor-und Zuname | M95: I | N95: II | O95: III | P95: Gesamt
F96: 1 | G96: =G81 -> 0 | H96: =+H81 -> 22115 | I96: Ilona Wetzel
F97: 2 | G97: =G82 -> 0 | H97: 19222 | I97: Annegret Schmidt
F98: 3 | G98: =G83 -> 0 | H98: 22113 | I98: Michael Wetzel
F99: 4 | G99: =G84 -> 0 | H99: 21889 | I99: Kai Roßberg
F100: 5 | G100: =G85 -> 0 | H100: 0 | I100: 0
F101: Bitte mit einem x) versehen | I101: Unterschrift des Spiel-
F102: wenn Ersatzspieler/in | I102: partners
F110: Spielbericht BOWLING
F111: Betriebssportverband Hamburg e.V. | P111: Punktspielserie
F112: alle Felder sind unbedingt auszufüllen,da sonst der Spielbericht ungültig ist
F114: Klasse | G114: Herren | H114: =+H78 -> B4 | I114: Antritt Nr. | J114: 4 | L114: Datum | M114: =+Hilfstabelle!B8 -> 2024-10-24 | N114: BSG | O114: PAN 1
G116: X) | H116: Pass-Nr. | I116: Vor-und Zuname | M116: I | N116: II | O116: III | P116: Gesamt
F117: 1 | H117: =IF(I117>0,VLOOKUP(I117,Tabelle2[#Data],2,0),"") -> 20137 | I117: =+Spielereinteilung!AC8 -> Matthias Nolte
F118: 2 | H118: =IF(I118>0,VLOOKUP(I118,Tabelle2[#Data],2,0),"") -> 24775 | I118: =+Spielereinteilung!AC9 -> Deniz Hagelstein
F119: 3 | H119: =IF(I119>0,VLOOKUP(I119,Tabelle2[#Data],2,0),"") -> 24774 | I119: =+Spielereinteilung!AC10 -> Frank Nijholt
F120: 4 | H120: =IF(I120>0,VLOOKUP(I120,Tabelle2[#Data],2,0),"") -> 22113 | I120: =+Spielereinteilung!AC11 -> Michael Wetzel
F121: 5
F122: Bitte mit einem x) versehen | I122: Unterschrift des Spiel-
F123: wenn Ersatzspieler/in | I123: partners
F125: Spielbericht BOWLING
F126: Betriebssportverband Hamburg e.V. | P126: Punktspielserie
F127: alle Felder sind unbedingt auszufüllen,da sonst der Spielbericht ungültig ist
F129: Klasse | G129: Herren | H129: =+H114 -> B4 | I129: Antritt Nr. | J129: =J114 -> 4 | L129: Datum | M129: =+M114 -> 2024-10-24 | N129: BSG | O129: =+O114 -> PAN 1
G131: X) | H131: Pass-Nr. | I131: Vor-und Zuname | M131: I | N131: II | O131: III | P131: Gesamt
F132: 1 | G132: =G117 -> 0 | H132: =+H117 -> 20137 | I132: Matthias Nolte
F133: 2 | G133: =G118 -> 0 | H133: 24775 | I133: Deniz Hagelstein
F134: 3 | G134: =G119 -> 0 | H134: 24774 | I134: Frank Nijholt
F135: 4 | G135: =G120 -> 0 | H135: 22113 | I135: Michael Wetzel
F136: 5 | G136: =G121 -> 0 | H136: 0 | I136: 0
F137: Bitte mit einem x) versehen | I137: Unterschrift des Spiel-
F138: wenn Ersatzspieler/in | I138: partners
F146: Spielbericht BOWLING
F147: Betriebssportverband Hamburg e.V. | P147: Punktspielserie
F148: alle Felder sind unbedingt auszufüllen,da sonst der Spielbericht ungültig ist
F150: Klasse | G150: Herren | H150: =+H114 -> B4 | I150: Antritt Nr. | J150: 5 | L150: Datum | M150: =+Hilfstabelle!B9 -> 2024-11-07 | N150: BSG | O150: PAN 1
G152: X) | H152: Pass-Nr. | I152: Vor-und Zuname | M152: I | N152: II | O152: III | P152: Gesamt
F153: 1 | H153: =IF(I153>0,VLOOKUP(I153,Tabelle2[#Data],2,0),"") -> 24774 | I153: =+Spielereinteilung!AL8 -> Frank Nijholt
F154: 2 | H154: =IF(I154>0,VLOOKUP(I154,Tabelle2[#Data],2,0),"") -> 22115 | I154: =+Spielereinteilung!AL9 -> Ilona Wetzel
F155: 3 | H155: =IF(I155>0,VLOOKUP(I155,Tabelle2[#Data],2,0),"") -> 23302 | I155: =+Spielereinteilung!AL10 -> Mario Jurk
F156: 4 | H156: =IF(I156>0,VLOOKUP(I156,Tabelle2[#Data],2,0),"") -> 21889 | I156: =+Spielereinteilung!AL11 -> Kai Roßberg
F157: 5
F158: Bitte mit einem x) versehen | I158: Unterschrift des Spiel-
F159: wenn Ersatzspieler/in | I159: partners
F161: Spielbericht BOWLING
F162: Betriebssportverband Hamburg e.V. | P162: Punktspielserie
F163: alle Felder sind unbedingt auszufüllen,da sonst der Spielbericht ungültig ist
F165: Klasse | G165: Herren | H165: =+H150 -> B4 | I165: Antritt Nr. | J165: =J150 -> 5 | L165: Datum | M165: =+M150 -> 2024-11-07 | N165: BSG | O165: =+O150 -> PAN 1
G167: X) | H167: Pass-Nr. | I167: Vor-und Zuname | M167: I | N167: II | O167: III | P167: Gesamt
F168: 1 | G168: =G153 -> 0 | H168: =+H153 -> 24774 | I168: Frank Nijholt
F169: 2 | G169: =G154 -> 0 | H169: 22115 | I169: Ilona Wetzel
F170: 3 | G170: =G155 -> 0 | H170: 23302 | I170: Mario Jurk
F171: 4 | G171: =G156 -> 0 | H171: 21889 | I171: Kai Roßberg
F172: 5 | G172: =G157 -> 0 | H172: 0 | I172: 0
F173: Bitte mit einem x) versehen | I173: Unterschrift des Spiel-
F174: wenn Ersatzspieler/in | I174: partners
F182: Spielbericht BOWLING
F183: Betriebssportverband Hamburg e.V. | P183: Punktspielserie
F184: alle Felder sind unbedingt auszufüllen,da sonst der Spielbericht ungültig ist
F186: Klasse | G186: Herren | H186: =+H150 -> B4 | I186: Antritt Nr. | J186: 6 | L186: Datum | M186: =+Hilfstabelle!B10 -> 2025-01-16 | N186: BSG | O186: PAN 1
G188: X) | H188: Pass-Nr. | I188: Vor-und Zuname | M188: I | N188: II | O188: III | P188: Gesamt
F189: 1 | H189: =IF(I189>0,VLOOKUP(I189,Tabelle2[#Data],2,0),"") -> 19222 | I189: =+Spielereinteilung!AU8 -> Annegret Schmidt
F190: 2 | H190: =IF(I190>0,VLOOKUP(I190,Tabelle2[#Data],2,0),"") -> 24774 | I190: =+Spielereinteilung!AU9 -> Frank Nijholt
F191: 3 | H191: =IF(I191>0,VLOOKUP(I191,Tabelle2[#Data],2,0),"") -> 23302 | I191: =+Spielereinteilung!AU10 -> Mario Jurk
F192: 4 | H192: =IF(I192>0,VLOOKUP(I192,Tabelle2[#Data],2,0),"") -> 21889 | I192: =+Spielereinteilung!AU11 -> Kai Roßberg
F193: 5
F194: Bitte mit einem x) versehen | I194: Unterschrift des Spiel-
F195: wenn Ersatzspieler/in | I195: partners
F197: Spielbericht BOWLING
F198: Betriebssportverband Hamburg e.V. | P198: Punktspielserie
F199: alle Felder sind unbedingt auszufüllen,da sonst der Spielbericht ungültig ist
F201: Klasse | G201: Herren | H201: =+H186 -> B4 | I201: Antritt Nr. | J201: =J186 -> 6 | L201: Datum | M201: =+M186 -> 2025-01-16 | N201: BSG | O201: =+O186 -> PAN 1
G203: X) | H203: Pass-Nr. | I203: Vor-und Zuname | M203: I | N203: II | O203: III | P203: Gesamt
F204: 1 | G204: =G189 -> 0 | H204: =+H189 -> 19222 | I204: Annegret Schmidt
F205: 2 | G205: =G190 -> 0 | H205: 24774 | I205: Frank Nijholt
F206: 3 | G206: =G191 -> 0 | H206: 23302 | I206: Mario Jurk
F207: 4 | G207: =G192 -> 0 | H207: 21889 | I207: Kai Roßberg
F208: 5 | G208: =G193 -> 0 | H208: 0 | I208: 0
F209: Bitte mit einem x) versehen | I209: Unterschrift des Spiel-
F210: wenn Ersatzspieler/in | I210: partners
F218: Spielbericht BOWLING
F219: Betriebssportverband Hamburg e.V. | P219: Punktspielserie
F220: alle Felder sind unbedingt auszufüllen,da sonst der Spielbericht ungültig ist
F222: Klasse | G222: Herren | H222: =+H186 -> B4 | I222: Antritt Nr. | J222: 7 | L222: Datum | M222: =+Hilfstabelle!B11 -> 2025-01-30 | N222: BSG | O222: PAN 1
G224: X) | H224: Pass-Nr. | I224: Vor-und Zuname | M224: I | N224: II | O224: III | P224: Gesamt
F225: 1 | H225: =IF(I225>0,VLOOKUP(I225,Tabelle2[#Data],2,0),"") -> 19222 | I225: =+Spielereinteilung!B24 -> Annegret Schmidt
F226: 2 | H226: =IF(I226>0,VLOOKUP(I226,Tabelle2[#Data],2,0),"") -> 24775 | I226: =+Spielereinteilung!B25 -> Deniz Hagelstein
F227: 3 | H227: =IF(I227>0,VLOOKUP(I227,Tabelle2[#Data],2,0),"") -> 23302 | I227: =+Spielereinteilung!B26 -> Mario Jurk
F228: 4 | H228: =IF(I228>0,VLOOKUP(I228,Tabelle2[#Data],2,0),"") -> 21889 | I228: =+Spielereinteilung!B27 -> Kai Roßberg
F229: 5
F230: Bitte mit einem x) versehen | I230: Unterschrift des Spiel-
F231: wenn Ersatzspieler/in | I231: partners
F233: Spielbericht BOWLING
F234: Betriebssportverband Hamburg e.V. | P234: Punktspielserie
F235: alle Felder sind unbedingt auszufüllen,da sonst der Spielbericht ungültig ist
F237: Klasse | G237: Herren | H237: =+H222 -> B4 | I237: Antritt Nr. | J237: =J222 -> 7 | L237: Datum | M237: =+M222 -> 2025-01-30 | N237: BSG | O237: =+O222 -> PAN 1
G239: X) | H239: Pass-Nr. | I239: Vor-und Zuname | M239: I | N239: II | O239: III | P239: Gesamt
F240: 1 | G240: =G225 -> 0 | H240: =+H225 -> 19222 | I240: =+I225 -> Annegret Schmidt
F241: 2 | G241: =G226 -> 0 | H241: =+H226 -> 24775 | I241: =+I226 -> Deniz Hagelstein
F242: 3 | G242: =G227 -> 0 | H242: =+H227 -> 23302 | I242: =+I227 -> Mario Jurk
F243: 4 | G243: =G228 -> 0 | H243: =+H228 -> 21889 | I243: =+I228 -> Kai Roßberg
F244: 5 | G244: =G229 -> 0 | H244: =+Spielberichte!H193 -> 0 | I244: =+I229 -> 0
F245: Bitte mit einem x) versehen | I245: Unterschrift des Spiel-
F246: wenn Ersatzspieler/in | I246: partners
F254: Spielbericht BOWLING
F255: Betriebssportverband Hamburg e.V. | P255: Punktspielserie
F256: alle Felder sind unbedingt auszufüllen,da sonst der Spielbericht ungültig ist
F258: Klasse | G258: Herren | H258: =+H222 -> B4 | I258: Antritt Nr. | J258: 8 | L258: Datum | M258: =+Hilfstabelle!B12 -> 2025-02-13 | N258: BSG | O258: PAN 1
G260: X) | H260: Pass-Nr. | I260: Vor-und Zuname | M260: I | N260: II | O260: III | P260: Gesamt
F261: 1 | H261: =IF(I261>0,VLOOKUP(I261,Tabelle2[#Data],2,0),"") -> 19222 | I261: =+Spielereinteilung!K24 -> Annegret Schmidt
F262: 2 | H262: =IF(I262>0,VLOOKUP(I262,Tabelle2[#Data],2,0),"") -> 22115 | I262: =+Spielereinteilung!K25 -> Ilona Wetzel
F263: 3 | H263: =IF(I263>0,VLOOKUP(I263,Tabelle2[#Data],2,0),"") -> 24775 | I263: =+Spielereinteilung!K26 -> Deniz Hagelstein
F264: 4 | H264: =IF(I264>0,VLOOKUP(I264,Tabelle2[#Data],2,0),"") -> 21889 | I264: =+Spielereinteilung!K27 -> Kai Roßberg
F265: 5
F266: Bitte mit einem x) versehen | I266: Unterschrift des Spiel-
F267: wenn Ersatzspieler/in | I267: partners
F269: Spielbericht BOWLING
F270: Betriebssportverband Hamburg e.V. | P270: Punktspielserie
F271: alle Felder sind unbedingt auszufüllen,da sonst der Spielbericht ungültig ist
F273: Klasse | G273: Herren | H273: =+H258 -> B4 | I273: Antritt Nr. | J273: =J258 -> 8 | L273: Datum | M273: =+M258 -> 2025-02-13 | N273: BSG | O273: =+O258 -> PAN 1
G275: X) | H275: Pass-Nr. | I275: Vor-und Zuname | M275: I | N275: II | O275: III | P275: Gesamt
F276: 1 | G276: =G261 -> 0 | H276: =+H261 -> 19222 | I276: Annegret Schmidt
F277: 2 | G277: =G262 -> 0 | H277: 22115 | I277: Ilona Wetzel
F278: 3 | G278: =G263 -> 0 | H278: 24775 | I278: Deniz Hagelstein
F279: 4 | G279: =G264 -> 0 | H279: 21889 | I279: Kai Roßberg
F280: 5 | G280: =G265 -> 0 | H280: 0 | I280: 0
F281: Bitte mit einem x) versehen | I281: Unterschrift des Spiel-
F282: wenn Ersatzspieler/in | I282: partners
F290: Spielbericht BOWLING
F291: Betriebssportverband Hamburg e.V. | P291: Punktspielserie
F292: alle Felder sind unbedingt auszufüllen,da sonst der Spielbericht ungültig ist
F294: Klasse | G294: Herren | H294: =+H258 -> B4 | I294: Antritt Nr. | J294: 9 | L294: Datum | M294: =+Hilfstabelle!B13 -> 2025-02-27 | N294: BSG | O294: PAN 1
G296: X) | H296: Pass-Nr. | I296: Vor-und Zuname | M296: I | N296: II | O296: III | P296: Gesamt
F297: 1 | H297: =IF(I297>0,VLOOKUP(I297,Tabelle2[#Data],2,0),"") -> 19222 | I297: =+Spielereinteilung!T24 -> Annegret Schmidt
F298: 2 | H298: =IF(I298>0,VLOOKUP(I298,Tabelle2[#Data],2,0),"") -> 19221 | I298: =+Spielereinteilung!T25 -> Jörg Frahm
... 137 more rows

Sheet Spielereinteilung
A1: Start | B1: Ausdruck im DIN A4 format | N1: Übersicht | T1: =+"Spielplan 1. Mannschaft, Saison "&+Hilfstabelle!D5 -> Spielplan 1. Mannschaft, Saison 2024/2025 | FY1: =+I1 -> 0 | FZ1: =+J1 -> 0 | GA1: =+K1 -> 0 | GB1: =+L1 -> 0 | GC1: =+R1 -> 0 | GD1: =+S1 -> 0 | GE1: =+T1 -> Spielplan 1. Mannschaft, Saison 2024/2025 | GL1: =+AK1 -> 0 | GM1: 0 | GN1: 0 | GO1: =+AS1 -> 0 | GP1: 0 | GQ1: 0 | GR1: 0 | GS1: =+BB1 -> 0
A2: Rangliste | B2: ist im Druckbereich voreingestellt. | FX2: =+C2 -> 0 | FY2: 0 | FZ2: 0 | GA2: 0 | GB2: 0 | GC2: 0 | GD2: 0 | GE2: 0 | GF2: =+U2 -> 0 | GG2: =+AA2 -> 0 | GH2: =+AB2 -> 0 | GI2: =+AC2 -> 0 | GJ2: =+AD2 -> 0 | GK2: =+AJ2 -> 0 | GL2: 0 | GM2: 0 | GN2: 0 | GO2: 0 | GP2: 0 | GQ2: 0 | GR2: 0 | GS2: 0
T3: 2024 | FW3: =+B3 -> 0 | FX3: 0 | FY3: 0 | FZ3: 0 | GA3: 0 | GB3: 0 | GC3: 0 | GD3: 0 | GE3: 2024 | GF3: 0 | GG3: 0 | GH3: 0 | GI3: 0 | GJ3: 0 | GK3: 0 | GL3: 0 | GM3: 0 | GN3: 0 | GO3: 0 | GP3: 0 | GQ3: 0 | GR3: 0 | GS3: 0
FV4: =+A4 -> 0 | FW4: 0 | FX4: 0 | FY4: 0 | FZ4: 0 | GA4: 0 | GB4: 0 | GC4: 0 | GD4: 0 | GE4: 0 | GF4: 0 | GG4: 0 | GH4: 0 | GI4: 0 | GJ4: 0 | GK4: 0 | GL4: 0 | GM4: 0 | GN4: 0 | GO4: 0 | GP4: 0 | GQ4: 0 | GR4: 0 | GS4: 0
B5: Kürzel: | I5: =VLOOKUP(F7,Hilfstabelle!$R$5:$S$18,2,0) -> OT | K5: Kürzel: | R5: =VLOOKUP(O7,Hilfstabelle!$R$5:$S$18,2,0) -> OT | T5: Kürzel: | AA5: =VLOOKUP(X7,Hilfstabelle!$R$5:$S$18,2,0) -> WB | AC5: Kürzel: | AJ5: =VLOOKUP(AG7,Hilfstabelle!$R$5:$S$18,2,0) -> OT | AL5: Kürzel: | AS5: =VLOOKUP(AP7,Hilfstabelle!$R$5:$S$18,2,0) -> WB | AU5: Kürzel: | BB5: =VLOOKUP(AY7,Hilfstabelle!$R$5:$S$18,2,0) -> WB | FV5: 0 | FW5: Kürzel: | FX5: 0 | FY5: OT | FZ5: 0 | GA5: Kürzel: | GB5: 0 | GC5: OT | GD5: 0 | GE5: Kürzel: | GF5: 0 | GG5: WB | GH5: 0 | GI5: Kürzel: | GJ5: 0 | GK5: OT | GL5: 0 | GM5: Kürzel: | GN5: 0 | GO5: WB | GP5: 0 | GQ5: Kürzel: | GR5: 0 | GS5: WB
B6: =+"Bahn: "&VLOOKUP(F7,Hilfstabelle!$B$5:$C$18,2,0) -> Bahn: Othmarschen | K6: =+"Bahn: "&VLOOKUP(O7,Hilfstabelle!$B$5:$C$18,2,0) -> Bahn: Othmarschen | T6: =+"Bahn: "&VLOOKUP(X7,Hilfstabelle!$B$5:$C$18,2,0) -> Bahn: Wandsbek | AC6: =+"Bahn: "&VLOOKUP(AG7,Hilfstabelle!$B$5:$C$18,2,0) -> Bahn: Othmarschen | AL6: =+"Bahn: "&VLOOKUP(AP7,Hilfstabelle!$B$5:$C$18,2,0) -> Bahn: Wandsbek | AU6: =+"Bahn: "&VLOOKUP(AY7,Hilfstabelle!$B$5:$C$18,2,0) -> Bahn: Wandsbek | FV6: 0 | FW6: Bahn: Othmarschen | FX6: 0 | FY6: 0 | FZ6: 0 | GA6: Bahn: Othmarschen | GB6: 0 | GC6: 0 | GD6: 0 | GE6: Bahn: Wandsbek | GF6: 0 | GG6: 0 | GH6: 0 | GI6: Bahn: Othmarschen | GJ6: 0 | GK6: 0 | GL6: =+AK6 -> 0 | GM6: Bahn: Wandsbek | GP6: =+AT6 -> 0 | GQ6: Bahn: Wandsbek | GR6: 0 | GS6: =+BB6 -> 0
B7: 1. | C7: Antritt | F7: =VLOOKUP(B7,Hilfstabelle!$A$5:$B$18,2,0) -> 2024-09-12 | K7: 2. | L7: Antritt | O7: =VLOOKUP(K7,Hilfstabelle!$A$5:$B$18,2,0) -> 2024-09-26 | T7: 3. | U7: Antritt | X7: =VLOOKUP(T7,Hilfstabelle!$A$5:$B$18,2,0) -> 2024-10-10 | AC7: 4. | AD7: Antritt | AG7: =VLOOKUP(AC7,Hilfstabelle!$A$5:$B$18,2,0) -> 2024-10-24 | AL7: 5. | AM7: Antritt | AP7: =VLOOKUP(AL7,Hilfstabelle!$A$5:$B$18,2,0) -> 2024-11-07 | AU7: 6. | AV7: Antritt | AY7: =VLOOKUP(AU7,Hilfstabelle!$A$5:$B$18,2,0) -> 2025-01-16 | FV7: 0 | FW7: 1. | FX7: Antritt | FY7: =+F7 -> 2024-09-12 | FZ7: 0 | GA7: 2. | GB7: Antritt | GC7: =+O7 -> 2024-09-26 | GD7: 0 | GE7: 3. | GF7: Antritt | GG7: =+X7 -> 2024-10-10 | GH7: 0 | GI7: 4. | GJ7: Antritt | GK7: =+AG7 -> 2024-10-24 | GL7: 0 | GM7: 5. | GN7: =+AM7 -> Antritt | GO7: =+AP7 -> 2024-11-07 | GP7: 0 | GQ7: 6. | GR7: Antritt | GS7: =+AY7 -> 2025-01-16
B8: Annegret Schmidt | K8: Matthias Nolte | T8: Ilona Wetzel | AC8: Matthias Nolte | AL8: Frank Nijholt | AU8: Annegret Schmidt | FV8: 0 | FW8: Annegret Schmidt | FX8: 0 | FY8: 0 | FZ8: 0 | GA8: Matthias Nolte | GB8: 0 | GC8: 0 | GD8: 0 | GE8: Ilona Wetzel | GF8: 0 | GG8: 0 | GH8: 0 | GI8: Matthias Nolte | GJ8: 0 | GK8: 0 | GL8: 0 | GM8: Frank Nijholt | GN8: =+AM8 -> 0 | GO8: =+AS8 -> 0 | GP8: 0 | GQ8: Annegret Schmidt | GR8: 0 | GS8: 0
B9: Ilona Wetzel | K9: Deniz Hagelstein | T9: Annegret Schmidt | AC9: Deniz Hagelstein | AL9: Ilona Wetzel | AU9: Frank Nijholt | FV9: 0 | FW9: Ilona Wetzel | FX9: 0 | FY9: 0 | FZ9: 0 | GA9: Deniz Hagelstein | GB9: 0 | GC9: 0 | GD9: 0 | GE9: Annegret Schmidt | GF9: 0 | GG9: 0 | GH9: 0 | GI9: Deniz Hagelstein | GJ9: 0 | GK9: 0 | GL9: 0 | GM9: Ilona Wetzel | GN9: =+AM9 -> 0 | GO9: =+AS9 -> 0 | GP9: 0 | GQ9: Frank Nijholt | GR9: 0 | GS9: 0
B10: Michael Wetzel | K10: Mario Jurk | T10: Michael Wetzel | AC10: Frank Nijholt | AL10: Mario Jurk | AU10: Mario Jurk | FV10: 0 | FW10: Michael Wetzel | FX10: 0 | FY10: 0 | FZ10: 0 | GA10: Mario Jurk | GB10: 0 | GC10: 0 | GD10: 0 | GE10: Michael Wetzel | GF10: 0 | GG10: 0 | GH10: 0 | GI10: Frank Nijholt | GJ10: 0 | GK10: 0 | GL10: 0 | GM10: Mario Jurk | GN10: =+AM10 -> 0 | GO10: =+AS10 -> 0 | GP10: 0 | GQ10: Mario Jurk | GR10: 0 | GS10: 0
B11: Kai Roßberg | K11: Kai Roßberg | T11: Kai Roßberg | AC11: Michael Wetzel | AL11: Kai Roßberg | AU11: Kai Roßberg | FV11: 0 | FW11: Kai Roßberg | FX11: 0 | FY11: 0 | FZ11: 0 | GA11: Kai Roßberg | GB11: 0 | GC11: 0 | GD11: 0 | GE11: Kai Roßberg | GF11: 0 | GG11: 0 | GH11: 0 | GI11: Michael Wetzel | GJ11: 0 | GK11: 0 | GL11: 0 | GM11: Kai Roßberg | GN11: =+AM11 -> 0 | GO11: =+AS11 -> 0 | GP11: 0 | GQ11: Kai Roßberg | GR11: 0 | GS11: 0
FV12: 0
A13: 1. Resere | B13: Michael Wetzel | K13: Michael Wetzel | T13: Matthias Nolte | AC13: Ilona Wetzel | AL13: Annegret Schmidt | AU13: Ilona Wetzel | FV13: 1. Resere | FW13: =+B13 -> Michael Wetzel | FX13: =+C13 -> 0 | FY13: =+I13 -> 0 | FZ13: =+J13 -> 0 | GA13: =+K13 -> Michael Wetzel | GB13: =+L13 -> 0 | GC13: =+R13 -> 0 | GD13: =+S13 -> 0 | GE13: =+T13 -> Matthias Nolte | GF13: =+U13 -> 0 | GG13: =+AA13 -> 0 | GH13: =+AB13 -> 0 | GI13: =+AC13 -> Ilona Wetzel | GJ13: =+AD13 -> 0 | GK13: =+AJ13 -> 0 | GL13: =+AK13 -> 0 | GM13: =+AL13 -> Annegret Schmidt | GN13: =+AM13 -> 0 | GO13: =+AS13 -> 0 | GP13: =+AT13 -> 0 | GQ13: =+AU13 -> Ilona Wetzel | GR13: =+AV13 -> 0 | GS13: =+BB13 -> 0
A14: 2. Resere | B14: Mario Jurk | K14: Frank Nijholt | T14: Mario Jurk | AC14: Annegret Schmidt | AL14: Deniz Hagelstein | AU14: Deniz Hagelstein | FV14: 2. Resere | FW14: Mario Jurk | FX14: 0 | FY14: 0 | FZ14: 0 | GA14: =+K14 -> Frank Nijholt | GB14: =+L14 -> 0 | GC14: =+R14 -> 0 | GD14: 0 | GE14: Mario Jurk | GF14: 0 | GG14: 0 | GH14: 0 | GI14: Annegret Schmidt | GJ14: 0 | GK14: 0 | GL14: 0 | GM14: Deniz Hagelstein | GN14: 0 | GO14: 0 | GP14: 0 | GQ14: Deniz Hagelstein | GR14: 0 | GS14: 0
A15: 3. Resere | B15: Matthias Nolte | K15: Annegret Schmidt | T15: Deniz Hagelstein | AC15: Kai Roßberg | AL15: Matthias Nolte | AU15: Jörg Frahm (Abw) | FV15: 3. Resere | FW15: Matthias Nolte | FX15: 0 | FY15: 0 | FZ15: 0 | GA15: Annegret Schmidt | GB15: 0 | GC15: 0 | GD15: 0 | GE15: Deniz Hagelstein | GF15: 0 | GG15: 0 | GH15: 0 | GI15: Kai Roßberg | GJ15: 0 | GK15: 0 | GL15: 0 | GM15: Matthias Nolte | GN15: 0 | GO15: 0 | GP15: 0 | GQ15: Jörg Frahm (Abw) | GR15: 0 | GS15: 0
A16: 4. Resere | B16: Frank Nijholt | K16: Ilona Wetzel | T16: Frank Nijholt | AC16: Jörg Frahm (Abw) | AL16: Jörg Frahm (Abw) | AU16: Matthias Nolte | FV16: 4. Resere | FW16: Frank Nijholt | FX16: 0 | FY16: 0 | FZ16: 0 | GA16: Ilona Wetzel | GB16: 0 | GC16: 0 | GD16: 0 | GE16: Frank Nijholt | GF16: 0 | GG16: 0 | GH16: 0 | GI16: Jörg Frahm (Abw) | GJ16: 0 | GK16: 0 | GL16: 0 | GM16: Jörg Frahm (Abw) | GN16: 0 | GO16: 0 | GP16: 0 | GQ16: Matthias Nolte | GR16: 0 | GS16: 0
A17: 5. Resere | B17: Jörg Frahm (Abw) | K17: Jörg Frahm (Abw) | T17: Jörg Frahm (Abw) | AC17: Michael Wetzel (Abw) | AL17: Michael Wetzel (Abw) | AU17: Michael Wetzel (Abw) | FV17: 5. Resere | FW17: Jörg Frahm (Abw) | FX17: 0 | FY17: 0 | FZ17: 0 | GA17: Jörg Frahm (Abw) | GB17: 0 | GC17: 0 | GD17: 0 | GE17: Jörg Frahm (Abw) | GF17: 0 | GG17: 0 | GH17: 0 | GI17: Michael Wetzel (Abw) | GJ17: 0 | GK17: 0 | GL17: 0 | GM17: Michael Wetzel (Abw) | GN17: 0 | GO17: 0 | GP17: 0 | GQ17: Michael Wetzel (Abw) | GR17: 0 | GS17: 0
FV18: 0 | FW18: 0 | FX18: 0 | FY18: 0 | FZ18: 0 | GA18: 0 | GB18: 0 | GC18: 0 | GD18: 0 | GE18: 0 | GF18: 0 | GG18: 0 | GH18: 0 | GI18: 0 | GJ18: 0 | GK18: 0 | GL18: 0 | GM18: 0 | GN18: 0 | GO18: 0 | GP18: 0 | GQ18: 0 | GR18: 0 | GS18: 0
T19: 2025 | FV19: 0 | FW19: 0 | FX19: 0 | FY19: 0 | FZ19: 0 | GA19: 0 | GB19: 0 | GC19: 0 | GD19: 0 | GE19: 2025 | GF19: 0 | GG19: 0 | GH19: 0 | GI19: 0 | GJ19: 0 | GK19: 0 | GL19: 0 | GM19: 0 | GN19: 0 | GO19: 0 | GP19: 0 | GQ19: 0 | GR19: 0 | GS19: 0
FV20: 0 | FW20: 0 | FX20: 0 | FY20: 0 | FZ20: 0 | GA20: 0 | GB20: 0 | GC20: 0 | GD20: 0 | GE20: 0 | GF20: 0 | GG20: 0 | GH20: 0 | GI20: 0 | GJ20: 0 | GK20: 0 | GL20: 0 | GM20: 0 | GN20: 0 | GO20: 0 | GP20: 0 | GQ20: 0 | GR20: 0 | GS20: 0
B21: Kürzel: | I21: =VLOOKUP(F23,Hilfstabelle!$R$5:$S$18,2,0) -> OT | K21: Kürzel: | R21: =VLOOKUP(O23,Hilfstabelle!$R$5:$S$18,2,0) -> WB | T21: Kürzel: | AA21: =VLOOKUP(X23,Hilfstabelle!$R$5:$S$18,2,0) -> OT | AC21: Kürzel: | AJ21: =VLOOKUP(AG23,Hilfstabelle!$R$5:$S$18,2,0) -> WB | AL21: Kürzel: | AS21: =VLOOKUP(AP23,Hilfstabelle!$R$5:$S$18,2,0) -> OT | AU21: Kürzel: | BB21: =VLOOKUP(AY23,Hilfstabelle!$R$5:$S$18,2,0) -> WB | FV21: 0 | FW21: Kürzel: | FX21: 0 | FY21: OT | FZ21: 0 | GA21: Kürzel: | GB21: 0 | GC21: WB | GD21: 0 | GE21: Kürzel: | GF21: 0 | GG21: OT | GH21: 0 | GI21: Kürzel: | GJ21: 0 | GK21: WB | GL21: 0 | GM21: Kürzel: | GN21: 0 | GO21: OT | GP21: 0 | GQ21: Kürzel: | GR21: 0 | GS21: WB
B22: =+"Bahn: "&VLOOKUP(F23,Hilfstabelle!$B$5:$C$18,2,0) -> Bahn: Othmarschen | K22: =+"Bahn: "&VLOOKUP(O23,Hilfstabelle!$B$5:$C$18,2,0) -> Bahn: Wandsbek | T22: =+"Bahn: "&VLOOKUP(X23,Hilfstabelle!$B$5:$C$18,2,0) -> Bahn: Othmarschen | AC22: =+"Bahn: "&VLOOKUP(AG23,Hilfstabelle!$B$5:$C$18,2,0) -> Bahn: Wandsbek | AL22: =+"Bahn: "&VLOOKUP(AP23,Hilfstabelle!$B$5:$C$18,2,0) -> Bahn: Othmarschen | AU22: =+"Bahn: "&VLOOKUP(AY23,Hilfstabelle!$B$5:$C$18,2,0) -> Bahn: Wandsbek | FV22: 0 | FW22: Bahn: Othmarschen | FX22: 0 | FY22: 0 | FZ22: 0 | GA22: Bahn: Wandsbek | GB22: 0 | GC22: 0 | GD22: 0 | GE22: Bahn: Othmarschen | GF22: 0 | GG22: 0 | GH22: 0 | GI22: Bahn: Wandsbek | GJ22: 0 | GK22: 0 | GL22: 0 | GM22: Bahn: Othmarschen | GN22: 0 | GO22: 0 | GP22: 0 | GQ22: Bahn: Wandsbek | GR22: 0 | GS22: 0
B23: 7. | C23: Antritt | F23: =VLOOKUP(B23,Hilfstabelle!$A$5:$B$18,2,0) -> 2025-01-30 | K23: 8. | L23: Antritt | O23: =VLOOKUP(K23,Hilfstabelle!$A$5:$B$18,2,0) -> 2025-02-13 | T23: 9. | U23: Antritt | X23: =VLOOKUP(T23,Hilfstabelle!$A$5:$B$18,2,0) -> 2025-02-27 | AC23: 10. | AD23: Antritt | AG23: =VLOOKUP(AC23,Hilfstabelle!$A$5:$B$18,2,0) -> 2025-03-13 | AL23: 11. | AM23: Antritt | AP23: =VLOOKUP(AL23,Hilfstabelle!$A$5:$B$18,2,0) -> 2025-03-27 | AU23: 12. | AV23: Antritt | AY23: =VLOOKUP(AU23,Hilfstabelle!$A$5:$B$18,2,0) -> 2025-04-10 | FV23: 0 | FW23: 7. | FX23: Antritt | FY23: =+F23 -> 2025-01-30 | FZ23: 0 | GA23: 8. | GB23: Antritt | GC23: =+O23 -> 2025-02-13 | GD23: 0 | GE23: 9. | GF23: Antritt | GG23: =+X23 -> 2025-02-27 | GH23: 0 | GI23: 10. | GJ23: Antritt | GK23: =+AG23 -> 2025-03-13 | GL23: 0 | GM23: 11. | GN23: Antritt | GO23: =+AP23 -> 2025-03-27 | GP23: 0 | GQ23: 12. | GR23: Antritt | GS23: =+AY23 -> 2025-04-10
B24: Annegret Schmidt | K24: Annegret Schmidt | T24: Annegret Schmidt | AC24: Annegret Schmidt | AL24: Matthias Nolte | AU24: Frank Nijholt | FV24: 0 | FW24: Annegret Schmidt | FX24: 0 | FY24: 0 | FZ24: 0 | GA24: Annegret Schmidt | GB24: 0 | GC24: 0 | GD24: 0 | GE24: Annegret Schmidt | GF24: 0 | GG24: 0 | GH24: 0 | GI24: Annegret Schmidt | GJ24: 0 | GK24: 0 | GL24: 0 | GM24: Matthias Nolte | GN24: 0 | GO24: 0 | GP24: 0 | GQ24: Frank Nijholt | GR24: 0 | GS24: 0
B25: Deniz Hagelstein | K25: Ilona Wetzel | T25: Jörg Frahm | AC25: Frank Nijholt | AL25: Deniz Hagelstein | AU25: Deniz Hagelstein | FV25: 0 | FW25: Deniz Hagelstein | FX25: 0 | FY25: 0 | FZ25: 0 | GA25: Ilona Wetzel | GB25: 0 | GC25: 0 | GD25: 0 | GE25: Jörg Frahm | GF25: 0 | GG25: 0 | GH25: 0 | GI25: Frank Nijholt | GJ25: 0 | GK25: 0 | GL25: 0 | GM25: Deniz Hagelstein | GN25: 0 | GO25: 0 | GP25: 0 | GQ25: Deniz Hagelstein | GR25: 0 | GS25: 0
B26: Mario Jurk | K26: Deniz Hagelstein | T26: Mario Jurk | AC26: Jörg Frahm | AL26: Jörg Frahm | AU26: Jörg Frahm | FV26: 0 | FW26: Mario Jurk | FX26: 0 | FY26: 0 | FZ26: 0 | GA26: Deniz Hagelstein | GB26: 0 | GC26: 0 | GD26: 0 | GE26: Mario Jurk | GF26: 0 | GG26: 0 | GH26: 0 | GI26: Jörg Frahm | GJ26: 0 | GK26: 0 | GL26: 0 | GM26: Jörg Frahm | GN26: 0 | GO26: 0 | GP26: 0 | GQ26: Jörg Frahm | GR26: 0 | GS26: 0
B27: Kai Roßberg | K27: Kai Roßberg | T27: Kai Roßberg | AC27: Kai Roßberg | AL27: Kai Roßberg | AU27: Kai Roßberg | FV27: 0 | FW27: Kai Roßberg | FX27: 0 | FY27: 0 | FZ27: 0 | GA27: Kai Roßberg | GB27: 0 | GC27: 0 | GD27: 0 | GE27: Kai Roßberg | GF27: 0 | GG27: 0 | GH27: 0 | GI27: Kai Roßberg | GJ27: 0 | GK27: 0 | GL27: 0 | GM27: Kai Roßberg | GN27: 0 | GO27: 0 | GP27: 0 | GQ27: Kai Roßberg | GR27: 0 | GS27: 0
FV28: 0
A29: 1. Resere | B29: Ilona Wetzel | K29: Frank Nijholt | T29: Deniz Hagelstein | AC29: Ilona Wetzel | AL29: Annegret Schmidt | AU29: Ilona Wetzel | FV29: 1. Resere | FW29: =+B29 -> Ilona Wetzel | FX29: =+C29 -> 0 | FY29: =+I29 -> 0 | FZ29: =+J29 -> 0 | GA29: =+K29 -> Frank Nijholt | GB29: =+L29 -> 0 | GC29: =+R29 -> 0 | GD29: =+S29 -> 0 | GE29: =+T29 -> Deniz Hagelstein | GF29: =+U29 -> 0 | GG29: =+AA29 -> 0 | GH29: =+AB29 -> 0 | GI29: =+AC29 -> Ilona Wetzel | GJ29: =+AD29 -> 0 | GK29: =+AJ29 -> 0 | GL29: =+AK29 -> 0 | GM29: =+AL29 -> Annegret Schmidt | GN29: =+AM29 -> 0 | GO29: =+AS29 -> 0 | GP29: =+AT29 -> 0 | GQ29: =+AU29 -> Ilona Wetzel | GR29: =+AV29 -> 0 | GS29: =+BB29 -> 0
A30: 2. Resere | B30: Annegret Schmidt | K30: Mario Jurk | T30: Mario Jurk | AC30: Mario Jurk | AL30: Ilona Wetzel | AU30: Mario Jurk | FV30: 2. Resere | FW30: Annegret Schmidt | FX30: 0 | FY30: 0 | FZ30: 0 | GA30: Mario Jurk | GB30: 0 | GC30: 0 | GD30: 0 | GE30: Mario Jurk | GF30: 0 | GG30: 0 | GH30: 0 | GI30: Mario Jurk | GJ30: 0 | GK30: 0 | GL30: 0 | GM30: Ilona Wetzel | GN30: 0 | GO30: 0 | GP30: 0 | GQ30: Mario Jurk | GR30: 0 | GS30: 0
A31: 3. Resere | B31: Frank Nijholt | K31: Matthias Nolte | T31: Frank Nijholt | AC31: Deniz Hagelstein | AL31: Mario Jurk | AU31: Annegret Schmidt | FV31: 3. Resere | FW31: Frank Nijholt | FX31: 0 | FY31: 0 | FZ31: 0 | GA31: Matthias Nolte | GB31: 0 | GC31: 0 | GD31: 0 | GE31: Frank Nijholt | GF31: 0 | GG31: 0 | GH31: 0 | GI31: Deniz Hagelstein | GJ31: 0 | GK31: 0 | GL31: 0 | GM31: Mario Jurk | GN31: 0 | GO31: 0 | GP31: 0 | GQ31: Annegret Schmidt | GR31: 0 | GS31: 0
A32: 4. Resere | B32: Jörg Frahm (Abw) | K32: Jörg Frahm | T32: Matthias Nolte | AC32: Matthias Nolte | AL32: Frank Nijholt | AU32: Matthias Nolte | FV32: 4. Resere | FW32: Jörg Frahm (Abw) | FX32: 0 | FY32: 0 | FZ32: 0 | GA32: Jörg Frahm | GB32: 0 | GC32: 0 | GD32: 0 | GE32: Matthias Nolte | GF32: 0 | GG32: 0 | GH32: 0 | GI32: Matthias Nolte | GJ32: 0 | GK32: 0 | GL32: 0 | GM32: Frank Nijholt | GN32: 0 | GO32: 0 | GP32: 0 | GQ32: Matthias Nolte | GR32: 0 | GS32: 0
A33: 5. Resere | B33: Michael Wetzel (Abw) | K33: Michael Wetzel (Abw) | T33: Michael Wetzel (Abw) | AC33: Michael Wetzel (Abw) | AL33: Michael Wetzel (Abw) | AU33: Michael Wetzel (Abw) | FV33: 5. Resere | FW33: Michael Wetzel (Abw) | FX33: 0 | FY33: 0 | FZ33: 0 | GA33: Michael Wetzel (Abw) | GB33: 0 | GC33: 0 | GD33: 0 | GE33: Michael Wetzel (Abw) | GF33: 0 | GG33: 0 | GH33: 0 | GI33: Michael Wetzel (Abw) | GJ33: 0 | GK33: 0 | GL33: 0 | GM33: Michael Wetzel (Abw) | GN33: 0 | GO33: 0 | GP33: 0 | GQ33: Michael Wetzel (Abw) | GR33: 0 | GS33: 0
FV34: 0 | FW34: 0 | FX34: 0 | FY34: 0 | FZ34: 0 | GA34: 0 | GB34: 0 | GC34: 0 | GD34: 0 | GE34: 0 | GF34: 0 | GG34: 0 | GH34: 0 | GI34: 0 | GJ34: 0 | GK34: 0 | GL34: 0 | GM34: 0 | GN34: 0 | GO34: 0 | GP34: 0 | GQ34: 0 | GR34: 0 | GS34: 0
B35: Kürzel: | I35: =VLOOKUP(F37,Hilfstabelle!$R$5:$S$18,2,0) -> OT | K35: Kürzel: | R35: =VLOOKUP(O37,Hilfstabelle!$R$5:$S$18,2,0) -> WB | U35: (Abw) = Abwesend | FV35: 0 | FW35: Kürzel: | FX35: 0 | FY35: OT | FZ35: 0 | GA35: Kürzel: | GB35: 0 | GC35: WB | GD35: 0 | GE35: 0 | GF35: (Abw) = Abwesend | GG35: 0 | GH35: 0 | GI35: 0 | GJ35: 0 | GK35: 0 | GL35: 0 | GM35: 0 | GN35: 0 | GO35: 0 | GP35: 0 | GQ35: 0 | GR35: 0 | GS35: 0
B36: =+"Bahn: "&VLOOKUP(F37,Hilfstabelle!$B$5:$C$18,2,0) -> Bahn: Othmarschen | K36: =+"Bahn: "&VLOOKUP(O37,Hilfstabelle!$B$5:$C$18,2,0) -> Bahn: Wandsbek | U36: Anzahl Spiele pro Spieler/in | FV36: 0 | FW36: Bahn: Othmarschen | FX36: 0 | FY36: 0 | FZ36: 0 | GA36: Bahn: Wandsbek | GB36: 0 | GC36: 0 | GD36: 0 | GE36: 0 | GF36: Anzahl Spiele pro Spieler/in | GG36: 0 | GH36: 0 | GI36: 0 | GJ36: 0 | GK36: 0 | GL36: 0 | GM36: 0 | GN36: 0 | GO36: 0 | GP36: 0 | GQ36: 0 | GR36: 0 | GS36: 0
B37: 13. | C37: Antritt | F37: =VLOOKUP(B37,Hilfstabelle!$A$5:$B$18,2,0) -> 2025-04-24 | K37: 14. | L37: Antritt | O37: =VLOOKUP(K37,Hilfstabelle!$A$5:$B$18,2,0) -> 2025-05-08 | AA37: Gesamt | AC37: WB | AE37: OT | AG37: P.-Nr: | FV37: 0 | FW37: 13. | FX37: Antritt | FY37: =+F37 -> 2025-04-24 | FZ37: 0 | GA37: 14. | GB37: Antritt | GC37: =+O37 -> 2025-05-08 | GD37: 0 | GE37: 0 | GF37: 0 | GG37: Gesamt | GH37: 0 | GI37: =+#REF! ->  | GJ37: =+AC37 -> WB | GK37: =+AE37 -> OT | GL37: =+#REF! ->  | GM37: =+AG37 -> P.-Nr: | GO37: =+AS37 -> 0 | GP37: =+AT37 -> 0 | GQ37: =+AU37 -> 0 | GR37: =+AV37 -> 0 | GS37: 0
B38: Matthias Nolte | K38: Annegret Schmidt | U38: Anne | AA38: =COUNTIF($B$38:$R$41,"Annegret Schmidt")+COUNTIF($B$24:$BB$27,"Annegret Schmidt")+COUNTIF($B$8:$BB$11,"Annegret Schmidt") -> 8 | AC38: =COUNTIF($AL$5:$AS$11,"Annegret Schmidt")+COUNTIF($AU$5:$BB$11,"Annegret Schmidt")+COUNTIF($K$21:$R$27,"Annegret Schmidt")+COUNTIF($AC$21:$AJ$27,"Annegret Schmidt")+COUNTIF($AU$21:$BB$27,"Annegret Schmidt")+COUNTIF($K$35:$R$41,"Annegret Schmidt")+COUNTIF($T$5:$AA$11,"Annegret Schmidt") -> 5 | AE38: =COUNTIF($K$5:$R$11,"Annegret Schmidt")+COUNTIF($AC$5:$AJ$11,"Annegret Schmidt")+COUNTIF($B$21:$I$27,"Annegret Schmidt")+COUNTIF($T$21:$AA$27,"Annegret Schmidt")+COUNTIF($AL$21:$AS$27,"Annegret Schmidt")+COUNTIF($B$35:$I$41,"Annegret Schmidt")+COUNTIF($B$5:$I$11,"Annegret Schmidt") -> 3 | AG38: 19222 | FV38: 0 | FW38: Matthias Nolte | FX38: 0 | FY38: 0 | FZ38: 0 | GA38: Annegret Schmidt | GB38: 0 | GC38: 0 | GD38: 0 | GE38: 0 | GF38: Anne | GG38: =+#REF! ->  | GH38: =+#REF! ->  | GI38: =+AA38 -> 8 | GJ38: 5 | GK38: 3 | GL38: =+AG38 -> 19222 | GM38: =+AH38 -> 0 | GO38: 0 | GP38: 0 | GQ38: 0 | GS38: 0
B39: Jörg Frahm | K39: Deniz Hagelstein | U39: Deniz | AA39: =COUNTIF($B$38:$R$41,"Deniz Hagelstein")+COUNTIF($B$24:$BB$27,"Deniz Hagelstein")+COUNTIF($B$8:$BB$11,"Deniz Hagelstein") -> 7 | AC39: =COUNTIF($AL$8:$AS$11,"Deniz Hagelstein")+COUNTIF($AU$8:$BB$11,"Deniz Hagelstein")+COUNTIF($K$24:$R$27,"Deniz Hagelstein")+COUNTIF($AC$24:$AJ$27,"Deniz Hagelstein")+COUNTIF($AU$24:$BB$27,"Deniz Hagelstein")+COUNTIF($K$38:$R$41,"Deniz Hagelstein")+COUNTIF($T$8:$AA$11,"Deniz Hagelstein") -> 3 | AE39: =COUNTIF($K$5:$R$11,"Deniz Hagelstein")+COUNTIF($AC$5:$AJ$11,"Deniz Hagelstein")+COUNTIF($B$21:$I$27,"Deniz Hagelstein")+COUNTIF($T$21:$AA$27,"Deniz Hagelstein")+COUNTIF($AL$21:$AS$27,"Deniz Hagelstein")+COUNTIF($B$35:$I$41,"Deniz Hagelstein")+COUNTIF($B$5:$I$11,"Deniz Hagelstein") -> 4 | AG39: 24775 | FV39: 0 | FW39: Jörg Frahm | FX39: 0 | FY39: 0 | FZ39: 0 | GA39: Deniz Hagelstein | GB39: 0 | GC39: 0 | GD39: 0 | GE39: 0 | GF39: Deniz | GG39: =+#REF! ->  | GH39: =+#REF! ->  | GI39: 7 | GJ39: 3 | GK39: 4 | GL39: 24775 | GM39: 0 | GO39: 0 | GP39: 0 | GQ39: 0 | GS39: 0
B40: Michael Wetzel | K40: Mario Jurk | U40: Frank | AA40: =COUNTIF($B$38:$R$41,"Frank Nijholt")+COUNTIF($B$24:$BB$27,"Frank Nijholt")+COUNTIF($B$8:$BB$11,"Frank Nijholt") -> 5 | AC40: =COUNTIF($AL$5:$AS$11,"Frank Nijholt")+COUNTIF($AU$5:$BB$11,"Frank Nijholt")+COUNTIF($K$21:$R$27,"Frank Nijholt")+COUNTIF($AC$21:$AJ$27,"Frank Nijholt")+COUNTIF($AU$21:$BB$27,"Frank Nijholt")+COUNTIF($K$35:$R$41,"Frank Nijholt")+COUNTIF($T$5:$AA$11,"Frank Nijholt") -> 4 | AE40: =COUNTIF($K$5:$R$11,"Frank Nijholt")+COUNTIF($AC$5:$AJ$11,"Frank Nijholt")+COUNTIF($B$21:$I$27,"Frank Nijholt")+COUNTIF($T$21:$AA$27,"Frank Nijholt")+COUNTIF($AL$21:$AS$27,"Frank Nijholt")+COUNTIF($B$35:$I$41,"Frank Nijholt")+COUNTIF($B$5:$I$11,"Frank Nijholt") -> 1 | AG40: 24774 | FV40: 0 | FW40: =+B40 -> Michael Wetzel | FX40: =+C40 -> 0 | FY40: =+I40 -> 0 | FZ40: =+J40 -> 0 | GA40: =+K40 -> Mario Jurk | GB40: =+L40 -> 0 | GC40: =+R40 -> 0 | GD40: =+S40 -> 0 | GE40: 0 | GF40: Frank | GG40: =+#REF! ->  | GH40: =+#REF! ->  | GI40: 5 | GJ40: 4 | GK40: 1 | GL40: 24774 | GM40: 0 | GO40: 0 | GP40: 0 | GQ40: 0 | GS40: =+BB40 -> 0
B41: Kai Roßberg | K41: Kai Roßberg | U41: Ilona | AA41: =COUNTIF($B$38:$R$41,"Ilona Wetzel")+COUNTIF($B$24:$BB$27,"Ilona Wetzel")+COUNTIF($B$8:$BB$11,"Ilona Wetzel") -> 4 | AC41: =COUNTIF($AL$5:$AS$11,"Ilona Wetzel")+COUNTIF($AU$5:$BB$11,"Ilona Wetzel")+COUNTIF($K$21:$R$27,"Ilona Wetzel")+COUNTIF($AC$21:$AJ$27,"Ilona Wetzel")+COUNTIF($AU$21:$BB$27,"Ilona Wetzel")+COUNTIF($K$35:$R$41,"Ilona Wetzel")+COUNTIF($T$5:$AA$11,"Ilona Wetzel") -> 3 | AE41: =COUNTIF($K$5:$R$11,"Ilona Wetzel")+COUNTIF($AC$5:$AJ$11,"Ilona Wetzel")+COUNTIF($B$21:$I$27,"Ilona Wetzel")+COUNTIF($T$21:$AA$27,"Ilona Wetzel")+COUNTIF($AL$21:$AS$27,"Ilona Wetzel")+COUNTIF($B$35:$I$41,"Ilona Wetzel")+COUNTIF($B$5:$I$11,"Ilona Wetzel") -> 1 | AG41: 22115 | FV41: 0 | FW41: =+B41 -> Kai Roßberg | FX41: =+C41 -> 0 | FY41: =+I41 -> 0 | FZ41: =+J41 -> 0 | GA41: Kai Roßberg | GB41: 0 | GC41: 0 | GD41: 0 | GE41: 0 | GF41: Ilona | GG41: =+#REF! ->  | GH41: =+#REF! ->  | GI41: 4 | GJ41: 3 | GK41: 1 | GL41: 22115 | GM41: 0 | GO41: 0 | GP41: 0 | GQ41: 0 | GS41: 0
B42: Deniz Hagelstein | U42: Jörg | AA42: =COUNTIF($B$38:$R$41,"Jörg Frahm")+COUNTIF($B$24:$BB$27,"Jörg Frahm")+COUNTIF($B$8:$BB$11,"Jörg Frahm") -> 5 | AC42: =COUNTIF($AL$5:$AS$11,"Jörg Frahm")+COUNTIF($AU$5:$BB$11,"Jörg Frahm")+COUNTIF($K$21:$R$27,"Jörg Frahm")+COUNTIF($AC$21:$AJ$27,"Jörg Frahm")+COUNTIF($AU$21:$BB$27,"Jörg Frahm")+COUNTIF($K$35:$R$41,"Jörg Frahm")+COUNTIF($T$5:$AA$11,"Jörg Frahm") -> 2 | AE42: =COUNTIF($K$5:$R$11,"Jörg Frahm")+COUNTIF($AC$5:$AJ$11,"Jörg Frahm")+COUNTIF($B$21:$I$27,"Jörg Frahm")+COUNTIF($T$21:$AA$27,"Jörg Frahm")+COUNTIF($AL$21:$AS$27,"Jörg Frahm")+COUNTIF($B$35:$I$41,"Jörg Frahm")+COUNTIF($B$5:$I$11,"Jörg Frahm") -> 3 | AG42: 19221 | FV42: =+A42 -> 0 | FW42: =+#REF! ->  | FX42: =+#REF! ->  | FY42: =+#REF! ->  | FZ42: =+J43 -> 0 | GA42: =+K42 -> 0 | GB42: =+L42 -> 0 | GC42: =+R42 -> 0 | GD42: 0 | GE42: 0 | GF42: Jörg | GG42: =+#REF! ->  | GH42: =+#REF! ->  | GI42: 5 | GJ42: 2 | GK42: 3 | GL42: 19221 | GM42: 0 | GO42: 0 | GP42: 0 | GQ42: 0 | GS42: 0
A43: 1. Resere | K43: Ilona Wetzel | U43: Kai | AA43: =COUNTIF($B$38:$R$41,"Kai Roßberg")+COUNTIF($B$24:$BB$27,"Kai Roßberg")+COUNTIF($B$8:$BB$11,"Kai Roßberg") -> 13 | AC43: =COUNTIF($AL$5:$AS$11,"Kai Roßberg")+COUNTIF($AU$5:$BB$11,"Kai Roßberg")+COUNTIF($K$21:$R$27,"Kai Roßberg")+COUNTIF($AC$21:$AJ$27,"Kai Roßberg")+COUNTIF($AU$21:$BB$27,"Kai Roßberg")+COUNTIF($K$35:$R$41,"Kai Roßberg")+COUNTIF($T$5:$AA$11,"Kai Roßberg") -> 7 | AE43: =COUNTIF($K$5:$R$11,"Kai Roßberg")+COUNTIF($AC$5:$AJ$11,"Kai Roßberg")+COUNTIF($B$21:$I$27,"Kai Roßberg")+COUNTIF($T$21:$AA$27,"Kai Roßberg")+COUNTIF($AL$21:$AS$27,"Kai Roßberg")+COUNTIF($B$35:$I$41,"Kai Roßberg")+COUNTIF($B$5:$I$11,"Kai Roßberg") -> 6 | AG43: 21889 | FV43: 1. Resere | FW43: =+B42 -> Deniz Hagelstein | FX43: =+C42 -> 0 | FY43: =+I42 -> 0 | FZ43: =+J44 -> 0 | GA43: Ilona Wetzel | GB43: 0 | GC43: 0 | GD43: 0 | GE43: 0 | GF43: Kai | GG43: =+#REF! ->  | GH43: =+#REF! ->  | GI43: 13 | GJ43: 7 | GK43: 6 | GL43: 21889 | GM43: 0 | GO43: 0 | GP43: 0 | GQ43: 0 | GS43: 0
A44: 2. Resere | B44: Annegret Schmidt | K44: Jörg Frahm | U44: Mario | AA44: =COUNTIF($B$38:$R$41,"Mario Jurk")+COUNTIF($B$24:$BB$27,"Mario Jurk")+COUNTIF($B$8:$BB$11,"Mario Jurk") -> 6 | AC44: =COUNTIF($AL$5:$AS$11,"Mario Jurk")+COUNTIF($AU$5:$BB$11,"Mario Jurk")+COUNTIF($K$21:$R$27,"Mario Jurk")+COUNTIF($AC$21:$AJ$27,"Mario Jurk")+COUNTIF($AU$21:$BB$27,"Mario Jurk")+COUNTIF($K$35:$R$41,"Mario Jurk")+COUNTIF($T$5:$AA$11,"Mario Jurk") -> 3 | AE44: =COUNTIF($K$5:$R$11,"Mario Jurk")+COUNTIF($AC$5:$AJ$11,"Mario Jurk")+COUNTIF($B$21:$I$27,"Mario Jurk")+COUNTIF($T$21:$AA$27,"Mario Jurk")+COUNTIF($AL$21:$AS$27,"Mario Jurk")+COUNTIF($B$35:$I$41,"Mario Jurk")+COUNTIF($B$5:$I$11,"Mario Jurk") -> 3 | AG44: 23302 | FV44: 2. Resere | FW44: =+B44 -> Annegret Schmidt | FX44: =+C44 -> 0 | FY44: =+I44 -> 0 | FZ44: =+J45 -> 0 | GA44: Jörg Frahm | GB44: 0 | GC44: 0 | GD44: 0 | GE44: 0 | GF44: Mario | GG44: =+#REF! ->  | GH44: =+#REF! ->  | GI44: 6 | GJ44: 3 | GK44: 3 | GL44: 23302 | GM44: 0 | GO44: 0 | GP44: 0 | GQ44: 0 | GS44: 0
A45: 3. Resere | B45: Mario Jurk | K45: Frank Nijholt | U45: Matthias | AA45: =COUNTIF($B$38:$R$41,"Matthias Nolte")+COUNTIF($B$24:$BB$27,"Matthias Nolte")+COUNTIF($B$8:$BB$11,"Matthias Nolte") -> 4 | AC45: =COUNTIF($AL$5:$AS$11,"Matthias Nolte")+COUNTIF($AU$5:$BB$11,"Matthias Nolte")+COUNTIF($K$21:$R$27,"Matthias Nolte")+COUNTIF($AC$21:$AJ$27,"Matthias Nolte")+COUNTIF($AU$21:$BB$27,"Matthias Nolte")+COUNTIF($K$35:$R$41,"Matthias Nolte")+COUNTIF($T$5:$AA$11,"Matthias Nolte") -> 0 | AE45: =COUNTIF($K$5:$R$11,"Matthias Nolte")+COUNTIF($AC$5:$AJ$11,"Matthias Nolte")+COUNTIF($B$21:$I$27,"Matthias Nolte")+COUNTIF($T$21:$AA$27,"Matthias Nolte")+COUNTIF($AL$21:$AS$27,"Matthias Nolte")+COUNTIF($B$35:$I$41,"Matthias Nolte")+COUNTIF($B$5:$I$11,"Matthias Nolte") -> 4 | AG45: 20137 | FV45: 3. Resere | FW45: Mario Jurk | FX45: 0 | FY45: 0 | FZ45: =+J46 -> 0 | GA45: Frank Nijholt | GB45: 0 | GC45: 0 | GD45: 0 | GE45: 0 | GF45: Matthias | GG45: =+#REF! ->  | GH45: =+#REF! ->  | GI45: 4 | GJ45: 0 | GK45: 4 | GL45: 20137 | GM45: 0 | GO45: 0 | GP45: 0 | GQ45: 0 | GS45: 0
A46: 4. Resere | B46: Frank Nijholt | K46: Matthias Nolte | U46: Michael | AA46: =COUNTIF($B$38:$R$41,"Michael Wetzel")+COUNTIF($B$24:$BB$27,"Michael Wetzel")+COUNTIF($B$8:$BB$11,"Michael Wetzel") -> 4 | AC46: =COUNTIF($AL$5:$AS$11,"Michael Wetzel")+COUNTIF($AU$5:$BB$11,"Michael Wetzel")+COUNTIF($K$21:$R$27,"Michael Wetzel")+COUNTIF($AC$21:$AJ$27,"Michael Wetzel")+COUNTIF($AU$21:$BB$27,"Michael Wetzel")+COUNTIF($K$35:$R$41,"Michael Wetzel")+COUNTIF($T$5:$AA$11,"Michael Wetzel") -> 1 | AE46: =COUNTIF($K$5:$R$11,"Michael Wetzel")+COUNTIF($AC$5:$AJ$11,"Michael Wetzel")+COUNTIF($B$21:$I$27,"Michael Wetzel")+COUNTIF($T$21:$AA$27,"Michael Wetzel")+COUNTIF($AL$21:$AS$27,"Michael Wetzel")+COUNTIF($B$35:$I$41,"Michael Wetzel")+COUNTIF($B$5:$I$11,"Michael Wetzel") -> 3 | AG46: 22113 | FV46: 4. Resere | FW46: Frank Nijholt | FX46: 0 | FY46: 0 | FZ46: =+J47 -> 0 | GA46: Matthias Nolte | GB46: 0 | GC46: 0 | GD46: 0 | GE46: 0 | GF46: Michael | GG46: =+#REF! ->  | GH46: =+#REF! ->  | GI46: 4 | GJ46: 1 | GK46: 3 | GL46: 22113 | GM46: 0 | GO46: 0 | GP46: 0 | GQ46: 0 | GS46: 0
A47: 5. Resere | B47: Ilona Wetzel | K47: Michael Wetzel (Abw) | FV47: 5. Resere | FW47: Ilona Wetzel | FX47: 0 | FY47: 0 | GA47: Michael Wetzel (Abw) | GB47: 0 | GC47: 0 | GQ47: 0
N49: Übersicht
B51: =+'Spielbogen 7er'!N4 -> OT | E51: =+'Spielbogen 7er'!N5 -> OT | H51: =+'Spielbogen 7er'!N6 -> WB | K51: =+'Spielbogen 7er'!N7 -> OT | N51: =+'Spielbogen 7er'!N8 -> WB | Q51: =+'Spielbogen 7er'!N9 -> WB | T51: =+'Spielbogen 7er'!N10 -> OT | W51: =+'Spielbogen 7er'!N11 -> WB | Z51: =+'Spielbogen 7er'!N12 -> OT | AC51: =+'Spielbogen 7er'!N13 -> WB | AF51: =+'Spielbogen 7er'!N14 -> OT | AI51: =+'Spielbogen 7er'!N15 -> WB | AL51: =+'Spielbogen 7er'!N16 -> OT | AO51: =+'Spielbogen 7er'!N17 -> WB
B52: 1. Antritt | E52: 2. Antritt | H52: 3. Antritt | K52: 4. Antritt | N52: 5. Antritt | Q52: 6. Antritt | T52: 7. Antritt | W52: 8. Antritt | Z52: 9. Antritt | AC52: 10. Antritt | AF52: 11. Antritt | AI52: 12. Antritt | AL52: 13. Antritt | AO52: 14. Antritt
B53: =+F7 -> 2024-09-12 | E53: =+O7 -> 2024-09-26 | H53: =+X7 -> 2024-10-10 | K53: =+AG7 -> 2024-10-24 | N53: =+AP7 -> 2024-11-07 | Q53: =+AY7 -> 2025-01-16 | T53: =+F23 -> 2025-01-30 | W53: =+O23 -> 2025-02-13 | Z53: =+X23 -> 2025-02-27 | AC53: =+AG23 -> 2025-03-13 | AF53: =+AP23 -> 2025-03-27 | AI53: =+AY23 -> 2025-04-10 | AL53: =+F37 -> 2025-04-24 | AO53: =+O37 -> 2025-05-08
B54: =_xlfn.IFS($B$8="Annegret Schmidt","Anne",$B$8="Ilona Wetzel","Ilona",$B$8="Michael Wetzel","Michael",$B$8="Mario Jurk","Mario",$B$8="Kai Roßberg","Kai",$B$8="Deniz Hagelstein","Deniz",$B$8="Frank Nijholt","Frank",$B$8="Matthias Nolte","Matthias",$B$8="Jörg Frahm","Jörg") -> Anne | E54: =_xlfn.IFS(K8="Annegret Schmidt","Anne",K8="Ilona Wetzel","Ilona",K8="Michael Wetzel","Michael",K8="Mario Jurk","Mario",K8="Kai Roßberg","Kai",K8="Deniz Hagelstein","Deniz",K8="Frank Nijholt","Frank",K8="Matthias Nolte","Matthias",K8="Jörg Frahm","Jörg") -> Matthias | H54: =_xlfn.IFS(T8="Annegret Schmidt","Anne",T8="Ilona Wetzel","Ilona",T8="Michael Wetzel","Michael",T8="Mario Jurk","Mario",T8="Kai Roßberg","Kai",T8="Deniz Hagelstein","Deniz",T8="Frank Nijholt","Frank",T8="Matthias Nolte","Matthias",T8="Jörg Frahm","Jörg") -> Ilona | K54: =_xlfn.IFS(AC8="Annegret Schmidt","Anne",AC8="Ilona Wetzel","Ilona",AC8="Michael Wetzel","Michael",AC8="Mario Jurk","Mario",AC8="Kai Roßberg","Kai",AC8="Deniz Hagelstein","Deniz",AC8="Frank Nijholt","Frank",AC8="Matthias Nolte","Matthias",AC8="Jörg Frahm","Jörg") -> Matthias | N54: =_xlfn.IFS(AL8="Annegret Schmidt","Anne",AL8="Ilona Wetzel","Ilona",AL8="Michael Wetzel","Michael",AL8="Mario Jurk","Mario",AL8="Kai Roßberg","Kai",AL8="Deniz Hagelstein","Deniz",AL8="Frank Nijholt","Frank",AL8="Matthias Nolte","Matthias",AL8="Jörg Frahm","Jörg") -> Frank | Q54: =_xlfn.IFS(AU8="Annegret Schmidt","Anne",AU8="Ilona Wetzel","Ilona",AU8="Michael Wetzel","Michael",AU8="Mario Jurk","Mario",AU8="Kai Roßberg","Kai",AU8="Deniz Hagelstein","Deniz",AU8="Frank Nijholt","Frank",AU8="Matthias Nolte","Matthias",AU8="Jörg Frahm","Jörg") -> Anne | T54: =_xlfn.IFS(B24="Annegret Schmidt","Anne",B24="Ilona Wetzel","Ilona",B24="Michael Wetzel","Michael",B24="Mario Jurk","Mario",B24="Kai Roßberg","Kai",B24="Deniz Hagelstein","Deniz",B24="Frank Nijholt","Frank",B24="Matthias Nolte","Matthias",B24="Jörg Frahm","Jörg") -> Anne | W54: =_xlfn.IFS(K24="Annegret Schmidt","Anne",K24="Ilona Wetzel","Ilona",K24="Michael Wetzel","Michael",K24="Mario Jurk","Mario",K24="Kai Roßberg","Kai",K24="Deniz Hagelstein","Deniz",K24="Frank Nijholt","Frank",K24="Matthias Nolte","Matthias",K24="Jörg Frahm","Jörg") -> Anne | Z54: =_xlfn.IFS(T24="Annegret Schmidt","Anne",T24="Ilona Wetzel","Ilona",T24="Michael Wetzel","Michael",T24="Mario Jurk","Mario",T24="Kai Roßberg","Kai",T24="Deniz Hagelstein","Deniz",T24="Frank Nijholt","Frank",T24="Matthias Nolte","Matthias",T24="Jörg Frahm","Jörg") -> Anne | AC54: =_xlfn.IFS(AC24="Annegret Schmidt","Anne",AC24="Ilona Wetzel","Ilona",AC24="Michael Wetzel","Michael",AC24="Mario Jurk","Mario",AC24="Kai Roßberg","Kai",AC24="Deniz Hagelstein","Deniz",AC24="Frank Nijholt","Frank",AC24="Matthias Nolte","Matthias",AC24="Jörg Frahm","Jörg") -> Anne | AF54: =_xlfn.IFS(AL24="Annegret Schmidt","Anne",AL24="Ilona Wetzel","Ilona",AL24="Michael Wetzel","Michael",AL24="Mario Jurk","Mario",AL24="Kai Roßberg","Kai",AL24="Deniz Hagelstein","Deniz",AL24="Frank Nijholt","Frank",AL24="Matthias Nolte","Matthias",AL24="Jörg Frahm","Jörg") -> Matthias | AI54: =_xlfn.IFS(AU24="Annegret Schmidt","Anne",AU24="Ilona Wetzel","Ilona",AU24="Michael Wetzel","Michael",AU24="Mario Jurk","Mario",AU24="Kai Roßberg","Kai",AU24="Deniz Hagelstein","Deniz",AU24="Frank Nijholt","Frank",AU24="Matthias Nolte","Matthias",AU24="Jörg Frahm","Jörg") -> Frank | AL54: =_xlfn.IFS(B38="Annegret Schmidt","Anne",B38="Ilona Wetzel","Ilona",B38="Michael Wetzel","Michael",B38="Mario Jurk","Mario",B38="Kai Roßberg","Kai",B38="Deniz Hagelstein","Deniz",B38="Frank Nijholt","Frank",B38="Matthias Nolte","Matthias",B38="Jörg Frahm","Jörg") -> Matthias | AO54: =_xlfn.IFS(K38="Annegret Schmidt","Anne",K38="Ilona Wetzel","Ilona",K38="Michael Wetzel","Michael",K38="Mario Jurk","Mario",K38="Kai Roßberg","Kai",K38="Deniz Hagelstein","Deniz",K38="Frank Nijholt","Frank",K38="Matthias Nolte","Matthias",K38="Jörg Frahm","Jörg") -> Anne
B55: =_xlfn.IFS($B$9="Annegret Schmidt","Anne",$B$9="Ilona Wetzel","Ilona",$B$9="Michael Wetzel","Michael",$B$9="Mario Jurk","Mario",$B$9="Kai Roßberg","Kai",$B$9="Deniz Hagelstein","Deniz",$B$9="Frank Nijholt","Frank",$B$9="Matthias Nolte","Matthias",$B$9="Jörg Frahm","Jörg") -> Ilona | E55: =_xlfn.IFS(K9="Annegret Schmidt","Anne",K9="Ilona Wetzel","Ilona",K9="Michael Wetzel","Michael",K9="Mario Jurk","Mario",K9="Kai Roßberg","Kai",K9="Deniz Hagelstein","Deniz",K9="Frank Nijholt","Frank",K9="Matthias Nolte","Matthias",K9="Jörg Frahm","Jörg") -> Deniz | H55: =_xlfn.IFS(T9="Annegret Schmidt","Anne",T9="Ilona Wetzel","Ilona",T9="Michael Wetzel","Michael",T9="Mario Jurk","Mario",T9="Kai Roßberg","Kai",T9="Deniz Hagelstein","Deniz",T9="Frank Nijholt","Frank",T9="Matthias Nolte","Matthias",T9="Jörg Frahm","Jörg") -> Anne | K55: =_xlfn.IFS(AC9="Annegret Schmidt","Anne",AC9="Ilona Wetzel","Ilona",AC9="Michael Wetzel","Michael",AC9="Mario Jurk","Mario",AC9="Kai Roßberg","Kai",AC9="Deniz Hagelstein","Deniz",AC9="Frank Nijholt","Frank",AC9="Matthias Nolte","Matthias",AC9="Jörg Frahm","Jörg") -> Deniz | N55: =_xlfn.IFS(AL9="Annegret Schmidt","Anne",AL9="Ilona Wetzel","Ilona",AL9="Michael Wetzel","Michael",AL9="Mario Jurk","Mario",AL9="Kai Roßberg","Kai",AL9="Deniz Hagelstein","Deniz",AL9="Frank Nijholt","Frank",AL9="Matthias Nolte","Matthias",AL9="Jörg Frahm","Jörg") -> Ilona | Q55: =_xlfn.IFS(AU9="Annegret Schmidt","Anne",AU9="Ilona Wetzel","Ilona",AU9="Michael Wetzel","Michael",AU9="Mario Jurk","Mario",AU9="Kai Roßberg","Kai",AU9="Deniz Hagelstein","Deniz",AU9="Frank Nijholt","Frank",AU9="Matthias Nolte","Matthias",AU9="Jörg Frahm","Jörg") -> Frank | T55: =_xlfn.IFS(B25="Annegret Schmidt","Anne",B25="Ilona Wetzel","Ilona",B25="Michael Wetzel","Michael",B25="Mario Jurk","Mario",B25="Kai Roßberg","Kai",B25="Deniz Hagelstein","Deniz",B25="Frank Nijholt","Frank",B25="Matthias Nolte","Matthias",B25="Jörg Frahm","Jörg") -> Deniz | W55: =_xlfn.IFS(K25="Annegret Schmidt","Anne",K25="Ilona Wetzel","Ilona",K25="Michael Wetzel","Michael",K25="Mario Jurk","Mario",K25="Kai Roßberg","Kai",K25="Deniz Hagelstein","Deniz",K25="Frank Nijholt","Frank",K25="Matthias Nolte","Matthias",K25="Jörg Frahm","Jörg") -> Ilona | Z55: =_xlfn.IFS(T25="Annegret Schmidt","Anne",T25="Ilona Wetzel","Ilona",T25="Michael Wetzel","Michael",T25="Mario Jurk","Mario",T25="Kai Roßberg","Kai",T25="Deniz Hagelstein","Deniz",T25="Frank Nijholt","Frank",T25="Matthias Nolte","Matthias",T25="Jörg Frahm","Jörg") -> Jörg | AC55: =_xlfn.IFS(AC25="Annegret Schmidt","Anne",AC25="Ilona Wetzel","Ilona",AC25="Michael Wetzel","Michael",AC25="Mario Jurk","Mario",AC25="Kai Roßberg","Kai",AC25="Deniz Hagelstein","Deniz",AC25="Frank Nijholt","Frank",AC25="Matthias Nolte","Matthias",AC25="Jörg Frahm","Jörg") -> Frank | AF55: =_xlfn.IFS(AL25="Annegret Schmidt","Anne",AL25="Ilona Wetzel","Ilona",AL25="Michael Wetzel","Michael",AL25="Mario Jurk","Mario",AL25="Kai Roßberg","Kai",AL25="Deniz Hagelstein","Deniz",AL25="Frank Nijholt","Frank",AL25="Matthias Nolte","Matthias",AL25="Jörg Frahm","Jörg") -> Deniz | AI55: =_xlfn.IFS(AU25="Annegret Schmidt","Anne",AU25="Ilona Wetzel","Ilona",AU25="Michael Wetzel","Michael",AU25="Mario Jurk","Mario",AU25="Kai Roßberg","Kai",AU25="Deniz Hagelstein","Deniz",AU25="Frank Nijholt","Frank",AU25="Matthias Nolte","Matthias",AU25="Jörg Frahm","Jörg") -> Deniz | AL55: =_xlfn.IFS(B39="Annegret Schmidt","Anne",B39="Ilona Wetzel","Ilona",B39="Michael Wetzel","Michael",B39="Mario Jurk","Mario",B39="Kai Roßberg","Kai",B39="Deniz Hagelstein","Deniz",B39="Frank Nijholt","Frank",B39="Matthias Nolte","Matthias",B39="Jörg Frahm","Jörg") -> Jörg | AO55: =_xlfn.IFS(K39="Annegret Schmidt","Anne",K39="Ilona Wetzel","Ilona",K39="Michael Wetzel","Michael",K39="Mario Jurk","Mario",K39="Kai Roßberg","Kai",K39="Deniz Hagelstein","Deniz",K39="Frank Nijholt","Frank",K39="Matthias Nolte","Matthias",K39="Jörg Frahm","Jörg") -> Deniz
B56: =_xlfn.IFS($B$10="Annegret Schmidt","Anne",$B$10="Ilona Wetzel","Ilona",$B$10="Michael Wetzel","Michael",$B$10="Mario Jurk","Mario",$B$10="Kai Roßberg","Kai",$B$10="Deniz Hagelstein","Deniz",$B$10="Frank Nijholt","Frank",$B$10="Matthias Nolte","Matthias",$B$10="Jörg Frahm","Jörg") -> Michael | E56: =_xlfn.IFS(K10="Annegret Schmidt","Anne",K10="Ilona Wetzel","Ilona",K10="Michael Wetzel","Michael",K10="Mario Jurk","Mario",K10="Kai Roßberg","Kai",K10="Deniz Hagelstein","Deniz",K10="Frank Nijholt","Frank",K10="Matthias Nolte","Matthias",K10="Jörg Frahm","Jörg") -> Mario | H56: =_xlfn.IFS(T10="Annegret Schmidt","Anne",T10="Ilona Wetzel","Ilona",T10="Michael Wetzel","Michael",T10="Mario Jurk","Mario",T10="Kai Roßberg","Kai",T10="Deniz Hagelstein","Deniz",T10="Frank Nijholt","Frank",T10="Matthias Nolte","Matthias",T10="Jörg Frahm","Jörg") -> Michael | K56: =_xlfn.IFS(AC10="Annegret Schmidt","Anne",AC10="Ilona Wetzel","Ilona",AC10="Michael Wetzel","Michael",AC10="Mario Jurk","Mario",AC10="Kai Roßberg","Kai",AC10="Deniz Hagelstein","Deniz",AC10="Frank Nijholt","Frank",AC10="Matthias Nolte","Matthias",AC10="Jörg Frahm","Jörg") -> Frank | N56: =_xlfn.IFS(AL10="Annegret Schmidt","Anne",AL10="Ilona Wetzel","Ilona",AL10="Michael Wetzel","Michael",AL10="Mario Jurk","Mario",AL10="Kai Roßberg","Kai",AL10="Deniz Hagelstein","Deniz",AL10="Frank Nijholt","Frank",AL10="Matthias Nolte","Matthias",AL10="Jörg Frahm","Jörg") -> Mario | Q56: =_xlfn.IFS(AU10="Annegret Schmidt","Anne",AU10="Ilona Wetzel","Ilona",AU10="Michael Wetzel","Michael",AU10="Mario Jurk","Mario",AU10="Kai Roßberg","Kai",AU10="Deniz Hagelstein","Deniz",AU10="Frank Nijholt","Frank",AU10="Matthias Nolte","Matthias",AU10="Jörg Frahm","Jörg") -> Mario | T56: =_xlfn.IFS(B26="Annegret Schmidt","Anne",B26="Ilona Wetzel","Ilona",B26="Michael Wetzel","Michael",B26="Mario Jurk","Mario",B26="Kai Roßberg","Kai",B26="Deniz Hagelstein","Deniz",B26="Frank Nijholt","Frank",B26="Matthias Nolte","Matthias",B26="Jörg Frahm","Jörg") -> Mario | W56: =_xlfn.IFS(K26="Annegret Schmidt","Anne",K26="Ilona Wetzel","Ilona",K26="Michael Wetzel","Michael",K26="Mario Jurk","Mario",K26="Kai Roßberg","Kai",K26="Deniz Hagelstein","Deniz",K26="Frank Nijholt","Frank",K26="Matthias Nolte","Matthias",K26="Jörg Frahm","Jörg") -> Deniz | Z56: =_xlfn.IFS(T26="Annegret Schmidt","Anne",T26="Ilona Wetzel","Ilona",T26="Michael Wetzel","Michael",T26="Mario Jurk","Mario",T26="Kai Roßberg","Kai",T26="Deniz Hagelstein","Deniz",T26="Frank Nijholt","Frank",T26="Matthias Nolte","Matthias",T26="Jörg Frahm","Jörg") -> Mario | AC56: =_xlfn.IFS(AC26="Annegret Schmidt","Anne",AC26="Ilona Wetzel","Ilona",AC26="Michael Wetzel","Michael",AC26="Mario Jurk","Mario",AC26="Kai Roßberg","Kai",AC26="Deniz Hagelstein","Deniz",AC26="Frank Nijholt","Frank",AC26="Matthias Nolte","Matthias",AC26="Jörg Frahm","Jörg") -> Jörg | AF56: =_xlfn.IFS(AL26="Annegret Schmidt","Anne",AL26="Ilona Wetzel","Ilona",AL26="Michael Wetzel","Michael",AL26="Mario Jurk","Mario",AL26="Kai Roßberg","Kai",AL26="Deniz Hagelstein","Deniz",AL26="Frank Nijholt","Frank",AL26="Matthias Nolte","Matthias",AL26="Jörg Frahm","Jörg") -> Jörg | AI56: =_xlfn.IFS(AU26="Annegret Schmidt","Anne",AU26="Ilona Wetzel","Ilona",AU26="Michael Wetzel","Michael",AU26="Mario Jurk","Mario",AU26="Kai Roßberg","Kai",AU26="Deniz Hagelstein","Deniz",AU26="Frank Nijholt","Frank",AU26="Matthias Nolte","Matthias",AU26="Jörg Frahm","Jörg") -> Jörg | AL56: =_xlfn.IFS(B40="Annegret Schmidt","Anne",B40="Ilona Wetzel","Ilona",B40="Michael Wetzel","Michael",B40="Mario Jurk","Mario",B40="Kai Roßberg","Kai",B40="Deniz Hagelstein","Deniz",B40="Frank Nijholt","Frank",B40="Matthias Nolte","Matthias",B40="Jörg Frahm","Jörg") -> Michael | AO56: =_xlfn.IFS(K40="Annegret Schmidt","Anne",K40="Ilona Wetzel","Ilona",K40="Michael Wetzel","Michael",K40="Mario Jurk","Mario",K40="Kai Roßberg","Kai",K40="Deniz Hagelstein","Deniz",K40="Frank Nijholt","Frank",K40="Matthias Nolte","Matthias",K40="Jörg Frahm","Jörg") -> Mario
B57: =_xlfn.IFS(B11="Annegret Schmidt","Anne",B11="Ilona Wetzel","Ilona",B11="Michael Wetzel","Michael",B11="Mario Jurk","Mario",B11="Kai Roßberg","Kai",B11="Deniz Hagelstein","Deniz",B11="Frank Nijholt","Frank",B11="Matthias Nolte","Matthias",B11="Jörg Frahm","Jörg") -> Kai | E57: =_xlfn.IFS(K11="Annegret Schmidt","Anne",K11="Ilona Wetzel","Ilona",K11="Michael Wetzel","Michael",K11="Mario Jurk","Mario",K11="Kai Roßberg","Kai",K11="Deniz Hagelstein","Deniz",K11="Frank Nijholt","Frank",K11="Matthias Nolte","Matthias",K11="Jörg Frahm","Jörg") -> Kai | H57: =_xlfn.IFS(T11="Annegret Schmidt","Anne",T11="Ilona Wetzel","Ilona",T11="Michael Wetzel","Michael",T11="Mario Jurk","Mario",T11="Kai Roßberg","Kai",T11="Deniz Hagelstein","Deniz",T11="Frank Nijholt","Frank",T11="Matthias Nolte","Matthias",T11="Jörg Frahm","Jörg") -> Kai | K57: =_xlfn.IFS(AC11="Annegret Schmidt","Anne",AC11="Ilona Wetzel","Ilona",AC11="Michael Wetzel","Michael",AC11="Mario Jurk","Mario",AC11="Kai Roßberg","Kai",AC11="Deniz Hagelstein","Deniz",AC11="Frank Nijholt","Frank",AC11="Matthias Nolte","Matthias",AC11="Jörg Frahm","Jörg") -> Michael | N57: =_xlfn.IFS(AL11="Annegret Schmidt","Anne",AL11="Ilona Wetzel","Ilona",AL11="Michael Wetzel","Michael",AL11="Mario Jurk","Mario",AL11="Kai Roßberg","Kai",AL11="Deniz Hagelstein","Deniz",AL11="Frank Nijholt","Frank",AL11="Matthias Nolte","Matthias",AL11="Jörg Frahm","Jörg") -> Kai | Q57: =_xlfn.IFS(AU11="Annegret Schmidt","Anne",AU11="Ilona Wetzel","Ilona",AU11="Michael Wetzel","Michael",AU11="Mario Jurk","Mario",AU11="Kai Roßberg","Kai",AU11="Deniz Hagelstein","Deniz",AU11="Frank Nijholt","Frank",AU11="Matthias Nolte","Matthias",AU11="Jörg Frahm","Jörg") -> Kai | T57: =_xlfn.IFS(B27="Annegret Schmidt","Anne",B27="Ilona Wetzel","Ilona",B27="Michael Wetzel","Michael",B27="Mario Jurk","Mario",B27="Kai Roßberg","Kai",B27="Deniz Hagelstein","Deniz",B27="Frank Nijholt","Frank",B27="Matthias Nolte","Matthias",B27="Jörg Frahm","Jörg") -> Kai | W57: =_xlfn.IFS(K27="Annegret Schmidt","Anne",K27="Ilona Wetzel","Ilona",K27="Michael Wetzel","Michael",K27="Mario Jurk","Mario",K27="Kai Roßberg","Kai",K27="Deniz Hagelstein","Deniz",K27="Frank Nijholt","Frank",K27="Matthias Nolte","Matthias",K27="Jörg Frahm","Jörg") -> Kai | Z57: =_xlfn.IFS(T27="Annegret Schmidt","Anne",T27="Ilona Wetzel","Ilona",T27="Michael Wetzel","Michael",T27="Mario Jurk","Mario",T27="Kai Roßberg","Kai",T27="Deniz Hagelstein","Deniz",T27="Frank Nijholt","Frank",T27="Matthias Nolte","Matthias",T27="Jörg Frahm","Jörg") -> Kai | AC57: =_xlfn.IFS(AC27="Annegret Schmidt","Anne",AC27="Ilona Wetzel","Ilona",AC27="Michael Wetzel","Michael",AC27="Mario Jurk","Mario",AC27="Kai Roßberg","Kai",AC27="Deniz Hagelstein","Deniz",AC27="Frank Nijholt","Frank",AC27="Matthias Nolte","Matthias",AC27="Jörg Frahm","Jörg") -> Kai | AF57: =_xlfn.IFS(AL27="Annegret Schmidt","Anne",AL27="Ilona Wetzel","Ilona",AL27="Michael Wetzel","Michael",AL27="Mario Jurk","Mario",AL27="Kai Roßberg","Kai",AL27="Deniz Hagelstein","Deniz",AL27="Frank Nijholt","Frank",AL27="Matthias Nolte","Matthias",AL27="Jörg Frahm","Jörg") -> Kai | AI57: =_xlfn.IFS(AU27="Annegret Schmidt","Anne",AU27="Ilona Wetzel","Ilona",AU27="Michael Wetzel","Michael",AU27="Mario Jurk","Mario",AU27="Kai Roßberg","Kai",AU27="Deniz Hagelstein","Deniz",AU27="Frank Nijholt","Frank",AU27="Matthias Nolte","Matthias",AU27="Jörg Frahm","Jörg") -> Kai | AL57: =_xlfn.IFS(B41="Annegret Schmidt","Anne",B41="Ilona Wetzel","Ilona",B41="Michael Wetzel","Michael",B41="Mario Jurk","Mario",B41="Kai Roßberg","Kai",B41="Deniz Hagelstein","Deniz",B41="Frank Nijholt","Frank",B41="Matthias Nolte","Matthias",B41="Jörg Frahm","Jörg") -> Kai | AO57: =_xlfn.IFS(K41="Annegret Schmidt","Anne",K41="Ilona Wetzel","Ilona",K41="Michael Wetzel","Michael",K41="Mario Jurk","Mario",K41="Kai Roßberg","Kai",K41="Deniz Hagelstein","Deniz",K41="Frank Nijholt","Frank",K41="Matthias Nolte","Matthias",K41="Jörg Frahm","Jörg") -> Kai
B59: =_xlfn.IFS(B13="Annegret Schmidt","Anne",B13="Ilona Wetzel","Ilona",B13="Michael Wetzel","Michael",B13="Mario Jurk","Mario",B13="Kai Roßberg","Kai",B13="Deniz Hagelstein","Deniz",B13="Frank Nijholt","Frank",B13="Matthias Nolte","Matthias",B13="Jörg Frahm","Jörg") -> Michael | E59: =_xlfn.IFS(K13="Annegret Schmidt","Anne",K13="Ilona Wetzel","Ilona",K13="Michael Wetzel","Michael",K13="Mario Jurk","Mario",K13="Kai Roßberg","Kai",K13="Deniz Hagelstein","Deniz",K13="Frank Nijholt","Frank",K13="Matthias Nolte","Matthias",K13="Jörg Frahm","Jörg") -> Michael | H59: =_xlfn.IFS(T13="Annegret Schmidt","Anne",T13="Ilona Wetzel","Ilona",T13="Michael Wetzel","Michael",T13="Mario Jurk","Mario",T13="Kai Roßberg","Kai",T13="Deniz Hagelstein","Deniz",T13="Frank Nijholt","Frank",T13="Matthias Nolte","Matthias",T13="Jörg Frahm","Jörg") -> Matthias | K59: =_xlfn.IFS(AC13="Annegret Schmidt","Anne",AC13="Ilona Wetzel","Ilona",AC13="Michael Wetzel","Michael",AC13="Mario Jurk","Mario",AC13="Kai Roßberg","Kai",AC13="Deniz Hagelstein","Deniz",AC13="Frank Nijholt","Frank",AC13="Matthias Nolte","Matthias",AC13="Jörg Frahm","Jörg") -> Ilona | N59: =_xlfn.IFS(AL13="Annegret Schmidt","Anne",AL13="Ilona Wetzel","Ilona",AL13="Michael Wetzel","Michael",AL13="Mario Jurk","Mario",AL13="Kai Roßberg","Kai",AL13="Deniz Hagelstein","Deniz",AL13="Frank Nijholt","Frank",AL13="Matthias Nolte","Matthias",AL13="Jörg Frahm","Jörg") -> Anne | Q59: =_xlfn.IFS(AU13="Annegret Schmidt","Anne",AU13="Ilona Wetzel","Ilona",AU13="Michael Wetzel","Michael",AU13="Mario Jurk","Mario",AU13="Kai Roßberg","Kai",AU13="Deniz Hagelstein","Deniz",AU13="Frank Nijholt","Frank",AU13="Matthias Nolte","Matthias",AU13="Jörg Frahm","Jörg") -> Ilona | T59: =_xlfn.IFS(B29="Annegret Schmidt","Anne",B29="Ilona Wetzel","Ilona",B29="Michael Wetzel","Michael",B29="Mario Jurk","Mario",B29="Kai Roßberg","Kai",B29="Deniz Hagelstein","Deniz",B29="Frank Nijholt","Frank",B29="Matthias Nolte","Matthias",B29="Jörg Frahm","Jörg") -> Ilona | W59: =_xlfn.IFS(K29="Annegret Schmidt","Anne",K29="Ilona Wetzel","Ilona",K29="Michael Wetzel","Michael",K29="Mario Jurk","Mario",K29="Kai Roßberg","Kai",K29="Deniz Hagelstein","Deniz",K29="Frank Nijholt","Frank",K29="Matthias Nolte","Matthias",K29="Jörg Frahm","Jörg") -> Frank | Z59: =_xlfn.IFS(T29="Annegret Schmidt","Anne",T29="Ilona Wetzel","Ilona",T29="Michael Wetzel","Michael",T29="Mario Jurk","Mario",T29="Kai Roßberg","Kai",T29="Deniz Hagelstein","Deniz",T29="Frank Nijholt","Frank",T29="Matthias Nolte","Matthias",T29="Jörg Frahm","Jörg") -> Deniz | AC59: =_xlfn.IFS(AC29="Annegret Schmidt","Anne",AC29="Ilona Wetzel","Ilona",AC29="Michael Wetzel","Michael",AC29="Mario Jurk","Mario",AC29="Kai Roßberg","Kai",AC29="Deniz Hagelstein","Deniz",AC29="Frank Nijholt","Frank",AC29="Matthias Nolte","Matthias",AC29="Jörg Frahm","Jörg") -> Ilona | AF59: =_xlfn.IFS(AL29="Annegret Schmidt","Anne",AL29="Ilona Wetzel","Ilona",AL29="Michael Wetzel","Michael",AL29="Mario Jurk","Mario",AL29="Kai Roßberg","Kai",AL29="Deniz Hagelstein","Deniz",AL29="Frank Nijholt","Frank",AL29="Matthias Nolte","Matthias",AL29="Jörg Frahm","Jörg") -> Anne | AI59: =_xlfn.IFS(AU29="Annegret Schmidt","Anne",AU29="Ilona Wetzel","Ilona",AU29="Michael Wetzel","Michael",AU29="Mario Jurk","Mario",AU29="Kai Roßberg","Kai",AU29="Deniz Hagelstein","Deniz",AU29="Frank Nijholt","Frank",AU29="Matthias Nolte","Matthias",AU29="Jörg Frahm","Jörg") -> Ilona | AL59: =_xlfn.IFS(B42="Annegret Schmidt","Anne",B42="Ilona Wetzel","Ilona",B42="Michael Wetzel","Michael",B42="Mario Jurk","Mario",B42="Kai Roßberg","Kai",B42="Deniz Hagelstein","Deniz",B42="Frank Nijholt","Frank",B42="Matthias Nolte","Matthias",B42="Jörg Frahm","Jörg") -> Deniz | AO59: =_xlfn.IFS(K43="Annegret Schmidt","Anne",K43="Ilona Wetzel","Ilona",K43="Michael Wetzel","Michael",K43="Mario Jurk","Mario",K43="Kai Roßberg","Kai",K43="Deniz Hagelstein","Deniz",K43="Frank Nijholt","Frank",K43="Matthias Nolte","Matthias",K43="Jörg Frahm","Jörg") -> Ilona
B60: =_xlfn.IFS(B14="Annegret Schmidt","Anne",B14="Ilona Wetzel","Ilona",B14="Michael Wetzel","Michael",B14="Mario Jurk","Mario",B14="Kai Roßberg","Kai",B14="Deniz Hagelstein","Deniz",B14="Frank Nijholt","Frank",B14="Matthias Nolte","Matthias",B14="Jörg Frahm","Jörg") -> Mario | E60: =_xlfn.IFS(K14="Annegret Schmidt","Anne",K14="Ilona Wetzel","Ilona",K14="Michael Wetzel","Michael",K14="Mario Jurk","Mario",K14="Kai Roßberg","Kai",K14="Deniz Hagelstein","Deniz",K14="Frank Nijholt","Frank",K14="Matthias Nolte","Matthias",K14="Jörg Frahm","Jörg") -> Frank | H60: =_xlfn.IFS(T14="Annegret Schmidt","Anne",T14="Ilona Wetzel","Ilona",T14="Michael Wetzel","Michael",T14="Mario Jurk","Mario",T14="Kai Roßberg","Kai",T14="Deniz Hagelstein","Deniz",T14="Frank Nijholt","Frank",T14="Matthias Nolte","Matthias",T14="Jörg Frahm","Jörg") -> Mario | K60: =_xlfn.IFS(AC14="Annegret Schmidt","Anne",AC14="Ilona Wetzel","Ilona",AC14="Michael Wetzel","Michael",AC14="Mario Jurk","Mario",AC14="Kai Roßberg","Kai",AC14="Deniz Hagelstein","Deniz",AC14="Frank Nijholt","Frank",AC14="Matthias Nolte","Matthias",AC14="Jörg Frahm","Jörg") -> Anne | N60: =_xlfn.IFS(AL14="Annegret Schmidt","Anne",AL14="Ilona Wetzel","Ilona",AL14="Michael Wetzel","Michael",AL14="Mario Jurk","Mario",AL14="Kai Roßberg","Kai",AL14="Deniz Hagelstein","Deniz",AL14="Frank Nijholt","Frank",AL14="Matthias Nolte","Matthias",AL14="Jörg Frahm","Jörg") -> Deniz | Q60: =_xlfn.IFS(AU14="Annegret Schmidt","Anne",AU14="Ilona Wetzel","Ilona",AU14="Michael Wetzel","Michael",AU14="Mario Jurk","Mario",AU14="Kai Roßberg","Kai",AU14="Deniz Hagelstein","Deniz",AU14="Frank Nijholt","Frank",AU14="Matthias Nolte","Matthias",AU14="Jörg Frahm","Jörg") -> Deniz | T60: =_xlfn.IFS(B30="Annegret Schmidt","Anne",B30="Ilona Wetzel","Ilona",B30="Michael Wetzel","Michael",B30="Mario Jurk","Mario",B30="Kai Roßberg","Kai",B30="Deniz Hagelstein","Deniz",B30="Frank Nijholt","Frank",B30="Matthias Nolte","Matthias",B30="Jörg Frahm","Jörg") -> Anne | W60: =_xlfn.IFS(K30="Annegret Schmidt","Anne",K30="Ilona Wetzel","Ilona",K30="Michael Wetzel","Michael",K30="Mario Jurk","Mario",K30="Kai Roßberg","Kai",K30="Deniz Hagelstein","Deniz",K30="Frank Nijholt","Frank",K30="Matthias Nolte","Matthias",K30="Jörg Frahm","Jörg") -> Mario | Z60: =_xlfn.IFS(T30="Annegret Schmidt","Anne",T30="Ilona Wetzel","Ilona",T30="Michael Wetzel","Michael",T30="Mario Jurk","Mario",T30="Kai Roßberg","Kai",T30="Deniz Hagelstein","Deniz",T30="Frank Nijholt","Frank",T30="Matthias Nolte","Matthias",T30="Jörg Frahm","Jörg") -> Mario | AC60: =_xlfn.IFS(AC30="Annegret Schmidt","Anne",AC30="Ilona Wetzel","Ilona",AC30="Michael Wetzel","Michael",AC30="Mario Jurk","Mario",AC30="Kai Roßberg","Kai",AC30="Deniz Hagelstein","Deniz",AC30="Frank Nijholt","Frank",AC30="Matthias Nolte","Matthias",AC30="Jörg Frahm","Jörg") -> Mario | AF60: =_xlfn.IFS(AL30="Annegret Schmidt","Anne",AL30="Ilona Wetzel","Ilona",AL30="Michael Wetzel","Michael",AL30="Mario Jurk","Mario",AL30="Kai Roßberg","Kai",AL30="Deniz Hagelstein","Deniz",AL30="Frank Nijholt","Frank",AL30="Matthias Nolte","Matthias",AL30="Jörg Frahm","Jörg") -> Ilona | AI60: =_xlfn.IFS(AU30="Annegret Schmidt","Anne",AU30="Ilona Wetzel","Ilona",AU30="Michael Wetzel","Michael",AU30="Mario Jurk","Mario",AU30="Kai Roßberg","Kai",AU30="Deniz Hagelstein","Deniz",AU30="Frank Nijholt","Frank",AU30="Matthias Nolte","Matthias",AU30="Jörg Frahm","Jörg") -> Mario | AL60: =_xlfn.IFS(B44="Annegret Schmidt","Anne",B44="Ilona Wetzel","Ilona",B44="Michael Wetzel","Michael",B44="Mario Jurk","Mario",B44="Kai Roßberg","Kai",B44="Deniz Hagelstein","Deniz",B44="Frank Nijholt","Frank",B44="Matthias Nolte","Matthias",B44="Jörg Frahm","Jörg") -> Anne | AO60: =_xlfn.IFS(K44="Annegret Schmidt","Anne",K44="Ilona Wetzel","Ilona",K44="Michael Wetzel","Michael",K44="Mario Jurk","Mario",K44="Kai Roßberg","Kai",K44="Deniz Hagelstein","Deniz",K44="Frank Nijholt","Frank",K44="Matthias Nolte","Matthias",K44="Jörg Frahm","Jörg") -> Jörg
B61: =_xlfn.IFS(B15="Annegret Schmidt","Anne",B15="Ilona Wetzel","Ilona",B15="Michael Wetzel","Michael",B15="Mario Jurk","Mario",B15="Kai Roßberg","Kai",B15="Deniz Hagelstein","Deniz",B15="Frank Nijholt","Frank",B15="Matthias Nolte","Matthias",B15="Jörg Frahm","Jörg") -> Matthias | E61: =_xlfn.IFS(K15="Annegret Schmidt","Anne",K15="Ilona Wetzel","Ilona",K15="Michael Wetzel","Michael",K15="Mario Jurk","Mario",K15="Kai Roßberg","Kai",K15="Deniz Hagelstein","Deniz",K15="Frank Nijholt","Frank",K15="Matthias Nolte","Matthias",K15="Jörg Frahm","Jörg") -> Anne | H61: =_xlfn.IFS(T15="Annegret Schmidt","Anne",T15="Ilona Wetzel","Ilona",T15="Michael Wetzel","Michael",T15="Mario Jurk","Mario",T15="Kai Roßberg","Kai",T15="Deniz Hagelstein","Deniz",T15="Frank Nijholt","Frank",T15="Matthias Nolte","Matthias",T15="Jörg Frahm","Jörg") -> Deniz | K61: =_xlfn.IFS(AC15="Annegret Schmidt","Anne",AC15="Ilona Wetzel","Ilona",AC15="Michael Wetzel","Michael",AC15="Mario Jurk","Mario",AC15="Kai Roßberg","Kai",AC15="Deniz Hagelstein","Deniz",AC15="Frank Nijholt","Frank",AC15="Matthias Nolte","Matthias",AC15="Jörg Frahm","Jörg") -> Kai | N61: =_xlfn.IFS(AL15="Annegret Schmidt","Anne",AL15="Ilona Wetzel","Ilona",AL15="Michael Wetzel","Michael",AL15="Mario Jurk","Mario",AL15="Kai Roßberg","Kai",AL15="Deniz Hagelstein","Deniz",AL15="Frank Nijholt","Frank",AL15="Matthias Nolte","Matthias",AL15="Jörg Frahm","Jörg") -> Matthias | Q61: =_xlfn.IFS(AU15="Annegret Schmidt","Anne",AU15="Ilona Wetzel","Ilona",AU15="Michael Wetzel","Michael",AU15="Mario Jurk","Mario",AU15="Kai Roßberg","Kai",AU15="Deniz Hagelstein","Deniz",AU15="Frank Nijholt","Frank",AU15="Matthias Nolte","Matthias",AU15="Jörg Frahm","Jörg",AU15="Jörg Frahm (Abw)","Jörg (Abw)",AU15="Michael Wetzel (Abw)","Michael (Abw)") -> Jörg (Abw) | T61: =_xlfn.IFS(B31="Annegret Schmidt","Anne",B31="Ilona Wetzel","Ilona",B31="Michael Wetzel","Michael",B31="Mario Jurk","Mario",B31="Kai Roßberg","Kai",B31="Deniz Hagelstein","Deniz",B31="Frank Nijholt","Frank",B31="Matthias Nolte","Matthias",B31="Jörg Frahm","Jörg") -> Frank | W61: =_xlfn.IFS(K31="Annegret Schmidt","Anne",K31="Ilona Wetzel","Ilona",K31="Michael Wetzel","Michael",K31="Mario Jurk","Mario",K31="Kai Roßberg","Kai",K31="Deniz Hagelstein","Deniz",K31="Frank Nijholt","Frank",K31="Matthias Nolte","Matthias",K31="Jörg Frahm","Jörg") -> Matthias | Z61: =_xlfn.IFS(T31="Annegret Schmidt","Anne",T31="Ilona Wetzel","Ilona",T31="Michael Wetzel","Michael",T31="Mario Jurk","Mario",T31="Kai Roßberg","Kai",T31="Deniz Hagelstein","Deniz",T31="Frank Nijholt","Frank",T31="Matthias Nolte","Matthias",T31="Jörg Frahm","Jörg") -> Frank | AC61: =_xlfn.IFS(AC31="Annegret Schmidt","Anne",AC31="Ilona Wetzel","Ilona",AC31="Michael Wetzel","Michael",AC31="Mario Jurk","Mario",AC31="Kai Roßberg","Kai",AC31="Deniz Hagelstein","Deniz",AC31="Frank Nijholt","Frank",AC31="Matthias Nolte","Matthias",AC31="Jörg Frahm","Jörg") -> Deniz | AF61: =_xlfn.IFS(AL31="Annegret Schmidt","Anne",AL31="Ilona Wetzel","Ilona",AL31="Michael Wetzel","Michael",AL31="Mario Jurk","Mario",AL31="Kai Roßberg","Kai",AL31="Deniz Hagelstein","Deniz",AL31="Frank Nijholt","Frank",AL31="Matthias Nolte","Matthias",AL31="Jörg Frahm","Jörg") -> Mario | AI61: =_xlfn.IFS(AU31="Annegret Schmidt","Anne",AU31="Ilona Wetzel","Ilona",AU31="Michael Wetzel","Michael",AU31="Mario Jurk","Mario",AU31="Kai Roßberg","Kai",AU31="Deniz Hagelstein","Deniz",AU31="Frank Nijholt","Frank",AU31="Matthias Nolte","Matthias",AU31="Jörg Frahm","Jörg") -> Anne | AL61: =_xlfn.IFS(B45="Annegret Schmidt","Anne",B45="Ilona Wetzel","Ilona",B45="Michael Wetzel","Michael",B45="Mario Jurk","Mario",B45="Kai Roßberg","Kai",B45="Deniz Hagelstein","Deniz",B45="Frank Nijholt","Frank",B45="Matthias Nolte","Matthias",B45="Jörg Frahm","Jörg") -> Mario | AO61: =_xlfn.IFS(K45="Annegret Schmidt","Anne",K45="Ilona Wetzel","Ilona",K45="Michael Wetzel","Michael",K45="Mario Jurk","Mario",K45="Kai Roßberg","Kai",K45="Deniz Hagelstein","Deniz",K45="Frank Nijholt","Frank",K45="Matthias Nolte","Matthias",K45="Jörg Frahm","Jörg") -> Frank
B62: =_xlfn.IFS(B16="Annegret Schmidt","Anne",B16="Ilona Wetzel","Ilona",B16="Michael Wetzel","Michael",B16="Mario Jurk","Mario",B16="Kai Roßberg","Kai",B16="Deniz Hagelstein","Deniz",B16="Frank Nijholt","Frank",B16="Matthias Nolte","Matthias",B16="Jörg Frahm","Jörg") -> Frank | E62: =_xlfn.IFS(K16="Annegret Schmidt","Anne",K16="Ilona Wetzel","Ilona",K16="Michael Wetzel","Michael",K16="Mario Jurk","Mario",K16="Kai Roßberg","Kai",K16="Deniz Hagelstein","Deniz",K16="Frank Nijholt","Frank",K16="Matthias Nolte","Matthias",K16="Jörg Frahm","Jörg") -> Ilona | H62: =_xlfn.IFS(T16="Annegret Schmidt","Anne",T16="Ilona Wetzel","Ilona",T16="Michael Wetzel","Michael",T16="Mario Jurk","Mario",T16="Kai Roßberg","Kai",T16="Deniz Hagelstein","Deniz",T16="Frank Nijholt","Frank",T16="Matthias Nolte","Matthias",T16="Jörg Frahm","Jörg") -> Frank | K62: =_xlfn.IFS(AC16="Annegret Schmidt","Anne",AC16="Ilona Wetzel","Ilona",AC16="Michael Wetzel","Michael",AC16="Mario Jurk","Mario",AC16="Kai Roßberg","Kai",AC16="Deniz Hagelstein","Deniz",AC16="Frank Nijholt","Frank",AC16="Matthias Nolte","Matthias",AC16="Jörg Frahm","Jörg",AC16="Jörg Frahm (Abw)","Jörg (Abw)",AC16="Michael Wetzel (Abw)","Michael (Abw)") -> Jörg (Abw) | N62: =_xlfn.IFS(AL16="Annegret Schmidt","Anne",AL16="Ilona Wetzel","Ilona",AL16="Michael Wetzel","Michael",AL16="Mario Jurk","Mario",AL16="Kai Roßberg","Kai",AL16="Deniz Hagelstein","Deniz",AL16="Frank Nijholt","Frank",AL16="Matthias Nolte","Matthias",AL16="Jörg Frahm","Jörg",AL16="Jörg Frahm (Abw)","Jörg (Abw)",AL16="Michael Wetzel (Abw)","Michael (Abw)") -> Jörg (Abw) | Q62: =_xlfn.IFS(AU16="Annegret Schmidt","Anne",AU16="Ilona Wetzel","Ilona",AU16="Michael Wetzel","Michael",AU16="Mario Jurk","Mario",AU16="Kai Roßberg","Kai",AU16="Deniz Hagelstein","Deniz",AU16="Frank Nijholt","Frank",AU16="Matthias Nolte","Matthias",AU16="Jörg Frahm","Jörg",AU16="Jörg Frahm (Abw)","Jörg (Abw)",AU16="Michael Wetzel (Abw)","Michael (Abw)") -> Matthias | T62: =_xlfn.IFS(B32="Annegret Schmidt","Anne",B32="Ilona Wetzel","Ilona",B32="Michael Wetzel","Michael",B32="Mario Jurk","Mario",B32="Kai Roßberg","Kai",B32="Deniz Hagelstein","Deniz",B32="Frank Nijholt","Frank",B32="Matthias Nolte","Matthias",B32="Jörg Frahm","Jörg",B32="Jörg Frahm (Abw)","Jörg (Abw)",B32="Michael Wetzel (Abw)","Michael (Abw)") -> Jörg (Abw) | W62: =_xlfn.IFS(K32="Annegret Schmidt","Anne",K32="Ilona Wetzel","Ilona",K32="Michael Wetzel","Michael",K32="Mario Jurk","Mario",K32="Kai Roßberg","Kai",K32="Deniz Hagelstein","Deniz",K32="Frank Nijholt","Frank",K32="Matthias Nolte","Matthias",K32="Jörg Frahm","Jörg") -> Jörg | Z62: =_xlfn.IFS(T32="Annegret Schmidt","Anne",T32="Ilona Wetzel","Ilona",T32="Michael Wetzel","Michael",T32="Mario Jurk","Mario",T32="Kai Roßberg","Kai",T32="Deniz Hagelstein","Deniz",T32="Frank Nijholt","Frank",T32="Matthias Nolte","Matthias",T32="Jörg Frahm","Jörg") -> Matthias | AC62: =_xlfn.IFS(AC32="Annegret Schmidt","Anne",AC32="Ilona Wetzel","Ilona",AC32="Michael Wetzel","Michael",AC32="Mario Jurk","Mario",AC32="Kai Roßberg","Kai",AC32="Deniz Hagelstein","Deniz",AC32="Frank Nijholt","Frank",AC32="Matthias Nolte","Matthias",AC32="Jörg Frahm","Jörg") -> Matthias | AF62: =_xlfn.IFS(AL32="Annegret Schmidt","Anne",AL32="Ilona Wetzel","Ilona",AL32="Michael Wetzel","Michael",AL32="Mario Jurk","Mario",AL32="Kai Roßberg","Kai",AL32="Deniz Hagelstein","Deniz",AL32="Frank Nijholt","Frank",AL32="Matthias Nolte","Matthias",AL32="Jörg Frahm","Jörg") -> Frank | AI62: =_xlfn.IFS(AU32="Annegret Schmidt","Anne",AU32="Ilona Wetzel","Ilona",AU32="Michael Wetzel","Michael",AU32="Mario Jurk","Mario",AU32="Kai Roßberg","Kai",AU32="Deniz Hagelstein","Deniz",AU32="Frank Nijholt","Frank",AU32="Matthias Nolte","Matthias",AU32="Jörg Frahm","Jörg") -> Matthias | AL62: =_xlfn.IFS(B46="Annegret Schmidt","Anne",B46="Ilona Wetzel","Ilona",B46="Michael Wetzel","Michael",B46="Mario Jurk","Mario",B46="Kai Roßberg","Kai",B46="Deniz Hagelstein","Deniz",B46="Frank Nijholt","Frank",B46="Matthias Nolte","Matthias",B46="Jörg Frahm","Jörg") -> Frank | AO62: =_xlfn.IFS(K46="Annegret Schmidt","Anne",K46="Ilona Wetzel","Ilona",K46="Michael Wetzel","Michael",K46="Mario Jurk","Mario",K46="Kai Roßberg","Kai",K46="Deniz Hagelstein","Deniz",K46="Frank Nijholt","Frank",K46="Matthias Nolte","Matthias",K46="Jörg Frahm","Jörg") -> Matthias
B63: =_xlfn.IFS(B17="Annegret Schmidt","Anne",B17="Ilona Wetzel","Ilona",B17="Michael Wetzel","Michael",B17="Mario Jurk","Mario",B17="Kai Roßberg","Kai",B17="Deniz Hagelstein","Deniz",B17="Frank Nijholt","Frank",B17="Matthias Nolte","Matthias",B17="Jörg Frahm","Jörg",B17="Jörg Frahm (Abw)","Jörg (Abw)",B17="Michael Wetzel (Abw)","Michael (Abw)") -> Jörg (Abw) | E63: =_xlfn.IFS(K17="Annegret Schmidt","Anne",K17="Ilona Wetzel","Ilona",K17="Michael Wetzel","Michael",K17="Mario Jurk","Mario",K17="Kai Roßberg","Kai",K17="Deniz Hagelstein","Deniz",K17="Frank Nijholt","Frank",K17="Matthias Nolte","Matthias",K17="Jörg Frahm","Jörg",K17="Jörg Frahm (Abw)","Jörg (Abw)",K17="Michael Wetzel (Abw)","Michael (Abw)") -> Jörg (Abw) | H63: =_xlfn.IFS(T17="Annegret Schmidt","Anne",T17="Ilona Wetzel","Ilona",T17="Michael Wetzel","Michael",T17="Mario Jurk","Mario",T17="Kai Roßberg","Kai",T17="Deniz Hagelstein","Deniz",T17="Frank Nijholt","Frank",T17="Matthias Nolte","Matthias",T17="Jörg Frahm","Jörg",T17="Jörg Frahm (Abw)","Jörg (Abw)",T17="Michael Wetzel (Abw)","Michael (Abw)") -> Jörg (Abw) | K63: =_xlfn.IFS(AC17="Annegret Schmidt","Anne",AC17="Ilona Wetzel","Ilona",AC17="Michael Wetzel","Michael",AC17="Mario Jurk","Mario",AC17="Kai Roßberg","Kai",AC17="Deniz Hagelstein","Deniz",AC17="Frank Nijholt","Frank",AC17="Matthias Nolte","Matthias",AC17="Jörg Frahm","Jörg",AC17="Jörg Frahm (Abw)","Jörg (Abw)",AC17="Michael Wetzel (Abw)","Michael (Abw)") -> Michael (Abw) | N63: =_xlfn.IFS(AL17="Annegret Schmidt","Anne",AL17="Ilona Wetzel","Ilona",AL17="Michael Wetzel","Michael",AL17="Mario Jurk","Mario",AL17="Kai Roßberg","Kai",AL17="Deniz Hagelstein","Deniz",AL17="Frank Nijholt","Frank",AL17="Matthias Nolte","Matthias",AL17="Jörg Frahm","Jörg",AL17="Jörg Frahm (Abw)","Jörg (Abw)",AL17="Michael Wetzel (Abw)","Michael (Abw)") -> Michael (Abw) | Q63: =_xlfn.IFS(AU17="Annegret Schmidt","Anne",AU17="Ilona Wetzel","Ilona",AU17="Michael Wetzel","Michael",AU17="Mario Jurk","Mario",AU17="Kai Roßberg","Kai",AU17="Deniz Hagelstein","Deniz",AU17="Frank Nijholt","Frank",AU17="Matthias Nolte","Matthias",AU17="Jörg Frahm","Jörg",AU17="Jörg Frahm (Abw)","Jörg (Abw)",AU17="Michael Wetzel (Abw)","Michael (Abw)") -> Michael (Abw) | T63: =_xlfn.IFS(B33="Annegret Schmidt","Anne",B33="Ilona Wetzel","Ilona",B33="Michael Wetzel","Michael",B33="Mario Jurk","Mario",B33="Kai Roßberg","Kai",B33="Deniz Hagelstein","Deniz",B33="Frank Nijholt","Frank",B33="Matthias Nolte","Matthias",B33="Jörg Frahm","Jörg",B33="Jörg Frahm (Abw)","Jörg (Abw)",B33="Michael Wetzel (Abw)","Michael (Abw)") -> Michael (Abw) | W63: =_xlfn.IFS(K33="Annegret Schmidt","Anne",K33="Ilona Wetzel","Ilona",K33="Michael Wetzel","Michael",K33="Mario Jurk","Mario",K33="Kai Roßberg","Kai",K33="Deniz Hagelstein","Deniz",K33="Frank Nijholt","Frank",K33="Matthias Nolte","Matthias",K33="Jörg Frahm","Jörg",K33="Jörg Frahm (Abw)","Jörg (Abw)",K33="Michael Wetzel (Abw)","Michael (Abw)") -> Michael (Abw) | Z63: =_xlfn.IFS(T33="Annegret Schmidt","Anne",T33="Ilona Wetzel","Ilona",T33="Michael Wetzel","Michael",T33="Mario Jurk","Mario",T33="Kai Roßberg","Kai",T33="Deniz Hagelstein","Deniz",T33="Frank Nijholt","Frank",T33="Matthias Nolte","Matthias",T33="Jörg Frahm","Jörg",I33="Jörg Frahm (Abw)","Jörg (Abw)",T33="Michael Wetzel (Abw)","Michael (Abw)") -> Michael (Abw) | AC63: =_xlfn.IFS(AC33="Annegret Schmidt","Anne",AC33="Ilona Wetzel","Ilona",AC33="Michael Wetzel","Michael",AC33="Mario Jurk","Mario",AC33="Kai Roßberg","Kai",AC33="Deniz Hagelstein","Deniz",AC33="Frank Nijholt","Frank",AC33="Matthias Nolte","Matthias",AC33="Jörg Frahm","Jörg",AC33="Jörg Frahm (Abw)","Jörg (Abw)",AC33="Michael Wetzel (Abw)","Michael (Abw)") -> Michael (Abw) | AF63: =_xlfn.IFS(AL33="Annegret Schmidt","Anne",AL33="Ilona Wetzel","Ilona",AL33="Michael Wetzel","Michael",AL33="Mario Jurk","Mario",AL33="Kai Roßberg","Kai",AL33="Deniz Hagelstein","Deniz",AL33="Frank Nijholt","Frank",AL33="Matthias Nolte","Matthias",AL33="Jörg Frahm","Jörg",AL33="Jörg Frahm (Abw)","Jörg (Abw)",AL33="Michael Wetzel (Abw)","Michael (Abw)") -> Michael (Abw) | AI63: =_xlfn.IFS(AU33="Annegret Schmidt","Anne",AU33="Ilona Wetzel","Ilona",AU33="Michael Wetzel","Michael",AU33="Mario Jurk","Mario",AU33="Kai Roßberg","Kai",AU33="Deniz Hagelstein","Deniz",AU33="Frank Nijholt","Frank",AU33="Matthias Nolte","Matthias",AU33="Jörg Frahm","Jörg",AU33="Jörg Frahm (Abw)","Jörg (Abw)",AU33="Michael Wetzel (Abw)","Michael (Abw)") -> Michael (Abw) | AL63: =_xlfn.IFS(B47="Annegret Schmidt","Anne",B47="Ilona Wetzel","Ilona",B47="Michael Wetzel","Michael",B47="Mario Jurk","Mario",B47="Kai Roßberg","Kai",B47="Deniz Hagelstein","Deniz",B47="Frank Nijholt","Frank",B47="Matthias Nolte","Matthias",B47="Jörg Frahm","Jörg",B47="Jörg Frahm (Abw)","Jörg (Abw)",B47="Michael Wetzel (Abw)","Michael (Abw)") -> Ilona | AO63: =_xlfn.IFS(K47="Annegret Schmidt","Anne",K47="Ilona Wetzel","Ilona",K47="Michael Wetzel","Michael",K47="Mario Jurk","Mario",K47="Kai Roßberg","Kai",K47="Deniz Hagelstein","Deniz",K47="Frank Nijholt","Frank",K47="Matthias Nolte","Matthias",K47="Jörg Frahm","Jörg",K47="Jörg Frahm (Abw)","Jörg (Abw)",K47="Michael Wetzel (Abw)","Michael (Abw)") -> Michael (Abw)

Sheet Abschlusstabelle 23-24
B1: Start | D1: Betriebssportverband Hamburg - Sparte Bowling
B2: Rangliste
D3: ABSCHLUSSTABELLEN PUNKTSPIELSAISON 2023 / 24
D5: HAMBURGER VERBANDSMEISTER 2024 | I5: B W V L 1
E7: SONDERKLASSE
F8: Punkte | G8: Spiele | H8: Pins | I8: Schnitt Mann. | J8: Schnitt Einzel
D9: 1 | E9: B W V L 1 | F9: 155 | G9: 168 | H9: 33455 | I9: 2389.642857 | J9: 199.1369048 | K9: Meister
D10: 2 | E10: Edeka 1 | F10: 119 | G10: 168 | H10: 31925 | I10: 2280.357143 | J10: 190.0297619
D11: 3 | E11: Stahlhandel Nord 1 | F11: 116.5 | G11: 168 | H11: 31519 | I11: 2251.357143 | J11: 187.6130952
D12: 4 | E12: Hamburger Sparkasse 1 | F12: 110 | G12: 168 | H12: 31076 | I12: 2219.714286 | J12: 184.9761905
D13: 5 | E13: Condor-Versicherung 1 | F13: 103 | G13: 156 | H13: 29093 | I13: 2237.923077 | J13: 186.4935897
D14: 6 | E14: Hamburger Hochbahn 1 | F14: 96 | G14: 168 | H14: 30785 | I14: 2198.928571 | J14: 183.2440476
D15: 7 | E15: SG Deutsche Bank Deutschland e.V. 1 | F15: 91 | G15: 168 | H15: 30476 | I15: 2176.857143 | J15: 181.4047619
D16: 8 | E16: Körber Sports vormals HAU 1 | F16: 78 | G16: 168 | H16: 30095 | I16: 2149.642857 | J16: 179.1369048
D17: 9 | E17: HHLA 1 | F17: 78 | G17: 168 | H17: 29850 | I17: 2132.142857 | J17: 177.6785714
D18: 10 | E18: Hamburger Hochbahn 2 | F18: 70 | G18: 168 | H18: 29511 | I18: 2107.928571 | J18: 175.6607143 | K18: Absteiger
D19: 11 | E19: Postamt 2 1 | F19: 47.5 | G19: 168 | H19: 28945 | I19: 2067.5 | J19: 172.2916667 | K19: Absteiger
D20: 12 | E20: B W V L 2 | F20: 27 | G20: 168 | H20: 28110 | I20: 2007.857143 | J20: 167.3214286 | K20: Absteiger
E22: KLASSE A 1 | F22: MEISTER | H22: Otto 1
F23: Punkte | G23: Spiele | H23: Pins | I23: Schnitt Mann. | J23: Schnitt Einzel
D24: 1 | E24: Otto 1 | F24: 126.5 | G24: 168 | H24: 30463 | I24: 2175.928571 | J24: 181.327381 | K24: Aufsteiger
D25: 2 | E25: Sportclub Dt. Bundesbank 1 | F25: 90.5 | G25: 168 | H25: 28828 | I25: 2059.142857 | J25: 171.5952381
D26: 3 | E26: Energie Sportvereinigung 1 | F26: 90 | G26: 168 | H26: 28984 | I26: 2070.285714 | J26: 172.5238095
D27: 4 | E27: Hamburger Hochbahn 3 | F27: 84.5 | G27: 168 | H27: 28359 | I27: 2025.642857 | J27: 168.8035714
D28: 5 | E28: LG Finanzämter Hamburg 1 | F28: 74 | G28: 168 | H28: 28440 | I28: 2031.428571 | J28: 169.2857143
D29: 6 | E29: Aurubis 1 | F29: 73 | G29: 168 | H29: 28004 | I29: 2000.285714 | J29: 166.6904762
D30: 7 | E30: Die Aktiven 1 | F30: 66.5 | G30: 168 | H30: 27624 | I30: 1973.142857 | J30: 164.4285714
D31: 8 | E31: Lufthansa 1 | F31: 61 | G31: 168 | H31: 27861 | I31: 1990.071429 | J31: 165.8392857
D32: 9 | E32: Feuerwehr Hamburg 1 | F32: 54.5 | G32: 168 | H32: 27090 | I32: 1935 | J32: 161.25 | K32: Absteiger
D33: 10 | E33: Elbe-Sport eV 2 | F33: 49.5 | G33: 168 | H33: 27598 | I33: 1971.285714 | J33: 164.2738095 | K33: Absteiger
E35: KLASSE A 2 | F35: MEISTER | H35: B W V L 3
F36: Punkte | G36: Spiele | H36: Pins | I36: Schnitt Mann. | J36: Schnitt Einzel
